Workbook

Sheet Introduction
D3: Community Solar Pro Forma
D4: v1.1 March 2021
B47: Version History:
B48: v1.0 | C48: Released on Feb 18, 2021
B49: v1.1 | C49: Released on Mar 15, 2021
C50: Added developer fees to ITC basis
C51: Formatting changes to ITC and MACRS calculations

Sheet Inputs
C2: SYSTEM INPUTS | I2: FINANCIAL INPUTS INPUTS | P2: SUBSCRIBER INPUTS
C3: Installation | I3: Financial | P3: Anchor Rates and Savings
C4: System Size | D4: kW | E4: 1000 | I4: Annual Energy & Demand Cost Increase: | L4: 0.0278 | P4: Anchor Subscription Percent of System | R4: % | S4: 0.4
C5: Installation Type: | D5: Roof, Ground or Canopy | E5: Roof | I5: Developer NPV Discount Rate: | L5: 0.06 | P5: Anchor Subscriber Retail Electricity Rate | R5: $ per kWh | S5: 0.08
C6: City | D6: Enter City or Town | E6: Portland | P6: Anchor Subscriber Bill Credit Rate | R6: $ per kWh | S6: 0.035
C7: State | D7: State | E7: OR | I7: SRECs: | P7: Targeted Anchor Subscription Savings Percent | R7: % of electricity rate | S7: 0.2
C8: Cost per installed watt | D8: Auto based on size | E8: =INDEX(J59:L64,MATCH(I54,I59:I64,0),MATCH(E5,$J$58:$L$58,0)) -> 1.9 | I8: REC Value | K8: $/REC | L8: 0
C9: Estimated anchor annual electricity usage | D9: kWh | E9: 900000 | I9: How many year will generated RECs be bought? | K9: Years | L9: 0 | P9: Subscriber Rates and Savings
I10: How many years is the payment term? | K10: Years | L10: 0 | P10: General Subscriber Retail Electricity Rate | R10: $ per kWh | S10: 0.11
P11: Residential Electricity Bill Credit Rate | R11: $ per kWh | S11: 0.058
C12: System Components | I12: Tax Benefits | P12: Targeted Subscriber Savings Percent | R12: % of electricity rate | S12: 0.2
C13: Module Size | D13: Watts | E13: 400 | I13: Federal ITC | K13: Yes | L13: 0.26
C14: Capacity Factor: | D14: % | E14: 0.13 | I14: Accelerated Depreciation (MACRS) | K14: Yes | L14: 0.35 | P14: Unsubscribed Energy
C15: System Losses (%): | D15: % | E15: 14.1 | P15: Unsubscribed energy purchased by utility? | Q15: Yes | R15: Rate per kWh | S15: 0.03
C16: Inverter Efficiency (%): | D16: % | E16: 96 | I16: Incentives and Grants
C17: Annual Power Production | D17: (kWh per kW): | E17: =E56 -> 1022.075926 | I17: Incentive #1 | J17: [NAME] | K17: (please select) | L17: 0 | P17: Subscriber Management
C18: Annual Derate (%): | D18: % | E18: 0.005 | I18: Incentive #2 | J18: [NAME] | K18: (please select) | L18: 0 | P18: Total Number of System Panels: | R18: # Panels | S18: =(E4*1000)/E13 -> 2500
C19: Number of Panels: | E19: =(E4*1000)/E13 -> 2500 | I19: Incentive #3 | J19: [NAME] | K19: (please select) | L19: 0 | P19: Average Subscriber Share | R19: kW per Subscriber | S19: 4
I20: Incentive #4 | J20: [NAME] | K20: (please select) | L20: 0 | P20: Panels per Subscriber | R20: # Panels | S20: =(S19/E4)*S18 -> 10
C21: ENERGY PRODUCTION | P21: # Subscribers at Full Subscription (after Anchors) | R21: # Subscribers | S21: =((E4*(1-S4)/S19)) -> 150
C22: PV Watts generated production or manual? | E22: PV Watts | I22: FINANCING INPUTS | P22: Years to Full Subscription | R22: # Years | S22: 2
I23: Construction Loan | P23: Annual Subscriber Turnover Rate | R23: % | S23: 0.015
C24: MANUAL PRODUCTION INPUTS | D24: First Year Power Generation | I24: Loan amount | J24: % | K24: 0 | P24: Subscriber Acquisition Difficulty | R24: Easy/Moderate/Difficult | S24: Moderate
C25: Month | I25: Interest Rate | J25: % | K25: 0 | P25: Subscriber Management Average Labor Rate | R25: $ per Hour | S25: 60
C26: January | E26: =IF($E$22="Manual","<= Enter total kilowatt","") ->  | I26: Loan Term | J26: Years | K26: 0 | P26: Labor Rate Escalator | R26: % Increase | S26: 0.03
C27: February | E27: =IF($E$22="Manual","<= hours for each","") ->  | I27: Operating Loan
C28: March | E28: =IF($E$22="Manual","<= month of the","") ->  | I28: Loan amount | J28: % | K28: 0
C29: April | E29: =IF($E$22="Manual","<= first production","") ->  | I29: Interest Rate | J29: % | K29: 0
C30: May | E30: =IF($E$22="Manual","<= year.","") ->  | I30: Loan Term | J30: Years | K30: 0
C31: June | E31: =IF($E$22="Manual","<=","") -> 
C32: July
C33: August
C34: September
C35: October
C36: November
C37: December
C38: TOTAL | D38: =SUM(D26:D37) -> 0
C41: POWER GENERATION FROM PV WATTS | I41: INSTALLATION COSTS
C43: Generation Output per PVWatts | E43: kWh per kW | I43: SIZE CATEORY
C44: January | E44: 33.23316016
C45: February | E45: 44.09237891 | I45: Size From: | K45: Size To: | L45: Size Category
C46: March | E46: 78.9335625 | I46: 0 | K46: 10 | L46: 1
C47: April | E47: 100.3297266 | I47: 11 | K47: 25 | L47: 2
C48: May | E48: 137.0964375 | I48: 26 | K48: 100 | L48: 3
C49: June | E49: 138.8735625 | I49: 101 | K49: 200 | L49: 4
C50: July | E50: 153.02 | I50: 201 | K50: 500 | L50: 5
C51: August | E51: 124.0825781 | I51: 501 | K51: 2000 | L51: 6
C52: September | E52: 91.96925
C53: October | E53: 63.30703516 | I53: Size Category
C54: November | E54: 33.27167969 | I54: =IF(E4>500,6,IF(E4>200,5,IF(E4>100,4,IF(E4>25,3,IF(E4>10,2,1))))) -> 6
C55: December | E55: 23.86655469
C56: Annual | E56: =SUM(E44:E55) -> 1022.075926 | I56: INSTALLATION COSTS BY CATEGORY | M56: `
I58: Size Category | J58: Roof | K58: Ground | L58: Canopy
I59: 1 | J59: 2.6 | K59: 2.6 | L59: 3.25
I60: 2 | J60: 2.45 | K60: 2.45 | L60: 3.1
I61: 3 | J61: 2.25 | K61: 2 | L61: 3
I62: 4 | J62: 2.1 | K62: 1.9 | L62: 2.8
I63: 5 | J63: 2 | K63: 1.85 | L63: 2.75
I64: 6 | J64: 1.9 | K64: 1.8 | L64: 2.65

Sheet Summary
C2: System Ownership: Offsite Lease | E2: System Ownership: Onsite Host | G2: System Ownership: Onsite Host and Anchor | I2: Onsite Host & Anchor Subscription Only | K2: Anchor Subscription Only
B3: System Size in kW | C3: =Inputs!$E$4 -> 1000 | E3: =Inputs!$E$4 -> 1000 | G3: =Inputs!$E$4 -> 1000 | I3: =Inputs!$E$4 -> 1000 | K3: =Inputs!$E$4 -> 1000
B4: Anchor Share | C4: =Inputs!$E$4*Inputs!$S$4 -> 400 | E4: =Inputs!$E$4*Inputs!$S$4 -> 400 | G4: =Inputs!$E$4*Inputs!$S$4 -> 400 | I4: =Inputs!$E$4*Inputs!$S$4 -> 400 | K4: =Inputs!$E$4*Inputs!$S$4 -> 400
B5: # Panels | C5: =(Inputs!$E$4*1000)/Inputs!$E$13 -> 2500 | E5: =(Inputs!$E$4*1000)/Inputs!$E$13 -> 2500 | G5: =(Inputs!$E$4*1000)/Inputs!$E$13 -> 2500 | I5: =(Inputs!$E$4*1000)/Inputs!$E$13 -> 2500 | K5: =(Inputs!$E$4*1000)/Inputs!$E$13 -> 2500
C6: ='System Ownership-Leased Offsite'!B2 -> Host site owns and operates a community solar project installed on a leased property with external subscribers | E6: ='System Ownership-Host Onsite'!B2 -> Host site owns and operates a community solar project installed on a thier property with external subscribers | G6: ='System Ownership-Host Anchor'!B2 -> Host site owns and operates a community solar project installed on a thier property and is the Anchor Subscriber | I6: ='Onsite Host & Anchor'!B2 -> Host a third-party owned community solar project installed on their property as the anchor subscriber | K6: ='Anchor Subscription Only'!B2 -> Anchor subsciprtion only to a third-party owned community solar project installed at an external site
B7: Energy Offset: | C7: ='System Ownership-Leased Offsite'!D239/('System Ownership-Leased Offsite'!D239+'System Ownership-Leased Offsite'!D240) -> 0 | E7: ='System Ownership-Host Onsite'!D239/('System Ownership-Host Onsite'!D239+'System Ownership-Host Onsite'!D240) -> 0.454255967 | G7: ='System Ownership-Host Anchor'!D239/('System Ownership-Host Anchor'!D239+'System Ownership-Host Anchor'!D240) -> 0.454255967 | I7: ='Onsite Host & Anchor'!F73/Inputs!E9 -> 0.454255967 | K7: ='Anchor Subscription Only'!D93 -> 0.454255967
C17: System Owner | E17: System Owner/Host | G17: Host/Anchor | I17: Host/Anchor | K17: Anchor
B18: Average Annual Net Revenue/Savings | C18: ='System Ownership-Leased Offsite'!D14 -> -40678.56601 | E18: ='System Ownership-Host Onsite'!D14 -> -37028.79169 | G18: ='System Ownership-Host Anchor'!D14 -> -33279.47787 | I18: ='Onsite Host & Anchor'!D14 -> 7399.08814 | K18: ='Anchor Subscription Only'!D14 -> 3899.286367
B20: 25-Year Costs: | C20: ='System Ownership-Leased Offsite'!D7 -> -3523308.586 | E20: ='System Ownership-Host Onsite'!D7 -> -3428414.453 | G20: ='System Ownership-Host Anchor'!D7 -> -3428414.453 | I20: ='Onsite Host & Anchor'!D7 -> -389928.6367 | K20: ='Anchor Subscription Only'!D7 -> -389928.6367
B21: 25-Year Revenues: | C21: ='System Ownership-Leased Offsite'!D8 -> 2465665.869 | E21: ='System Ownership-Host Onsite'!D8 -> 2465665.869 | G21: ='System Ownership-Host Anchor'!D8 -> 2563148.029 | I21: ='Onsite Host & Anchor'!D8 -> 582304.9284 | K21: ='Anchor Subscription Only'!D8 -> 487410.7959
B22: 25-Year Net Benefits: | C22: ='System Ownership-Leased Offsite'!D9 -> -1057642.716 | E22: ='System Ownership-Host Onsite'!D9 -> -962748.5839 | G22: ='System Ownership-Host Anchor'!D9 -> -865266.4247 | I22: ='Onsite Host & Anchor'!D9 -> 192376.2916 | K22: ='Anchor Subscription Only'!D9 -> 97482.15918
B23: 25-Year Net Present Value (NPV): | C23: ='System Ownership-Leased Offsite'!D10 -> -1144157.361 | E23: ='System Ownership-Host Onsite'!D10 -> -1095420.452 | G23: ='System Ownership-Host Anchor'!D10 -> -1048784.722 | I23: ='Onsite Host & Anchor'!D10 -> 95372.63897 | K23: ='Anchor Subscription Only'!D10 -> 46635.73018
B24: Return on Investment (ROI) %: | C24: ='System Ownership-Leased Offsite'!D11 -> -0.3001845256 | E24: ='System Ownership-Host Onsite'!D11 -> -0.2808145272 | G24: ='System Ownership-Host Anchor'!D11 -> -0.252380929 | I24: ='Onsite Host & Anchor'!D11 -> 1.49336282 | K24: ='Anchor Subscription Only'!D11 -> 1.25
B25: Internal Rate of Return (IRR) %: | C25: ='System Ownership-Leased Offsite'!D12 -> -0.1272558791 | E25: ='System Ownership-Host Onsite'!D12 -> -0.1025340095 | G25: ='System Ownership-Host Anchor'!D12 -> -0.08246756115 | I25: NA | K25: NA
B26: Upfront Costs | C26: ='System Ownership-Leased Offsite'!D13 -> -2021133.958 | E26: ='System Ownership-Host Onsite'!D13 -> -2017920 | G26: ='System Ownership-Host Anchor'!D13 -> -2017920 | I26: ='Onsite Host & Anchor'!D13 -> 0 | K26: ='Anchor Subscription Only'!D13 -> 0
B27: Payback Period: years | C27: ='System Ownership-Leased Offsite'!D15 -> 25 | E27: ='System Ownership-Host Onsite'!D15 -> 25 | G27: ='System Ownership-Host Anchor'!D15 -> 25 | I27: ='Onsite Host & Anchor'!D15 -> 0 | K27: ='Anchor Subscription Only'!D15 -> 0
C29: Subscriber
C30: Management
B31: Customer Acquisition Costs ($) | C31: ='Subscriber Mgt'!D29 -> 86007.125
B32: Customer Acquisition Costs ($/Watt) | C32: ='Subscriber Mgt'!E29 -> 0.086007125
B33: Customer Acquisition Costs ($/Subscriber) | C33: ='Subscriber Mgt'!G29 -> 573.3808333
B34: Ongoing Subscriber Management Costs ($/Watt) | C34: ='Subscriber Mgt'!E37 -> 0.8542541047
B35: Ongoing Subscriber Management Costs ($/Subscriber) | C35: ='Subscriber Mgt'!G37 -> 5695.027365

Sheet Start! (hidden)
A8: Community Solar Business Case Tool - Illinois
A9: v1.21 July 2017
A45: Contact developers with questions:
A46: Emily McGavisk, West Monroe Partners: | E46: emcgavisk@westmonroepartners.com
A47: Vito Greco, Elevate Energy: | D47: Vito.Greco@ElevateEnergy.org
A49: This decision support tool (“Tool") was developed by the Cook County Community Solar project team ("Cook County"), lead by West Monroe Partners, LLC ("West Monroe") and Elevate Energy for the purpose of considering community solar initiatives from the perspective of a subscriber or system owner in Cook County. It is not intended, and should be used, as the basis for investment decision making. The Tool is provided on an “as-is” basis and “with all faults”, and no representations or warranty of any kind, whether expressed or implied either in fact or by operation of law, statutory or otherwise, including without limitation warranties of merchantability, or fitness for a particular purpose is given by West Monroe, Cook County, Elevate Energy or any other person as to the accuracy of the Tool or any output therefrom. Any user of the Tool agrees to assume full responsibility for use of the Tool and use of any output therefrom.
A57: This report was prepared as an account of work sponsored by an agency of the United States Government. Neither the United States Government nor any agency thereof, nor any of their employees, makes any warranty, express or implied, or assumes any legal liability or responsibility for the accuracy, completeness, or usefulness of any information, apparatus, product, or process disclosed, or represents that its use would not infringe privately owned rights. Reference herein to any specific commercial product, process, or service by trade name, trademark, manufacturer, or otherwise does not necessarily constitute or imply its endorsement, recommendation, or favoring by the United States Government or any agency thereof. The views and opinions of authors expressed herein do not necessarily state or reflect those of the United States Government or any agency thereof.

Sheet Version_History (hidden)
A8: Version History
A9: v1.21 July 2017

Sheet Subscriber Mgt
B2: Customer Acquisition and Subscriber Management Costs:
B7: SUMMARY OF ASSUMPTIONS
B9: Assumptions (from INPUTS Page)
B10: System Size: | D10: =Inputs!E4 -> 1000 | E10: kW
B11: Number of Panels: | D11: =Inputs!S18 -> 2500 | E11: #
B12: Panels per Subscriber: | D12: =Inputs!S20 -> 10 | E12: #
B13: Number of Subscribers at Full Subscription (after Anchors) | D13: =Inputs!S21 -> 150 | E13: #
B14: Full Subscription Rate (after Anchors) | D14: =1-Inputs!S4 -> 0.6 | E14: %
B15: Labor Rate | D15: =Inputs!S25 -> 60 | E15: /hour
B16: Labor Rate Escalator | D16: =Inputs!S26 -> 0.03 | E16: %
B17: Subscriber Acquisition Difficulty | D17: =Inputs!S24 -> Moderate | E17: Easy/Moderate/Difficult
B18: Years to Full Subscription | D18: =Inputs!S22 -> 2 | E18: #
B19: Annual Subscriber Turnover Rate | D19: =Inputs!S23 -> 0.015 | E19: %
B21: SUMMARY OF COSTS
B23: Total Upfront Administrative Costs (Year 1) | D23: Total ($) | E23: $/W | G23: $/Subscriber
B24: Marketing & Communications | D24: =I46 -> 21280 | E24: =(D24/$D$10)/1000 -> 0.02128 | G24: =D24/$D$13 -> 141.8666667
B25: Customer Acquisition Setup | D25: =I58 -> 31580 | E25: 0.03158 | G25: 210.5333333
B26: Outreach Setup | D26: =I64 -> 3380 | E26: 0.00338 | G26: 22.53333333
B27: Admin Setup | D27: =I69 -> 1680 | E27: 0.00168 | G27: 11.2
B28: Year 1 Subscriber Management Costs | D28: =E83 -> 28087.125 | E28: 0.028087125 | G28: 187.2475
B29: TOTAL UPFRONT COSTS | D29: =SUM(D24:D28) -> 86007.125 | E29: 0.086007125 | G29: 573.3808333
B31: Total Lifetime Subsciber Management Costs (year 2-25) | D31: Total ($) | E31: $/W | G31: $/Subscriber
B32: Outreach | D32: =AD78-E99 -> 364254.4571 | E32: =(D32/$D$10)/1000 -> 0.3642544571 | G32: =D32/$D$13 -> 2428.363047
B33: Sales | D33: =AD79-E105 -> 59643.03451 | E33: =(D33/$D$10)/1000 -> 0.05964303451 | G33: 397.6202301
B34: Sign-up Transaction | D34: =AD80-E111 -> 42602.16751 | E34: =(D34/$D$10)/1000 -> 0.04260216751 | G34: 284.0144501
B35: Customer Service | D35: =AD81-E119 -> 19671.71832 | E35: =(D35/$D$10)/1000 -> 0.01967171832 | G35: 131.1447888
B36: Billing Admin | D36: =AD82-E125 -> 368082.7273 | E36: =(D36/$D$10)/1000 -> 0.3680827273 | G36: 2453.884849
B37: TOTAL ONGOING-TRANSACTIONAL COSTS | D37: =SUM(D32:D36) -> 854254.1047 | E37: =SUM(E32:E36) -> 0.8542541047 | G37: 5695.027365
B39: UPFRONT COSTS
B41: Marketing & Communications | D41: $/W | E41: Labor Hours | F41: Labor Rate | G41: Labor Cost | H41: OOP Cost | I41: TOTAL Cost
B42: Messaging | D42: =I42/($D$10*1000) -> 0.0012 | E42: 20 | F42: =$D$15 -> 60 | G42: =E42*F42 -> 1200 | H42: 0 | I42: =G42+H42 -> 1200
B43: Marketing Materials | D43: =I43/($D$10*1000) -> 0.0087 | E43: 20 | F43: =$D$15 -> 60 | G43: =E43*F43 -> 1200 | H43: =D13*J43 -> 7500 | I43: =G43+H43 -> 8700 | J43: 50 | K43: Marketing Materials Rate per Subscriber
B44: Media Buy | D44: =I44/($D$10*1000) -> 0.0087 | E44: 20 | F44: =$D$15 -> 60 | G44: =E44*F44 -> 1200 | H44: =D13*J44 -> 7500 | I44: =G44+H44 -> 8700 | J44: 50 | K44: Media Buy Rate per Subscriber
B45: Website | D45: =I45/($D$10*1000) -> 0.00268 | E45: 28 | F45: =$D$15 -> 60 | G45: =E45*F45 -> 1680 | H45: 1000 | I45: =G45+H45 -> 2680
G46: =SUM(G42:G45) -> 5280 | H46: =SUM(H42:H45) -> 16000 | I46: =SUM(I42:I45) -> 21280
B48: Customer Acquisition-Call Center Setup | D48: $/W | E48: Labor Hours | F48: Labor Rate | G48: Labor Cost | H48: OOP Cost | I48: TOTAL Cost
B49: Email setup | D49: =I49/($D$10*1000) -> 0.00049 | E49: 4 | F49: =$D$15 -> 60 | G49: =E49*F49 -> 240 | H49: 250 | I49: =G49+H49 -> 490
B50: Templates and SOPs | D50: 0.00096 | E50: 16 | F50: 60 | G50: 960 | H50: 0 | I50: 960
B51: Live chat setup | D51: 0.00096 | E51: 16 | F51: 60 | G51: 960 | H51: 0 | I51: 960
B52: CIS integration | D52: 0.02144 | E52: 24 | F52: 60 | G52: 1440 | H52: 20000 | I52: 21440
B53: E-pay solution integration | D53: 0.00408 | E53: 18 | F53: 60 | G53: 1080 | H53: 3000 | I53: 4080
B54: Phone # | D54: 0.00037 | E54: 2 | F54: 60 | G54: 120 | H54: 250 | I54: 370
B55: Training prep | D55: 0.00122 | E55: 12 | F55: 60 | G55: 720 | H55: 500 | I55: 1220
B56: Training execution | D56: 0.0012 | E56: 20 | F56: 60 | G56: 1200 | H56: 0 | I56: 1200
B57: IVR Setup | D57: 0.00086 | E57: 6 | F57: =$D$15 -> 60 | G57: 360 | H57: 500 | I57: 860
G58: =SUM(G49:G57) -> 7080 | H58: =SUM(H49:H57) -> 24500 | I58: =SUM(I49:I57) -> 31580
B60: Outreach Setup | D60: $/W | E60: Labor Hours | F60: Labor Rate | G60: Labor Cost | H60: OOP Cost | I60: TOTAL Cost
B61: Training prep | D61: =I61/($D$10*1000) -> 0.00146 | E61: 16 | F61: =$D$15 -> 60 | G61: =E61*F61 -> 960 | H61: 500 | I61: =G61+H61 -> 1460
B62: Training execution | D62: =I62/($D$10*1000) -> 0.0012 | E62: 20 | F62: =$D$15 -> 60 | G62: =E62*F62 -> 1200 | H62: 0 | I62: =G62+H62 -> 1200
B63: SOPs | D63: =I63/($D$10*1000) -> 0.00072 | E63: 12 | F63: =$D$15 -> 60 | G63: =E63*F63 -> 720 | H63: 0 | I63: =G63+H63 -> 720
G64: =SUM(G61:G63) -> 2880 | H64: =SUM(H61:H63) -> 500 | I64: 3380
B66: Admin | D66: $/W | E66: Labor Hours | F66: Labor Rate | G66: Labor Cost | H66: OOP Cost | I66: TOTAL Cost
B67: Billing templates and setup | D67: =I67/($D$10*1000) -> 0.0012 | E67: 20 | F67: =$D$15 -> 60 | G67: =E67*F67 -> 1200 | H67: 0 | I67: =G67+H67 -> 1200
B68: SOPs | D68: =I68/($D$10*1000) -> 0.00048 | E68: 8 | F68: =$D$15 -> 60 | G68: =E68*F68 -> 480 | H68: 0 | I68: =G68+H68 -> 480
G69: =SUM(G67:G68) -> 1680 | H69: =SUM(H67:H68) -> 0 | I69: 1680
B71: TOTAL UPFRONT COSTS | D71: $/W | E71: Labor Hours | F71: Labor Rate | G71: Labor Cost | H71: OOP Cost | I71: TOTAL Cost
D72: =I72/($D$10*1000) -> 0.05792 | E72: N/A | F72: N/A | G72: =G46+G58+G69+G64 -> 16920 | H72: =H46+H58+H69+H64 -> 41000 | I72: =I46+I58+I69+I64 -> 57920
B75: TRANSACTIONAL COSTS
B77: Customer Acquisition | D77: $/W | E77: 1 | F77: =E77+1 -> 2 | G77: =F77+1 -> 3 | H77: =G77+1 -> 4 | I77: =H77+1 -> 5 | J77: =I77+1 -> 6 | K77: 7 | L77: =K77+1 -> 8 | M77: 9 | N77: 10 | O77: 11 | P77: =O77+1 -> 12 | Q77: 13 | R77: 14 | S77: 15 | T77: 16 | U77: 17 | V77: 18 | W77: 19 | X77: 20 | Y77: 21 | Z77: 22 | AA77: 23 | AB77: 24 | AC77: 25 | AD77: TOTAL
B78: Outreach | D78: =AD78/($D$10*1000) -> 0.3760538321 | E78: =E99 -> 11799.375 | F78: =F99 -> 15973.125 | G78: 10712.09906 | H78: 11086.66203 | I78: 11415.8119 | J78: 11754.83625 | K78: 12104.03134 | L78: 12463.70228 | M78: 12834.16335 | N78: 13215.73825 | O78: 13608.7604 | P78: 14013.57321 | Q78: 14430.5304 | R78: 14859.99632 | S78: 15302.34621 | T78: 15757.96659 | U78: 16227.25559 | V78: 16710.62326 | W78: 17208.49196 | X78: 17721.29671 | Y78: 18249.48562 | Z78: 18793.52018 | AA78: 19353.87579 | AB78: 19931.04206 | AC78: 20525.52333 | AD78: =SUM(E78:AC78) -> 376053.8321
B79: Sales | D79: 0.06097522201 | E79: =E105 -> 1332.1875 | F79: =F105 -> 2027.8125 | G79: 1775.349844 | H79: 1828.610339 | I79: 1883.468649 | J79: 1939.972709 | K79: 1998.17189 | L79: 2058.117047 | M79: 2119.860558 | N79: 2183.456375 | O79: 2248.960066 | P79: 2316.428868 | Q79: 2385.921734 | R79: 2457.499386 | S79: 2531.224368 | T79: 2607.161099 | U79: 2685.375932 | V79: 2765.93721 | W79: 2848.915326 | X79: 2934.382786 | Y79: 3022.414269 | Z79: 3113.086697 | AA79: 3206.479298 | AB79: 3302.673677 | AC79: 3401.753888 | AD79: =SUM(E79:AC79) -> 60975.22201
B80: Sign-up transaction | D80: 0.04355373001 | E80: =E111 -> 951.5625 | F80: =F111 -> 1448.4375 | G80: 1268.107031 | H80: 1306.150242 | I80: 1345.334749 | J80: 1385.694792 | K80: 1427.265636 | L80: 1470.083605 | M80: 1514.186113 | N80: 1559.611696 | O80: 1606.400047 | P80: 1654.592049 | Q80: 1704.22981 | R80: 1755.356704 | S80: 1808.017405 | T80: 1862.257928 | U80: 1918.125665 | V80: 1975.669435 | W80: 2034.939519 | X80: 2095.987704 | Y80: 2158.867335 | Z80: 2223.633355 | AA80: 2290.342356 | AB80: 2359.052627 | AC80: 2429.824205 | AD80: 43553.73001
B81: Customer service | D81: 0.02102171832 | E81: =E119 -> 1350 | F81: =F119 -> 782.15625 | G81: 582.0611273 | H81: 599.5229612 | I81: 617.50865 | J81: 636.0339095 | K81: 655.1149268 | L81: 674.7683746 | M81: 695.0114258 | N81: 715.8617686 | O81: 737.3376217 | P81: 759.4577503 | Q81: 782.2414828 | R81: 805.7087273 | S81: 829.8799891 | T81: 854.7763888 | U81: 880.4196805 | V81: 906.8322709 | W81: 934.037239 | X81: 962.0583562 | Y81: 990.9201069 | Z81: 1020.64771 | AA81: 1051.267141 | AB81: 1082.805156 | AC81: 1115.28931 | AD81: 21021.71832
B82: Billing admin | D82: 0.3807367273 | E82: =E125 -> 12654 | F82: =F125 -> 12514.5 | G82: 10956.44475 | H82: 11285.13809 | I82: 11623.69224 | J82: 11972.403 | K82: 12331.57509 | L82: 12701.52235 | M82: 13082.56802 | N82: 13475.04506 | O82: 13879.29641 | P82: 14295.6753 | Q82: 14724.54556 | R82: 15166.28193 | S82: 15621.27038 | T82: 16089.90849 | U82: 16572.60575 | V82: 17069.78392 | W82: 17581.87744 | X82: 18109.33376 | Y82: 18652.61378 | Z82: 19212.19219 | AA82: 19788.55796 | AB82: 20382.21469 | AC82: 20993.68113 | AD82: 380736.7273
B83: TOTAL ONGOING COSTS | D83: 0.8823412297 | E83: =SUM(E78:E82) -> 28087.125 | F83: =SUM(F78:F82) -> 32746.03125 | G83: 25294.06181 | H83: 26106.08367 | I83: 26885.81618 | J83: 27688.94066 | K83: 28516.15888 | L83: 29368.19365 | M83: 30245.78946 | N83: 31149.71314 | O83: 32080.75454 | P83: 33039.72718 | Q83: 34027.46899 | R83: 35044.84306 | S83: 36092.73835 | T83: 37172.0705 | U83: 38283.78262 | V83: 39428.8461 | W83: 40608.26148 | X83: 41823.05932 | Y83: 43074.3011 | Z83: 44363.08014 | AA83: 45690.52254 | AB83: 47057.78822 | AC83: 48466.07186 | AD83: =SUM(E83:AC83) -> 882341.2297
B86: Subscriber Assumptions | E86: 1 | F86: =E86+1 -> 2 | G86: =F86+1 -> 3 | H86: =G86+1 -> 4 | I86: =H86+1 -> 5 | J86: =I86+1 -> 6 | K86: 7 | L86: =K86+1 -> 8 | M86: 9 | N86: 10 | O86: 11 | P86: =O86+1 -> 12 | Q86: 13 | R86: 14 | S86: 15 | T86: 16 | U86: 17 | V86: 18 | W86: 19 | X86: 20 | Y86: 21 | Z86: 22 | AA86: 23 | AB86: 24 | AC86: 25
B87: Total # Subscribers Needed (after Anchor) | E87: =$D$13 -> 150 | F87: =$D$13 -> 150 | G87: 150 | H87: 150 | I87: 150 | J87: 150 | K87: 150 | L87: 150 | M87: 150 | N87: 150 | O87: 150 | P87: 150 | Q87: 150 | R87: 150 | S87: 150 | T87: 150 | U87: 150 | V87: 150 | W87: 150 | X87: 150 | Y87: 150 | Z87: 150 | AA87: 150 | AB87: 150 | AC87: 150
B88: Annual Subscriber Gain | E88: =IF(E86<=$D$18,(E87/$D$18)+(E87/$D$18*$D$19),(E87/$D$18*$D$19)) -> 76.125 | F88: =IF(F86<=$D$18,(F87/$D$18)+(F87/$D$18*$D$19),((E87-E90)+E89)) -> 76.125 | G88: 1.2 | H88: 2.3 | I88: 2.3 | J88: 2.3 | K88: 2.3 | L88: 2.3 | M88: 2.3 | N88: 2.3 | O88: =IF(O86<=$D$18,(O87/$D$18)+(O87/$D$18*$D$19),((N87-N90)+N89)) -> 2.3 | P88: 2.3 | Q88: 2.3 | R88: 2.3 | S88: 2.3 | T88: 2.3 | U88: 2.3 | V88: 2.3 | W88: 2.3 | X88: 2.3 | Y88: 2.3 | Z88: 2.3 | AA88: 2.3 | AB88: 2.3 | AC88: 2.3 | AE88: Efficiency of tasks over previous year
B89: Annual Subscriber Loss | E89: 0 | F89: =ROUNDUP(E90*$D$19,1) -> 1.2 | G89: =ROUNDUP(F90*$D$19,1) -> 2.3 | H89: 2.3 | I89: 2.3 | J89: 2.3 | K89: 2.3 | L89: 2.3 | M89: 2.3 | N89: 2.3 | O89: 2.3 | P89: 2.3 | Q89: 2.3 | R89: 2.3 | S89: 2.3 | T89: 2.3 | U89: 2.3 | V89: 2.3 | W89: 2.3 | X89: 2.3 | Y89: 2.3 | Z89: 2.3 | AA89: 2.3 | AB89: 2.3 | AC89: 2.3 | AE89: Year 1 | AF89: Year 2 | AG89: Year 3
B90: Cumulative Subscribers | E90: =IF(E77<Inputs!$S$22,E88-E89,'Subscriber Mgt'!E87) -> 76.125 | F90: =IF(F77<Inputs!$S$22,E90+F88-F89,'Subscriber Mgt'!F87) -> 150 | G90: =IF(G77<Inputs!$S$22,F90+G88-G89,'Subscriber Mgt'!G87) -> 150 | H90: =IF(H77<Inputs!$S$22,G90+H88-H89,'Subscriber Mgt'!H87) -> 150 | I90: =IF(I77<Inputs!$S$22,H90+I88-I89,'Subscriber Mgt'!I87) -> 150 | J90: =IF(J77<Inputs!$S$22,I90+J88-J89,'Subscriber Mgt'!J87) -> 150 | K90: =IF(K77<Inputs!$S$22,J90+K88-K89,'Subscriber Mgt'!K87) -> 150 | L90: =IF(L77<Inputs!$S$22,K90+L88-L89,'Subscriber Mgt'!L87) -> 150 | M90: =IF(M77<Inputs!$S$22,L90+M88-M89,'Subscriber Mgt'!M87) -> 150 | N90: =IF(N77<Inputs!$S$22,M90+N88-N89,'Subscriber Mgt'!N87) -> 150 | O90: =IF(O77<Inputs!$S$22,N90+O88-O89,'Subscriber Mgt'!O87) -> 150 | P90: =IF(P77<Inputs!$S$22,O90+P88-P89,'Subscriber Mgt'!P87) -> 150 | Q90: =IF(Q77<Inputs!$S$22,P90+Q88-Q89,'Subscriber Mgt'!Q87) -> 150 | R90: =IF(R77<Inputs!$S$22,Q90+R88-R89,'Subscriber Mgt'!R87) -> 150 | S90: =IF(S77<Inputs!$S$22,R90+S88-S89,'Subscriber Mgt'!S87) -> 150 | T90: =IF(T77<Inputs!$S$22,S90+T88-T89,'Subscriber Mgt'!T87) -> 150 | U90: =IF(U77<Inputs!$S$22,T90+U88-U89,'Subscriber Mgt'!U87) -> 150 | V90: =IF(V77<Inputs!$S$22,U90+V88-V89,'Subscriber Mgt'!V87) -> 150 | W90: =IF(W77<Inputs!$S$22,V90+W88-W89,'Subscriber Mgt'!W87) -> 150 | X90: =IF(X77<Inputs!$S$22,W90+X88-X89,'Subscriber Mgt'!X87) -> 150 | Y90: =IF(Y77<Inputs!$S$22,X90+Y88-Y89,'Subscriber Mgt'!Y87) -> 150 | Z90: =IF(Z77<Inputs!$S$22,Y90+Z88-Z89,'Subscriber Mgt'!Z87) -> 150 | AA90: =IF(AA77<Inputs!$S$22,Z90+AA88-AA89,'Subscriber Mgt'!AA87) -> 150 | AB90: =IF(AB77<Inputs!$S$22,AA90+AB88-AB89,'Subscriber Mgt'!AB87) -> 150 | AC90: =IF(AC77<Inputs!$S$22,AB90+AC88-AC89,'Subscriber Mgt'!AC87) -> 150 | AE90: NA | AF90: 0.25 | AG90: 0.15
B91: Cumulative Subscriber % | E91: =E90/E87 -> 0.5075 | F91: =F90/F87 -> 1 | G91: 1 | H91: 1 | I91: 1 | J91: 1 | K91: 1 | L91: 1 | M91: 1 | N91: 1 | O91: 1 | P91: 1 | Q91: 1 | R91: 1 | S91: 1 | T91: 1 | U91: 1 | V91: 1 | W91: 1 | X91: 1 | Y91: 1 | Z91: 1 | AA91: 1 | AB91: 1 | AC91: 1
B93: Outreach | E93: 1 | F93: =E93+1 -> 2 | G93: =F93+1 -> 3 | H93: =G93+1 -> 4 | I93: =H93+1 -> 5 | J93: 6 | K93: 7 | L93: 8 | M93: 9 | N93: 10 | O93: 11 | P93: 12 | Q93: 13 | R93: 14 | S93: 15 | T93: 16 | U93: 17 | V93: 18 | W93: 19 | X93: 20 | Y93: 21 | Z93: 22 | AA93: 23 | AB93: 24 | AC93: 25 | AE93: Outreach hours per subscriber
B94: Media Buy | E94: =E88*$J$44 -> 3806.25 | F94: =F88*$J$44 -> 3806.25 | G94: 60 | H94: 115 | I94: 115 | J94: 115 | K94: 115 | L94: 115 | M94: 115 | N94: 115 | O94: 115 | P94: 115 | Q94: 115 | R94: 115 | S94: 115 | T94: 115 | U94: 115 | V94: 115 | W94: 115 | X94: 115 | Y94: 115 | Z94: 115 | AA94: 115 | AB94: 115 | AC94: 115 | AE94: Year 1 | AF94: Year 2 | AG94: Year 3+
B95: Media Buy Rate / Subscriber | E95: =J44 -> 50 | F95: =E95*1.03 -> 51.5 | G95: =F95*1.03 -> 53.045 | H95: =G95*1.03 -> 54.63635 | I95: =H95*1.03 -> 56.2754405 | J95: 57.96370372 | K95: 59.70261483 | L95: 61.49369327 | M95: 63.33850407 | N95: 65.23865919 | O95: 67.19581897 | P95: 69.21169354 | Q95: 71.28804434 | R95: 73.42668567 | S95: 75.62948624 | T95: 77.89837083 | U95: 80.23532195 | V95: 82.64238161 | W95: 85.12165306 | X95: 87.67530265 | Y95: 90.30556173 | Z95: 93.01472859 | AA95: 95.80517044 | AB95: 98.67932556 | AC95: 101.6397053 | AE95: Hours | AF95: Hours | AG95: Hours
B96: Outreach hours per subscriber | E96: =IF(Inputs!$S$24="Easy",$AE$96,IF(Inputs!$S$24="Moderate",$AE$97,IF(Inputs!$S$24="Difficult",$AE$98))) -> 1.75 | F96: =IF(Inputs!$S$24="Easy",$AF$96,IF(Inputs!$S$24="Moderate",$AF$97,IF(Inputs!$S$24="Difficult",$AF$98))) -> 1.3125 | G96: =IF(Inputs!$S$24="Easy",$AG$96,IF(Inputs!$S$24="Moderate",$AG$97,IF(Inputs!$S$24="Difficult",$AG$98))) -> 1.115625 | H96: =IF(Inputs!$S$24="Easy",$AG$96,IF(Inputs!$S$24="Moderate",$AG$97,IF(Inputs!$S$24="Difficult",$AG$98))) -> 1.115625 | I96: =IF(Inputs!$S$24="Easy",$AG$96,IF(Inputs!$S$24="Moderate",$AG$97,IF(Inputs!$S$24="Difficult",$AG$98))) -> 1.115625 | J96: =IF(Inputs!$S$24="Easy",$AG$96,IF(Inputs!$S$24="Moderate",$AG$97,IF(Inputs!$S$24="Difficult",$AG$98))) -> 1.115625 | K96: =IF(Inputs!$S$24="Easy",$AG$96,IF(Inputs!$S$24="Moderate",$AG$97,IF(Inputs!$S$24="Difficult",$AG$98))) -> 1.115625 | L96: =IF(Inputs!$S$24="Easy",$AG$96,IF(Inputs!$S$24="Moderate",$AG$97,IF(Inputs!$S$24="Difficult",$AG$98))) -> 1.115625 | M96: =IF(Inputs!$S$24="Easy",$AG$96,IF(Inputs!$S$24="Moderate",$AG$97,IF(Inputs!$S$24="Difficult",$AG$98))) -> 1.115625 | N96: =IF(Inputs!$S$24="Easy",$AG$96,IF(Inputs!$S$24="Moderate",$AG$97,IF(Inputs!$S$24="Difficult",$AG$98))) -> 1.115625 | O96: =IF(Inputs!$S$24="Easy",$AG$96,IF(Inputs!$S$24="Moderate",$AG$97,IF(Inputs!$S$24="Difficult",$AG$98))) -> 1.115625 | P96: =IF(Inputs!$S$24="Easy",$AG$96,IF(Inputs!$S$24="Moderate",$AG$97,IF(Inputs!$S$24="Difficult",$AG$98))) -> 1.115625 | Q96: =IF(Inputs!$S$24="Easy",$AG$96,IF(Inputs!$S$24="Moderate",$AG$97,IF(Inputs!$S$24="Difficult",$AG$98))) -> 1.115625 | R96: =IF(Inputs!$S$24="Easy",$AG$96,IF(Inputs!$S$24="Moderate",$AG$97,IF(Inputs!$S$24="Difficult",$AG$98))) -> 1.115625 | S96: =IF(Inputs!$S$24="Easy",$AG$96,IF(Inputs!$S$24="Moderate",$AG$97,IF(Inputs!$S$24="Difficult",$AG$98))) -> 1.115625 | T96: =IF(Inputs!$S$24="Easy",$AG$96,IF(Inputs!$S$24="Moderate",$AG$97,IF(Inputs!$S$24="Difficult",$AG$98))) -> 1.115625 | U96: =IF(Inputs!$S$24="Easy",$AG$96,IF(Inputs!$S$24="Moderate",$AG$97,IF(Inputs!$S$24="Difficult",$AG$98))) -> 1.115625 | V96: =IF(Inputs!$S$24="Easy",$AG$96,IF(Inputs!$S$24="Moderate",$AG$97,IF(Inputs!$S$24="Difficult",$AG$98))) -> 1.115625 | W96: =IF(Inputs!$S$24="Easy",$AG$96,IF(Inputs!$S$24="Moderate",$AG$97,IF(Inputs!$S$24="Difficult",$AG$98))) -> 1.115625 | X96: =IF(Inputs!$S$24="Easy",$AG$96,IF(Inputs!$S$24="Moderate",$AG$97,IF(Inputs!$S$24="Difficult",$AG$98))) -> 1.115625 | Y96: =IF(Inputs!$S$24="Easy",$AG$96,IF(Inputs!$S$24="Moderate",$AG$97,IF(Inputs!$S$24="Difficult",$AG$98))) -> 1.115625 | Z96: =IF(Inputs!$S$24="Easy",$AG$96,IF(Inputs!$S$24="Moderate",$AG$97,IF(Inputs!$S$24="Difficult",$AG$98))) -> 1.115625 | AA96: =IF(Inputs!$S$24="Easy",$AG$96,IF(Inputs!$S$24="Moderate",$AG$97,IF(Inputs!$S$24="Difficult",$AG$98))) -> 1.115625 | AB96: =IF(Inputs!$S$24="Easy",$AG$96,IF(Inputs!$S$24="Moderate",$AG$97,IF(Inputs!$S$24="Difficult",$AG$98))) -> 1.115625 | AC96: =IF(Inputs!$S$24="Easy",$AG$96,IF(Inputs!$S$24="Moderate",$AG$97,IF(Inputs!$S$24="Difficult",$AG$98))) -> 1.115625 | AD96: Easy | AE96: 1.5 | AF96: =AE96*(1-AF$90) -> 1.125 | AG96: 0.95625
B97: Labor rate | E97: =$D$15 -> 60 | F97: =E97*(1+$D$16) -> 61.8 | G97: =F97*(1+$D$16) -> 63.654 | H97: =G97*(1+$D$16) -> 65.56362 | I97: =H97*(1+$D$16) -> 67.5305286 | J97: 69.55644446 | K97: 71.64313779 | L97: 73.79243193 | M97: 76.00620488 | N97: 78.28639103 | O97: 80.63498276 | P97: 83.05403224 | Q97: 85.54565321 | R97: 88.11202281 | S97: 90.75538349 | T97: 93.478045 | U97: 96.28238635 | V97: 99.17085794 | W97: 102.1459837 | X97: 105.2103632 | Y97: 108.3666741 | Z97: 111.6176743 | AA97: 114.9662045 | AB97: 118.4151907 | AC97: 121.9676464 | AD97: Moderate | AE97: 1.75 | AF97: 1.3125 | AG97: 1.115625
B98: Outreach cost per subscriber | E98: =E96*E97 -> 105 | F98: =F96*F97 -> 81.1125 | G98: =G96*G97 -> 71.01399375 | H98: =H96*H97 -> 73.14441356 | I98: 75.33874597 | J98: 77.59890835 | K98: 79.9268756 | L98: 82.32468187 | M98: 84.79442232 | N98: 87.33825499 | O98: 89.95840264 | P98: 92.65715472 | Q98: 95.43686936 | R98: 98.29997544 | S98: 101.2489747 | T98: 104.2864439 | U98: 107.4150373 | V98: 110.6374884 | W98: 113.956613 | X98: 117.3753114 | Y98: 120.8965708 | Z98: 124.5234679 | AA98: 128.2591719 | AB98: 132.1069471 | AC98: 136.0701555 | AD98: Difficult | AE98: 2 | AF98: 1.5 | AG98: 1.275
B99: Annual costs | E99: =(E90*E98)+E94 -> 11799.375 | F99: =(F90*F98)+F94 -> 15973.125 | G99: 10712.09906 | H99: 11086.66203 | I99: 11415.8119 | J99: 11754.83625 | K99: 12104.03134 | L99: 12463.70228 | M99: 12834.16335 | N99: 13215.73825 | O99: 13608.7604 | P99: 14013.57321 | Q99: 14430.5304 | R99: 14859.99632 | S99: 15302.34621 | T99: 15757.96659 | U99: 16227.25559 | V99: 16710.62326 | W99: 17208.49196 | X99: 17721.29671 | Y99: 18249.48562 | Z99: 18793.52018 | AA99: 19353.87579 | AB99: 19931.04206 | AC99: 20525.52333
AE100: Sales time per Subcriber
B101: Sales | E101: 1 | F101: =E101+1 -> 2 | G101: =F101+1 -> 3 | H101: =G101+1 -> 4 | I101: =H101+1 -> 5 | J101: 6 | K101: 7 | L101: 8 | M101: 9 | N101: 10 | O101: 11 | P101: 12 | Q101: 13 | R101: 14 | S101: 15 | T101: 16 | U101: 17 | V101: 18 | W101: 19 | X101: 20 | Y101: 21 | Z101: 22 | AA101: 23 | AB101: 24 | AC101: 25 | AE101: Year 1 | AG101: Year 2 | AI101: Year 3+
B102: Sales hours per subscriber | E102: =IF(Inputs!$S$24="Easy",$AF$103,IF(Inputs!$S$24="Moderate",$AF$104,IF(Inputs!$S$24="Difficult",$AF$105))) -> 0.2916666667 | F102: =IF(Inputs!$S$24="Easy",$AH$103,IF(Inputs!$S$24="Moderate",$AH$104,IF(Inputs!$S$24="Difficult",$AH$105))) -> 0.21875 | G102: =IF(Inputs!$S$24="Easy",$AJ$103,IF(Inputs!$S$24="Moderate",$AJ$104,IF(Inputs!$S$24="Difficult",$AJ$105))) -> 0.1859375 | H102: =IF(Inputs!$S$24="Easy",$AJ$103,IF(Inputs!$S$24="Moderate",$AJ$104,IF(Inputs!$S$24="Difficult",$AJ$105))) -> 0.1859375 | I102: =IF(Inputs!$S$24="Easy",$AJ$103,IF(Inputs!$S$24="Moderate",$AJ$104,IF(Inputs!$S$24="Difficult",$AJ$105))) -> 0.1859375 | J102: =IF(Inputs!$S$24="Easy",$AJ$103,IF(Inputs!$S$24="Moderate",$AJ$104,IF(Inputs!$S$24="Difficult",$AJ$105))) -> 0.1859375 | K102: =IF(Inputs!$S$24="Easy",$AJ$103,IF(Inputs!$S$24="Moderate",$AJ$104,IF(Inputs!$S$24="Difficult",$AJ$105))) -> 0.1859375 | L102: =IF(Inputs!$S$24="Easy",$AJ$103,IF(Inputs!$S$24="Moderate",$AJ$104,IF(Inputs!$S$24="Difficult",$AJ$105))) -> 0.1859375 | M102: =IF(Inputs!$S$24="Easy",$AJ$103,IF(Inputs!$S$24="Moderate",$AJ$104,IF(Inputs!$S$24="Difficult",$AJ$105))) -> 0.1859375 | N102: =IF(Inputs!$S$24="Easy",$AJ$103,IF(Inputs!$S$24="Moderate",$AJ$104,IF(Inputs!$S$24="Difficult",$AJ$105))) -> 0.1859375 | O102: =IF(Inputs!$S$24="Easy",$AJ$103,IF(Inputs!$S$24="Moderate",$AJ$104,IF(Inputs!$S$24="Difficult",$AJ$105))) -> 0.1859375 | P102: =IF(Inputs!$S$24="Easy",$AJ$103,IF(Inputs!$S$24="Moderate",$AJ$104,IF(Inputs!$S$24="Difficult",$AJ$105))) -> 0.1859375 | Q102: =IF(Inputs!$S$24="Easy",$AJ$103,IF(Inputs!$S$24="Moderate",$AJ$104,IF(Inputs!$S$24="Difficult",$AJ$105))) -> 0.1859375 | R102: =IF(Inputs!$S$24="Easy",$AJ$103,IF(Inputs!$S$24="Moderate",$AJ$104,IF(Inputs!$S$24="Difficult",$AJ$105))) -> 0.1859375 | S102: =IF(Inputs!$S$24="Easy",$AJ$103,IF(Inputs!$S$24="Moderate",$AJ$104,IF(Inputs!$S$24="Difficult",$AJ$105))) -> 0.1859375 | T102: =IF(Inputs!$S$24="Easy",$AJ$103,IF(Inputs!$S$24="Moderate",$AJ$104,IF(Inputs!$S$24="Difficult",$AJ$105))) -> 0.1859375 | U102: =IF(Inputs!$S$24="Easy",$AJ$103,IF(Inputs!$S$24="Moderate",$AJ$104,IF(Inputs!$S$24="Difficult",$AJ$105))) -> 0.1859375 | V102: =IF(Inputs!$S$24="Easy",$AJ$103,IF(Inputs!$S$24="Moderate",$AJ$104,IF(Inputs!$S$24="Difficult",$AJ$105))) -> 0.1859375 | W102: =IF(Inputs!$S$24="Easy",$AJ$103,IF(Inputs!$S$24="Moderate",$AJ$104,IF(Inputs!$S$24="Difficult",$AJ$105))) -> 0.1859375 | X102: =IF(Inputs!$S$24="Easy",$AJ$103,IF(Inputs!$S$24="Moderate",$AJ$104,IF(Inputs!$S$24="Difficult",$AJ$105))) -> 0.1859375 | Y102: =IF(Inputs!$S$24="Easy",$AJ$103,IF(Inputs!$S$24="Moderate",$AJ$104,IF(Inputs!$S$24="Difficult",$AJ$105))) -> 0.1859375 | Z102: =IF(Inputs!$S$24="Easy",$AJ$103,IF(Inputs!$S$24="Moderate",$AJ$104,IF(Inputs!$S$24="Difficult",$AJ$105))) -> 0.1859375 | AA102: =IF(Inputs!$S$24="Easy",$AJ$103,IF(Inputs!$S$24="Moderate",$AJ$104,IF(Inputs!$S$24="Difficult",$AJ$105))) -> 0.1859375 | AB102: =IF(Inputs!$S$24="Easy",$AJ$103,IF(Inputs!$S$24="Moderate",$AJ$104,IF(Inputs!$S$24="Difficult",$AJ$105))) -> 0.1859375 | AC102: =IF(Inputs!$S$24="Easy",$AJ$103,IF(Inputs!$S$24="Moderate",$AJ$104,IF(Inputs!$S$24="Difficult",$AJ$105))) -> 0.1859375 | AD102: Easy | AE102: Minutes | AF102: % of hour | AG102: Minutes | AH102: % of hour | AI102: Minutes | AJ102: % of hour
B103: Labor rate | E103: =$D$15 -> 60 | F103: =E103*(1+$D$16) -> 61.8 | G103: =F103*(1+$D$16) -> 63.654 | H103: =G103*(1+$D$16) -> 65.56362 | I103: =H103*(1+$D$16) -> 67.5305286 | J103: 69.55644446 | K103: 71.64313779 | L103: 73.79243193 | M103: 76.00620488 | N103: 78.28639103 | O103: 80.63498276 | P103: 83.05403224 | Q103: 85.54565321 | R103: 88.11202281 | S103: 90.75538349 | T103: 93.478045 | U103: 96.28238635 | V103: 99.17085794 | W103: 102.1459837 | X103: 105.2103632 | Y103: 108.3666741 | Z103: 111.6176743 | AA103: 114.9662045 | AB103: 118.4151907 | AC103: 121.9676464 | AD103: Moderate | AE103: 15 | AF103: =AE103/60 -> 0.25 | AG103: =AE103*(1-$AF$90) -> 11.25 | AH103: =AG103/60 -> 0.1875 | AI103: =AG103*(1-$AG$90) -> 9.5625 | AJ103: =AI103/60 -> 0.159375
B104: Sales cost per subscriber | E104: =E102*E103 -> 17.5 | F104: =F102*F103 -> 13.51875 | G104: 11.83566563 | H104: =H102*H103 -> 12.19073559 | I104: =I102*I103 -> 12.55645766 | J104: =J102*J103 -> 12.93315139 | K104: =K102*K103 -> 13.32114593 | L104: =L102*L103 -> 13.72078031 | M104: =M102*M103 -> 14.13240372 | N104: =N102*N103 -> 14.55637583 | O104: =O102*O103 -> 14.99306711 | P104: =P102*P103 -> 15.44285912 | Q104: =Q102*Q103 -> 15.90614489 | R104: =R102*R103 -> 16.38332924 | S104: =S102*S103 -> 16.87482912 | T104: =T102*T103 -> 17.38107399 | U104: =U102*U103 -> 17.90250621 | V104: =V102*V103 -> 18.4395814 | W104: =W102*W103 -> 18.99276884 | X104: =X102*X103 -> 19.5625519 | Y104: =Y102*Y103 -> 20.14942846 | Z104: =Z102*Z103 -> 20.75391132 | AA104: =AA102*AA103 -> 21.37652866 | AB104: =AB102*AB103 -> 22.01782451 | AC104: =AC102*AC103 -> 22.67835925 | AD104: Difficult | AE104: 17.5 | AF104: =AE104/60 -> 0.2916666667 | AG104: =AE104*(1-$AF$90) -> 13.125 | AH104: =AG104/60 -> 0.21875 | AI104: =AG104*(1-$AG$90) -> 11.15625 | AJ104: =AI104/60 -> 0.1859375
B105: Annual costs | E105: =E90*E104 -> 1332.1875 | F105: =F90*F104 -> 2027.8125 | G105: 1775.349844 | H105: 1828.610339 | I105: 1883.468649 | J105: 1939.972709 | K105: 1998.17189 | L105: 2058.117047 | M105: 2119.860558 | N105: 2183.456375 | O105: 2248.960066 | P105: 2316.428868 | Q105: 2385.921734 | R105: 2457.499386 | S105: 2531.224368 | T105: 2607.161099 | U105: 2685.375932 | V105: 2765.93721 | W105: 2848.915326 | X105: 2934.382786 | Y105: 3022.414269 | Z105: 3113.086697 | AA105: 3206.479298 | AB105: 3302.673677 | AC105: 3401.753888 | AE105: 20 | AF105: =AE105/60 -> 0.3333333333 | AG105: =AE105*(1-$AF$90) -> 15 | AH105: =AG105/60 -> 0.25 | AI105: =AG105*(1-$AG$90) -> 12.75 | AJ105: =AI105/60 -> 0.2125
AE106: Transaction time per Subscriber
B107: Sign-up Transaction | E107: 1 | F107: =E107+1 -> 2 | G107: =F107+1 -> 3 | H107: =G107+1 -> 4 | I107: =H107+1 -> 5 | J107: 6 | K107: 7 | L107: 8 | M107: 9 | N107: 10 | O107: 11 | P107: 12 | Q107: 13 | R107: 14 | S107: 15 | T107: 16 | U107: 17 | V107: 18 | W107: 19 | X107: 20 | Y107: 21 | Z107: 22 | AA107: 23 | AB107: 24 | AC107: 25 | AE107: Year 1 | AG107: Year 2 | AI107: Year 3+
B108: Sign-up hours per subscriber | E108: =IF(Inputs!$S$24="Easy",$AF$109,IF(Inputs!$S$24="Moderate",$AF$110,IF(Inputs!$S$24="Difficult",$AF$111))) -> 0.2083333333 | F108: =IF(Inputs!$S$24="Easy",$AH$109,IF(Inputs!$S$24="Moderate",$AH$110,IF(Inputs!$S$24="Difficult",$AH$111))) -> 0.15625 | G108: =IF(Inputs!$S$24="Easy",$AJ$109,IF(Inputs!$S$24="Moderate",$AJ$110,IF(Inputs!$S$24="Difficult",$AJ$111))) -> 0.1328125 | H108: =IF(Inputs!$S$24="Easy",$AJ$109,IF(Inputs!$S$24="Moderate",$AJ$110,IF(Inputs!$S$24="Difficult",$AJ$111))) -> 0.1328125 | I108: =IF(Inputs!$S$24="Easy",$AJ$109,IF(Inputs!$S$24="Moderate",$AJ$110,IF(Inputs!$S$24="Difficult",$AJ$111))) -> 0.1328125 | J108: =IF(Inputs!$S$24="Easy",$AJ$109,IF(Inputs!$S$24="Moderate",$AJ$110,IF(Inputs!$S$24="Difficult",$AJ$111))) -> 0.1328125 | K108: =IF(Inputs!$S$24="Easy",$AJ$109,IF(Inputs!$S$24="Moderate",$AJ$110,IF(Inputs!$S$24="Difficult",$AJ$111))) -> 0.1328125 | L108: =IF(Inputs!$S$24="Easy",$AJ$109,IF(Inputs!$S$24="Moderate",$AJ$110,IF(Inputs!$S$24="Difficult",$AJ$111))) -> 0.1328125 | M108: =IF(Inputs!$S$24="Easy",$AJ$109,IF(Inputs!$S$24="Moderate",$AJ$110,IF(Inputs!$S$24="Difficult",$AJ$111))) -> 0.1328125 | N108: =IF(Inputs!$S$24="Easy",$AJ$109,IF(Inputs!$S$24="Moderate",$AJ$110,IF(Inputs!$S$24="Difficult",$AJ$111))) -> 0.1328125 | O108: =IF(Inputs!$S$24="Easy",$AJ$109,IF(Inputs!$S$24="Moderate",$AJ$110,IF(Inputs!$S$24="Difficult",$AJ$111))) -> 0.1328125 | P108: =IF(Inputs!$S$24="Easy",$AJ$109,IF(Inputs!$S$24="Moderate",$AJ$110,IF(Inputs!$S$24="Difficult",$AJ$111))) -> 0.1328125 | Q108: =IF(Inputs!$S$24="Easy",$AJ$109,IF(Inputs!$S$24="Moderate",$AJ$110,IF(Inputs!$S$24="Difficult",$AJ$111))) -> 0.1328125 | R108: =IF(Inputs!$S$24="Easy",$AJ$109,IF(Inputs!$S$24="Moderate",$AJ$110,IF(Inputs!$S$24="Difficult",$AJ$111))) -> 0.1328125 | S108: =IF(Inputs!$S$24="Easy",$AJ$109,IF(Inputs!$S$24="Moderate",$AJ$110,IF(Inputs!$S$24="Difficult",$AJ$111))) -> 0.1328125 | T108: =IF(Inputs!$S$24="Easy",$AJ$109,IF(Inputs!$S$24="Moderate",$AJ$110,IF(Inputs!$S$24="Difficult",$AJ$111))) -> 0.1328125 | U108: =IF(Inputs!$S$24="Easy",$AJ$109,IF(Inputs!$S$24="Moderate",$AJ$110,IF(Inputs!$S$24="Difficult",$AJ$111))) -> 0.1328125 | V108: =IF(Inputs!$S$24="Easy",$AJ$109,IF(Inputs!$S$24="Moderate",$AJ$110,IF(Inputs!$S$24="Difficult",$AJ$111))) -> 0.1328125 | W108: =IF(Inputs!$S$24="Easy",$AJ$109,IF(Inputs!$S$24="Moderate",$AJ$110,IF(Inputs!$S$24="Difficult",$AJ$111))) -> 0.1328125 | X108: =IF(Inputs!$S$24="Easy",$AJ$109,IF(Inputs!$S$24="Moderate",$AJ$110,IF(Inputs!$S$24="Difficult",$AJ$111))) -> 0.1328125 | Y108: =IF(Inputs!$S$24="Easy",$AJ$109,IF(Inputs!$S$24="Moderate",$AJ$110,IF(Inputs!$S$24="Difficult",$AJ$111))) -> 0.1328125 | Z108: =IF(Inputs!$S$24="Easy",$AJ$109,IF(Inputs!$S$24="Moderate",$AJ$110,IF(Inputs!$S$24="Difficult",$AJ$111))) -> 0.1328125 | AA108: =IF(Inputs!$S$24="Easy",$AJ$109,IF(Inputs!$S$24="Moderate",$AJ$110,IF(Inputs!$S$24="Difficult",$AJ$111))) -> 0.1328125 | AB108: =IF(Inputs!$S$24="Easy",$AJ$109,IF(Inputs!$S$24="Moderate",$AJ$110,IF(Inputs!$S$24="Difficult",$AJ$111))) -> 0.1328125 | AC108: =IF(Inputs!$S$24="Easy",$AJ$109,IF(Inputs!$S$24="Moderate",$AJ$110,IF(Inputs!$S$24="Difficult",$AJ$111))) -> 0.1328125 | AD108: Easy | AE108: Minutes | AF108: % of hour | AG108: Minutes | AH108: % of hour | AI108: Minutes | AJ108: % of hour
B109: Labor rate | E109: =$D$15 -> 60 | F109: =E109*(1+$D$16) -> 61.8 | G109: =F109*(1+$D$16) -> 63.654 | H109: =G109*(1+$D$16) -> 65.56362 | I109: =H109*(1+$D$16) -> 67.5305286 | J109: 69.55644446 | K109: 71.64313779 | L109: 73.79243193 | M109: 76.00620488 | N109: 78.28639103 | O109: 80.63498276 | P109: 83.05403224 | Q109: 85.54565321 | R109: 88.11202281 | S109: 90.75538349 | T109: 93.478045 | U109: 96.28238635 | V109: 99.17085794 | W109: 102.1459837 | X109: 105.2103632 | Y109: 108.3666741 | Z109: 111.6176743 | AA109: 114.9662045 | AB109: 118.4151907 | AC109: 121.9676464 | AD109: Moderate | AE109: 10 | AF109: =AE109/60 -> 0.1666666667 | AG109: =AE109*(1-$AF$90) -> 7.5 | AH109: =AG109/60 -> 0.125 | AI109: =AG109*(1-$AG$90) -> 6.375 | AJ109: =AI109/60 -> 0.10625
B110: Sign-up cost per subscriber | E110: =E108*E109 -> 12.5 | F110: =F108*F109 -> 9.65625 | G110: 8.454046875 | H110: =H108*H109 -> 8.707668281 | I110: =I108*I109 -> 8.96889833 | J110: =J108*J109 -> 9.23796528 | K110: =K108*K109 -> 9.515104238 | L110: =L108*L109 -> 9.800557365 | M110: =M108*M109 -> 10.09457409 | N110: =N108*N109 -> 10.39741131 | O110: =O108*O109 -> 10.70933365 | P110: =P108*P109 -> 11.03061366 | Q110: =Q108*Q109 -> 11.36153207 | R110: =R108*R109 -> 11.70237803 | S110: =S108*S109 -> 12.05344937 | T110: =T108*T109 -> 12.41505285 | U110: =U108*U109 -> 12.78750444 | V110: =V108*V109 -> 13.17112957 | W110: =W108*W109 -> 13.56626346 | X110: =X108*X109 -> 13.97325136 | Y110: =Y108*Y109 -> 14.3924489 | Z110: =Z108*Z109 -> 14.82422237 | AA110: =AA108*AA109 -> 15.26894904 | AB110: =AB108*AB109 -> 15.72701751 | AC110: =AC108*AC109 -> 16.19882804 | AD110: Difficult | AE110: 12.5 | AF110: =AE110/60 -> 0.2083333333 | AG110: =AE110*(1-$AF$90) -> 9.375 | AH110: =AG110/60 -> 0.15625 | AI110: =AG110*(1-$AG$90) -> 7.96875 | AJ110: =AI110/60 -> 0.1328125
B111: Annual costs | E111: =E90*E110 -> 951.5625 | F111: =F90*F110 -> 1448.4375 | G111: 1268.107031 | H111: 1306.150242 | I111: 1345.334749 | J111: 1385.694792 | K111: 1427.265636 | L111: 1470.083605 | M111: 1514.186113 | N111: 1559.611696 | O111: 1606.400047 | P111: 1654.592049 | Q111: 1704.22981 | R111: 1755.356704 | S111: 1808.017405 | T111: 1862.257928 | U111: 1918.125665 | V111: 1975.669435 | W111: 2034.939519 | X111: 2095.987704 | Y111: 2158.867335 | Z111: 2223.633355 | AA111: 2290.342356 | AB111: 2359.052627 | AC111: 2429.824205 | AE111: 15 | AF111: =AE111/60 -> 0.25 | AG111: =AE111*(1-$AF$90) -> 11.25 | AH111: =AG111/60 -> 0.1875 | AI111: =AG111*(1-$AG$90) -> 9.5625 | AJ111: =AI111/60 -> 0.159375
B113: Customer Service | E113: 1 | F113: =E113+1 -> 2 | G113: =F113+1 -> 3 | H113: =G113+1 -> 4 | I113: =H113+1 -> 5 | J113: 6 | K113: 7 | L113: 8 | M113: 9 | N113: 10 | O113: 11 | P113: 12 | Q113: 13 | R113: 14 | S113: 15 | T113: 16 | U113: 17 | V113: 18 | W113: 19 | X113: 20 | Y113: 21 | Z113: 22 | AA113: 23 | AB113: 24 | AC113: 25 | AE113: Customer Service time per Subscriber | AM113: % of Total Subscribers requiring service monthly
B114: % of subscribers calling per month | E114: =IF(Inputs!$S$24="Easy",AM116,IF(Inputs!$S$24="Moderate",AM117,IF(Inputs!$S$24="Difficult",AM118))) -> 0.1 | F114: =IF(Inputs!$S$24="Easy",AN116,IF(Inputs!$S$24="Moderate",AN117,IF(Inputs!$S$24="Difficult",AN118))) -> 0.075 | G114: =IF(Inputs!$S$24="Easy",$AO$116,IF(Inputs!$S$24="Moderate",$AO$117,IF(Inputs!$S$24="Difficult",$AO$118))) -> 0.06375 | H114: =IF(Inputs!$S$24="Easy",$AO$116,IF(Inputs!$S$24="Moderate",$AO$117,IF(Inputs!$S$24="Difficult",$AO$118))) -> 0.06375 | I114: =IF(Inputs!$S$24="Easy",$AO$116,IF(Inputs!$S$24="Moderate",$AO$117,IF(Inputs!$S$24="Difficult",$AO$118))) -> 0.06375 | J114: =IF(Inputs!$S$24="Easy",$AO$116,IF(Inputs!$S$24="Moderate",$AO$117,IF(Inputs!$S$24="Difficult",$AO$118))) -> 0.06375 | K114: =IF(Inputs!$S$24="Easy",$AO$116,IF(Inputs!$S$24="Moderate",$AO$117,IF(Inputs!$S$24="Difficult",$AO$118))) -> 0.06375 | L114: =IF(Inputs!$S$24="Easy",$AO$116,IF(Inputs!$S$24="Moderate",$AO$117,IF(Inputs!$S$24="Difficult",$AO$118))) -> 0.06375 | M114: =IF(Inputs!$S$24="Easy",$AO$116,IF(Inputs!$S$24="Moderate",$AO$117,IF(Inputs!$S$24="Difficult",$AO$118))) -> 0.06375 | N114: =IF(Inputs!$S$24="Easy",$AO$116,IF(Inputs!$S$24="Moderate",$AO$117,IF(Inputs!$S$24="Difficult",$AO$118))) -> 0.06375 | O114: =IF(Inputs!$S$24="Easy",$AO$116,IF(Inputs!$S$24="Moderate",$AO$117,IF(Inputs!$S$24="Difficult",$AO$118))) -> 0.06375 | P114: =IF(Inputs!$S$24="Easy",$AO$116,IF(Inputs!$S$24="Moderate",$AO$117,IF(Inputs!$S$24="Difficult",$AO$118))) -> 0.06375 | Q114: =IF(Inputs!$S$24="Easy",$AO$116,IF(Inputs!$S$24="Moderate",$AO$117,IF(Inputs!$S$24="Difficult",$AO$118))) -> 0.06375 | R114: =IF(Inputs!$S$24="Easy",$AO$116,IF(Inputs!$S$24="Moderate",$AO$117,IF(Inputs!$S$24="Difficult",$AO$118))) -> 0.06375 | S114: =IF(Inputs!$S$24="Easy",$AO$116,IF(Inputs!$S$24="Moderate",$AO$117,IF(Inputs!$S$24="Difficult",$AO$118))) -> 0.06375 | T114: =IF(Inputs!$S$24="Easy",$AO$116,IF(Inputs!$S$24="Moderate",$AO$117,IF(Inputs!$S$24="Difficult",$AO$118))) -> 0.06375 | U114: =IF(Inputs!$S$24="Easy",$AO$116,IF(Inputs!$S$24="Moderate",$AO$117,IF(Inputs!$S$24="Difficult",$AO$118))) -> 0.06375 | V114: =IF(Inputs!$S$24="Easy",$AO$116,IF(Inputs!$S$24="Moderate",$AO$117,IF(Inputs!$S$24="Difficult",$AO$118))) -> 0.06375 | W114: =IF(Inputs!$S$24="Easy",$AO$116,IF(Inputs!$S$24="Moderate",$AO$117,IF(Inputs!$S$24="Difficult",$AO$118))) -> 0.06375 | X114: =IF(Inputs!$S$24="Easy",$AO$116,IF(Inputs!$S$24="Moderate",$AO$117,IF(Inputs!$S$24="Difficult",$AO$118))) -> 0.06375 | Y114: =IF(Inputs!$S$24="Easy",$AO$116,IF(Inputs!$S$24="Moderate",$AO$117,IF(Inputs!$S$24="Difficult",$AO$118))) -> 0.06375 | Z114: =IF(Inputs!$S$24="Easy",$AO$116,IF(Inputs!$S$24="Moderate",$AO$117,IF(Inputs!$S$24="Difficult",$AO$118))) -> 0.06375 | AA114: =IF(Inputs!$S$24="Easy",$AO$116,IF(Inputs!$S$24="Moderate",$AO$117,IF(Inputs!$S$24="Difficult",$AO$118))) -> 0.06375 | AB114: =IF(Inputs!$S$24="Easy",$AO$116,IF(Inputs!$S$24="Moderate",$AO$117,IF(Inputs!$S$24="Difficult",$AO$118))) -> 0.06375 | AC114: =IF(Inputs!$S$24="Easy",$AO$116,IF(Inputs!$S$24="Moderate",$AO$117,IF(Inputs!$S$24="Difficult",$AO$118))) -> 0.06375 | AE114: Year 1 | AG114: Year 2 | AI114: Year 3+ | AM114: Year 1 | AN114: Year 2 | AO114: Year 3+
B115: Hours per call | E115: =IF(Inputs!$S$24="Easy",$AF$116,IF(Inputs!$S$24="Moderate",$AF$117,IF(Inputs!$S$24="Difficult",$AF$118))) -> 0.125 | F115: =IF(Inputs!$S$24="Easy",$AH$116,IF(Inputs!$S$24="Moderate",$AH$117,IF(Inputs!$S$24="Difficult",$AH$118))) -> 0.09375 | G115: =IF(Inputs!$S$24="Easy",$AJ$116,IF(Inputs!$S$24="Moderate",$AJ$117,IF(Inputs!$S$24="Difficult",$AJ$118))) -> 0.0796875 | H115: =IF(Inputs!$S$24="Easy",$AJ$116,IF(Inputs!$S$24="Moderate",$AJ$117,IF(Inputs!$S$24="Difficult",$AJ$118))) -> 0.0796875 | I115: =IF(Inputs!$S$24="Easy",$AJ$116,IF(Inputs!$S$24="Moderate",$AJ$117,IF(Inputs!$S$24="Difficult",$AJ$118))) -> 0.0796875 | J115: =IF(Inputs!$S$24="Easy",$AJ$116,IF(Inputs!$S$24="Moderate",$AJ$117,IF(Inputs!$S$24="Difficult",$AJ$118))) -> 0.0796875 | K115: =IF(Inputs!$S$24="Easy",$AJ$116,IF(Inputs!$S$24="Moderate",$AJ$117,IF(Inputs!$S$24="Difficult",$AJ$118))) -> 0.0796875 | L115: =IF(Inputs!$S$24="Easy",$AJ$116,IF(Inputs!$S$24="Moderate",$AJ$117,IF(Inputs!$S$24="Difficult",$AJ$118))) -> 0.0796875 | M115: =IF(Inputs!$S$24="Easy",$AJ$116,IF(Inputs!$S$24="Moderate",$AJ$117,IF(Inputs!$S$24="Difficult",$AJ$118))) -> 0.0796875 | N115: =IF(Inputs!$S$24="Easy",$AJ$116,IF(Inputs!$S$24="Moderate",$AJ$117,IF(Inputs!$S$24="Difficult",$AJ$118))) -> 0.0796875 | O115: =IF(Inputs!$S$24="Easy",$AJ$116,IF(Inputs!$S$24="Moderate",$AJ$117,IF(Inputs!$S$24="Difficult",$AJ$118))) -> 0.0796875 | P115: =IF(Inputs!$S$24="Easy",$AJ$116,IF(Inputs!$S$24="Moderate",$AJ$117,IF(Inputs!$S$24="Difficult",$AJ$118))) -> 0.0796875 | Q115: =IF(Inputs!$S$24="Easy",$AJ$116,IF(Inputs!$S$24="Moderate",$AJ$117,IF(Inputs!$S$24="Difficult",$AJ$118))) -> 0.0796875 | R115: =IF(Inputs!$S$24="Easy",$AJ$116,IF(Inputs!$S$24="Moderate",$AJ$117,IF(Inputs!$S$24="Difficult",$AJ$118))) -> 0.0796875 | S115: =IF(Inputs!$S$24="Easy",$AJ$116,IF(Inputs!$S$24="Moderate",$AJ$117,IF(Inputs!$S$24="Difficult",$AJ$118))) -> 0.0796875 | T115: =IF(Inputs!$S$24="Easy",$AJ$116,IF(Inputs!$S$24="Moderate",$AJ$117,IF(Inputs!$S$24="Difficult",$AJ$118))) -> 0.0796875 | U115: =IF(Inputs!$S$24="Easy",$AJ$116,IF(Inputs!$S$24="Moderate",$AJ$117,IF(Inputs!$S$24="Difficult",$AJ$118))) -> 0.0796875 | V115: =IF(Inputs!$S$24="Easy",$AJ$116,IF(Inputs!$S$24="Moderate",$AJ$117,IF(Inputs!$S$24="Difficult",$AJ$118))) -> 0.0796875 | W115: =IF(Inputs!$S$24="Easy",$AJ$116,IF(Inputs!$S$24="Moderate",$AJ$117,IF(Inputs!$S$24="Difficult",$AJ$118))) -> 0.0796875 | X115: =IF(Inputs!$S$24="Easy",$AJ$116,IF(Inputs!$S$24="Moderate",$AJ$117,IF(Inputs!$S$24="Difficult",$AJ$118))) -> 0.0796875 | Y115: =IF(Inputs!$S$24="Easy",$AJ$116,IF(Inputs!$S$24="Moderate",$AJ$117,IF(Inputs!$S$24="Difficult",$AJ$118))) -> 0.0796875 | Z115: =IF(Inputs!$S$24="Easy",$AJ$116,IF(Inputs!$S$24="Moderate",$AJ$117,IF(Inputs!$S$24="Difficult",$AJ$118))) -> 0.0796875 | AA115: =IF(Inputs!$S$24="Easy",$AJ$116,IF(Inputs!$S$24="Moderate",$AJ$117,IF(Inputs!$S$24="Difficult",$AJ$118))) -> 0.0796875 | AB115: =IF(Inputs!$S$24="Easy",$AJ$116,IF(Inputs!$S$24="Moderate",$AJ$117,IF(Inputs!$S$24="Difficult",$AJ$118))) -> 0.0796875 | AC115: =IF(Inputs!$S$24="Easy",$AJ$116,IF(Inputs!$S$24="Moderate",$AJ$117,IF(Inputs!$S$24="Difficult",$AJ$118))) -> 0.0796875 | AD115: Easy | AE115: Minutes | AF115: % of hour | AG115: Minutes | AH115: % of hour | AI115: Minutes | AJ115: % of hour | AM115: Hours | AN115: Hours | AO115: Hours
B116: Total monthly calls | E116: =E87*E114 -> 15 | F116: 11.25 | G116: 9.5625 | H116: 9.5625 | I116: 9.5625 | J116: 9.5625 | K116: 9.5625 | L116: 9.5625 | M116: 9.5625 | N116: 9.5625 | O116: 9.5625 | P116: 9.5625 | Q116: 9.5625 | R116: 9.5625 | S116: 9.5625 | T116: 9.5625 | U116: 9.5625 | V116: 9.5625 | W116: 9.5625 | X116: 9.5625 | Y116: 9.5625 | Z116: 9.5625 | AA116: 9.5625 | AB116: 9.5625 | AC116: 9.5625 | AD116: Moderate | AE116: 5 | AF116: =AE116/60 -> 0.08333333333 | AG116: =AE116*(1-$AF$90) -> 3.75 | AH116: =AG116/60 -> 0.0625 | AI116: =AG116*(1-$AG$90) -> 3.1875 | AJ116: =AI116/60 -> 0.053125 | AM116: 0.08 | AN116: =AM116*(1-$AF$90) -> 0.06 | AO116: =AN116*(1-$AG$90) -> 0.051
B117: Total call hours | E117: =(E115*E116) -> 1.875 | F117: =(F115*F116) -> 1.0546875 | G117: 0.7620117187 | H117: 0.7620117187 | I117: 0.7620117187 | J117: 0.7620117187 | K117: 0.7620117187 | L117: 0.7620117187 | M117: 0.7620117187 | N117: 0.7620117187 | O117: 0.7620117187 | P117: 0.7620117187 | Q117: 0.7620117187 | R117: 0.7620117187 | S117: 0.7620117187 | T117: 0.7620117187 | U117: 0.7620117187 | V117: 0.7620117187 | W117: 0.7620117187 | X117: 0.7620117187 | Y117: 0.7620117187 | Z117: 0.7620117187 | AA117: 0.7620117187 | AB117: 0.7620117187 | AC117: 0.7620117187 | AD117: Difficult | AE117: 7.5 | AF117: =AE117/60 -> 0.125 | AG117: =AE117*(1-$AF$90) -> 5.625 | AH117: =AG117/60 -> 0.09375 | AI117: =AG117*(1-$AG$90) -> 4.78125 | AJ117: =AI117/60 -> 0.0796875 | AM117: 0.1 | AN117: =AM117*(1-$AF$90) -> 0.075 | AO117: =AN117*(1-$AG$90) -> 0.06375
B118: Labor rate | E118: =$D$15 -> 60 | F118: =E118*(1+$D$16) -> 61.8 | G118: =F118*(1+$D$16) -> 63.654 | H118: =G118*(1+$D$16) -> 65.56362 | I118: =H118*(1+$D$16) -> 67.5305286 | J118: 69.55644446 | K118: 71.64313779 | L118: 73.79243193 | M118: 76.00620488 | N118: 78.28639103 | O118: 80.63498276 | P118: 83.05403224 | Q118: 85.54565321 | R118: 88.11202281 | S118: 90.75538349 | T118: 93.478045 | U118: 96.28238635 | V118: 99.17085794 | W118: 102.1459837 | X118: 105.2103632 | Y118: 108.3666741 | Z118: 111.6176743 | AA118: 114.9662045 | AB118: 118.4151907 | AC118: 121.9676464 | AE118: 10 | AF118: =AE118/60 -> 0.1666666667 | AG118: =AE118*(1-$AF$90) -> 7.5 | AH118: =AG118/60 -> 0.125 | AI118: =AG118*(1-$AG$90) -> 6.375 | AJ118: =AI118/60 -> 0.10625 | AM118: 0.12 | AN118: =AM118*(1-$AF$90) -> 0.09 | AO118: 0.0765
B119: Annual costs | E119: =E117*E118*12 -> 1350 | F119: =F117*F118*12 -> 782.15625 | G119: 582.0611273 | H119: 599.5229612 | I119: 617.50865 | J119: 636.0339095 | K119: 655.1149268 | L119: 674.7683746 | M119: 695.0114258 | N119: 715.8617686 | O119: 737.3376217 | P119: 759.4577503 | Q119: 782.2414828 | R119: 805.7087273 | S119: 829.8799891 | T119: 854.7763888 | U119: 880.4196805 | V119: 906.8322709 | W119: 934.037239 | X119: 962.0583562 | Y119: 990.9201069 | Z119: 1020.64771 | AA119: 1051.267141 | AB119: 1082.805156 | AC119: 1115.28931
AE120: Minutes for admin setup per Subscriber | AM120: Minutes individual billing per Subscriber
B121: Billing Admin | AE121: Year 1 | AG121: Year 2 | AI121: Year 3+ | AM121: Year 1 | AO121: Year 2 | AQ121: Year 3+
B122: Billing setup hours per month | E122: =IF(Inputs!$S$24="Easy",(E90*$AF$123),IF(Inputs!$S$24="Moderate",(E90*$AF$124),IF(Inputs!$S$24="Difficult",E90*$AF$125))) -> 5.075 | F122: =IF(Inputs!$S$24="Easy",(F90*$AH$123),IF(Inputs!$S$24="Moderate",(F90*$AH$124),IF(Inputs!$S$24="Difficult",F90*$AH$125))) -> 7.5 | G122: =IF(Inputs!$S$24="Easy",(G90*$AJ$123),IF(Inputs!$S$24="Moderate",(G90*$AJ$124),IF(Inputs!$S$24="Difficult",G90*$AJ$125))) -> 6.375 | H122: =IF(Inputs!$S$24="Easy",(H90*$AJ$123),IF(Inputs!$S$24="Moderate",(H90*$AJ$124),IF(Inputs!$S$24="Difficult",H90*$AJ$125))) -> 6.375 | I122: =IF(Inputs!$S$24="Easy",(I90*$AJ$123),IF(Inputs!$S$24="Moderate",(I90*$AJ$124),IF(Inputs!$S$24="Difficult",I90*$AJ$125))) -> 6.375 | J122: =IF(Inputs!$S$24="Easy",(J90*$AJ$123),IF(Inputs!$S$24="Moderate",(J90*$AJ$124),IF(Inputs!$S$24="Difficult",J90*$AJ$125))) -> 6.375 | K122: =IF(Inputs!$S$24="Easy",(K90*$AJ$123),IF(Inputs!$S$24="Moderate",(K90*$AJ$124),IF(Inputs!$S$24="Difficult",K90*$AJ$125))) -> 6.375 | L122: =IF(Inputs!$S$24="Easy",(L90*$AJ$123),IF(Inputs!$S$24="Moderate",(L90*$AJ$124),IF(Inputs!$S$24="Difficult",L90*$AJ$125))) -> 6.375 | M122: =IF(Inputs!$S$24="Easy",(M90*$AJ$123),IF(Inputs!$S$24="Moderate",(M90*$AJ$124),IF(Inputs!$S$24="Difficult",M90*$AJ$125))) -> 6.375 | N122: =IF(Inputs!$S$24="Easy",(N90*$AJ$123),IF(Inputs!$S$24="Moderate",(N90*$AJ$124),IF(Inputs!$S$24="Difficult",N90*$AJ$125))) -> 6.375 | O122: =IF(Inputs!$S$24="Easy",(O90*$AJ$123),IF(Inputs!$S$24="Moderate",(O90*$AJ$124),IF(Inputs!$S$24="Difficult",O90*$AJ$125))) -> 6.375 | P122: =IF(Inputs!$S$24="Easy",(P90*$AJ$123),IF(Inputs!$S$24="Moderate",(P90*$AJ$124),IF(Inputs!$S$24="Difficult",P90*$AJ$125))) -> 6.375 | Q122: =IF(Inputs!$S$24="Easy",(Q90*$AJ$123),IF(Inputs!$S$24="Moderate",(Q90*$AJ$124),IF(Inputs!$S$24="Difficult",Q90*$AJ$125))) -> 6.375 | R122: =IF(Inputs!$S$24="Easy",(R90*$AJ$123),IF(Inputs!$S$24="Moderate",(R90*$AJ$124),IF(Inputs!$S$24="Difficult",R90*$AJ$125))) -> 6.375 | S122: =IF(Inputs!$S$24="Easy",(S90*$AJ$123),IF(Inputs!$S$24="Moderate",(S90*$AJ$124),IF(Inputs!$S$24="Difficult",S90*$AJ$125))) -> 6.375 | T122: =IF(Inputs!$S$24="Easy",(T90*$AJ$123),IF(Inputs!$S$24="Moderate",(T90*$AJ$124),IF(Inputs!$S$24="Difficult",T90*$AJ$125))) -> 6.375 | U122: =IF(Inputs!$S$24="Easy",(U90*$AJ$123),IF(Inputs!$S$24="Moderate",(U90*$AJ$124),IF(Inputs!$S$24="Difficult",U90*$AJ$125))) -> 6.375 | V122: =IF(Inputs!$S$24="Easy",(V90*$AJ$123),IF(Inputs!$S$24="Moderate",(V90*$AJ$124),IF(Inputs!$S$24="Difficult",V90*$AJ$125))) -> 6.375 | W122: =IF(Inputs!$S$24="Easy",(W90*$AJ$123),IF(Inputs!$S$24="Moderate",(W90*$AJ$124),IF(Inputs!$S$24="Difficult",W90*$AJ$125))) -> 6.375 | X122: =IF(Inputs!$S$24="Easy",(X90*$AJ$123),IF(Inputs!$S$24="Moderate",(X90*$AJ$124),IF(Inputs!$S$24="Difficult",X90*$AJ$125))) -> 6.375 | Y122: =IF(Inputs!$S$24="Easy",(Y90*$AJ$123),IF(Inputs!$S$24="Moderate",(Y90*$AJ$124),IF(Inputs!$S$24="Difficult",Y90*$AJ$125))) -> 6.375 | Z122: =IF(Inputs!$S$24="Easy",(Z90*$AJ$123),IF(Inputs!$S$24="Moderate",(Z90*$AJ$124),IF(Inputs!$S$24="Difficult",Z90*$AJ$125))) -> 6.375 | AA122: =IF(Inputs!$S$24="Easy",(AA90*$AJ$123),IF(Inputs!$S$24="Moderate",(AA90*$AJ$124),IF(Inputs!$S$24="Difficult",AA90*$AJ$125))) -> 6.375 | AB122: =IF(Inputs!$S$24="Easy",(AB90*$AJ$123),IF(Inputs!$S$24="Moderate",(AB90*$AJ$124),IF(Inputs!$S$24="Difficult",AB90*$AJ$125))) -> 6.375 | AC122: =IF(Inputs!$S$24="Easy",(AC90*$AJ$123),IF(Inputs!$S$24="Moderate",(AC90*$AJ$124),IF(Inputs!$S$24="Difficult",AC90*$AJ$125))) -> 6.375 | AD122: Easy | AE122: Minutes | AF122: % of hour | AG122: Minutes | AH122: % of hour | AI122: Minutes | AJ122: % of hour | AM122: Minutes | AN122: % of hour | AO122: Minutes | AP122: % of hour | AQ122: Minutes | AR122: % of hour
B123: Individual subscriber billing hours | E123: =IF(Inputs!$S$24="Easy",(E87*$AN$123),IF(Inputs!$S$24="Moderate",(E87*$AN$124),IF(Inputs!$S$24="Difficult",E87*$AN$125))) -> 12.5 | F123: =IF(Inputs!$S$24="Easy",(F87*$AP$123),IF(Inputs!$S$24="Moderate",(F87*$AP$124),IF(Inputs!$S$24="Difficult",F87*$AP$125))) -> 9.375 | G123: =IF(Inputs!$S$24="Easy",(G87*$AR$123),IF(Inputs!$S$24="Moderate",(G87*$AR$124),IF(Inputs!$S$24="Difficult",G87*$AR$125))) -> 7.96875 | H123: =IF(Inputs!$S$24="Easy",(H87*$AR$123),IF(Inputs!$S$24="Moderate",(H87*$AR$124),IF(Inputs!$S$24="Difficult",H87*$AR$125))) -> 7.96875 | I123: =IF(Inputs!$S$24="Easy",(I87*$AR$123),IF(Inputs!$S$24="Moderate",(I87*$AR$124),IF(Inputs!$S$24="Difficult",I87*$AR$125))) -> 7.96875 | J123: =IF(Inputs!$S$24="Easy",(J87*$AR$123),IF(Inputs!$S$24="Moderate",(J87*$AR$124),IF(Inputs!$S$24="Difficult",J87*$AR$125))) -> 7.96875 | K123: =IF(Inputs!$S$24="Easy",(K87*$AR$123),IF(Inputs!$S$24="Moderate",(K87*$AR$124),IF(Inputs!$S$24="Difficult",K87*$AR$125))) -> 7.96875 | L123: =IF(Inputs!$S$24="Easy",(L87*$AR$123),IF(Inputs!$S$24="Moderate",(L87*$AR$124),IF(Inputs!$S$24="Difficult",L87*$AR$125))) -> 7.96875 | M123: =IF(Inputs!$S$24="Easy",(M87*$AR$123),IF(Inputs!$S$24="Moderate",(M87*$AR$124),IF(Inputs!$S$24="Difficult",M87*$AR$125))) -> 7.96875 | N123: =IF(Inputs!$S$24="Easy",(N87*$AR$123),IF(Inputs!$S$24="Moderate",(N87*$AR$124),IF(Inputs!$S$24="Difficult",N87*$AR$125))) -> 7.96875 | O123: =IF(Inputs!$S$24="Easy",(O87*$AR$123),IF(Inputs!$S$24="Moderate",(O87*$AR$124),IF(Inputs!$S$24="Difficult",O87*$AR$125))) -> 7.96875 | P123: =IF(Inputs!$S$24="Easy",(P87*$AR$123),IF(Inputs!$S$24="Moderate",(P87*$AR$124),IF(Inputs!$S$24="Difficult",P87*$AR$125))) -> 7.96875 | Q123: =IF(Inputs!$S$24="Easy",(Q87*$AR$123),IF(Inputs!$S$24="Moderate",(Q87*$AR$124),IF(Inputs!$S$24="Difficult",Q87*$AR$125))) -> 7.96875 | R123: =IF(Inputs!$S$24="Easy",(R87*$AR$123),IF(Inputs!$S$24="Moderate",(R87*$AR$124),IF(Inputs!$S$24="Difficult",R87*$AR$125))) -> 7.96875 | S123: =IF(Inputs!$S$24="Easy",(S87*$AR$123),IF(Inputs!$S$24="Moderate",(S87*$AR$124),IF(Inputs!$S$24="Difficult",S87*$AR$125))) -> 7.96875 | T123: =IF(Inputs!$S$24="Easy",(T87*$AR$123),IF(Inputs!$S$24="Moderate",(T87*$AR$124),IF(Inputs!$S$24="Difficult",T87*$AR$125))) -> 7.96875 | U123: =IF(Inputs!$S$24="Easy",(U87*$AR$123),IF(Inputs!$S$24="Moderate",(U87*$AR$124),IF(Inputs!$S$24="Difficult",U87*$AR$125))) -> 7.96875 | V123: =IF(Inputs!$S$24="Easy",(V87*$AR$123),IF(Inputs!$S$24="Moderate",(V87*$AR$124),IF(Inputs!$S$24="Difficult",V87*$AR$125))) -> 7.96875 | W123: =IF(Inputs!$S$24="Easy",(W87*$AR$123),IF(Inputs!$S$24="Moderate",(W87*$AR$124),IF(Inputs!$S$24="Difficult",W87*$AR$125))) -> 7.96875 | X123: =IF(Inputs!$S$24="Easy",(X87*$AR$123),IF(Inputs!$S$24="Moderate",(X87*$AR$124),IF(Inputs!$S$24="Difficult",X87*$AR$125))) -> 7.96875 | Y123: =IF(Inputs!$S$24="Easy",(Y87*$AR$123),IF(Inputs!$S$24="Moderate",(Y87*$AR$124),IF(Inputs!$S$24="Difficult",Y87*$AR$125))) -> 7.96875 | Z123: =IF(Inputs!$S$24="Easy",(Z87*$AR$123),IF(Inputs!$S$24="Moderate",(Z87*$AR$124),IF(Inputs!$S$24="Difficult",Z87*$AR$125))) -> 7.96875 | AA123: =IF(Inputs!$S$24="Easy",(AA87*$AR$123),IF(Inputs!$S$24="Moderate",(AA87*$AR$124),IF(Inputs!$S$24="Difficult",AA87*$AR$125))) -> 7.96875 | AB123: =IF(Inputs!$S$24="Easy",(AB87*$AR$123),IF(Inputs!$S$24="Moderate",(AB87*$AR$124),IF(Inputs!$S$24="Difficult",AB87*$AR$125))) -> 7.96875 | AC123: =IF(Inputs!$S$24="Easy",(AC87*$AR$123),IF(Inputs!$S$24="Moderate",(AC87*$AR$124),IF(Inputs!$S$24="Difficult",AC87*$AR$125))) -> 7.96875 | AD123: Moderate | AE123: 3 | AF123: =AE123/60 -> 0.05 | AG123: =AE123*(1-$AF$90) -> 2.25 | AH123: =AG123/60 -> 0.0375 | AI123: =AG123*(1-$AG$90) -> 1.9125 | AJ123: =AI123/60 -> 0.031875 | AL123: Easy | AM123: 3 | AN123: =AM123/60 -> 0.05 | AO123: =AM123*(1-$AF$90) -> 2.25 | AP123: =AO123/60 -> 0.0375 | AQ123: =AO123*(1-$AG$90) -> 1.9125 | AR123: =AQ123/60 -> 0.031875
B124: Labor rate | E124: =$D$15 -> 60 | F124: =E124*(1+$D$16) -> 61.8 | G124: =F124*(1+$D$16) -> 63.654 | H124: =G124*(1+$D$16) -> 65.56362 | I124: =H124*(1+$D$16) -> 67.5305286 | J124: 69.55644446 | K124: 71.64313779 | L124: 73.79243193 | M124: 76.00620488 | N124: 78.28639103 | O124: 80.63498276 | P124: 83.05403224 | Q124: 85.54565321 | R124: 88.11202281 | S124: 90.75538349 | T124: 93.478045 | U124: 96.28238635 | V124: 99.17085794 | W124: 102.1459837 | X124: 105.2103632 | Y124: 108.3666741 | Z124: 111.6176743 | AA124: 114.9662045 | AB124: 118.4151907 | AC124: 121.9676464 | AD124: Difficult | AE124: 4 | AF124: =AE124/60 -> 0.06666666667 | AG124: =AE124*(1-$AF$90) -> 3 | AH124: =AG124/60 -> 0.05 | AI124: =AG124*(1-$AG$90) -> 2.55 | AJ124: =AI124/60 -> 0.0425 | AL124: Moderate | AM124: 5 | AN124: =AM124/60 -> 0.08333333333 | AO124: =AM124*(1-$AF$90) -> 3.75 | AP124: =AO124/60 -> 0.0625 | AQ124: =AO124*(1-$AG$90) -> 3.1875 | AR124: =AQ124/60 -> 0.053125
B125: Annual costs | E125: =((E122+E123)*E124)*12 -> 12654 | F125: =((F122+F123)*F124)*12 -> 12514.5 | G125: 10956.44475 | H125: 11285.13809 | I125: 11623.69224 | J125: 11972.403 | K125: 12331.57509 | L125: 12701.52235 | M125: 13082.56802 | N125: 13475.04506 | O125: 13879.29641 | P125: 14295.6753 | Q125: 14724.54556 | R125: 15166.28193 | S125: 15621.27038 | T125: 16089.90849 | U125: 16572.60575 | V125: 17069.78392 | W125: 17581.87744 | X125: 18109.33376 | Y125: 18652.61378 | Z125: 19212.19219 | AA125: 19788.55796 | AB125: 20382.21469 | AC125: 20993.68113 | AE125: 5 | AF125: =AE125/60 -> 0.08333333333 | AG125: =AE125*(1-$AF$90) -> 3.75 | AH125: =AG125/60 -> 0.0625 | AI125: =AG125*(1-$AG$90) -> 3.1875 | AJ125: =AI125/60 -> 0.053125 | AL125: Difficult | AM125: 7 | AN125: =AM125/60 -> 0.1166666667 | AO125: =AM125*(1-$AF$90) -> 5.25 | AP125: =AO125/60 -> 0.0875 | AQ125: 4.4625 | AR125: =AQ125/60 -> 0.074375

Sheet System Ownership-Leased Offsite
B1: Community Solar: System Ownership with Land Lease
B2: Host site owns and operates a community solar project installed on a leased property with external subscribers
B4: Summary Financial Metrics
B6: Key Performace Indicator
B7: 25-Year Costs: | C7: $ | D7: =AF32+AF39+AF48 -> -3523308.586
B8: 25-Year Revenues: | C8: $ | D8: =AF55+AF65+AF73 -> 2465665.869
B9: 25-Year Net Benefits: | C9: $ | D9: =D7+D8 -> -1057642.716
B10: 25-Year Net Present Value (NPV): | C10: $ | D10: =E76+NPV(Inputs!L5,F76:AD76) -> -1144157.361
B11: Return on Investment (ROI): | C11: % | D11: =(D8+D7)/(-D7) -> -0.3001845256
B12: Internal Rate of Return (IRR) | C12: $ | D12: =IRR(E81:AD81) -> -0.1272558791
B13: Upfront Costs | C13: $ | D13: =E32+E48 -> -2021133.958
B14: Average Annual Revenue | C14: $ | D14: =AVERAGE(E76:AD76) -> -40678.56601
B15: Payback Period: | C15: years | D15: =E78 -> 25
B18: Business Case
B20: Year | E20: 0 | F20: 1 | G20: 2 | H20: 3 | I20: 4 | J20: 5 | K20: 6 | L20: 7 | M20: 8 | N20: 9 | O20: 10 | P20: 11 | Q20: 12 | R20: 13 | S20: 14 | T20: 15 | U20: 16 | V20: 17 | W20: 18 | X20: 19 | Y20: 20 | Z20: 21 | AA20: 22 | AB20: 23 | AC20: 24 | AD20: 25
B22: INSTALLATION COSTS
B23: Generation Equipment | C23: $ | D23: 0.4758194185 | E23: =-((Inputs!$E$4*Inputs!$E$8)*1000)*$D23 -> -904056.8951 | AF23: =SUM(E23:AE23) -> -904056.8951
B24: Balance of Plant | C24: $ | D24: 0.2362044723 | E24: =-((Inputs!$E$4*Inputs!$E$8)*1000)*$D24 -> -448788.4974 | AF24: -448788.4974
B25: Interconnection | C25: $ | D25: 0.06010307624 | E25: =-((Inputs!$E$4*Inputs!$E$8)*1000)*$D25 -> -114195.8449 | AF25: -114195.8449
B26: Development Costs & Fee | C26: $ | D26: 0.227873033 | E26: =-((Inputs!$E$4*Inputs!$E$8)*1000)*$D26 -> -432958.7626 | AF26: -432958.7626
B27: Site Preparation cost | C27: $/Installed watt | D27: 0.06 | E27: =-(Inputs!E4*1000)*D27 -> -60000 | AF27: -60000
B28: Site Purchase Cost | C28: $ | D28: 0 | E28: =D28 -> 0 | AF28: 0
B29: Removal Cost | C29: $ | D29: 0 | E29: =D29 -> 0 | AF29: 0
B30: Site lease cost (based on per acre $=>) | C30: $/Acre/Yr | D30: 800 | AF30: 0
B31: Annual lease cost increase | D31: 0.01
B32: Total Installation Costs | E32: =SUM(E23:E30) -> -1960000 | AF32: =SUM(AF23:AF30) -> -1960000
B34: CAPITAL COSTS
B35: Construction loan | C35: $ | E35: =-E32*Inputs!K24 -> 0 | AF35: =SUM(E35:AE35) -> 0
B36: Construction loan payments | C36: $ | F36: =-IF(F20=0,0,IF(F20<=Inputs!$K$26,-PMT(Inputs!$K$25/12,Inputs!$K$26*12,Inputs!$K$24*($E$35))*12,0)) -> 0 | G36: =-IF(G20=0,0,IF(G20<=Inputs!$K$26,-PMT(Inputs!$K$25/12,Inputs!$K$26*12,Inputs!$K$24*($E$35))*12,0)) -> 0 | H36: =-IF(H20=0,0,IF(H20<=Inputs!$K$26,-PMT(Inputs!$K$25/12,Inputs!$K$26*12,Inputs!$K$24*($E$35))*12,0)) -> 0 | I36: =-IF(I20=0,0,IF(I20<=Inputs!$K$26,-PMT(Inputs!$K$25/12,Inputs!$K$26*12,Inputs!$K$24*($E$35))*12,0)) -> 0 | J36: =-IF(J20=0,0,IF(J20<=Inputs!$K$26,-PMT(Inputs!$K$25/12,Inputs!$K$26*12,Inputs!$K$24*($E$35))*12,0)) -> 0 | K36: =-IF(K20=0,0,IF(K20<=Inputs!$K$26,-PMT(Inputs!$K$25/12,Inputs!$K$26*12,Inputs!$K$24*($E$35))*12,0)) -> 0 | L36: =-IF(L20=0,0,IF(L20<=Inputs!$K$26,-PMT(Inputs!$K$25/12,Inputs!$K$26*12,Inputs!$K$24*($E$35))*12,0)) -> 0 | M36: =-IF(M20=0,0,IF(M20<=Inputs!$K$26,-PMT(Inputs!$K$25/12,Inputs!$K$26*12,Inputs!$K$24*($E$35))*12,0)) -> 0 | N36: =-IF(N20=0,0,IF(N20<=Inputs!$K$26,-PMT(Inputs!$K$25/12,Inputs!$K$26*12,Inputs!$K$24*($E$35))*12,0)) -> 0 | O36: =-IF(O20=0,0,IF(O20<=Inputs!$K$26,-PMT(Inputs!$K$25/12,Inputs!$K$26*12,Inputs!$K$24*($E$35))*12,0)) -> 0 | P36: =-IF(P20=0,0,IF(P20<=Inputs!$K$26,-PMT(Inputs!$K$25/12,Inputs!$K$26*12,Inputs!$K$24*($E$35))*12,0)) -> 0 | Q36: =-IF(Q20=0,0,IF(Q20<=Inputs!$K$26,-PMT(Inputs!$K$25/12,Inputs!$K$26*12,Inputs!$K$24*($E$35))*12,0)) -> 0 | R36: =-IF(R20=0,0,IF(R20<=Inputs!$K$26,-PMT(Inputs!$K$25/12,Inputs!$K$26*12,Inputs!$K$24*($E$35))*12,0)) -> 0 | S36: =-IF(S20=0,0,IF(S20<=Inputs!$K$26,-PMT(Inputs!$K$25/12,Inputs!$K$26*12,Inputs!$K$24*($E$35))*12,0)) -> 0 | T36: =-IF(T20=0,0,IF(T20<=Inputs!$K$26,-PMT(Inputs!$K$25/12,Inputs!$K$26*12,Inputs!$K$24*($E$35))*12,0)) -> 0 | U36: =-IF(U20=0,0,IF(U20<=Inputs!$K$26,-PMT(Inputs!$K$25/12,Inputs!$K$26*12,Inputs!$K$24*($E$35))*12,0)) -> 0 | V36: =-IF(V20=0,0,IF(V20<=Inputs!$K$26,-PMT(Inputs!$K$25/12,Inputs!$K$26*12,Inputs!$K$24*($E$35))*12,0)) -> 0 | W36: =-IF(W20=0,0,IF(W20<=Inputs!$K$26,-PMT(Inputs!$K$25/12,Inputs!$K$26*12,Inputs!$K$24*($E$35))*12,0)) -> 0 | X36: =-IF(X20=0,0,IF(X20<=Inputs!$K$26,-PMT(Inputs!$K$25/12,Inputs!$K$26*12,Inputs!$K$24*($E$35))*12,0)) -> 0 | Y36: =-IF(Y20=0,0,IF(Y20<=Inputs!$K$26,-PMT(Inputs!$K$25/12,Inputs!$K$26*12,Inputs!$K$24*($E$35))*12,0)) -> 0 | Z36: =-IF(Z20=0,0,IF(Z20<=Inputs!$K$26,-PMT(Inputs!$K$25/12,Inputs!$K$26*12,Inputs!$K$24*($E$35))*12,0)) -> 0 | AA36: =-IF(AA20=0,0,IF(AA20<=Inputs!$K$26,-PMT(Inputs!$K$25/12,Inputs!$K$26*12,Inputs!$K$24*($E$35))*12,0)) -> 0 | AB36: =-IF(AB20=0,0,IF(AB20<=Inputs!$K$26,-PMT(Inputs!$K$25/12,Inputs!$K$26*12,Inputs!$K$24*($E$35))*12,0)) -> 0 | AC36: =-IF(AC20=0,0,IF(AC20<=Inputs!$K$26,-PMT(Inputs!$K$25/12,Inputs!$K$26*12,Inputs!$K$24*($E$35))*12,0)) -> 0 | AD36: =-IF(AD20=0,0,IF(AD20<=Inputs!$K$26,-PMT(Inputs!$K$25/12,Inputs!$K$26*12,Inputs!$K$24*($E$35))*12,0)) -> 0 | AF36: =SUM(E36:AE36) -> 0
B37: Operating loan | C37: $ | F37: =-E32*Inputs!K28 -> 0 | AF37: 0
B38: Operating loan payments | C38: $ | F38: =IF(F20=0,0,IF(F20<=Inputs!$K$30,-PMT(Inputs!$K$29/12,Inputs!$K$30*12,Inputs!$K$28*($E$32))*12,0)) -> 0 | G38: =IF(G20=0,0,IF(G20<=Inputs!$K$30,-PMT(Inputs!$K$29/12,Inputs!$K$30*12,Inputs!$K$28*($E$32))*12,0)) -> 0 | H38: =IF(H20=0,0,IF(H20<=Inputs!$K$30,-PMT(Inputs!$K$29/12,Inputs!$K$30*12,Inputs!$K$28*($E$32))*12,0)) -> 0 | I38: =IF(I20=0,0,IF(I20<=Inputs!$K$30,-PMT(Inputs!$K$29/12,Inputs!$K$30*12,Inputs!$K$28*($E$32))*12,0)) -> 0 | J38: =IF(J20=0,0,IF(J20<=Inputs!$K$30,-PMT(Inputs!$K$29/12,Inputs!$K$30*12,Inputs!$K$28*($E$32))*12,0)) -> 0 | K38: =IF(K20=0,0,IF(K20<=Inputs!$K$30,-PMT(Inputs!$K$29/12,Inputs!$K$30*12,Inputs!$K$28*($E$32))*12,0)) -> 0 | L38: =IF(L20=0,0,IF(L20<=Inputs!$K$30,-PMT(Inputs!$K$29/12,Inputs!$K$30*12,Inputs!$K$28*($E$32))*12,0)) -> 0 | M38: =IF(M20=0,0,IF(M20<=Inputs!$K$30,-PMT(Inputs!$K$29/12,Inputs!$K$30*12,Inputs!$K$28*($E$32))*12,0)) -> 0 | N38: =IF(N20=0,0,IF(N20<=Inputs!$K$30,-PMT(Inputs!$K$29/12,Inputs!$K$30*12,Inputs!$K$28*($E$32))*12,0)) -> 0 | O38: =IF(O20=0,0,IF(O20<=Inputs!$K$30,-PMT(Inputs!$K$29/12,Inputs!$K$30*12,Inputs!$K$28*($E$32))*12,0)) -> 0 | P38: =IF(P20=0,0,IF(P20<=Inputs!$K$30,-PMT(Inputs!$K$29/12,Inputs!$K$30*12,Inputs!$K$28*($E$32))*12,0)) -> 0 | Q38: =IF(Q20=0,0,IF(Q20<=Inputs!$K$30,-PMT(Inputs!$K$29/12,Inputs!$K$30*12,Inputs!$K$28*($E$32))*12,0)) -> 0 | R38: =IF(R20=0,0,IF(R20<=Inputs!$K$30,-PMT(Inputs!$K$29/12,Inputs!$K$30*12,Inputs!$K$28*($E$32))*12,0)) -> 0 | S38: =IF(S20=0,0,IF(S20<=Inputs!$K$30,-PMT(Inputs!$K$29/12,Inputs!$K$30*12,Inputs!$K$28*($E$32))*12,0)) -> 0 | T38: =IF(T20=0,0,IF(T20<=Inputs!$K$30,-PMT(Inputs!$K$29/12,Inputs!$K$30*12,Inputs!$K$28*($E$32))*12,0)) -> 0 | U38: =IF(U20=0,0,IF(U20<=Inputs!$K$30,-PMT(Inputs!$K$29/12,Inputs!$K$30*12,Inputs!$K$28*($E$32))*12,0)) -> 0 | V38: =IF(V20=0,0,IF(V20<=Inputs!$K$30,-PMT(Inputs!$K$29/12,Inputs!$K$30*12,Inputs!$K$28*($E$32))*12,0)) -> 0 | W38: =IF(W20=0,0,IF(W20<=Inputs!$K$30,-PMT(Inputs!$K$29/12,Inputs!$K$30*12,Inputs!$K$28*($E$32))*12,0)) -> 0 | X38: =IF(X20=0,0,IF(X20<=Inputs!$K$30,-PMT(Inputs!$K$29/12,Inputs!$K$30*12,Inputs!$K$28*($E$32))*12,0)) -> 0 | Y38: =IF(Y20=0,0,IF(Y20<=Inputs!$K$30,-PMT(Inputs!$K$29/12,Inputs!$K$30*12,Inputs!$K$28*($E$32))*12,0)) -> 0 | Z38: =IF(Z20=0,0,IF(Z20<=Inputs!$K$30,-PMT(Inputs!$K$29/12,Inputs!$K$30*12,Inputs!$K$28*($E$32))*12,0)) -> 0 | AA38: =IF(AA20=0,0,IF(AA20<=Inputs!$K$30,-PMT(Inputs!$K$29/12,Inputs!$K$30*12,Inputs!$K$28*($E$32))*12,0)) -> 0 | AB38: =IF(AB20=0,0,IF(AB20<=Inputs!$K$30,-PMT(Inputs!$K$29/12,Inputs!$K$30*12,Inputs!$K$28*($E$32))*12,0)) -> 0 | AC38: =IF(AC20=0,0,IF(AC20<=Inputs!$K$30,-PMT(Inputs!$K$29/12,Inputs!$K$30*12,Inputs!$K$28*($E$32))*12,0)) -> 0 | AD38: =IF(AD20=0,0,IF(AD20<=Inputs!$K$30,-PMT(Inputs!$K$29/12,Inputs!$K$30*12,Inputs!$K$28*($E$32))*12,0)) -> 0 | AF38: 0
B39: Total Cost of Capital | E39: =SUM(E35:E38) -> 0 | F39: =SUM(F35:F38) -> 0 | G39: 0 | H39: 0 | I39: 0 | J39: 0 | K39: 0 | L39: 0 | M39: 0 | N39: 0 | O39: 0 | P39: 0 | Q39: 0 | R39: 0 | S39: 0 | T39: 0 | U39: 0 | V39: 0 | W39: 0 | X39: 0 | Y39: 0 | Z39: 0 | AA39: 0 | AB39: 0 | AC39: 0 | AD39: 0 | AF39: 0
B41: OPERATING EXPENSES | D41: $/kW/Yr
B42: Fixed O&M Expense | C42: $ | D42: 10.4 | F42: =-D42*Inputs!E4 -> -10400 | G42: =F42*1.02 -> -10608 | H42: =G42*1.02 -> -10820.16 | I42: -11036.5632 | J42: -11257.29446 | K42: -11482.44035 | L42: -11712.08916 | M42: -11946.33094 | N42: -12185.25756 | O42: -12428.96271 | P42: -12677.54197 | Q42: -12931.09281 | R42: -13189.71466 | S42: -13453.50896 | T42: -13722.57914 | U42: -13997.03072 | V42: -14276.97133 | W42: -14562.51076 | X42: =W42*1.02 -> -14853.76097 | Y42: -15150.83619 | Z42: 0 | AA42: 0 | AB42: 0 | AC42: 0 | AD42: 0 | AF42: =SUM(E42:AE42) -> -252692.6459
B43: Insurance | C43: $ | D43: 3.4 | F43: =-D43*Inputs!E4 -> -3400 | G43: =F43*1.02 -> -3468 | H43: -3537.36 | I43: -3608.1072 | J43: -3680.269344 | K43: -3753.874731 | L43: -3828.952225 | M43: -3905.53127 | N43: -3983.641895 | O43: -4063.314733 | P43: -4144.581028 | Q43: -4227.472649 | R43: -4312.022102 | S43: -4398.262544 | T43: -4486.227794 | U43: -4575.95235 | V43: -4667.471397 | W43: -4760.820825 | X43: -4856.037242 | Y43: -4953.157987 | Z43: -5052.221146 | AA43: -5153.265569 | AB43: -5256.330881 | AC43: -5361.457498 | AD43: -5468.686648 | AF43: -108903.0191
B44: Project Administration | C44: $ | D44: 5.2 | F44: =-D44*Inputs!E4 -> -5200 | G44: -5304 | H44: -5410.08 | I44: -5518.2816 | J44: -5628.647232 | K44: -5741.220177 | L44: -5856.04458 | M44: -5973.165472 | N44: -6092.628781 | O44: -6214.481357 | P44: -6338.770984 | Q44: -6465.546404 | R44: -6594.857332 | S44: -6726.754478 | T44: -6861.289568 | U44: -6998.515359 | V44: -7138.485666 | W44: -7281.25538 | X44: -7426.880487 | Y44: -7575.418097 | Z44: -7726.926459 | AA44: -7881.464988 | AB44: -8039.094288 | AC44: -8199.876174 | AD44: -8363.873697 | AF44: -166557.5586
B45: Subscriber Acquisition | C45: $ | D45: Annual | E45: =-'Subscriber Mgt'!I72 -> -57920 | F45: =-('Subscriber Mgt'!E78+'Subscriber Mgt'!E79) -> -13131.5625 | G45: =-('Subscriber Mgt'!F78+'Subscriber Mgt'!F79) -> -18000.9375 | H45: =-('Subscriber Mgt'!G78+'Subscriber Mgt'!G79) -> -12487.44891 | I45: =-('Subscriber Mgt'!H78+'Subscriber Mgt'!H79) -> -12915.27237 | J45: =-('Subscriber Mgt'!I78+'Subscriber Mgt'!I79) -> -13299.28054 | K45: =-('Subscriber Mgt'!J78+'Subscriber Mgt'!J79) -> -13694.80896 | L45: =-('Subscriber Mgt'!K78+'Subscriber Mgt'!K79) -> -14102.20323 | M45: =-('Subscriber Mgt'!L78+'Subscriber Mgt'!L79) -> -14521.81933 | N45: =-('Subscriber Mgt'!M78+'Subscriber Mgt'!M79) -> -14954.02391 | O45: =-('Subscriber Mgt'!N78+'Subscriber Mgt'!N79) -> -15399.19462 | P45: =-('Subscriber Mgt'!O78+'Subscriber Mgt'!O79) -> -15857.72046 | Q45: =-('Subscriber Mgt'!P78+'Subscriber Mgt'!P79) -> -16330.00208 | R45: =-('Subscriber Mgt'!Q78+'Subscriber Mgt'!Q79) -> -16816.45214 | S45: =-('Subscriber Mgt'!R78+'Subscriber Mgt'!R79) -> -17317.4957 | T45: =-('Subscriber Mgt'!S78+'Subscriber Mgt'!S79) -> -17833.57057 | U45: =-('Subscriber Mgt'!T78+'Subscriber Mgt'!T79) -> -18365.12769 | V45: =-('Subscriber Mgt'!U78+'Subscriber Mgt'!U79) -> -18912.63152 | W45: =-('Subscriber Mgt'!V78+'Subscriber Mgt'!V79) -> -19476.56047 | X45: =-('Subscriber Mgt'!W78+'Subscriber Mgt'!W79) -> -20057.40728 | Y45: =-('Subscriber Mgt'!X78+'Subscriber Mgt'!X79) -> -20655.6795 | Z45: =-('Subscriber Mgt'!Y78+'Subscriber Mgt'!Y79) -> -21271.89988 | AA45: =-('Subscriber Mgt'!Z78+'Subscriber Mgt'!Z79) -> -21906.60688 | AB45: =-('Subscriber Mgt'!AA78+'Subscriber Mgt'!AA79) -> -22560.35509 | AC45: =-('Subscriber Mgt'!AB78+'Subscriber Mgt'!AB79) -> -23233.71574 | AD45: =-('Subscriber Mgt'!AC78+'Subscriber Mgt'!AC79) -> -23927.27721 | AF45: -494949.0541
B46: Land Lease Payments | C46: $ | D46: Annual | E46: =-((Inputs!E4*175)/43560)*D30 -> -3213.957759 | F46: =E46*(1+$D$31) -> -3246.097337 | G46: =F46*(1+$D$31) -> -3278.55831 | H46: -3311.343893 | I46: -3344.457332 | J46: -3377.901906 | K46: -3411.680925 | L46: -3445.797734 | M46: -3480.255711 | N46: -3515.058268 | O46: -3550.208851 | P46: -3585.71094 | Q46: -3621.568049 | R46: -3657.78373 | S46: -3694.361567 | T46: -3731.305183 | U46: -3768.618234 | V46: -3806.304417 | W46: -3844.367461 | X46: -3882.811135 | Y46: -3921.639247 | Z46: -3960.855639 | AA46: -4000.464196 | AB46: -4040.468838 | AC46: -4080.873526 | AD46: -4121.682261 | AF46: -94894.13245
B47: Ongoing Transactional and Billing Costs | C47: $ | D47: Annual | F47: =-('Subscriber Mgt'!E80+'Subscriber Mgt'!E81+'Subscriber Mgt'!E82) -> -14955.5625 | G47: =-('Subscriber Mgt'!F80+'Subscriber Mgt'!F81+'Subscriber Mgt'!F82) -> -14745.09375 | H47: =-('Subscriber Mgt'!G80+'Subscriber Mgt'!G81+'Subscriber Mgt'!G82) -> -12806.61291 | I47: =-('Subscriber Mgt'!H80+'Subscriber Mgt'!H81+'Subscriber Mgt'!H82) -> -13190.8113 | J47: =-('Subscriber Mgt'!I80+'Subscriber Mgt'!I81+'Subscriber Mgt'!I82) -> -13586.53563 | K47: =-('Subscriber Mgt'!J80+'Subscriber Mgt'!J81+'Subscriber Mgt'!J82) -> -13994.1317 | L47: =-('Subscriber Mgt'!K80+'Subscriber Mgt'!K81+'Subscriber Mgt'!K82) -> -14413.95565 | M47: =-('Subscriber Mgt'!L80+'Subscriber Mgt'!L81+'Subscriber Mgt'!L82) -> -14846.37432 | N47: =-('Subscriber Mgt'!M80+'Subscriber Mgt'!M81+'Subscriber Mgt'!M82) -> -15291.76555 | O47: =-('Subscriber Mgt'!N80+'Subscriber Mgt'!N81+'Subscriber Mgt'!N82) -> -15750.51852 | P47: =-('Subscriber Mgt'!O80+'Subscriber Mgt'!O81+'Subscriber Mgt'!O82) -> -16223.03408 | Q47: =-('Subscriber Mgt'!P80+'Subscriber Mgt'!P81+'Subscriber Mgt'!P82) -> -16709.7251 | R47: =-('Subscriber Mgt'!Q80+'Subscriber Mgt'!Q81+'Subscriber Mgt'!Q82) -> -17211.01685 | S47: =-('Subscriber Mgt'!R80+'Subscriber Mgt'!R81+'Subscriber Mgt'!R82) -> -17727.34736 | T47: =-('Subscriber Mgt'!S80+'Subscriber Mgt'!S81+'Subscriber Mgt'!S82) -> -18259.16778 | U47: =-('Subscriber Mgt'!T80+'Subscriber Mgt'!T81+'Subscriber Mgt'!T82) -> -18806.94281 | V47: =-('Subscriber Mgt'!U80+'Subscriber Mgt'!U81+'Subscriber Mgt'!U82) -> -19371.1511 | W47: =-('Subscriber Mgt'!V80+'Subscriber Mgt'!V81+'Subscriber Mgt'!V82) -> -19952.28563 | X47: =-('Subscriber Mgt'!W80+'Subscriber Mgt'!W81+'Subscriber Mgt'!W82) -> -20550.8542 | Y47: =-('Subscriber Mgt'!X80+'Subscriber Mgt'!X81+'Subscriber Mgt'!X82) -> -21167.37982 | Z47: =-('Subscriber Mgt'!Y80+'Subscriber Mgt'!Y81+'Subscriber Mgt'!Y82) -> -21802.40122 | AA47: =-('Subscriber Mgt'!Z80+'Subscriber Mgt'!Z81+'Subscriber Mgt'!Z82) -> -22456.47325 | AB47: =-('Subscriber Mgt'!AA80+'Subscriber Mgt'!AA81+'Subscriber Mgt'!AA82) -> -23130.16745 | AC47: =-('Subscriber Mgt'!AB80+'Subscriber Mgt'!AB81+'Subscriber Mgt'!AB82) -> -23824.07248 | AD47: =-('Subscriber Mgt'!AC80+'Subscriber Mgt'!AC81+'Subscriber Mgt'!AC82) -> -24538.79465 | AF47: -445312.1756
B48: Total Operating Expenses | E48: =SUM(E42:E47) -> -61133.95776 | F48: -50333.22234 | G48: -55404.58956 | H48: -48373.00571 | I48: -49613.493 | J48: -50829.92913 | K48: -52078.15685 | L48: -53359.04258 | M48: -54673.47705 | N48: -56022.37597 | O48: -57406.6808 | P48: -58827.35946 | Q48: -60285.40708 | R48: -61781.84682 | S48: -63317.73061 | T48: -64894.14003 | U48: -66512.18716 | V48: -68173.01543 | W48: -69877.80052 | X48: -71627.75132 | Y48: -73424.11085 | Z48: -59814.30435 | AA48: -61398.27489 | AB48: -63026.41655 | AC48: -64699.99541 | AD48: -66420.31447 | AF48: =SUM(AF42:AF47) -> -1563308.586
B50: OPERATING RESERVES | D50: $/kW/Yr
B51: Annual reserve contribution | C51: $ | D51: 10.4 | F51: =-F42 -> 10400 | G51: 10608 | H51: 10820.16 | I51: 11036.5632 | J51: 11257.29446 | K51: 11482.44035 | L51: 11712.08916 | M51: 11946.33094 | N51: 12185.25756 | O51: 12428.96271 | P51: 12677.54197 | Q51: 12931.09281 | R51: 13189.71466 | S51: 13453.50896 | T51: 13722.57914 | U51: 13997.03072 | V51: 14276.97133 | W51: 14562.51076 | X51: 14853.76097 | Y51: 15150.83619 | Z51: 0 | AA51: 0 | AB51: 0 | AC51: 0 | AD51: 0
B52: Cumulative reserves | C52: $ | D52: 10.4 | F52: =F51+F53 -> 10400 | G52: =F52+F54+G51+G53 -> 21216 | H52: =G52+G54+H51+H53 -> 32460.48 | I52: 43929.8496 | J52: 55628.60659 | K52: 67561.33872 | L52: 79732.7255 | M52: 92147.54001 | N52: 104810.6508 | O52: 12916.37302 | P52: 26091.07349 | Q52: 39529.26798 | R52: 53236.22635 | S52: 67217.3239 | T52: 81478.04339 | U52: 96023.97728 | V52: 110860.8298 | W52: 125994.4195 | X52: 141430.6809 | Y52: 15744.98663 | Z52: 16351.02008 | AA52: 16969.1742 | AB52: 17599.6914 | AC52: 18242.81894 | AD52: 18898.80903
B53: Inverter replacement | C53: $ | D53: 3.4 | F53: 0 | G53: =F53*1.02 -> 0 | H53: 0 | I53: 0 | J53: 0 | K53: 0 | L53: 0 | M53: 0 | N53: 0 | O53: =-N52 -> -104810.6508 | P53: 0 | Q53: =P53*1.02 -> 0 | R53: 0 | S53: 0 | T53: 0 | U53: 0 | V53: 0 | W53: 0 | X53: 0 | Y53: =-X52 -> -141430.6809 | Z53: 0 | AA53: 0 | AB53: 0 | AC53: 0 | AD53: 0
B54: Reserve interest | C54: $ | D54: 5.2 | F54: =F52*0.02 -> 208 | G54: =G52*0.02 -> 424.32 | H54: 432.8064 | I54: 441.462528 | J54: 450.2917786 | K54: 459.2976141 | L54: 468.4835664 | M54: 477.8532377 | N54: 487.4103025 | O54: 497.1585085 | P54: 507.1016787 | Q54: 517.2437123 | R54: 527.5885865 | S54: 538.1403583 | T54: 548.9031654 | U54: 559.8812287 | V54: 571.0788533 | W54: 582.5004304 | X54: 594.150439 | Y54: 606.0334478 | Z54: 618.1541167 | AA54: 630.5171991 | AB54: 643.127543 | AC54: 655.9900939 | AD54: 669.1098958
B55: Reserve interest revenue | F55: =F54 -> 208 | G55: =G54 -> 424.32 | H55: 432.8064 | I55: 441.462528 | J55: 450.2917786 | K55: 459.2976141 | L55: 468.4835664 | M55: 477.8532377 | N55: 487.4103025 | O55: 497.1585085 | P55: 507.1016787 | Q55: 517.2437123 | R55: 527.5885865 | S55: 538.1403583 | T55: 548.9031654 | U55: 559.8812287 | V55: 571.0788533 | W55: 582.5004304 | X55: 594.150439 | Y55: 606.0334478 | Z55: 618.1541167 | AA55: 630.5171991 | AB55: 643.127543 | AC55: =AC52+AC54 -> 18898.80903 | AD55: =SUM(AD52:AD54) -> 19567.91893 | AF55: =SUM(E55:AE55) -> 50258.23266
B57: INCENTIVES PAYMENTS
B58: Federal ITC | C58: =IF(Inputs!K13="Yes",Inputs!L13,0) -> 0.26 | D58: Year 1 | F58: =-(E23+E24+E25+E26+E27)*C58 -> 509600 | AF58: =SUM(E58:AE58) -> 509600
B59: Federal MACRS Cash Equivalent | C59: =IF(Inputs!$K$14="Yes",Inputs!L14,0) -> 0.35 | F59: =IF(F20=1,(-$E$32+$E$25-($F$58/2))*0.2*$C$59)+IF(F20=2,(-$E$32+$E$25-($F$58/2))*0.32*$C$59)+IF(F20=3,(-$E$32+$E$25-($F$58/2))*0.192*$C$59)+IF(F20=4,(-$E$32+$E$25-($F$58/2))*0.1152*$C$59)+IF(F20=5,(-$E$32+$E$25-($F$58/2))*0.1152*$C$59)+IF(F20=6,(-$E$32+$E$25-($F$58/2))*0.0576*$C$59,0) -> 111370.2909 | G59: 178192.4654 | H59: 106915.4792 | I59: 64149.28754 | J59: 64149.28754 | K59: 32074.64377 | AF59: 556851.4543
B60: SRECs | C60: $ over payout term | D60: =Inputs!L10 -> 0 | F60: =IF(F20<=Inputs!$L$10,((Inputs!$L$8*$AE$103)/1000)/Inputs!$L$10,0) -> 0 | G60: =IF(G20<=Inputs!$L$10,((Inputs!$L$8*$AE$103)/1000)/Inputs!$L$10,0) -> 0 | H60: =IF(H20<=Inputs!$L$10,((Inputs!$L$8*$AE$103)/1000)/Inputs!$L$10,0) -> 0 | I60: =IF(I20<=Inputs!$L$10,((Inputs!$L$8*$AE$103)/1000)/Inputs!$L$10,0) -> 0 | J60: =IF(J20<=Inputs!$L$10,((Inputs!$L$8*$AE$103)/1000)/Inputs!$L$10,0) -> 0 | K60: =IF(K20<=Inputs!$L$10,((Inputs!$L$8*$AE$103)/1000)/Inputs!$L$10,0) -> 0 | L60: =IF(L20<=Inputs!$L$10,((Inputs!$L$8*$AE$103)/1000)/Inputs!$L$10,0) -> 0 | M60: =IF(M20<=Inputs!$L$10,((Inputs!$L$8*$AE$103)/1000)/Inputs!$L$10,0) -> 0 | N60: =IF(N20<=Inputs!$L$10,((Inputs!$L$8*$AE$103)/1000)/Inputs!$L$10,0) -> 0 | O60: =IF(O20<=Inputs!$L$10,((Inputs!$L$8*$AE$103)/1000)/Inputs!$L$10,0) -> 0 | P60: =IF(P20<=Inputs!$L$10,((Inputs!$L$8*$AE$103)/1000)/Inputs!$L$10,0) -> 0 | Q60: =IF(Q20<=Inputs!$L$10,((Inputs!$L$8*$AE$103)/1000)/Inputs!$L$10,0) -> 0 | R60: =IF(R20<=Inputs!$L$10,((Inputs!$L$8*$AE$103)/1000)/Inputs!$L$10,0) -> 0 | S60: =IF(S20<=Inputs!$L$10,((Inputs!$L$8*$AE$103)/1000)/Inputs!$L$10,0) -> 0 | T60: =IF(T20<=Inputs!$L$10,((Inputs!$L$8*$AE$103)/1000)/Inputs!$L$10,0) -> 0 | U60: =IF(U20<=Inputs!$L$10,((Inputs!$L$8*$AE$103)/1000)/Inputs!$L$10,0) -> 0 | V60: =IF(V20<=Inputs!$L$10,((Inputs!$L$8*$AE$103)/1000)/Inputs!$L$10,0) -> 0 | W60: =IF(W20<=Inputs!$L$10,((Inputs!$L$8*$AE$103)/1000)/Inputs!$L$10,0) -> 0 | X60: =IF(X20<=Inputs!$L$10,((Inputs!$L$8*$AE$103)/1000)/Inputs!$L$10,0) -> 0 | Y60: =IF(Y20<=Inputs!$L$10,((Inputs!$L$8*$AE$103)/1000)/Inputs!$L$10,0) -> 0 | Z60: =IF(Z20<=Inputs!$L$10,((Inputs!$L$8*$AE$103)/1000)/Inputs!$L$10,0) -> 0 | AA60: =IF(AA20<=Inputs!$L$10,((Inputs!$L$8*$AE$103)/1000)/Inputs!$L$10,0) -> 0 | AB60: =IF(AB20<=Inputs!$L$10,((Inputs!$L$8*$AE$103)/1000)/Inputs!$L$10,0) -> 0 | AC60: =IF(AC20<=Inputs!$L$10,((Inputs!$L$8*$AE$103)/1000)/Inputs!$L$10,0) -> 0 | AD60: =IF(AD20<=Inputs!$L$10,((Inputs!$L$8*$AE$103)/1000)/Inputs!$L$10,0) -> 0 | AF60: 0
B61: =Inputs!J17 -> [NAME] | C61: =Inputs!L17 -> 0 | D61: =Inputs!K17 -> (please select) | F61: =IF(D61="$ per installed watt",(C61*Inputs!$E$4*1000),C61) -> 0 | AF61: 0
B62: =Inputs!J18 -> [NAME] | C62: =Inputs!L18 -> 0 | D62: =Inputs!K18 -> (please select) | F62: =IF(D62="$ per installed watt",(C62*Inputs!$E$4*1000),C62) -> 0 | AF62: 0
B63: =Inputs!J19 -> [NAME] | C63: =Inputs!L19 -> 0 | D63: =Inputs!K19 -> (please select) | F63: =IF(D63="$ per installed watt",(C63*Inputs!$E$4*1000),C63) -> 0 | AF63: 0
B64: =Inputs!J20 -> [NAME] | C64: =Inputs!L20 -> 0 | D64: =Inputs!K20 -> (please select) | F64: =IF(D64="$ per installed watt",(C64*Inputs!$E$4*1000),C64) -> 0 | AF64: 0
B65: Total Incentive Payments | F65: =SUM(F58:F64) -> 620970.2909 | G65: 178192.4654 | H65: 106915.4792 | I65: 64149.28754 | J65: 64149.28754 | K65: 32074.64377 | L65: 0 | M65: 0 | N65: 0 | O65: 0 | P65: 0 | Q65: 0 | R65: 0 | S65: 0 | T65: 0 | U65: 0 | V65: 0 | W65: 0 | X65: 0 | Y65: 0 | Z65: 0 | AA65: 0 | AB65: 0 | AC65: 0 | AD65: 0 | AF65: =SUM(AF58:AF64) -> 1066451.454
B67: REVENUES
B68: Anchor Payments | C68: $ | D68: Annual | F68: =F152*(1-Inputs!$S$7) -> 11765.48393 | G68: =G152*(1-Inputs!$S$7) -> 12032.10156 | H68: =H152*(1-Inputs!$S$7) -> 12304.76101 | I68: =I152*(1-Inputs!$S$7) -> 12583.5992 | J68: =J152*(1-Inputs!$S$7) -> 12868.75614 | K68: =K152*(1-Inputs!$S$7) -> 13160.37503 | L68: =L152*(1-Inputs!$S$7) -> 13458.60229 | M68: =M152*(1-Inputs!$S$7) -> 13763.58767 | N68: =N152*(1-Inputs!$S$7) -> 14075.48433 | O68: =O152*(1-Inputs!$S$7) -> 14394.44888 | P68: =P152*(1-Inputs!$S$7) -> 14720.64149 | Q68: =Q152*(1-Inputs!$S$7) -> 15054.22595 | R68: =R152*(1-Inputs!$S$7) -> 15395.36976 | S68: =S152*(1-Inputs!$S$7) -> 15744.24423 | T68: =T152*(1-Inputs!$S$7) -> 16101.02455 | U68: =U152*(1-Inputs!$S$7) -> 16465.88987 | V68: =V152*(1-Inputs!$S$7) -> 16839.0234 | W68: =W152*(1-Inputs!$S$7) -> 17220.61251 | X68: =X152*(1-Inputs!$S$7) -> 17610.84881 | Y68: =Y152*(1-Inputs!$S$7) -> 18009.92826 | Z68: =Z152*(1-Inputs!$S$7) -> 18418.05124 | AA68: =AA152*(1-Inputs!$S$7) -> 18835.4227 | AB68: =AB152*(1-Inputs!$S$7) -> 19262.25221 | AC68: =AC152*(1-Inputs!$S$7) -> 19698.75411 | AD68: =AD152*(1-Inputs!$S$7) -> 20145.14758 | AF68: =SUM(E68:AE68) -> 389928.6367
B69: Host Net Metering | F69: 0 | G69: 0 | H69: 0 | I69: 0 | J69: 0 | K69: 0 | L69: 0 | M69: 0 | N69: 0 | O69: 0 | P69: 0 | Q69: 0 | R69: 0 | S69: 0 | T69: 0 | U69: 0 | V69: 0 | W69: 0 | X69: 0 | Y69: 0 | Z69: 0 | AA69: 0 | AB69: 0 | AC69: 0 | AD69: 0 | AF69: 0
B70: Subscriber Payments | F70: =F199*(1-Inputs!$S$12) -> 14767.94719 | G70: =G199*(1-Inputs!$S$12) -> 29758.8249 | H70: =H199*(1-Inputs!$S$12) -> 30433.18963 | I70: =I199*(1-Inputs!$S$12) -> 31122.83614 | J70: =J199*(1-Inputs!$S$12) -> 31828.11073 | K70: =K199*(1-Inputs!$S$12) -> 32549.36755 | L70: =L199*(1-Inputs!$S$12) -> 33286.96877 | M70: =M199*(1-Inputs!$S$12) -> 34041.28477 | N70: =N199*(1-Inputs!$S$12) -> 34812.69432 | O70: =O199*(1-Inputs!$S$12) -> 35601.58479 | P70: =P199*(1-Inputs!$S$12) -> 36408.3523 | Q70: =Q199*(1-Inputs!$S$12) -> 37233.40197 | R70: =R199*(1-Inputs!$S$12) -> 38077.14809 | S70: =S199*(1-Inputs!$S$12) -> 38940.01435 | T70: =T199*(1-Inputs!$S$12) -> 39822.43401 | U70: =U199*(1-Inputs!$S$12) -> 40724.85019 | V70: =V199*(1-Inputs!$S$12) -> 41647.71602 | W70: =W199*(1-Inputs!$S$12) -> 42591.49491 | X70: =X199*(1-Inputs!$S$12) -> 43556.66078 | Y70: =Y199*(1-Inputs!$S$12) -> 44543.69827 | Z70: =Z199*(1-Inputs!$S$12) -> 45553.10302 | AA70: =AA199*(1-Inputs!$S$12) -> 46585.38188 | AB70: =AB199*(1-Inputs!$S$12) -> 47641.05322 | AC70: =AC199*(1-Inputs!$S$12) -> 48720.64713 | AD70: =AD199*(1-Inputs!$S$12) -> 49824.70571 | AF70: 950073.4707
B71: Unsubscribed energy payments | F71: =F233 -> 8954.075011 | G71: =G233 -> 0 | H71: 0 | I71: 0 | J71: 0 | K71: 0 | L71: 0 | M71: 0 | N71: 0 | O71: 0 | P71: 0 | Q71: 0 | R71: 0 | S71: 0 | T71: 0 | U71: 0 | V71: 0 | W71: 0 | X71: 0 | Y71: 0 | Z71: 0 | AA71: 0 | AB71: 0 | AC71: 0 | AD71: 0 | AF71: 8954.075011
B72: Site Lease Revenue | C72: $ | D72: Fixed Annual | F72: 0 | G72: 0 | H72: 0 | I72: 0 | J72: 0 | K72: 0 | L72: 0 | M72: 0 | N72: 0 | O72: 0 | P72: 0 | Q72: 0 | R72: 0 | S72: 0 | T72: 0 | U72: 0 | V72: 0 | W72: 0 | X72: 0 | Y72: 0 | Z72: 0 | AA72: 0 | AB72: 0 | AC72: 0 | AD72: 0 | AF72: 0
B73: Total Revenue | F73: =SUM(F68:F72) -> 35487.50613 | G73: =SUM(G68:G72) -> 41790.92646 | H73: 42737.95065 | I73: 43706.43535 | J73: 44696.86688 | K73: 45709.74258 | L73: 46745.57105 | M73: 47804.87244 | N73: 48888.17865 | O73: 49996.03367 | P73: 51128.99379 | Q73: 52287.62792 | R73: 53472.51785 | S73: 54684.25858 | T73: 55923.45857 | U73: 57190.74006 | V73: 58486.73942 | W73: 59812.10742 | X73: 61167.50959 | Y73: 62553.62652 | Z73: 63971.15425 | AA73: 65420.80458 | AB73: 66903.30543 | AC73: 68419.40124 | AD73: 69969.85329 | AF73: =SUM(AF68:AF72) -> 1348956.182
B75: CASHFLOW
B76: Net Benefits (Costs) | C76: $ | E76: =E32+E39+E48 -> -2021133.958 | F76: =F39+F48+F55+F65+F73 -> 606332.5746 | G76: 165003.1223 | H76: 101713.2306 | I76: 58683.69241 | J76: 58466.51707 | K76: 26165.52711 | L76: -6144.987964 | M76: -6390.75137 | N76: -6646.787011 | O76: -6913.48862 | P76: -7191.26399 | Q76: -7480.535453 | R76: -7781.740375 | S76: -8095.331665 | T76: -8421.778302 | U76: -8761.565876 | V76: -9115.197157 | W76: -9483.192668 | X76: -9866.09129 | Y76: -10264.45088 | Z76: 4775.004024 | AA76: 4653.046891 | AB76: 4520.01643 | AC76: 22618.21486 | AD76: 23117.45775 | AF76: =SUM(E76:AE76) -> -1057642.716
B77: Cumulative Cashflow | C77: $ | E77: =D76+E76 -> -2021133.958 | F77: =E77+F76 -> -1414801.383 | G77: =F77+G76 -> -1249798.261 | H77: -1148085.03 | I77: -1089401.338 | J77: -1030934.821 | K77: -1004769.294 | L77: -1010914.282 | M77: -1017305.033 | N77: -1023951.82 | O77: -1030865.309 | P77: -1038056.573 | Q77: -1045537.108 | R77: -1053318.848 | S77: -1061414.18 | T77: -1069835.958 | U77: -1078597.524 | V77: -1087712.721 | W77: -1097195.914 | X77: -1107062.005 | Y77: -1117326.456 | Z77: -1112551.452 | AA77: -1107898.405 | AB77: -1103378.389 | AC77: -1080760.174 | AD77: -1057642.716 | AF77: =AD77 -> -1057642.716
B78: Payback Calculation | D78: Years | E78: =SUM(F78:AD78) -> 25 | F78: =IF(F77<0,1,IF(AND(F77>0,E77<0),(-E77/(F77-E77)),0)) -> 1 | G78: 1 | H78: 1 | I78: 1 | J78: 1 | K78: 1 | L78: 1 | M78: 1 | N78: 1 | O78: 1 | P78: 1 | Q78: 1 | R78: 1 | S78: 1 | T78: 1 | U78: 1 | V78: 1 | W78: 1 | X78: 1 | Y78: 1 | Z78: 1 | AA78: 1 | AB78: 1 | AC78: 1 | AD78: 1
B80: Internal Rate of Return
B81: Internal Net Benefits (Costs) | C81: $ | E81: =E32+E48+E55 -> -2021133.958 | F81: =F48+F55+F65+F73 -> 606332.5746 | G81: =G48+G55+G65+G73 -> 165003.1223 | H81: 101713.2306 | I81: 58683.69241 | J81: 58466.51707 | K81: 26165.52711 | L81: -6144.987964 | M81: -6390.75137 | N81: -6646.787011 | O81: -6913.48862 | P81: -7191.26399 | Q81: -7480.535453 | R81: -7781.740375 | S81: -8095.331665 | T81: -8421.778302 | U81: -8761.565876 | V81: -9115.197157 | W81: -9483.192668 | X81: -9866.09129 | Y81: -10264.45088 | Z81: 4775.004024 | AA81: 4653.046891 | AB81: 4520.01643 | AC81: 22618.21486 | AD81: 23117.45775 | AF81: =SUM(E81:AE81) -> -1057642.716
B82: Internal Cumulative Cashflow | C82: $ | E82: =D81+E81 -> -2021133.958 | F82: =E82+F81 -> -1414801.383 | G82: =F82+G81 -> -1249798.261 | H82: =G82+H81 -> -1148085.03 | I82: -1089401.338 | J82: -1030934.821 | K82: -1004769.294 | L82: -1010914.282 | M82: -1017305.033 | N82: -1023951.82 | O82: -1030865.309 | P82: -1038056.573 | Q82: -1045537.108 | R82: -1053318.848 | S82: -1061414.18 | T82: -1069835.958 | U82: -1078597.524 | V82: -1087712.721 | W82: -1097195.914 | X82: -1107062.005 | Y82: -1117326.456 | Z82: -1112551.452 | AA82: -1107898.405 | AB82: -1103378.389 | AC82: -1080760.174 | AD82: -1057642.716 | AF82: =AD82 -> -1057642.716
B83: Payback Calculation | D83: Years | E83: =SUM(F83:AD83) -> 25 | F83: =IF(F82<0,1,IF(AND(F82>0,E82<0),(-E82/(F82-E82)),0)) -> 1 | G83: 1 | H83: 1 | I83: 1 | J83: 1 | K83: 1 | L83: 1 | M83: 1 | N83: 1 | O83: 1 | P83: 1 | Q83: 1 | R83: 1 | S83: 1 | T83: 1 | U83: 1 | V83: 1 | W83: 1 | X83: 1 | Y83: 1 | Z83: 1 | AA83: 1 | AB83: 1 | AC83: 1 | AD83: 1
B87: Power Generation and Value of Power
B89: Power Generated
B90: Month | C90: Total Generation (kWh) | E90: =D186 -> 0 | F90: Anchor Subscription
B91: January | C91: =IF(Inputs!$E$22="PV Watts",Inputs!$E$4*Inputs!E44,Inputs!D26) -> 33233.16016 | D91: kWh's per mo. | F91: =($C91*(1-Inputs!$E$18)) -> 33066.99436 | G91: =(F91*(1-Inputs!$E$18)) -> 32901.65938 | H91: =(G91*(1-Inputs!$E$18)) -> 32737.15109 | I91: =(H91*(1-Inputs!$E$18)) -> 32573.46533 | J91: =(I91*(1-Inputs!$E$18)) -> 32410.598 | K91: =(J91*(1-Inputs!$E$18)) -> 32248.54501 | L91: =(K91*(1-Inputs!$E$18)) -> 32087.30229 | M91: =(L91*(1-Inputs!$E$18)) -> 31926.86578 | N91: =(M91*(1-Inputs!$E$18)) -> 31767.23145 | O91: =(N91*(1-Inputs!$E$18)) -> 31608.39529 | P91: =(O91*(1-Inputs!$E$18)) -> 31450.35332 | Q91: =(P91*(1-Inputs!$E$18)) -> 31293.10155 | R91: =(Q91*(1-Inputs!$E$18)) -> 31136.63604 | S91: =(R91*(1-Inputs!$E$18)) -> 30980.95286 | T91: =(S91*(1-Inputs!$E$18)) -> 30826.0481 | U91: =(T91*(1-Inputs!$E$18)) -> 30671.91786 | V91: =(U91*(1-Inputs!$E$18)) -> 30518.55827 | W91: =(V91*(1-Inputs!$E$18)) -> 30365.96548 | X91: =(W91*(1-Inputs!$E$18)) -> 30214.13565 | Y91: =(X91*(1-Inputs!$E$18)) -> 30063.06497 | Z91: =(Y91*(1-Inputs!$E$18)) -> 29912.74965 | AA91: =(Z91*(1-Inputs!$E$18)) -> 29763.1859 | AB91: =(AA91*(1-Inputs!$E$18)) -> 29614.36997 | AC91: =(AB91*(1-Inputs!$E$18)) -> 29466.29812 | AD91: =(AC91*(1-Inputs!$E$18)) -> 29318.96663
B92: February | C92: =IF(Inputs!$E$22="PV Watts",Inputs!$E$4*Inputs!E45,Inputs!D27) -> 44092.37891 | D92: kWh's per mo. | F92: =($C92*(1-Inputs!$E$18)) -> 43871.91701 | G92: =(F92*(1-Inputs!$E$18)) -> 43652.55743 | H92: =(G92*(1-Inputs!$E$18)) -> 43434.29464 | I92: =(H92*(1-Inputs!$E$18)) -> 43217.12317 | J92: =(I92*(1-Inputs!$E$18)) -> 43001.03755 | K92: =(J92*(1-Inputs!$E$18)) -> 42786.03236 | L92: =(K92*(1-Inputs!$E$18)) -> 42572.1022 | M92: =(L92*(1-Inputs!$E$18)) -> 42359.24169 | N92: =(M92*(1-Inputs!$E$18)) -> 42147.44548 | O92: =(N92*(1-Inputs!$E$18)) -> 41936.70825 | P92: =(O92*(1-Inputs!$E$18)) -> 41727.02471 | Q92: =(P92*(1-Inputs!$E$18)) -> 41518.38959 | R92: =(Q92*(1-Inputs!$E$18)) -> 41310.79764 | S92: =(R92*(1-Inputs!$E$18)) -> 41104.24365 | T92: =(S92*(1-Inputs!$E$18)) -> 40898.72243 | U92: =(T92*(1-Inputs!$E$18)) -> 40694.22882 | V92: =(U92*(1-Inputs!$E$18)) -> 40490.75768 | W92: =(V92*(1-Inputs!$E$18)) -> 40288.30389 | X92: =(W92*(1-Inputs!$E$18)) -> 40086.86237 | Y92: =(X92*(1-Inputs!$E$18)) -> 39886.42806 | Z92: =(Y92*(1-Inputs!$E$18)) -> 39686.99592 | AA92: =(Z92*(1-Inputs!$E$18)) -> 39488.56094 | AB92: =(AA92*(1-Inputs!$E$18)) -> 39291.11813 | AC92: =(AB92*(1-Inputs!$E$18)) -> 39094.66254 | AD92: =(AC92*(1-Inputs!$E$18)) -> 38899.18923
B93: March | C93: =IF(Inputs!$E$22="PV Watts",Inputs!$E$4*Inputs!E46,Inputs!D28) -> 78933.5625 | D93: kWh's per mo. | F93: =($C93*(1-Inputs!$E$18)) -> 78538.89469 | G93: =(F93*(1-Inputs!$E$18)) -> 78146.20021 | H93: =(G93*(1-Inputs!$E$18)) -> 77755.46921 | I93: =(H93*(1-Inputs!$E$18)) -> 77366.69187 | J93: =(I93*(1-Inputs!$E$18)) -> 76979.85841 | K93: =(J93*(1-Inputs!$E$18)) -> 76594.95912 | L93: =(K93*(1-Inputs!$E$18)) -> 76211.98432 | M93: =(L93*(1-Inputs!$E$18)) -> 75830.9244 | N93: =(M93*(1-Inputs!$E$18)) -> 75451.76978 | O93: =(N93*(1-Inputs!$E$18)) -> 75074.51093 | P93: =(O93*(1-Inputs!$E$18)) -> 74699.13837 | Q93: =(P93*(1-Inputs!$E$18)) -> 74325.64268 | R93: =(Q93*(1-Inputs!$E$18)) -> 73954.01447 | S93: =(R93*(1-Inputs!$E$18)) -> 73584.2444 | T93: =(S93*(1-Inputs!$E$18)) -> 73216.32317 | U93: =(T93*(1-Inputs!$E$18)) -> 72850.24156 | V93: =(U93*(1-Inputs!$E$18)) -> 72485.99035 | W93: =(V93*(1-Inputs!$E$18)) -> 72123.5604 | X93: =(W93*(1-Inputs!$E$18)) -> 71762.9426 | Y93: =(X93*(1-Inputs!$E$18)) -> 71404.12788 | Z93: =(Y93*(1-Inputs!$E$18)) -> 71047.10724 | AA93: =(Z93*(1-Inputs!$E$18)) -> 70691.87171 | AB93: =(AA93*(1-Inputs!$E$18)) -> 70338.41235 | AC93: =(AB93*(1-Inputs!$E$18)) -> 69986.72029 | AD93: =(AC93*(1-Inputs!$E$18)) -> 69636.78669
B94: April | C94: =IF(Inputs!$E$22="PV Watts",Inputs!$E$4*Inputs!E47,Inputs!D29) -> 100329.7266 | D94: kWh's per mo. | F94: =($C94*(1-Inputs!$E$18)) -> 99828.07793 | G94: =(F94*(1-Inputs!$E$18)) -> 99328.93754 | H94: =(G94*(1-Inputs!$E$18)) -> 98832.29285 | I94: =(H94*(1-Inputs!$E$18)) -> 98338.13139 | J94: =(I94*(1-Inputs!$E$18)) -> 97846.44073 | K94: =(J94*(1-Inputs!$E$18)) -> 97357.20853 | L94: =(K94*(1-Inputs!$E$18)) -> 96870.42248 | M94: =(L94*(1-Inputs!$E$18)) -> 96386.07037 | N94: =(M94*(1-Inputs!$E$18)) -> 95904.14002 | O94: =(N94*(1-Inputs!$E$18)) -> 95424.61932 | P94: =(O94*(1-Inputs!$E$18)) -> 94947.49622 | Q94: =(P94*(1-Inputs!$E$18)) -> 94472.75874 | R94: =(Q94*(1-Inputs!$E$18)) -> 94000.39495 | S94: =(R94*(1-Inputs!$E$18)) -> 93530.39297 | T94: =(S94*(1-Inputs!$E$18)) -> 93062.74101 | U94: =(T94*(1-Inputs!$E$18)) -> 92597.4273 | V94: =(U94*(1-Inputs!$E$18)) -> 92134.44017 | W94: =(V94*(1-Inputs!$E$18)) -> 91673.76797 | X94: =(W94*(1-Inputs!$E$18)) -> 91215.39913 | Y94: =(X94*(1-Inputs!$E$18)) -> 90759.32213 | Z94: =(Y94*(1-Inputs!$E$18)) -> 90305.52552 | AA94: =(Z94*(1-Inputs!$E$18)) -> 89853.99789 | AB94: =(AA94*(1-Inputs!$E$18)) -> 89404.7279 | AC94: =(AB94*(1-Inputs!$E$18)) -> 88957.70426 | AD94: =(AC94*(1-Inputs!$E$18)) -> 88512.91574
B95: May | C95: =IF(Inputs!$E$22="PV Watts",Inputs!$E$4*Inputs!E48,Inputs!D30) -> 137096.4375 | D95: kWh's per mo. | F95: =($C95*(1-Inputs!$E$18)) -> 136410.9553 | G95: =(F95*(1-Inputs!$E$18)) -> 135728.9005 | H95: =(G95*(1-Inputs!$E$18)) -> 135050.256 | I95: =(H95*(1-Inputs!$E$18)) -> 134375.0048 | J95: =(I95*(1-Inputs!$E$18)) -> 133703.1297 | K95: =(J95*(1-Inputs!$E$18)) -> 133034.6141 | L95: =(K95*(1-Inputs!$E$18)) -> 132369.441 | M95: =(L95*(1-Inputs!$E$18)) -> 131707.5938 | N95: =(M95*(1-Inputs!$E$18)) -> 131049.0558 | O95: =(N95*(1-Inputs!$E$18)) -> 130393.8106 | P95: =(O95*(1-Inputs!$E$18)) -> 129741.8415 | Q95: =(P95*(1-Inputs!$E$18)) -> 129093.1323 | R95: =(Q95*(1-Inputs!$E$18)) -> 128447.6666 | S95: =(R95*(1-Inputs!$E$18)) -> 127805.4283 | T95: =(S95*(1-Inputs!$E$18)) -> 127166.4012 | U95: =(T95*(1-Inputs!$E$18)) -> 126530.5692 | V95: =(U95*(1-Inputs!$E$18)) -> 125897.9163 | W95: =(V95*(1-Inputs!$E$18)) -> 125268.4267 | X95: =(W95*(1-Inputs!$E$18)) -> 124642.0846 | Y95: =(X95*(1-Inputs!$E$18)) -> 124018.8742 | Z95: =(Y95*(1-Inputs!$E$18)) -> 123398.7798 | AA95: =(Z95*(1-Inputs!$E$18)) -> 122781.7859 | AB95: =(AA95*(1-Inputs!$E$18)) -> 122167.877 | AC95: =(AB95*(1-Inputs!$E$18)) -> 121557.0376 | AD95: =(AC95*(1-Inputs!$E$18)) -> 120949.2524
B96: June | C96: =IF(Inputs!$E$22="PV Watts",Inputs!$E$4*Inputs!E49,Inputs!D31) -> 138873.5625 | D96: kWh's per mo. | F96: =($C96*(1-Inputs!$E$18)) -> 138179.1947 | G96: =(F96*(1-Inputs!$E$18)) -> 137488.2987 | H96: =(G96*(1-Inputs!$E$18)) -> 136800.8572 | I96: =(H96*(1-Inputs!$E$18)) -> 136116.8529 | J96: =(I96*(1-Inputs!$E$18)) -> 135436.2687 | K96: =(J96*(1-Inputs!$E$18)) -> 134759.0873 | L96: =(K96*(1-Inputs!$E$18)) -> 134085.2919 | M96: =(L96*(1-Inputs!$E$18)) -> 133414.8654 | N96: =(M96*(1-Inputs!$E$18)) -> 132747.7911 | O96: =(N96*(1-Inputs!$E$18)) -> 132084.0521 | P96: =(O96*(1-Inputs!$E$18)) -> 131423.6319 | Q96: =(P96*(1-Inputs!$E$18)) -> 130766.5137 | R96: =(Q96*(1-Inputs!$E$18)) -> 130112.6812 | S96: =(R96*(1-Inputs!$E$18)) -> 129462.1178 | T96: =(S96*(1-Inputs!$E$18)) -> 128814.8072 | U96: =(T96*(1-Inputs!$E$18)) -> 128170.7331 | V96: =(U96*(1-Inputs!$E$18)) -> 127529.8795 | W96: =(V96*(1-Inputs!$E$18)) -> 126892.2301 | X96: =(W96*(1-Inputs!$E$18)) -> 126257.7689 | Y96: =(X96*(1-Inputs!$E$18)) -> 125626.4801 | Z96: =(Y96*(1-Inputs!$E$18)) -> 124998.3477 | AA96: =(Z96*(1-Inputs!$E$18)) -> 124373.3559 | AB96: =(AA96*(1-Inputs!$E$18)) -> 123751.4892 | AC96: =(AB96*(1-Inputs!$E$18)) -> 123132.7317 | AD96: =(AC96*(1-Inputs!$E$18)) -> 122517.068
B97: July | C97: =IF(Inputs!$E$22="PV Watts",Inputs!$E$4*Inputs!E50,Inputs!D32) -> 153020 | D97: kWh's per mo. | F97: =($C97*(1-Inputs!$E$18)) -> 152254.9 | G97: =(F97*(1-Inputs!$E$18)) -> 151493.6255 | H97: =(G97*(1-Inputs!$E$18)) -> 150736.1574 | I97: =(H97*(1-Inputs!$E$18)) -> 149982.4766 | J97: =(I97*(1-Inputs!$E$18)) -> 149232.5642 | K97: =(J97*(1-Inputs!$E$18)) -> 148486.4014 | L97: =(K97*(1-Inputs!$E$18)) -> 147743.9694 | M97: =(L97*(1-Inputs!$E$18)) -> 147005.2495 | N97: =(M97*(1-Inputs!$E$18)) -> 146270.2233 | O97: =(N97*(1-Inputs!$E$18)) -> 145538.8722 | P97: =(O97*(1-Inputs!$E$18)) -> 144811.1778 | Q97: =(P97*(1-Inputs!$E$18)) -> 144087.1219 | R97: =(Q97*(1-Inputs!$E$18)) -> 143366.6863 | S97: =(R97*(1-Inputs!$E$18)) -> 142649.8529 | T97: =(S97*(1-Inputs!$E$18)) -> 141936.6036 | U97: =(T97*(1-Inputs!$E$18)) -> 141226.9206 | V97: =(U97*(1-Inputs!$E$18)) -> 140520.786 | W97: =(V97*(1-Inputs!$E$18)) -> 139818.1821 | X97: =(W97*(1-Inputs!$E$18)) -> 139119.0911 | Y97: =(X97*(1-Inputs!$E$18)) -> 138423.4957 | Z97: =(Y97*(1-Inputs!$E$18)) -> 137731.3782 | AA97: =(Z97*(1-Inputs!$E$18)) -> 137042.7213 | AB97: =(AA97*(1-Inputs!$E$18)) -> 136357.5077 | AC97: =(AB97*(1-Inputs!$E$18)) -> 135675.7202 | AD97: =(AC97*(1-Inputs!$E$18)) -> 134997.3416
B98: August | C98: =IF(Inputs!$E$22="PV Watts",Inputs!$E$4*Inputs!E51,Inputs!D33) -> 124082.5781 | D98: kWh's per mo. | F98: =($C98*(1-Inputs!$E$18)) -> 123462.1652 | G98: =(F98*(1-Inputs!$E$18)) -> 122844.8544 | H98: =(G98*(1-Inputs!$E$18)) -> 122230.6301 | I98: =(H98*(1-Inputs!$E$18)) -> 121619.477 | J98: =(I98*(1-Inputs!$E$18)) -> 121011.3796 | K98: =(J98*(1-Inputs!$E$18)) -> 120406.3227 | L98: =(K98*(1-Inputs!$E$18)) -> 119804.2911 | M98: =(L98*(1-Inputs!$E$18)) -> 119205.2696 | N98: =(M98*(1-Inputs!$E$18)) -> 118609.2433 | O98: =(N98*(1-Inputs!$E$18)) -> 118016.1971 | P98: =(O98*(1-Inputs!$E$18)) -> 117426.1161 | Q98: =(P98*(1-Inputs!$E$18)) -> 116838.9855 | R98: =(Q98*(1-Inputs!$E$18)) -> 116254.7906 | S98: =(R98*(1-Inputs!$E$18)) -> 115673.5166 | T98: =(S98*(1-Inputs!$E$18)) -> 115095.149 | U98: =(T98*(1-Inputs!$E$18)) -> 114519.6733 | V98: =(U98*(1-Inputs!$E$18)) -> 113947.0749 | W98: =(V98*(1-Inputs!$E$18)) -> 113377.3396 | X98: =(W98*(1-Inputs!$E$18)) -> 112810.4529 | Y98: =(X98*(1-Inputs!$E$18)) -> 112246.4006 | Z98: =(Y98*(1-Inputs!$E$18)) -> 111685.1686 | AA98: =(Z98*(1-Inputs!$E$18)) -> 111126.7427 | AB98: =(AA98*(1-Inputs!$E$18)) -> 110571.109 | AC98: =(AB98*(1-Inputs!$E$18)) -> 110018.2535 | AD98: =(AC98*(1-Inputs!$E$18)) -> 109468.1622
B99: September | C99: =IF(Inputs!$E$22="PV Watts",Inputs!$E$4*Inputs!E52,Inputs!D34) -> 91969.25 | D99: kWh's per mo. | F99: =($C99*(1-Inputs!$E$18)) -> 91509.40375 | G99: =(F99*(1-Inputs!$E$18)) -> 91051.85673 | H99: =(G99*(1-Inputs!$E$18)) -> 90596.59745 | I99: =(H99*(1-Inputs!$E$18)) -> 90143.61446 | J99: =(I99*(1-Inputs!$E$18)) -> 89692.89639 | K99: =(J99*(1-Inputs!$E$18)) -> 89244.43191 | L99: =(K99*(1-Inputs!$E$18)) -> 88798.20975 | M99: =(L99*(1-Inputs!$E$18)) -> 88354.2187 | N99: =(M99*(1-Inputs!$E$18)) -> 87912.4476 | O99: =(N99*(1-Inputs!$E$18)) -> 87472.88537 | P99: =(O99*(1-Inputs!$E$18)) -> 87035.52094 | Q99: =(P99*(1-Inputs!$E$18)) -> 86600.34333 | R99: =(Q99*(1-Inputs!$E$18)) -> 86167.34162 | S99: =(R99*(1-Inputs!$E$18)) -> 85736.50491 | T99: =(S99*(1-Inputs!$E$18)) -> 85307.82239 | U99: =(T99*(1-Inputs!$E$18)) -> 84881.28327 | V99: =(U99*(1-Inputs!$E$18)) -> 84456.87686 | W99: =(V99*(1-Inputs!$E$18)) -> 84034.59247 | X99: =(W99*(1-Inputs!$E$18)) -> 83614.41951 | Y99: =(X99*(1-Inputs!$E$18)) -> 83196.34741 | Z99: =(Y99*(1-Inputs!$E$18)) -> 82780.36568 | AA99: =(Z99*(1-Inputs!$E$18)) -> 82366.46385 | AB99: =(AA99*(1-Inputs!$E$18)) -> 81954.63153 | AC99: =(AB99*(1-Inputs!$E$18)) -> 81544.85837 | AD99: =(AC99*(1-Inputs!$E$18)) -> 81137.13408
B100: October | C100: =IF(Inputs!$E$22="PV Watts",Inputs!$E$4*Inputs!E53,Inputs!D35) -> 63307.03516 | D100: kWh's per mo. | F100: =($C100*(1-Inputs!$E$18)) -> 62990.49998 | G100: =(F100*(1-Inputs!$E$18)) -> 62675.54748 | H100: =(G100*(1-Inputs!$E$18)) -> 62362.16974 | I100: =(H100*(1-Inputs!$E$18)) -> 62050.35889 | J100: =(I100*(1-Inputs!$E$18)) -> 61740.1071 | K100: =(J100*(1-Inputs!$E$18)) -> 61431.40656 | L100: =(K100*(1-Inputs!$E$18)) -> 61124.24953 | M100: =(L100*(1-Inputs!$E$18)) -> 60818.62828 | N100: =(M100*(1-Inputs!$E$18)) -> 60514.53514 | O100: =(N100*(1-Inputs!$E$18)) -> 60211.96247 | P100: =(O100*(1-Inputs!$E$18)) -> 59910.90265 | Q100: =(P100*(1-Inputs!$E$18)) -> 59611.34814 | R100: =(Q100*(1-Inputs!$E$18)) -> 59313.2914 | S100: =(R100*(1-Inputs!$E$18)) -> 59016.72494 | T100: =(S100*(1-Inputs!$E$18)) -> 58721.64132 | U100: =(T100*(1-Inputs!$E$18)) -> 58428.03311 | V100: =(U100*(1-Inputs!$E$18)) -> 58135.89295 | W100: =(V100*(1-Inputs!$E$18)) -> 57845.21348 | X100: =(W100*(1-Inputs!$E$18)) -> 57555.98741 | Y100: =(X100*(1-Inputs!$E$18)) -> 57268.20748 | Z100: =(Y100*(1-Inputs!$E$18)) -> 56981.86644 | AA100: =(Z100*(1-Inputs!$E$18)) -> 56696.95711 | AB100: =(AA100*(1-Inputs!$E$18)) -> 56413.47232 | AC100: =(AB100*(1-Inputs!$E$18)) -> 56131.40496 | AD100: =(AC100*(1-Inputs!$E$18)) -> 55850.74794
B101: November | C101: =IF(Inputs!$E$22="PV Watts",Inputs!$E$4*Inputs!E54,Inputs!D36) -> 33271.67969 | D101: kWh's per mo. | F101: =($C101*(1-Inputs!$E$18)) -> 33105.32129 | G101: =(F101*(1-Inputs!$E$18)) -> 32939.79468 | H101: =(G101*(1-Inputs!$E$18)) -> 32775.09571 | I101: =(H101*(1-Inputs!$E$18)) -> 32611.22023 | J101: =(I101*(1-Inputs!$E$18)) -> 32448.16413 | K101: =(J101*(1-Inputs!$E$18)) -> 32285.92331 | L101: =(K101*(1-Inputs!$E$18)) -> 32124.49369 | M101: =(L101*(1-Inputs!$E$18)) -> 31963.87122 | N101: =(M101*(1-Inputs!$E$18)) -> 31804.05187 | O101: =(N101*(1-Inputs!$E$18)) -> 31645.03161 | P101: =(O101*(1-Inputs!$E$18)) -> 31486.80645 | Q101: =(P101*(1-Inputs!$E$18)) -> 31329.37242 | R101: =(Q101*(1-Inputs!$E$18)) -> 31172.72556 | S101: =(R101*(1-Inputs!$E$18)) -> 31016.86193 | T101: =(S101*(1-Inputs!$E$18)) -> 30861.77762 | U101: =(T101*(1-Inputs!$E$18)) -> 30707.46873 | V101: =(U101*(1-Inputs!$E$18)) -> 30553.93139 | W101: =(V101*(1-Inputs!$E$18)) -> 30401.16173 | X101: =(W101*(1-Inputs!$E$18)) -> 30249.15592 | Y101: =(X101*(1-Inputs!$E$18)) -> 30097.91014 | Z101: =(Y101*(1-Inputs!$E$18)) -> 29947.42059 | AA101: =(Z101*(1-Inputs!$E$18)) -> 29797.68349 | AB101: =(AA101*(1-Inputs!$E$18)) -> 29648.69507 | AC101: =(AB101*(1-Inputs!$E$18)) -> 29500.4516 | AD101: =(AC101*(1-Inputs!$E$18)) -> 29352.94934
B102: December | C102: =IF(Inputs!$E$22="PV Watts",Inputs!$E$4*Inputs!E55,Inputs!D37) -> 23866.55469 | D102: kWh's per mo. | F102: =($C102*(1-Inputs!$E$18)) -> 23747.22191 | G102: =(F102*(1-Inputs!$E$18)) -> 23628.4858 | H102: =(G102*(1-Inputs!$E$18)) -> 23510.34338 | I102: =(H102*(1-Inputs!$E$18)) -> 23392.79166 | J102: =(I102*(1-Inputs!$E$18)) -> 23275.8277 | K102: =(J102*(1-Inputs!$E$18)) -> 23159.44856 | L102: =(K102*(1-Inputs!$E$18)) -> 23043.65132 | M102: =(L102*(1-Inputs!$E$18)) -> 22928.43306 | N102: =(M102*(1-Inputs!$E$18)) -> 22813.7909 | O102: =(N102*(1-Inputs!$E$18)) -> 22699.72194 | P102: =(O102*(1-Inputs!$E$18)) -> 22586.22333 | Q102: =(P102*(1-Inputs!$E$18)) -> 22473.29222 | R102: =(Q102*(1-Inputs!$E$18)) -> 22360.92576 | S102: =(R102*(1-Inputs!$E$18)) -> 22249.12113 | T102: =(S102*(1-Inputs!$E$18)) -> 22137.87552 | U102: =(T102*(1-Inputs!$E$18)) -> 22027.18614 | V102: =(U102*(1-Inputs!$E$18)) -> 21917.05021 | W102: =(V102*(1-Inputs!$E$18)) -> 21807.46496 | X102: =(W102*(1-Inputs!$E$18)) -> 21698.42764 | Y102: =(X102*(1-Inputs!$E$18)) -> 21589.9355 | Z102: =(Y102*(1-Inputs!$E$18)) -> 21481.98582 | AA102: =(Z102*(1-Inputs!$E$18)) -> 21374.57589 | AB102: =(AA102*(1-Inputs!$E$18)) -> 21267.70301 | AC102: =(AB102*(1-Inputs!$E$18)) -> 21161.3645 | AD102: =(AC102*(1-Inputs!$E$18)) -> 21055.55767
B103: Annual | C103: =SUM(C91:C102) -> 1022075.926 | D103: kWh's per yr. | F103: =SUM(F91:F102) -> 1016965.546 | G103: =SUM(G91:G102) -> 1011880.718 | H103: 1006821.315 | I103: 1001787.208 | J103: 996778.2722 | K103: 991794.3809 | L103: 986835.4089 | M103: 981901.2319 | N103: 976991.7257 | O103: 972106.7671 | P103: 967246.2333 | Q103: 962410.0021 | R103: 957597.9521 | S103: 952809.9623 | T103: 948045.9125 | U103: 943305.683 | V103: 938589.1546 | W103: 933896.2088 | X103: 929226.7277 | Y103: 924580.5941 | Z103: 919957.6911 | AA103: 915357.9027 | AB103: 910781.1132 | AC103: 906227.2076 | AD103: =SUM(AD91:AD102) -> 901696.0716 | AE103: =SUM(E103:AD103) -> 23955590.99
B105: Year | E105: 0 | F105: 1 | G105: 2 | H105: 3 | I105: 4 | J105: 5 | K105: 6 | L105: 7 | M105: 8 | N105: 9 | O105: 10 | P105: 11 | Q105: 12 | R105: 13 | S105: 14 | T105: 15 | U105: 16 | V105: 17 | W105: 18 | X105: 19 | Y105: 20 | Z105: 21 | AA105: 22 | AB105: 23 | AC105: 24 | AD105: 25
B107: Anchor Rate Schedule:
B108: Month | C108: Rate ($/kWh)
B109: January | C109: =Inputs!$S$6 -> 0.035 | D109: $/kWh | F109: =C109*(1+Inputs!$L$4) -> 0.035973 | G109: =F109*(1+Inputs!$L$4) -> 0.0369730494 | H109: =G109*(1+Inputs!$L$4) -> 0.03800090017 | I109: =H109*(1+Inputs!$L$4) -> 0.0390573252 | J109: =I109*(1+Inputs!$L$4) -> 0.04014311884 | K109: =J109*(1+Inputs!$L$4) -> 0.04125909754 | L109: =K109*(1+Inputs!$L$4) -> 0.04240610045 | M109: =L109*(1+Inputs!$L$4) -> 0.04358499005 | N109: =M109*(1+Inputs!$L$4) -> 0.04479665277 | O109: =N109*(1+Inputs!$L$4) -> 0.04604199972 | P109: =O109*(1+Inputs!$L$4) -> 0.04732196731 | Q109: =P109*(1+Inputs!$L$4) -> 0.048637518 | R109: =Q109*(1+Inputs!$L$4) -> 0.049989641 | S109: =R109*(1+Inputs!$L$4) -> 0.05137935302 | T109: =S109*(1+Inputs!$L$4) -> 0.05280769903 | U109: =T109*(1+Inputs!$L$4) -> 0.05427575307 | V109: =U109*(1+Inputs!$L$4) -> 0.055784619 | W109: =V109*(1+Inputs!$L$4) -> 0.05733543141 | X109: =W109*(1+Inputs!$L$4) -> 0.0589293564 | Y109: =X109*(1+Inputs!$L$4) -> 0.06056759251 | Z109: =Y109*(1+Inputs!$L$4) -> 0.06225137158 | AA109: =Z109*(1+Inputs!$L$4) -> 0.06398195971 | AB109: =AA109*(1+Inputs!$L$4) -> 0.06576065819 | AC109: =AB109*(1+Inputs!$L$4) -> 0.06758880449 | AD109: =AC109*(1+Inputs!$L$4) -> 0.06946777326
B110: February | C110: =Inputs!$S$6 -> 0.035 | D110: $/kWh | F110: =C110*(1+Inputs!$L$4) -> 0.035973 | G110: =F110*(1+Inputs!$L$4) -> 0.0369730494 | H110: =G110*(1+Inputs!$L$4) -> 0.03800090017 | I110: =H110*(1+Inputs!$L$4) -> 0.0390573252 | J110: =I110*(1+Inputs!$L$4) -> 0.04014311884 | K110: =J110*(1+Inputs!$L$4) -> 0.04125909754 | L110: =K110*(1+Inputs!$L$4) -> 0.04240610045 | M110: =L110*(1+Inputs!$L$4) -> 0.04358499005 | N110: =M110*(1+Inputs!$L$4) -> 0.04479665277 | O110: =N110*(1+Inputs!$L$4) -> 0.04604199972 | P110: =O110*(1+Inputs!$L$4) -> 0.04732196731 | Q110: =P110*(1+Inputs!$L$4) -> 0.048637518 | R110: =Q110*(1+Inputs!$L$4) -> 0.049989641 | S110: =R110*(1+Inputs!$L$4) -> 0.05137935302 | T110: =S110*(1+Inputs!$L$4) -> 0.05280769903 | U110: =T110*(1+Inputs!$L$4) -> 0.05427575307 | V110: =U110*(1+Inputs!$L$4) -> 0.055784619 | W110: =V110*(1+Inputs!$L$4) -> 0.05733543141 | X110: =W110*(1+Inputs!$L$4) -> 0.0589293564 | Y110: =X110*(1+Inputs!$L$4) -> 0.06056759251 | Z110: =Y110*(1+Inputs!$L$4) -> 0.06225137158 | AA110: =Z110*(1+Inputs!$L$4) -> 0.06398195971 | AB110: =AA110*(1+Inputs!$L$4) -> 0.06576065819 | AC110: =AB110*(1+Inputs!$L$4) -> 0.06758880449 | AD110: =AC110*(1+Inputs!$L$4) -> 0.06946777326
B111: March | C111: =Inputs!$S$6 -> 0.035 | D111: $/kWh | F111: =C111*(1+Inputs!$L$4) -> 0.035973 | G111: =F111*(1+Inputs!$L$4) -> 0.0369730494 | H111: =G111*(1+Inputs!$L$4) -> 0.03800090017 | I111: =H111*(1+Inputs!$L$4) -> 0.0390573252 | J111: =I111*(1+Inputs!$L$4) -> 0.04014311884 | K111: =J111*(1+Inputs!$L$4) -> 0.04125909754 | L111: =K111*(1+Inputs!$L$4) -> 0.04240610045 | M111: =L111*(1+Inputs!$L$4) -> 0.04358499005 | N111: =M111*(1+Inputs!$L$4) -> 0.04479665277 | O111: =N111*(1+Inputs!$L$4) -> 0.04604199972 | P111: =O111*(1+Inputs!$L$4) -> 0.04732196731 | Q111: =P111*(1+Inputs!$L$4) -> 0.048637518 | R111: =Q111*(1+Inputs!$L$4) -> 0.049989641 | S111: =R111*(1+Inputs!$L$4) -> 0.05137935302 | T111: =S111*(1+Inputs!$L$4) -> 0.05280769903 | U111: =T111*(1+Inputs!$L$4) -> 0.05427575307 | V111: =U111*(1+Inputs!$L$4) -> 0.055784619 | W111: =V111*(1+Inputs!$L$4) -> 0.05733543141 | X111: =W111*(1+Inputs!$L$4) -> 0.0589293564 | Y111: =X111*(1+Inputs!$L$4) -> 0.06056759251 | Z111: =Y111*(1+Inputs!$L$4) -> 0.06225137158 | AA111: =Z111*(1+Inputs!$L$4) -> 0.06398195971 | AB111: =AA111*(1+Inputs!$L$4) -> 0.06576065819 | AC111: =AB111*(1+Inputs!$L$4) -> 0.06758880449 | AD111: =AC111*(1+Inputs!$L$4) -> 0.06946777326
B112: April | C112: =Inputs!$S$6 -> 0.035 | D112: $/kWh | F112: =C112*(1+Inputs!$L$4) -> 0.035973 | G112: =F112*(1+Inputs!$L$4) -> 0.0369730494 | H112: =G112*(1+Inputs!$L$4) -> 0.03800090017 | I112: =H112*(1+Inputs!$L$4) -> 0.0390573252 | J112: =I112*(1+Inputs!$L$4) -> 0.04014311884 | K112: =J112*(1+Inputs!$L$4) -> 0.04125909754 | L112: =K112*(1+Inputs!$L$4) -> 0.04240610045 | M112: =L112*(1+Inputs!$L$4) -> 0.04358499005 | N112: =M112*(1+Inputs!$L$4) -> 0.04479665277 | O112: =N112*(1+Inputs!$L$4) -> 0.04604199972 | P112: =O112*(1+Inputs!$L$4) -> 0.04732196731 | Q112: =P112*(1+Inputs!$L$4) -> 0.048637518 | R112: =Q112*(1+Inputs!$L$4) -> 0.049989641 | S112: =R112*(1+Inputs!$L$4) -> 0.05137935302 | T112: =S112*(1+Inputs!$L$4) -> 0.05280769903 | U112: =T112*(1+Inputs!$L$4) -> 0.05427575307 | V112: =U112*(1+Inputs!$L$4) -> 0.055784619 | W112: =V112*(1+Inputs!$L$4) -> 0.05733543141 | X112: =W112*(1+Inputs!$L$4) -> 0.0589293564 | Y112: =X112*(1+Inputs!$L$4) -> 0.06056759251 | Z112: =Y112*(1+Inputs!$L$4) -> 0.06225137158 | AA112: =Z112*(1+Inputs!$L$4) -> 0.06398195971 | AB112: =AA112*(1+Inputs!$L$4) -> 0.06576065819 | AC112: =AB112*(1+Inputs!$L$4) -> 0.06758880449 | AD112: =AC112*(1+Inputs!$L$4) -> 0.06946777326
B113: May | C113: =Inputs!$S$6 -> 0.035 | D113: $/kWh | F113: =C113*(1+Inputs!$L$4) -> 0.035973 | G113: =F113*(1+Inputs!$L$4) -> 0.0369730494 | H113: =G113*(1+Inputs!$L$4) -> 0.03800090017 | I113: =H113*(1+Inputs!$L$4) -> 0.0390573252 | J113: =I113*(1+Inputs!$L$4) -> 0.04014311884 | K113: =J113*(1+Inputs!$L$4) -> 0.04125909754 | L113: =K113*(1+Inputs!$L$4) -> 0.04240610045 | M113: =L113*(1+Inputs!$L$4) -> 0.04358499005 | N113: =M113*(1+Inputs!$L$4) -> 0.04479665277 | O113: =N113*(1+Inputs!$L$4) -> 0.04604199972 | P113: =O113*(1+Inputs!$L$4) -> 0.04732196731 | Q113: =P113*(1+Inputs!$L$4) -> 0.048637518 | R113: =Q113*(1+Inputs!$L$4) -> 0.049989641 | S113: =R113*(1+Inputs!$L$4) -> 0.05137935302 | T113: =S113*(1+Inputs!$L$4) -> 0.05280769903 | U113: =T113*(1+Inputs!$L$4) -> 0.05427575307 | V113: =U113*(1+Inputs!$L$4) -> 0.055784619 | W113: =V113*(1+Inputs!$L$4) -> 0.05733543141 | X113: =W113*(1+Inputs!$L$4) -> 0.0589293564 | Y113: =X113*(1+Inputs!$L$4) -> 0.06056759251 | Z113: =Y113*(1+Inputs!$L$4) -> 0.06225137158 | AA113: =Z113*(1+Inputs!$L$4) -> 0.06398195971 | AB113: =AA113*(1+Inputs!$L$4) -> 0.06576065819 | AC113: =AB113*(1+Inputs!$L$4) -> 0.06758880449 | AD113: =AC113*(1+Inputs!$L$4) -> 0.06946777326
B114: June | C114: =Inputs!$S$6 -> 0.035 | D114: $/kWh | F114: =C114*(1+Inputs!$L$4) -> 0.035973 | G114: =F114*(1+Inputs!$L$4) -> 0.0369730494 | H114: =G114*(1+Inputs!$L$4) -> 0.03800090017 | I114: =H114*(1+Inputs!$L$4) -> 0.0390573252 | J114: =I114*(1+Inputs!$L$4) -> 0.04014311884 | K114: =J114*(1+Inputs!$L$4) -> 0.04125909754 | L114: =K114*(1+Inputs!$L$4) -> 0.04240610045 | M114: =L114*(1+Inputs!$L$4) -> 0.04358499005 | N114: =M114*(1+Inputs!$L$4) -> 0.04479665277 | O114: =N114*(1+Inputs!$L$4) -> 0.04604199972 | P114: =O114*(1+Inputs!$L$4) -> 0.04732196731 | Q114: =P114*(1+Inputs!$L$4) -> 0.048637518 | R114: =Q114*(1+Inputs!$L$4) -> 0.049989641 | S114: =R114*(1+Inputs!$L$4) -> 0.05137935302 | T114: =S114*(1+Inputs!$L$4) -> 0.05280769903 | U114: =T114*(1+Inputs!$L$4) -> 0.05427575307 | V114: =U114*(1+Inputs!$L$4) -> 0.055784619 | W114: =V114*(1+Inputs!$L$4) -> 0.05733543141 | X114: =W114*(1+Inputs!$L$4) -> 0.0589293564 | Y114: =X114*(1+Inputs!$L$4) -> 0.06056759251 | Z114: =Y114*(1+Inputs!$L$4) -> 0.06225137158 | AA114: =Z114*(1+Inputs!$L$4) -> 0.06398195971 | AB114: =AA114*(1+Inputs!$L$4) -> 0.06576065819 | AC114: =AB114*(1+Inputs!$L$4) -> 0.06758880449 | AD114: =AC114*(1+Inputs!$L$4) -> 0.06946777326
B115: July | C115: =Inputs!$S$6 -> 0.035 | D115: $/kWh | F115: =C115*(1+Inputs!$L$4) -> 0.035973 | G115: =F115*(1+Inputs!$L$4) -> 0.0369730494 | H115: =G115*(1+Inputs!$L$4) -> 0.03800090017 | I115: =H115*(1+Inputs!$L$4) -> 0.0390573252 | J115: =I115*(1+Inputs!$L$4) -> 0.04014311884 | K115: =J115*(1+Inputs!$L$4) -> 0.04125909754 | L115: =K115*(1+Inputs!$L$4) -> 0.04240610045 | M115: =L115*(1+Inputs!$L$4) -> 0.04358499005 | N115: =M115*(1+Inputs!$L$4) -> 0.04479665277 | O115: =N115*(1+Inputs!$L$4) -> 0.04604199972 | P115: =O115*(1+Inputs!$L$4) -> 0.04732196731 | Q115: =P115*(1+Inputs!$L$4) -> 0.048637518 | R115: =Q115*(1+Inputs!$L$4) -> 0.049989641 | S115: =R115*(1+Inputs!$L$4) -> 0.05137935302 | T115: =S115*(1+Inputs!$L$4) -> 0.05280769903 | U115: =T115*(1+Inputs!$L$4) -> 0.05427575307 | V115: =U115*(1+Inputs!$L$4) -> 0.055784619 | W115: =V115*(1+Inputs!$L$4) -> 0.05733543141 | X115: =W115*(1+Inputs!$L$4) -> 0.0589293564 | Y115: =X115*(1+Inputs!$L$4) -> 0.06056759251 | Z115: =Y115*(1+Inputs!$L$4) -> 0.06225137158 | AA115: =Z115*(1+Inputs!$L$4) -> 0.06398195971 | AB115: =AA115*(1+Inputs!$L$4) -> 0.06576065819 | AC115: =AB115*(1+Inputs!$L$4) -> 0.06758880449 | AD115: =AC115*(1+Inputs!$L$4) -> 0.06946777326
B116: August | C116: =Inputs!$S$6 -> 0.035 | D116: $/kWh | F116: =C116*(1+Inputs!$L$4) -> 0.035973 | G116: =F116*(1+Inputs!$L$4) -> 0.0369730494 | H116: =G116*(1+Inputs!$L$4) -> 0.03800090017 | I116: =H116*(1+Inputs!$L$4) -> 0.0390573252 | J116: =I116*(1+Inputs!$L$4) -> 0.04014311884 | K116: =J116*(1+Inputs!$L$4) -> 0.04125909754 | L116: =K116*(1+Inputs!$L$4) -> 0.04240610045 | M116: =L116*(1+Inputs!$L$4) -> 0.04358499005 | N116: =M116*(1+Inputs!$L$4) -> 0.04479665277 | O116: =N116*(1+Inputs!$L$4) -> 0.04604199972 | P116: =O116*(1+Inputs!$L$4) -> 0.04732196731 | Q116: =P116*(1+Inputs!$L$4) -> 0.048637518 | R116: =Q116*(1+Inputs!$L$4) -> 0.049989641 | S116: =R116*(1+Inputs!$L$4) -> 0.05137935302 | T116: =S116*(1+Inputs!$L$4) -> 0.05280769903 | U116: =T116*(1+Inputs!$L$4) -> 0.05427575307 | V116: =U116*(1+Inputs!$L$4) -> 0.055784619 | W116: =V116*(1+Inputs!$L$4) -> 0.05733543141 | X116: =W116*(1+Inputs!$L$4) -> 0.0589293564 | Y116: =X116*(1+Inputs!$L$4) -> 0.06056759251 | Z116: =Y116*(1+Inputs!$L$4) -> 0.06225137158 | AA116: =Z116*(1+Inputs!$L$4) -> 0.06398195971 | AB116: =AA116*(1+Inputs!$L$4) -> 0.06576065819 | AC116: =AB116*(1+Inputs!$L$4) -> 0.06758880449 | AD116: =AC116*(1+Inputs!$L$4) -> 0.06946777326
B117: September | C117: =Inputs!$S$6 -> 0.035 | D117: $/kWh | F117: =C117*(1+Inputs!$L$4) -> 0.035973 | G117: =F117*(1+Inputs!$L$4) -> 0.0369730494 | H117: =G117*(1+Inputs!$L$4) -> 0.03800090017 | I117: =H117*(1+Inputs!$L$4) -> 0.0390573252 | J117: =I117*(1+Inputs!$L$4) -> 0.04014311884 | K117: =J117*(1+Inputs!$L$4) -> 0.04125909754 | L117: =K117*(1+Inputs!$L$4) -> 0.04240610045 | M117: =L117*(1+Inputs!$L$4) -> 0.04358499005 | N117: =M117*(1+Inputs!$L$4) -> 0.04479665277 | O117: =N117*(1+Inputs!$L$4) -> 0.04604199972 | P117: =O117*(1+Inputs!$L$4) -> 0.04732196731 | Q117: =P117*(1+Inputs!$L$4) -> 0.048637518 | R117: =Q117*(1+Inputs!$L$4) -> 0.049989641 | S117: =R117*(1+Inputs!$L$4) -> 0.05137935302 | T117: =S117*(1+Inputs!$L$4) -> 0.05280769903 | U117: =T117*(1+Inputs!$L$4) -> 0.05427575307 | V117: =U117*(1+Inputs!$L$4) -> 0.055784619 | W117: =V117*(1+Inputs!$L$4) -> 0.05733543141 | X117: =W117*(1+Inputs!$L$4) -> 0.0589293564 | Y117: =X117*(1+Inputs!$L$4) -> 0.06056759251 | Z117: =Y117*(1+Inputs!$L$4) -> 0.06225137158 | AA117: =Z117*(1+Inputs!$L$4) -> 0.06398195971 | AB117: =AA117*(1+Inputs!$L$4) -> 0.06576065819 | AC117: =AB117*(1+Inputs!$L$4) -> 0.06758880449 | AD117: =AC117*(1+Inputs!$L$4) -> 0.06946777326
B118: October | C118: =Inputs!$S$6 -> 0.035 | D118: $/kWh | F118: =C118*(1+Inputs!$L$4) -> 0.035973 | G118: =F118*(1+Inputs!$L$4) -> 0.0369730494 | H118: =G118*(1+Inputs!$L$4) -> 0.03800090017 | I118: =H118*(1+Inputs!$L$4) -> 0.0390573252 | J118: =I118*(1+Inputs!$L$4) -> 0.04014311884 | K118: =J118*(1+Inputs!$L$4) -> 0.04125909754 | L118: =K118*(1+Inputs!$L$4) -> 0.04240610045 | M118: =L118*(1+Inputs!$L$4) -> 0.04358499005 | N118: =M118*(1+Inputs!$L$4) -> 0.04479665277 | O118: =N118*(1+Inputs!$L$4) -> 0.04604199972 | P118: =O118*(1+Inputs!$L$4) -> 0.04732196731 | Q118: =P118*(1+Inputs!$L$4) -> 0.048637518 | R118: =Q118*(1+Inputs!$L$4) -> 0.049989641 | S118: =R118*(1+Inputs!$L$4) -> 0.05137935302 | T118: =S118*(1+Inputs!$L$4) -> 0.05280769903 | U118: =T118*(1+Inputs!$L$4) -> 0.05427575307 | V118: =U118*(1+Inputs!$L$4) -> 0.055784619 | W118: =V118*(1+Inputs!$L$4) -> 0.05733543141 | X118: =W118*(1+Inputs!$L$4) -> 0.0589293564 | Y118: =X118*(1+Inputs!$L$4) -> 0.06056759251 | Z118: =Y118*(1+Inputs!$L$4) -> 0.06225137158 | AA118: =Z118*(1+Inputs!$L$4) -> 0.06398195971 | AB118: =AA118*(1+Inputs!$L$4) -> 0.06576065819 | AC118: =AB118*(1+Inputs!$L$4) -> 0.06758880449 | AD118: =AC118*(1+Inputs!$L$4) -> 0.06946777326
B119: November | C119: =Inputs!$S$6 -> 0.035 | D119: $/kWh | F119: =C119*(1+Inputs!$L$4) -> 0.035973 | G119: =F119*(1+Inputs!$L$4) -> 0.0369730494 | H119: =G119*(1+Inputs!$L$4) -> 0.03800090017 | I119: =H119*(1+Inputs!$L$4) -> 0.0390573252 | J119: =I119*(1+Inputs!$L$4) -> 0.04014311884 | K119: =J119*(1+Inputs!$L$4) -> 0.04125909754 | L119: =K119*(1+Inputs!$L$4) -> 0.04240610045 | M119: =L119*(1+Inputs!$L$4) -> 0.04358499005 | N119: =M119*(1+Inputs!$L$4) -> 0.04479665277 | O119: =N119*(1+Inputs!$L$4) -> 0.04604199972 | P119: =O119*(1+Inputs!$L$4) -> 0.04732196731 | Q119: =P119*(1+Inputs!$L$4) -> 0.048637518 | R119: =Q119*(1+Inputs!$L$4) -> 0.049989641 | S119: =R119*(1+Inputs!$L$4) -> 0.05137935302 | T119: =S119*(1+Inputs!$L$4) -> 0.05280769903 | U119: =T119*(1+Inputs!$L$4) -> 0.05427575307 | V119: =U119*(1+Inputs!$L$4) -> 0.055784619 | W119: =V119*(1+Inputs!$L$4) -> 0.05733543141 | X119: =W119*(1+Inputs!$L$4) -> 0.0589293564 | Y119: =X119*(1+Inputs!$L$4) -> 0.06056759251 | Z119: =Y119*(1+Inputs!$L$4) -> 0.06225137158 | AA119: =Z119*(1+Inputs!$L$4) -> 0.06398195971 | AB119: =AA119*(1+Inputs!$L$4) -> 0.06576065819 | AC119: =AB119*(1+Inputs!$L$4) -> 0.06758880449 | AD119: =AC119*(1+Inputs!$L$4) -> 0.06946777326
B120: December | C120: =Inputs!$S$6 -> 0.035 | D120: $/kWh | F120: =C120*(1+Inputs!$L$4) -> 0.035973 | G120: =F120*(1+Inputs!$L$4) -> 0.0369730494 | H120: =G120*(1+Inputs!$L$4) -> 0.03800090017 | I120: =H120*(1+Inputs!$L$4) -> 0.0390573252 | J120: =I120*(1+Inputs!$L$4) -> 0.04014311884 | K120: =J120*(1+Inputs!$L$4) -> 0.04125909754 | L120: =K120*(1+Inputs!$L$4) -> 0.04240610045 | M120: =L120*(1+Inputs!$L$4) -> 0.04358499005 | N120: =M120*(1+Inputs!$L$4) -> 0.04479665277 | O120: =N120*(1+Inputs!$L$4) -> 0.04604199972 | P120: =O120*(1+Inputs!$L$4) -> 0.04732196731 | Q120: =P120*(1+Inputs!$L$4) -> 0.048637518 | R120: =Q120*(1+Inputs!$L$4) -> 0.049989641 | S120: =R120*(1+Inputs!$L$4) -> 0.05137935302 | T120: =S120*(1+Inputs!$L$4) -> 0.05280769903 | U120: =T120*(1+Inputs!$L$4) -> 0.05427575307 | V120: =U120*(1+Inputs!$L$4) -> 0.055784619 | W120: =V120*(1+Inputs!$L$4) -> 0.05733543141 | X120: =W120*(1+Inputs!$L$4) -> 0.0589293564 | Y120: =X120*(1+Inputs!$L$4) -> 0.06056759251 | Z120: =Y120*(1+Inputs!$L$4) -> 0.06225137158 | AA120: =Z120*(1+Inputs!$L$4) -> 0.06398195971 | AB120: =AA120*(1+Inputs!$L$4) -> 0.06576065819 | AC120: =AB120*(1+Inputs!$L$4) -> 0.06758880449 | AD120: =AC120*(1+Inputs!$L$4) -> 0.06946777326
B122: Anchor Generation Estimate
B123: Month | C123: Total Generation (kWh) | E123: =Inputs!S4 -> 0.4 | F123: Anchor Subscription
B124: January | C124: =C91*Inputs!$S$4 -> 13293.26406 | D124: kWh's per mo. | F124: =C124 -> 13293.26406 | G124: =F124-(F124*Inputs!$E$18) -> 13226.79774 | H124: =G124-(G124*Inputs!$E$18) -> 13160.66375 | I124: =H124-(H124*Inputs!$E$18) -> 13094.86043 | J124: =I124-(I124*Inputs!$E$18) -> 13029.38613 | K124: =J124-(J124*Inputs!$E$18) -> 12964.2392 | L124: =K124-(K124*Inputs!$E$18) -> 12899.41801 | M124: =L124-(L124*Inputs!$E$18) -> 12834.92092 | N124: =M124-(M124*Inputs!$E$18) -> 12770.74631 | O124: =N124-(N124*Inputs!$E$18) -> 12706.89258 | P124: =O124-(O124*Inputs!$E$18) -> 12643.35812 | Q124: =P124-(P124*Inputs!$E$18) -> 12580.14133 | R124: =Q124-(Q124*Inputs!$E$18) -> 12517.24062 | S124: =R124-(R124*Inputs!$E$18) -> 12454.65442 | T124: =S124-(S124*Inputs!$E$18) -> 12392.38114 | U124: =T124-(T124*Inputs!$E$18) -> 12330.41924 | V124: =U124-(U124*Inputs!$E$18) -> 12268.76714 | W124: =V124-(V124*Inputs!$E$18) -> 12207.42331 | X124: =W124-(W124*Inputs!$E$18) -> 12146.38619 | Y124: =X124-(X124*Inputs!$E$18) -> 12085.65426 | Z124: =Y124-(Y124*Inputs!$E$18) -> 12025.22599 | AA124: =Z124-(Z124*Inputs!$E$18) -> 11965.09986 | AB124: =AA124-(AA124*Inputs!$E$18) -> 11905.27436 | AC124: =AB124-(AB124*Inputs!$E$18) -> 11845.74799 | AD124: =AC124-(AC124*Inputs!$E$18) -> 11786.51925
B125: February | C125: =C92*Inputs!$S$4 -> 17636.95156 | D125: kWh's per mo. | F125: =C125 -> 17636.95156 | G125: =F125-(F125*Inputs!$E$18) -> 17548.7668 | H125: =G125-(G125*Inputs!$E$18) -> 17461.02297 | I125: =H125-(H125*Inputs!$E$18) -> 17373.71786 | J125: =I125-(I125*Inputs!$E$18) -> 17286.84927 | K125: =J125-(J125*Inputs!$E$18) -> 17200.41502 | L125: =K125-(K125*Inputs!$E$18) -> 17114.41295 | M125: =L125-(L125*Inputs!$E$18) -> 17028.84088 | N125: =M125-(M125*Inputs!$E$18) -> 16943.69668 | O125: =N125-(N125*Inputs!$E$18) -> 16858.97819 | P125: =O125-(O125*Inputs!$E$18) -> 16774.6833 | Q125: =P125-(P125*Inputs!$E$18) -> 16690.80989 | R125: =Q125-(Q125*Inputs!$E$18) -> 16607.35584 | S125: =R125-(R125*Inputs!$E$18) -> 16524.31906 | T125: =S125-(S125*Inputs!$E$18) -> 16441.69746 | U125: =T125-(T125*Inputs!$E$18) -> 16359.48897 | V125: =U125-(U125*Inputs!$E$18) -> 16277.69153 | W125: =V125-(V125*Inputs!$E$18) -> 16196.30307 | X125: =W125-(W125*Inputs!$E$18) -> 16115.32156 | Y125: =X125-(X125*Inputs!$E$18) -> 16034.74495 | Z125: =Y125-(Y125*Inputs!$E$18) -> 15954.57122 | AA125: =Z125-(Z125*Inputs!$E$18) -> 15874.79837 | AB125: =AA125-(AA125*Inputs!$E$18) -> 15795.42438 | AC125: =AB125-(AB125*Inputs!$E$18) -> 15716.44725 | AD125: =AC125-(AC125*Inputs!$E$18) -> 15637.86502
B126: March | C126: =C93*Inputs!$S$4 -> 31573.425 | D126: kWh's per mo. | F126: 31573.425 | G126: =F126-(F126*Inputs!$E$18) -> 31415.55788 | H126: =G126-(G126*Inputs!$E$18) -> 31258.48009 | I126: =H126-(H126*Inputs!$E$18) -> 31102.18769 | J126: =I126-(I126*Inputs!$E$18) -> 30946.67675 | K126: =J126-(J126*Inputs!$E$18) -> 30791.94336 | L126: =K126-(K126*Inputs!$E$18) -> 30637.98365 | M126: =L126-(L126*Inputs!$E$18) -> 30484.79373 | N126: =M126-(M126*Inputs!$E$18) -> 30332.36976 | O126: =N126-(N126*Inputs!$E$18) -> 30180.70791 | P126: =O126-(O126*Inputs!$E$18) -> 30029.80437 | Q126: =P126-(P126*Inputs!$E$18) -> 29879.65535 | R126: =Q126-(Q126*Inputs!$E$18) -> 29730.25707 | S126: =R126-(R126*Inputs!$E$18) -> 29581.60579 | T126: =S126-(S126*Inputs!$E$18) -> 29433.69776 | U126: =T126-(T126*Inputs!$E$18) -> 29286.52927 | V126: =U126-(U126*Inputs!$E$18) -> 29140.09662 | W126: =V126-(V126*Inputs!$E$18) -> 28994.39614 | X126: =W126-(W126*Inputs!$E$18) -> 28849.42416 | Y126: =X126-(X126*Inputs!$E$18) -> 28705.17704 | Z126: =Y126-(Y126*Inputs!$E$18) -> 28561.65115 | AA126: =Z126-(Z126*Inputs!$E$18) -> 28418.8429 | AB126: =AA126-(AA126*Inputs!$E$18) -> 28276.74868 | AC126: =AB126-(AB126*Inputs!$E$18) -> 28135.36494 | AD126: =AC126-(AC126*Inputs!$E$18) -> 27994.68811
B127: April | C127: =C94*Inputs!$S$4 -> 40131.89062 | D127: kWh's per mo. | F127: 40131.89062 | G127: =F127-(F127*Inputs!$E$18) -> 39931.23117 | H127: =G127-(G127*Inputs!$E$18) -> 39731.57502 | I127: =H127-(H127*Inputs!$E$18) -> 39532.91714 | J127: =I127-(I127*Inputs!$E$18) -> 39335.25256 | K127: =J127-(J127*Inputs!$E$18) -> 39138.57629 | L127: =K127-(K127*Inputs!$E$18) -> 38942.88341 | M127: =L127-(L127*Inputs!$E$18) -> 38748.16899 | N127: =M127-(M127*Inputs!$E$18) -> 38554.42815 | O127: =N127-(N127*Inputs!$E$18) -> 38361.65601 | P127: =O127-(O127*Inputs!$E$18) -> 38169.84773 | Q127: =P127-(P127*Inputs!$E$18) -> 37978.99849 | R127: =Q127-(Q127*Inputs!$E$18) -> 37789.1035 | S127: =R127-(R127*Inputs!$E$18) -> 37600.15798 | T127: =S127-(S127*Inputs!$E$18) -> 37412.15719 | U127: =T127-(T127*Inputs!$E$18) -> 37225.0964 | V127: =U127-(U127*Inputs!$E$18) -> 37038.97092 | W127: =V127-(V127*Inputs!$E$18) -> 36853.77607 | X127: =W127-(W127*Inputs!$E$18) -> 36669.50719 | Y127: =X127-(X127*Inputs!$E$18) -> 36486.15965 | Z127: =Y127-(Y127*Inputs!$E$18) -> 36303.72885 | AA127: =Z127-(Z127*Inputs!$E$18) -> 36122.21021 | AB127: =AA127-(AA127*Inputs!$E$18) -> 35941.59916 | AC127: =AB127-(AB127*Inputs!$E$18) -> 35761.89116 | AD127: =AC127-(AC127*Inputs!$E$18) -> 35583.08171
B128: May | C128: =C95*Inputs!$S$4 -> 54838.575 | D128: kWh's per mo. | F128: 54838.575 | G128: =F128-(F128*Inputs!$E$18) -> 54564.38213 | H128: =G128-(G128*Inputs!$E$18) -> 54291.56021 | I128: =H128-(H128*Inputs!$E$18) -> 54020.10241 | J128: =I128-(I128*Inputs!$E$18) -> 53750.0019 | K128: =J128-(J128*Inputs!$E$18) -> 53481.25189 | L128: =K128-(K128*Inputs!$E$18) -> 53213.84563 | M128: =L128-(L128*Inputs!$E$18) -> 52947.7764 | N128: =M128-(M128*Inputs!$E$18) -> 52683.03752 | O128: =N128-(N128*Inputs!$E$18) -> 52419.62233 | P128: =O128-(O128*Inputs!$E$18) -> 52157.52422 | Q128: =P128-(P128*Inputs!$E$18) -> 51896.7366 | R128: =Q128-(Q128*Inputs!$E$18) -> 51637.25292 | S128: =R128-(R128*Inputs!$E$18) -> 51379.06665 | T128: =S128-(S128*Inputs!$E$18) -> 51122.17132 | U128: =T128-(T128*Inputs!$E$18) -> 50866.56046 | V128: =U128-(U128*Inputs!$E$18) -> 50612.22766 | W128: =V128-(V128*Inputs!$E$18) -> 50359.16652 | X128: =W128-(W128*Inputs!$E$18) -> 50107.37069 | Y128: =X128-(X128*Inputs!$E$18) -> 49856.83384 | Z128: =Y128-(Y128*Inputs!$E$18) -> 49607.54967 | AA128: =Z128-(Z128*Inputs!$E$18) -> 49359.51192 | AB128: =AA128-(AA128*Inputs!$E$18) -> 49112.71436 | AC128: =AB128-(AB128*Inputs!$E$18) -> 48867.15079 | AD128: =AC128-(AC128*Inputs!$E$18) -> 48622.81503
B129: June | C129: =C96*Inputs!$S$4 -> 55549.425 | D129: kWh's per mo. | F129: 55549.425 | G129: =F129-(F129*Inputs!$E$18) -> 55271.67788 | H129: =G129-(G129*Inputs!$E$18) -> 54995.31949 | I129: =H129-(H129*Inputs!$E$18) -> 54720.34289 | J129: =I129-(I129*Inputs!$E$18) -> 54446.74117 | K129: =J129-(J129*Inputs!$E$18) -> 54174.50747 | L129: =K129-(K129*Inputs!$E$18) -> 53903.63493 | M129: =L129-(L129*Inputs!$E$18) -> 53634.11676 | N129: =M129-(M129*Inputs!$E$18) -> 53365.94617 | O129: =N129-(N129*Inputs!$E$18) -> 53099.11644 | P129: =O129-(O129*Inputs!$E$18) -> 52833.62086 | Q129: =P129-(P129*Inputs!$E$18) -> 52569.45275 | R129: =Q129-(Q129*Inputs!$E$18) -> 52306.60549 | S129: =R129-(R129*Inputs!$E$18) -> 52045.07246 | T129: =S129-(S129*Inputs!$E$18) -> 51784.8471 | U129: =T129-(T129*Inputs!$E$18) -> 51525.92287 | V129: =U129-(U129*Inputs!$E$18) -> 51268.29325 | W129: =V129-(V129*Inputs!$E$18) -> 51011.95179 | X129: =W129-(W129*Inputs!$E$18) -> 50756.89203 | Y129: =X129-(X129*Inputs!$E$18) -> 50503.10757 | Z129: =Y129-(Y129*Inputs!$E$18) -> 50250.59203 | AA129: =Z129-(Z129*Inputs!$E$18) -> 49999.33907 | AB129: =AA129-(AA129*Inputs!$E$18) -> 49749.34237 | AC129: =AB129-(AB129*Inputs!$E$18) -> 49500.59566 | AD129: =AC129-(AC129*Inputs!$E$18) -> 49253.09268
B130: July | C130: =C97*Inputs!$S$4 -> 61208 | D130: kWh's per mo. | F130: 61208 | G130: =F130-(F130*Inputs!$E$18) -> 60901.96 | H130: =G130-(G130*Inputs!$E$18) -> 60597.4502 | I130: =H130-(H130*Inputs!$E$18) -> 60294.46295 | J130: =I130-(I130*Inputs!$E$18) -> 59992.99063 | K130: =J130-(J130*Inputs!$E$18) -> 59693.02568 | L130: =K130-(K130*Inputs!$E$18) -> 59394.56055 | M130: =L130-(L130*Inputs!$E$18) -> 59097.58775 | N130: =M130-(M130*Inputs!$E$18) -> 58802.09981 | O130: =N130-(N130*Inputs!$E$18) -> 58508.08931 | P130: =O130-(O130*Inputs!$E$18) -> 58215.54887 | Q130: =P130-(P130*Inputs!$E$18) -> 57924.47112 | R130: =Q130-(Q130*Inputs!$E$18) -> 57634.84877 | S130: =R130-(R130*Inputs!$E$18) -> 57346.67452 | T130: =S130-(S130*Inputs!$E$18) -> 57059.94115 | U130: =T130-(T130*Inputs!$E$18) -> 56774.64144 | V130: =U130-(U130*Inputs!$E$18) -> 56490.76824 | W130: =V130-(V130*Inputs!$E$18) -> 56208.3144 | X130: =W130-(W130*Inputs!$E$18) -> 55927.27282 | Y130: =X130-(X130*Inputs!$E$18) -> 55647.63646 | Z130: =Y130-(Y130*Inputs!$E$18) -> 55369.39828 | AA130: =Z130-(Z130*Inputs!$E$18) -> 55092.55129 | AB130: =AA130-(AA130*Inputs!$E$18) -> 54817.08853 | AC130: =AB130-(AB130*Inputs!$E$18) -> 54543.00309 | AD130: =AC130-(AC130*Inputs!$E$18) -> 54270.28807
B131: August | C131: =C98*Inputs!$S$4 -> 49633.03125 | D131: kWh's per mo. | F131: 49633.03125 | G131: =F131-(F131*Inputs!$E$18) -> 49384.86609 | H131: =G131-(G131*Inputs!$E$18) -> 49137.94176 | I131: =H131-(H131*Inputs!$E$18) -> 48892.25205 | J131: =I131-(I131*Inputs!$E$18) -> 48647.79079 | K131: =J131-(J131*Inputs!$E$18) -> 48404.55184 | L131: =K131-(K131*Inputs!$E$18) -> 48162.52908 | M131: =L131-(L131*Inputs!$E$18) -> 47921.71644 | N131: =M131-(M131*Inputs!$E$18) -> 47682.10785 | O131: =N131-(N131*Inputs!$E$18) -> 47443.69731 | P131: =O131-(O131*Inputs!$E$18) -> 47206.47883 | Q131: =P131-(P131*Inputs!$E$18) -> 46970.44643 | R131: =Q131-(Q131*Inputs!$E$18) -> 46735.5942 | S131: =R131-(R131*Inputs!$E$18) -> 46501.91623 | T131: =S131-(S131*Inputs!$E$18) -> 46269.40665 | U131: =T131-(T131*Inputs!$E$18) -> 46038.05962 | V131: =U131-(U131*Inputs!$E$18) -> 45807.86932 | W131: =V131-(V131*Inputs!$E$18) -> 45578.82997 | X131: =W131-(W131*Inputs!$E$18) -> 45350.93582 | Y131: =X131-(X131*Inputs!$E$18) -> 45124.18114 | Z131: =Y131-(Y131*Inputs!$E$18) -> 44898.56024 | AA131: =Z131-(Z131*Inputs!$E$18) -> 44674.06744 | AB131: =AA131-(AA131*Inputs!$E$18) -> 44450.6971 | AC131: =AB131-(AB131*Inputs!$E$18) -> 44228.44361 | AD131: =AC131-(AC131*Inputs!$E$18) -> 44007.30139
B132: September | C132: =C99*Inputs!$S$4 -> 36787.7 | D132: kWh's per mo. | F132: 36787.7 | G132: =F132-(F132*Inputs!$E$18) -> 36603.7615 | H132: =G132-(G132*Inputs!$E$18) -> 36420.74269 | I132: =H132-(H132*Inputs!$E$18) -> 36238.63898 | J132: =I132-(I132*Inputs!$E$18) -> 36057.44578 | K132: =J132-(J132*Inputs!$E$18) -> 35877.15856 | L132: =K132-(K132*Inputs!$E$18) -> 35697.77276 | M132: =L132-(L132*Inputs!$E$18) -> 35519.2839 | N132: =M132-(M132*Inputs!$E$18) -> 35341.68748 | O132: =N132-(N132*Inputs!$E$18) -> 35164.97904 | P132: =O132-(O132*Inputs!$E$18) -> 34989.15415 | Q132: =P132-(P132*Inputs!$E$18) -> 34814.20838 | R132: =Q132-(Q132*Inputs!$E$18) -> 34640.13733 | S132: =R132-(R132*Inputs!$E$18) -> 34466.93665 | T132: =S132-(S132*Inputs!$E$18) -> 34294.60196 | U132: =T132-(T132*Inputs!$E$18) -> 34123.12895 | V132: =U132-(U132*Inputs!$E$18) -> 33952.51331 | W132: =V132-(V132*Inputs!$E$18) -> 33782.75074 | X132: =W132-(W132*Inputs!$E$18) -> 33613.83699 | Y132: =X132-(X132*Inputs!$E$18) -> 33445.7678 | Z132: =Y132-(Y132*Inputs!$E$18) -> 33278.53897 | AA132: =Z132-(Z132*Inputs!$E$18) -> 33112.14627 | AB132: =AA132-(AA132*Inputs!$E$18) -> 32946.58554 | AC132: =AB132-(AB132*Inputs!$E$18) -> 32781.85261 | AD132: =AC132-(AC132*Inputs!$E$18) -> 32617.94335
B133: October | C133: =C100*Inputs!$S$4 -> 25322.81406 | D133: kWh's per mo. | F133: 25322.81406 | G133: =F133-(F133*Inputs!$E$18) -> 25196.19999 | H133: =G133-(G133*Inputs!$E$18) -> 25070.21899 | I133: =H133-(H133*Inputs!$E$18) -> 24944.8679 | J133: =I133-(I133*Inputs!$E$18) -> 24820.14356 | K133: =J133-(J133*Inputs!$E$18) -> 24696.04284 | L133: =K133-(K133*Inputs!$E$18) -> 24572.56263 | M133: =L133-(L133*Inputs!$E$18) -> 24449.69981 | N133: =M133-(M133*Inputs!$E$18) -> 24327.45131 | O133: =N133-(N133*Inputs!$E$18) -> 24205.81406 | P133: =O133-(O133*Inputs!$E$18) -> 24084.78499 | Q133: =P133-(P133*Inputs!$E$18) -> 23964.36106 | R133: =Q133-(Q133*Inputs!$E$18) -> 23844.53926 | S133: =R133-(R133*Inputs!$E$18) -> 23725.31656 | T133: =S133-(S133*Inputs!$E$18) -> 23606.68998 | U133: =T133-(T133*Inputs!$E$18) -> 23488.65653 | V133: =U133-(U133*Inputs!$E$18) -> 23371.21324 | W133: =V133-(V133*Inputs!$E$18) -> 23254.35718 | X133: =W133-(W133*Inputs!$E$18) -> 23138.08539 | Y133: =X133-(X133*Inputs!$E$18) -> 23022.39497 | Z133: =Y133-(Y133*Inputs!$E$18) -> 22907.28299 | AA133: =Z133-(Z133*Inputs!$E$18) -> 22792.74658 | AB133: =AA133-(AA133*Inputs!$E$18) -> 22678.78284 | AC133: =AB133-(AB133*Inputs!$E$18) -> 22565.38893 | AD133: =AC133-(AC133*Inputs!$E$18) -> 22452.56198
B134: November | C134: =C101*Inputs!$S$4 -> 13308.67188 | D134: kWh's per mo. | F134: 13308.67188 | G134: =F134-(F134*Inputs!$E$18) -> 13242.12852 | H134: =G134-(G134*Inputs!$E$18) -> 13175.91787 | I134: =H134-(H134*Inputs!$E$18) -> 13110.03828 | J134: =I134-(I134*Inputs!$E$18) -> 13044.48809 | K134: =J134-(J134*Inputs!$E$18) -> 12979.26565 | L134: =K134-(K134*Inputs!$E$18) -> 12914.36932 | M134: =L134-(L134*Inputs!$E$18) -> 12849.79748 | N134: =M134-(M134*Inputs!$E$18) -> 12785.54849 | O134: =N134-(N134*Inputs!$E$18) -> 12721.62075 | P134: =O134-(O134*Inputs!$E$18) -> 12658.01264 | Q134: =P134-(P134*Inputs!$E$18) -> 12594.72258 | R134: =Q134-(Q134*Inputs!$E$18) -> 12531.74897 | S134: =R134-(R134*Inputs!$E$18) -> 12469.09022 | T134: =S134-(S134*Inputs!$E$18) -> 12406.74477 | U134: =T134-(T134*Inputs!$E$18) -> 12344.71105 | V134: =U134-(U134*Inputs!$E$18) -> 12282.98749 | W134: =V134-(V134*Inputs!$E$18) -> 12221.57255 | X134: =W134-(W134*Inputs!$E$18) -> 12160.46469 | Y134: =X134-(X134*Inputs!$E$18) -> 12099.66237 | Z134: =Y134-(Y134*Inputs!$E$18) -> 12039.16406 | AA134: =Z134-(Z134*Inputs!$E$18) -> 11978.96824 | AB134: =AA134-(AA134*Inputs!$E$18) -> 11919.0734 | AC134: =AB134-(AB134*Inputs!$E$18) -> 11859.47803 | AD134: =AC134-(AC134*Inputs!$E$18) -> 11800.18064
B135: December | C135: =C102*Inputs!$S$4 -> 9546.621875 | D135: kWh's per mo. | F135: 9546.621875 | G135: =F135-(F135*Inputs!$E$18) -> 9498.888766 | H135: =G135-(G135*Inputs!$E$18) -> 9451.394322 | I135: =H135-(H135*Inputs!$E$18) -> 9404.13735 | J135: =I135-(I135*Inputs!$E$18) -> 9357.116663 | K135: =J135-(J135*Inputs!$E$18) -> 9310.33108 | L135: =K135-(K135*Inputs!$E$18) -> 9263.779425 | M135: =L135-(L135*Inputs!$E$18) -> 9217.460528 | N135: =M135-(M135*Inputs!$E$18) -> 9171.373225 | O135: =N135-(N135*Inputs!$E$18) -> 9125.516359 | P135: =O135-(O135*Inputs!$E$18) -> 9079.888777 | Q135: =P135-(P135*Inputs!$E$18) -> 9034.489333 | R135: =Q135-(Q135*Inputs!$E$18) -> 8989.316886 | S135: =R135-(R135*Inputs!$E$18) -> 8944.370302 | T135: =S135-(S135*Inputs!$E$18) -> 8899.648451 | U135: =T135-(T135*Inputs!$E$18) -> 8855.150208 | V135: =U135-(U135*Inputs!$E$18) -> 8810.874457 | W135: =V135-(V135*Inputs!$E$18) -> 8766.820085 | X135: =W135-(W135*Inputs!$E$18) -> 8722.985985 | Y135: =X135-(X135*Inputs!$E$18) -> 8679.371055 | Z135: =Y135-(Y135*Inputs!$E$18) -> 8635.974199 | AA135: =Z135-(Z135*Inputs!$E$18) -> 8592.794328 | AB135: =AA135-(AA135*Inputs!$E$18) -> 8549.830357 | AC135: =AB135-(AB135*Inputs!$E$18) -> 8507.081205 | AD135: =AC135-(AC135*Inputs!$E$18) -> 8464.545799
B136: Annual | C136: =SUM(C124:C135) -> 408830.3703 | D136: kWh's per yr. | F136: =SUM(F124:F135) -> 408830.3703 | G136: =SUM(G124:G135) -> 406786.2185 | H136: 404752.2874 | I136: 402728.5259 | J136: 400714.8833 | K136: 398711.3089 | L136: 396717.7523 | M136: 394734.1636 | N136: 392760.4928 | O136: 390796.6903 | P136: 388842.7068 | Q136: 386898.4933 | R136: 384964.0008 | S136: 383039.1808 | T136: 381123.9849 | U136: 379218.365 | V136: 377322.2732 | W136: 375435.6618 | X136: 373558.4835 | Y136: 371690.6911 | Z136: 369832.2376 | AA136: 367983.0765 | AB136: 366143.1611 | AC136: 364312.4453 | AD136: =SUM(AD124:AD135) -> 362490.883 | AE136: =SUM(E136:AD136) -> 9630388.338
B138: Anchor Revenue Estimate
B139: Month | C139: Total Generation (kWh) | E139: =Inputs!S4 -> 0.4 | F139: Anchor Subscription
B140: January | C140: =C124 -> 13293.26406 | D140: $ per mo. | F140: =(F109)*F124 -> 478.1985881 | G140: =(G109)*G124 -> 489.0350463 | H140: =(H109)*H124 -> 500.1170695 | I140: 511.4502224 | J140: 523.0401959 | K140: 534.8928098 | L140: 547.0140158 | M140: 559.4099004 | N140: 572.0866881 | O140: 585.0507446 | P140: 598.3085795 | Q140: 611.8668502 | R140: 625.7323649 | S140: 639.912086 | T140: 654.4131338 | U140: 669.2427898 | V140: 684.4085007 | W140: 699.9178817 | X140: 715.7787208 | Y140: 731.9989824 | Z140: 748.5868114 | AA140: 765.5505371 | AB140: 782.8986778 | AC140: 800.6399448 | AD140: 818.7832465
B141: February | C141: =C125 -> 17636.95156 | D141: $ per mo. | F141: =(F110)*F125 -> 634.4540586 | G141: 648.831422 | H141: 663.5345908 | I141: 678.5709482 | J141: 693.9480445 | K141: 709.6736011 | L141: 725.7555146 | M141: 742.2018603 | N141: 759.0208966 | O141: 776.2210692 | P141: 793.8110148 | Q141: 811.7995662 | R141: 830.1957562 | S141: 849.0088222 | T141: 868.2482111 | U141: 887.9235839 | V141: 908.0448202 | W141: 928.6220239 | X141: 949.6655275 | Y141: 971.1858981 | Z141: 993.1939417 | AA141: 1015.70071 | AB141: 1038.717503 | AC141: 1062.255881 | AD141: 1086.327661
B142: March | C142: 31573.425 | D142: $ per mo. | F142: 1135.790818 | G142: 1161.528973 | H142: 1187.850381 | I142: 1214.768259 | J142: 1242.296122 | K142: 1270.447795 | L142: 1299.237412 | M142: 1328.679431 | N142: 1358.788636 | O142: 1389.580145 | P142: 1421.069421 | Q142: 1453.272275 | R142: 1486.204878 | S142: 1519.883767 | T142: 1554.325853 | U142: 1589.548431 | V142: 1625.569188 | W142: 1662.406211 | X142: 1700.077998 | Y142: 1738.603466 | Z142: 1778.001959 | AA142: 1818.293261 | AB142: 1859.497605 | AC142: 1901.63568 | AD142: 1944.728646
B143: April | C143: 40131.89062 | D143: $ per mo. | F143: 1443.664501 | G143: 1476.379383 | H143: 1509.835616 | I143: 1544.050001 | J143: 1579.039718 | K143: 1614.822337 | L143: 1651.415826 | M143: 1688.83856 | N143: 1727.109331 | O143: 1766.247355 | P143: 1806.272286 | Q143: 1847.204223 | R143: 1889.063718 | S143: 1931.87179 | T143: 1975.649937 | U143: 2020.42014 | V143: 2066.204881 | W143: 2113.02715 | X143: 2160.910458 | Y143: 2209.87885 | Z143: 2259.956915 | AA143: 2311.169798 | AB143: 2363.543217 | AC143: 2417.10347 | AD143: 2471.877452
B144: May | C144: 54838.575 | D144: $ per mo. | F144: 1972.708058 | G144: 2017.411596 | H144: 2063.12816 | I144: 2109.880707 | J144: 2157.692714 | K144: 2206.588188 | L144: 2256.591683 | M144: 2307.728308 | N144: 2360.023739 | O144: 2413.504237 | P144: 2468.196656 | Q144: 2524.128461 | R144: 2581.327736 | S144: 2639.823203 | T144: 2699.644237 | U144: 2760.820875 | V144: 2823.383837 | W144: 2887.364538 | X144: 2952.795106 | Y144: 3019.708396 | Z144: 3088.138008 | AA144: 3158.118303 | AB144: 3229.684422 | AC144: 3302.872301 | AD144: 3377.71869
B145: June | C145: 55549.425 | D145: $ per mo. | F145: 1998.279466 | G145: 2043.562476 | H145: 2089.871646 | I145: 2137.230227 | J145: 2185.662001 | K145: 2235.191288 | L145: 2285.842958 | M145: 2337.642445 | N145: 2390.61576 | O145: 2444.789504 | P145: 2500.190879 | Q145: 2556.847705 | R145: 2614.78843 | S145: 2674.042151 | T145: 2734.63862 | U145: 2796.608266 | V145: 2859.982206 | W145: 2924.792263 | X145: 2991.07098 | Y145: 3058.85164 | Z145: 3128.168277 | AA145: 3199.055698 | AB145: 3271.549499 | AC145: 3345.686082 | AD145: 3421.502675
B146: July | C146: 61208 | D146: $ per mo. | F146: 2201.835384 | G146: 2251.731176 | H146: 2302.757656 | I146: 2354.940447 | J146: 2408.305753 | K146: 2462.880369 | L146: 2518.691701 | M146: 2575.767774 | N146: 2634.137247 | O146: 2693.829432 | P146: 2754.8743 | Q146: 2817.302507 | R146: 2881.145399 | S146: 2946.435035 | T146: 3013.204199 | U146: 3081.486419 | V146: 3151.315983 | W146: 3222.727955 | X146: 3295.758193 | Y146: 3370.443369 | Z146: 3446.820987 | AA146: 3524.929397 | AB146: 3604.807822 | AC146: 3686.496372 | AD146: 3770.036066
B147: August | C147: 49633.03125 | D147: $ per mo. | F147: 1785.449033 | G147: 1825.909094 | H147: 1867.28602 | I147: 1909.600588 | J147: 1952.874047 | K147: 1997.128126 | L147: 2042.385046 | M147: 2088.667534 | N147: 2135.998829 | O147: 2184.402698 | P147: 2233.903448 | Q147: 2284.525934 | R147: 2336.295576 | S147: 2389.23837 | T147: 2443.380901 | U147: 2498.750355 | V147: 2555.374537 | W147: 2613.28188 | X147: 2672.50146 | Y147: 2733.063016 | Z147: 2794.996957 | AA147: 2858.334383 | AB147: 2923.107098 | AC147: 2989.347628 | AD147: 3057.089235
B148: September | C148: 36787.7 | D148: $ per mo. | F148: 1323.363932 | G148: 1353.352682 | H148: 1384.021007 | I148: 1415.384307 | J148: 1447.458331 | K148: 1480.259184 | L148: 1513.803338 | M148: 1548.107635 | N148: 1583.189302 | O148: 1619.065955 | P148: 1655.755609 | Q148: 1693.276687 | R148: 1731.64803 | S148: 1770.888906 | T148: 1811.019019 | U148: 1852.058521 | V148: 1894.028019 | W148: 1936.948588 | X148: 1980.84178 | Y148: 2025.729636 | Z148: 2071.634695 | AA148: 2118.580009 | AB148: 2166.58915 | AC148: 2215.686227 | AD148: 2265.895893
B149: October | C149: 25322.81406 | D149: $ per mo. | F149: 910.9375903 | G149: 931.580347 | H149: 952.6908892 | I149: 974.2798175 | J149: 996.3579724 | K149: 1018.93644 | L149: 1042.026559 | M149: 1065.639923 | N149: 1089.788389 | O149: 1114.484084 | P149: 1139.739408 | Q149: 1165.567043 | R149: 1191.979957 | S149: 1218.991415 | T149: 1246.61498 | U149: 1274.864522 | V149: 1303.754227 | W149: 1333.298601 | X149: 1363.512481 | Y149: 1394.411037 | Z149: 1426.009785 | AA149: 1458.324593 | AB149: 1491.371687 | AC149: 1525.167661 | AD149: 1559.729485
B150: November | C150: 13308.67188 | D150: $ per mo. | F150: 478.7528534 | G150: 489.6018718 | H150: 500.6967398 | I150: 512.0430286 | J150: 523.6464357 | K150: 535.5127876 | L150: 547.6480428 | M150: 560.0582951 | N150: 572.7497762 | O150: 585.7288588 | P150: 599.0020605 | Q150: 612.5760462 | R150: 626.457632 | S150: 640.6537884 | T150: 655.1716439 | U150: 670.0184885 | V150: 685.2017775 | W150: 700.7291349 | X150: 716.6083579 | Y150: 732.8474199 | Z150: 749.4544753 | AA150: 766.4378631 | AB150: 783.8061115 | AC150: 801.5679418 | AD150: 819.732273
B151: December | C151: 9546.621875 | D151: $ per mo. | F151: 343.4206287 | G151: 351.2028836 | H151: 359.1614921 | I151: 367.3004507 | J151: 375.6238462 | K151: =(K120)*K135 -> 384.1358582 | L151: 392.8407609 | M151: 401.7429254 | N151: 410.8468218 | O151: 420.1570216 | P151: 429.6781999 | Q151: 439.4151376 | R151: 449.372724 | S151: 459.5559593 | T151: 469.9699569 | U151: 480.6199461 | V151: 491.5112747 | W151: 502.6494117 | X151: 514.03995 | Y151: 525.6886093 | Z151: 537.6012389 | AA151: 549.7838206 | AB151: 562.2424717 | AC151: 574.9834484 | AD151: 588.0131483
B152: Annual | C152: =SUM(C140:C151) -> 408830.3703 | D152: $ per yr. | F152: =SUM(F140:F151) -> 14706.85491 | G152: =SUM(G140:G151) -> 15040.12695 | H152: 15380.95127 | I152: 15729.499 | J152: 16085.94518 | K152: 16450.46878 | L152: 16823.25286 | M152: 17204.48459 | N152: 17594.35542 | O152: 17993.0611 | P152: 18400.80186 | Q152: 18817.78243 | R152: 19244.2122 | S152: 19680.30529 | T152: 20126.28069 | U152: 20582.36234 | V152: 21048.77925 | W152: 21525.76564 | X152: 22013.56101 | Y152: 22512.41032 | Z152: 23022.56405 | AA152: 23544.27837 | AB152: 24077.81527 | AC152: 24623.44264 | AD152: 25181.43447
B154: Subscriber Rate Schedule:
B155: Month | C155: Rate ($/kWh)
B156: January | C156: =Inputs!$S$11 -> 0.058 | D156: $/kWh | F156: =C156*(1+Inputs!$L$4) -> 0.0596124 | G156: =F156*(1+Inputs!$L$4) -> 0.06126962472 | H156: =G156*(1+Inputs!$L$4) -> 0.06297292029 | I156: =H156*(1+Inputs!$L$4) -> 0.06472356747 | J156: =I156*(1+Inputs!$L$4) -> 0.06652288265 | K156: =J156*(1+Inputs!$L$4) -> 0.06837221878 | L156: =K156*(1+Inputs!$L$4) -> 0.07027296647 | M156: =L156*(1+Inputs!$L$4) -> 0.07222655493 | N156: =M156*(1+Inputs!$L$4) -> 0.07423445316 | O156: =N156*(1+Inputs!$L$4) -> 0.07629817096 | P156: =O156*(1+Inputs!$L$4) -> 0.07841926011 | Q156: =P156*(1+Inputs!$L$4) -> 0.08059931554 | R156: =Q156*(1+Inputs!$L$4) -> 0.08283997652 | S156: =R156*(1+Inputs!$L$4) -> 0.08514292786 | T156: =S156*(1+Inputs!$L$4) -> 0.08750990126 | U156: =T156*(1+Inputs!$L$4) -> 0.08994267651 | V156: =U156*(1+Inputs!$L$4) -> 0.09244308292 | W156: =V156*(1+Inputs!$L$4) -> 0.09501300062 | X156: =W156*(1+Inputs!$L$4) -> 0.09765436204 | Y156: =X156*(1+Inputs!$L$4) -> 0.1003691533 | Z156: =Y156*(1+Inputs!$L$4) -> 0.1031594158 | AA156: =Z156*(1+Inputs!$L$4) -> 0.1060272475 | AB156: =AA156*(1+Inputs!$L$4) -> 0.108974805 | AC156: =AB156*(1+Inputs!$L$4) -> 0.1120043046 | AD156: =AC156*(1+Inputs!$L$4) -> 0.1151180243
B157: February | C157: =Inputs!$S$11 -> 0.058 | D157: $/kWh | F157: =C157*(1+Inputs!$L$4) -> 0.0596124 | G157: =F157*(1+Inputs!$L$4) -> 0.06126962472 | H157: =G157*(1+Inputs!$L$4) -> 0.06297292029 | I157: =H157*(1+Inputs!$L$4) -> 0.06472356747 | J157: =I157*(1+Inputs!$L$4) -> 0.06652288265 | K157: =J157*(1+Inputs!$L$4) -> 0.06837221878 | L157: =K157*(1+Inputs!$L$4) -> 0.07027296647 | M157: =L157*(1+Inputs!$L$4) -> 0.07222655493 | N157: =M157*(1+Inputs!$L$4) -> 0.07423445316 | O157: =N157*(1+Inputs!$L$4) -> 0.07629817096 | P157: =O157*(1+Inputs!$L$4) -> 0.07841926011 | Q157: =P157*(1+Inputs!$L$4) -> 0.08059931554 | R157: =Q157*(1+Inputs!$L$4) -> 0.08283997652 | S157: =R157*(1+Inputs!$L$4) -> 0.08514292786 | T157: =S157*(1+Inputs!$L$4) -> 0.08750990126 | U157: =T157*(1+Inputs!$L$4) -> 0.08994267651 | V157: =U157*(1+Inputs!$L$4) -> 0.09244308292 | W157: =V157*(1+Inputs!$L$4) -> 0.09501300062 | X157: =W157*(1+Inputs!$L$4) -> 0.09765436204 | Y157: =X157*(1+Inputs!$L$4) -> 0.1003691533 | Z157: =Y157*(1+Inputs!$L$4) -> 0.1031594158 | AA157: =Z157*(1+Inputs!$L$4) -> 0.1060272475 | AB157: =AA157*(1+Inputs!$L$4) -> 0.108974805 | AC157: =AB157*(1+Inputs!$L$4) -> 0.1120043046 | AD157: =AC157*(1+Inputs!$L$4) -> 0.1151180243
B158: March | C158: =Inputs!$S$11 -> 0.058 | D158: $/kWh | F158: =C158*(1+Inputs!$L$4) -> 0.0596124 | G158: =F158*(1+Inputs!$L$4) -> 0.06126962472 | H158: =G158*(1+Inputs!$L$4) -> 0.06297292029 | I158: =H158*(1+Inputs!$L$4) -> 0.06472356747 | J158: =I158*(1+Inputs!$L$4) -> 0.06652288265 | K158: =J158*(1+Inputs!$L$4) -> 0.06837221878 | L158: =K158*(1+Inputs!$L$4) -> 0.07027296647 | M158: =L158*(1+Inputs!$L$4) -> 0.07222655493 | N158: =M158*(1+Inputs!$L$4) -> 0.07423445316 | O158: =N158*(1+Inputs!$L$4) -> 0.07629817096 | P158: =O158*(1+Inputs!$L$4) -> 0.07841926011 | Q158: =P158*(1+Inputs!$L$4) -> 0.08059931554 | R158: =Q158*(1+Inputs!$L$4) -> 0.08283997652 | S158: =R158*(1+Inputs!$L$4) -> 0.08514292786 | T158: =S158*(1+Inputs!$L$4) -> 0.08750990126 | U158: =T158*(1+Inputs!$L$4) -> 0.08994267651 | V158: =U158*(1+Inputs!$L$4) -> 0.09244308292 | W158: =V158*(1+Inputs!$L$4) -> 0.09501300062 | X158: =W158*(1+Inputs!$L$4) -> 0.09765436204 | Y158: =X158*(1+Inputs!$L$4) -> 0.1003691533 | Z158: =Y158*(1+Inputs!$L$4) -> 0.1031594158 | AA158: =Z158*(1+Inputs!$L$4) -> 0.1060272475 | AB158: =AA158*(1+Inputs!$L$4) -> 0.108974805 | AC158: =AB158*(1+Inputs!$L$4) -> 0.1120043046 | AD158: =AC158*(1+Inputs!$L$4) -> 0.1151180243
B159: April | C159: =Inputs!$S$11 -> 0.058 | D159: $/kWh | F159: =C159*(1+Inputs!$L$4) -> 0.0596124 | G159: =F159*(1+Inputs!$L$4) -> 0.06126962472 | H159: =G159*(1+Inputs!$L$4) -> 0.06297292029 | I159: =H159*(1+Inputs!$L$4) -> 0.06472356747 | J159: =I159*(1+Inputs!$L$4) -> 0.06652288265 | K159: =J159*(1+Inputs!$L$4) -> 0.06837221878 | L159: =K159*(1+Inputs!$L$4) -> 0.07027296647 | M159: =L159*(1+Inputs!$L$4) -> 0.07222655493 | N159: =M159*(1+Inputs!$L$4) -> 0.07423445316 | O159: =N159*(1+Inputs!$L$4) -> 0.07629817096 | P159: =O159*(1+Inputs!$L$4) -> 0.07841926011 | Q159: =P159*(1+Inputs!$L$4) -> 0.08059931554 | R159: =Q159*(1+Inputs!$L$4) -> 0.08283997652 | S159: =R159*(1+Inputs!$L$4) -> 0.08514292786 | T159: =S159*(1+Inputs!$L$4) -> 0.08750990126 | U159: =T159*(1+Inputs!$L$4) -> 0.08994267651 | V159: =U159*(1+Inputs!$L$4) -> 0.09244308292 | W159: =V159*(1+Inputs!$L$4) -> 0.09501300062 | X159: =W159*(1+Inputs!$L$4) -> 0.09765436204 | Y159: =X159*(1+Inputs!$L$4) -> 0.1003691533 | Z159: =Y159*(1+Inputs!$L$4) -> 0.1031594158 | AA159: =Z159*(1+Inputs!$L$4) -> 0.1060272475 | AB159: =AA159*(1+Inputs!$L$4) -> 0.108974805 | AC159: =AB159*(1+Inputs!$L$4) -> 0.1120043046 | AD159: =AC159*(1+Inputs!$L$4) -> 0.1151180243
B160: May | C160: =Inputs!$S$11 -> 0.058 | D160: $/kWh | F160: =C160*(1+Inputs!$L$4) -> 0.0596124 | G160: =F160*(1+Inputs!$L$4) -> 0.06126962472 | H160: =G160*(1+Inputs!$L$4) -> 0.06297292029 | I160: =H160*(1+Inputs!$L$4) -> 0.06472356747 | J160: =I160*(1+Inputs!$L$4) -> 0.06652288265 | K160: =J160*(1+Inputs!$L$4) -> 0.06837221878 | L160: =K160*(1+Inputs!$L$4) -> 0.07027296647 | M160: =L160*(1+Inputs!$L$4) -> 0.07222655493 | N160: =M160*(1+Inputs!$L$4) -> 0.07423445316 | O160: =N160*(1+Inputs!$L$4) -> 0.07629817096 | P160: =O160*(1+Inputs!$L$4) -> 0.07841926011 | Q160: =P160*(1+Inputs!$L$4) -> 0.08059931554 | R160: =Q160*(1+Inputs!$L$4) -> 0.08283997652 | S160: =R160*(1+Inputs!$L$4) -> 0.08514292786 | T160: =S160*(1+Inputs!$L$4) -> 0.08750990126 | U160: =T160*(1+Inputs!$L$4) -> 0.08994267651 | V160: =U160*(1+Inputs!$L$4) -> 0.09244308292 | W160: =V160*(1+Inputs!$L$4) -> 0.09501300062 | X160: =W160*(1+Inputs!$L$4) -> 0.09765436204 | Y160: =X160*(1+Inputs!$L$4) -> 0.1003691533 | Z160: =Y160*(1+Inputs!$L$4) -> 0.1031594158 | AA160: =Z160*(1+Inputs!$L$4) -> 0.1060272475 | AB160: =AA160*(1+Inputs!$L$4) -> 0.108974805 | AC160: =AB160*(1+Inputs!$L$4) -> 0.1120043046 | AD160: =AC160*(1+Inputs!$L$4) -> 0.1151180243
B161: June | C161: =Inputs!$S$11 -> 0.058 | D161: $/kWh | F161: =C161*(1+Inputs!$L$4) -> 0.0596124 | G161: =F161*(1+Inputs!$L$4) -> 0.06126962472 | H161: =G161*(1+Inputs!$L$4) -> 0.06297292029 | I161: =H161*(1+Inputs!$L$4) -> 0.06472356747 | J161: =I161*(1+Inputs!$L$4) -> 0.06652288265 | K161: =J161*(1+Inputs!$L$4) -> 0.06837221878 | L161: =K161*(1+Inputs!$L$4) -> 0.07027296647 | M161: =L161*(1+Inputs!$L$4) -> 0.07222655493 | N161: =M161*(1+Inputs!$L$4) -> 0.07423445316 | O161: =N161*(1+Inputs!$L$4) -> 0.07629817096 | P161: =O161*(1+Inputs!$L$4) -> 0.07841926011 | Q161: =P161*(1+Inputs!$L$4) -> 0.08059931554 | R161: =Q161*(1+Inputs!$L$4) -> 0.08283997652 | S161: =R161*(1+Inputs!$L$4) -> 0.08514292786 | T161: =S161*(1+Inputs!$L$4) -> 0.08750990126 | U161: =T161*(1+Inputs!$L$4) -> 0.08994267651 | V161: =U161*(1+Inputs!$L$4) -> 0.09244308292 | W161: =V161*(1+Inputs!$L$4) -> 0.09501300062 | X161: =W161*(1+Inputs!$L$4) -> 0.09765436204 | Y161: =X161*(1+Inputs!$L$4) -> 0.1003691533 | Z161: =Y161*(1+Inputs!$L$4) -> 0.1031594158 | AA161: =Z161*(1+Inputs!$L$4) -> 0.1060272475 | AB161: =AA161*(1+Inputs!$L$4) -> 0.108974805 | AC161: =AB161*(1+Inputs!$L$4) -> 0.1120043046 | AD161: =AC161*(1+Inputs!$L$4) -> 0.1151180243
B162: July | C162: =Inputs!$S$11 -> 0.058 | D162: $/kWh | F162: =C162*(1+Inputs!$L$4) -> 0.0596124 | G162: =F162*(1+Inputs!$L$4) -> 0.06126962472 | H162: =G162*(1+Inputs!$L$4) -> 0.06297292029 | I162: =H162*(1+Inputs!$L$4) -> 0.06472356747 | J162: =I162*(1+Inputs!$L$4) -> 0.06652288265 | K162: =J162*(1+Inputs!$L$4) -> 0.06837221878 | L162: =K162*(1+Inputs!$L$4) -> 0.07027296647 | M162: =L162*(1+Inputs!$L$4) -> 0.07222655493 | N162: =M162*(1+Inputs!$L$4) -> 0.07423445316 | O162: =N162*(1+Inputs!$L$4) -> 0.07629817096 | P162: =O162*(1+Inputs!$L$4) -> 0.07841926011 | Q162: =P162*(1+Inputs!$L$4) -> 0.08059931554 | R162: =Q162*(1+Inputs!$L$4) -> 0.08283997652 | S162: =R162*(1+Inputs!$L$4) -> 0.08514292786 | T162: =S162*(1+Inputs!$L$4) -> 0.08750990126 | U162: =T162*(1+Inputs!$L$4) -> 0.08994267651 | V162: =U162*(1+Inputs!$L$4) -> 0.09244308292 | W162: =V162*(1+Inputs!$L$4) -> 0.09501300062 | X162: =W162*(1+Inputs!$L$4) -> 0.09765436204 | Y162: =X162*(1+Inputs!$L$4) -> 0.1003691533 | Z162: =Y162*(1+Inputs!$L$4) -> 0.1031594158 | AA162: =Z162*(1+Inputs!$L$4) -> 0.1060272475 | AB162: =AA162*(1+Inputs!$L$4) -> 0.108974805 | AC162: =AB162*(1+Inputs!$L$4) -> 0.1120043046 | AD162: =AC162*(1+Inputs!$L$4) -> 0.1151180243
B163: August | C163: =Inputs!$S$11 -> 0.058 | D163: $/kWh | F163: =C163*(1+Inputs!$L$4) -> 0.0596124 | G163: =F163*(1+Inputs!$L$4) -> 0.06126962472 | H163: =G163*(1+Inputs!$L$4) -> 0.06297292029 | I163: =H163*(1+Inputs!$L$4) -> 0.06472356747 | J163: =I163*(1+Inputs!$L$4) -> 0.06652288265 | K163: =J163*(1+Inputs!$L$4) -> 0.06837221878 | L163: =K163*(1+Inputs!$L$4) -> 0.07027296647 | M163: =L163*(1+Inputs!$L$4) -> 0.07222655493 | N163: =M163*(1+Inputs!$L$4) -> 0.07423445316 | O163: =N163*(1+Inputs!$L$4) -> 0.07629817096 | P163: =O163*(1+Inputs!$L$4) -> 0.07841926011 | Q163: =P163*(1+Inputs!$L$4) -> 0.08059931554 | R163: =Q163*(1+Inputs!$L$4) -> 0.08283997652 | S163: =R163*(1+Inputs!$L$4) -> 0.08514292786 | T163: =S163*(1+Inputs!$L$4) -> 0.08750990126 | U163: =T163*(1+Inputs!$L$4) -> 0.08994267651 | V163: =U163*(1+Inputs!$L$4) -> 0.09244308292 | W163: =V163*(1+Inputs!$L$4) -> 0.09501300062 | X163: =W163*(1+Inputs!$L$4) -> 0.09765436204 | Y163: =X163*(1+Inputs!$L$4) -> 0.1003691533 | Z163: =Y163*(1+Inputs!$L$4) -> 0.1031594158 | AA163: =Z163*(1+Inputs!$L$4) -> 0.1060272475 | AB163: =AA163*(1+Inputs!$L$4) -> 0.108974805 | AC163: =AB163*(1+Inputs!$L$4) -> 0.1120043046 | AD163: =AC163*(1+Inputs!$L$4) -> 0.1151180243
B164: September | C164: =Inputs!$S$11 -> 0.058 | D164: $/kWh | F164: =C164*(1+Inputs!$L$4) -> 0.0596124 | G164: =F164*(1+Inputs!$L$4) -> 0.06126962472 | H164: =G164*(1+Inputs!$L$4) -> 0.06297292029 | I164: =H164*(1+Inputs!$L$4) -> 0.06472356747 | J164: =I164*(1+Inputs!$L$4) -> 0.06652288265 | K164: =J164*(1+Inputs!$L$4) -> 0.06837221878 | L164: =K164*(1+Inputs!$L$4) -> 0.07027296647 | M164: =L164*(1+Inputs!$L$4) -> 0.07222655493 | N164: =M164*(1+Inputs!$L$4) -> 0.07423445316 | O164: =N164*(1+Inputs!$L$4) -> 0.07629817096 | P164: =O164*(1+Inputs!$L$4) -> 0.07841926011 | Q164: =P164*(1+Inputs!$L$4) -> 0.08059931554 | R164: =Q164*(1+Inputs!$L$4) -> 0.08283997652 | S164: =R164*(1+Inputs!$L$4) -> 0.08514292786 | T164: =S164*(1+Inputs!$L$4) -> 0.08750990126 | U164: =T164*(1+Inputs!$L$4) -> 0.08994267651 | V164: =U164*(1+Inputs!$L$4) -> 0.09244308292 | W164: =V164*(1+Inputs!$L$4) -> 0.09501300062 | X164: =W164*(1+Inputs!$L$4) -> 0.09765436204 | Y164: =X164*(1+Inputs!$L$4) -> 0.1003691533 | Z164: =Y164*(1+Inputs!$L$4) -> 0.1031594158 | AA164: =Z164*(1+Inputs!$L$4) -> 0.1060272475 | AB164: =AA164*(1+Inputs!$L$4) -> 0.108974805 | AC164: =AB164*(1+Inputs!$L$4) -> 0.1120043046 | AD164: =AC164*(1+Inputs!$L$4) -> 0.1151180243
B165: October | C165: =Inputs!$S$11 -> 0.058 | D165: $/kWh | F165: =C165*(1+Inputs!$L$4) -> 0.0596124 | G165: =F165*(1+Inputs!$L$4) -> 0.06126962472 | H165: =G165*(1+Inputs!$L$4) -> 0.06297292029 | I165: =H165*(1+Inputs!$L$4) -> 0.06472356747 | J165: =I165*(1+Inputs!$L$4) -> 0.06652288265 | K165: =J165*(1+Inputs!$L$4) -> 0.06837221878 | L165: =K165*(1+Inputs!$L$4) -> 0.07027296647 | M165: =L165*(1+Inputs!$L$4) -> 0.07222655493 | N165: =M165*(1+Inputs!$L$4) -> 0.07423445316 | O165: =N165*(1+Inputs!$L$4) -> 0.07629817096 | P165: =O165*(1+Inputs!$L$4) -> 0.07841926011 | Q165: =P165*(1+Inputs!$L$4) -> 0.08059931554 | R165: =Q165*(1+Inputs!$L$4) -> 0.08283997652 | S165: =R165*(1+Inputs!$L$4) -> 0.08514292786 | T165: =S165*(1+Inputs!$L$4) -> 0.08750990126 | U165: =T165*(1+Inputs!$L$4) -> 0.08994267651 | V165: =U165*(1+Inputs!$L$4) -> 0.09244308292 | W165: =V165*(1+Inputs!$L$4) -> 0.09501300062 | X165: =W165*(1+Inputs!$L$4) -> 0.09765436204 | Y165: =X165*(1+Inputs!$L$4) -> 0.1003691533 | Z165: =Y165*(1+Inputs!$L$4) -> 0.1031594158 | AA165: =Z165*(1+Inputs!$L$4) -> 0.1060272475 | AB165: =AA165*(1+Inputs!$L$4) -> 0.108974805 | AC165: =AB165*(1+Inputs!$L$4) -> 0.1120043046 | AD165: =AC165*(1+Inputs!$L$4) -> 0.1151180243
B166: November | C166: =Inputs!$S$11 -> 0.058 | D166: $/kWh | F166: =C166*(1+Inputs!$L$4) -> 0.0596124 | G166: =F166*(1+Inputs!$L$4) -> 0.06126962472 | H166: =G166*(1+Inputs!$L$4) -> 0.06297292029 | I166: =H166*(1+Inputs!$L$4) -> 0.06472356747 | J166: =I166*(1+Inputs!$L$4) -> 0.06652288265 | K166: =J166*(1+Inputs!$L$4) -> 0.06837221878 | L166: =K166*(1+Inputs!$L$4) -> 0.07027296647 | M166: =L166*(1+Inputs!$L$4) -> 0.07222655493 | N166: =M166*(1+Inputs!$L$4) -> 0.07423445316 | O166: =N166*(1+Inputs!$L$4) -> 0.07629817096 | P166: =O166*(1+Inputs!$L$4) -> 0.07841926011 | Q166: =P166*(1+Inputs!$L$4) -> 0.08059931554 | R166: =Q166*(1+Inputs!$L$4) -> 0.08283997652 | S166: =R166*(1+Inputs!$L$4) -> 0.08514292786 | T166: =S166*(1+Inputs!$L$4) -> 0.08750990126 | U166: =T166*(1+Inputs!$L$4) -> 0.08994267651 | V166: =U166*(1+Inputs!$L$4) -> 0.09244308292 | W166: =V166*(1+Inputs!$L$4) -> 0.09501300062 | X166: =W166*(1+Inputs!$L$4) -> 0.09765436204 | Y166: =X166*(1+Inputs!$L$4) -> 0.1003691533 | Z166: =Y166*(1+Inputs!$L$4) -> 0.1031594158 | AA166: =Z166*(1+Inputs!$L$4) -> 0.1060272475 | AB166: =AA166*(1+Inputs!$L$4) -> 0.108974805 | AC166: =AB166*(1+Inputs!$L$4) -> 0.1120043046 | AD166: =AC166*(1+Inputs!$L$4) -> 0.1151180243
B167: December | C167: =Inputs!$S$11 -> 0.058 | D167: $/kWh | F167: =C167*(1+Inputs!$L$4) -> 0.0596124 | G167: =F167*(1+Inputs!$L$4) -> 0.06126962472 | H167: =G167*(1+Inputs!$L$4) -> 0.06297292029 | I167: =H167*(1+Inputs!$L$4) -> 0.06472356747 | J167: =I167*(1+Inputs!$L$4) -> 0.06652288265 | K167: =J167*(1+Inputs!$L$4) -> 0.06837221878 | L167: =K167*(1+Inputs!$L$4) -> 0.07027296647 | M167: =L167*(1+Inputs!$L$4) -> 0.07222655493 | N167: =M167*(1+Inputs!$L$4) -> 0.07423445316 | O167: =N167*(1+Inputs!$L$4) -> 0.07629817096 | P167: =O167*(1+Inputs!$L$4) -> 0.07841926011 | Q167: =P167*(1+Inputs!$L$4) -> 0.08059931554 | R167: =Q167*(1+Inputs!$L$4) -> 0.08283997652 | S167: =R167*(1+Inputs!$L$4) -> 0.08514292786 | T167: =S167*(1+Inputs!$L$4) -> 0.08750990126 | U167: =T167*(1+Inputs!$L$4) -> 0.08994267651 | V167: =U167*(1+Inputs!$L$4) -> 0.09244308292 | W167: =V167*(1+Inputs!$L$4) -> 0.09501300062 | X167: =W167*(1+Inputs!$L$4) -> 0.09765436204 | Y167: =X167*(1+Inputs!$L$4) -> 0.1003691533 | Z167: =Y167*(1+Inputs!$L$4) -> 0.1031594158 | AA167: =Z167*(1+Inputs!$L$4) -> 0.1060272475 | AB167: =AA167*(1+Inputs!$L$4) -> 0.108974805 | AC167: =AB167*(1+Inputs!$L$4) -> 0.1120043046 | AD167: =AC167*(1+Inputs!$L$4) -> 0.1151180243
B169: Subscriber Generation Estimate
B170: Month | C170: Total Generation (kWh) | E170: =#REF! ->  | F170: of Toal generation = Anchor subscription
B171: January | C171: =(C91-C124) -> 19939.89609 | D171: kWh's per mo. | F171: =(F91*(1-Inputs!$S$4)*('Subscriber Mgt'!E$90/'Subscriber Mgt'!E$87)) -> 10068.89978 | G171: =(G91*(1-Inputs!$S$4)*('Subscriber Mgt'!F$90/'Subscriber Mgt'!F$87)) -> 19740.99563 | H171: =(H91*(1-Inputs!$S$4)*('Subscriber Mgt'!G$90/'Subscriber Mgt'!G$87)) -> 19642.29065 | I171: =(I91*(1-Inputs!$S$4)*('Subscriber Mgt'!H$90/'Subscriber Mgt'!H$87)) -> 19544.0792 | J171: =(J91*(1-Inputs!$S$4)*('Subscriber Mgt'!I$90/'Subscriber Mgt'!I$87)) -> 19446.3588 | K171: =(K91*(1-Inputs!$S$4)*('Subscriber Mgt'!J$90/'Subscriber Mgt'!J$87)) -> 19349.12701 | L171: =(L91*(1-Inputs!$S$4)*('Subscriber Mgt'!K$90/'Subscriber Mgt'!K$87)) -> 19252.38137 | M171: =(M91*(1-Inputs!$S$4)*('Subscriber Mgt'!L$90/'Subscriber Mgt'!L$87)) -> 19156.11947 | N171: =(N91*(1-Inputs!$S$4)*('Subscriber Mgt'!M$90/'Subscriber Mgt'!M$87)) -> 19060.33887 | O171: =(O91*(1-Inputs!$S$4)*('Subscriber Mgt'!N$90/'Subscriber Mgt'!N$87)) -> 18965.03718 | P171: =(P91*(1-Inputs!$S$4)*('Subscriber Mgt'!O$90/'Subscriber Mgt'!O$87)) -> 18870.21199 | Q171: =(Q91*(1-Inputs!$S$4)*('Subscriber Mgt'!P$90/'Subscriber Mgt'!P$87)) -> 18775.86093 | R171: =(R91*(1-Inputs!$S$4)*('Subscriber Mgt'!Q$90/'Subscriber Mgt'!Q$87)) -> 18681.98162 | S171: =(S91*(1-Inputs!$S$4)*('Subscriber Mgt'!R$90/'Subscriber Mgt'!R$87)) -> 18588.57172 | T171: =(T91*(1-Inputs!$S$4)*('Subscriber Mgt'!S$90/'Subscriber Mgt'!S$87)) -> 18495.62886 | U171: =(U91*(1-Inputs!$S$4)*('Subscriber Mgt'!T$90/'Subscriber Mgt'!T$87)) -> 18403.15071 | V171: =(V91*(1-Inputs!$S$4)*('Subscriber Mgt'!U$90/'Subscriber Mgt'!U$87)) -> 18311.13496 | W171: =(W91*(1-Inputs!$S$4)*('Subscriber Mgt'!V$90/'Subscriber Mgt'!V$87)) -> 18219.57929 | X171: =(X91*(1-Inputs!$S$4)*('Subscriber Mgt'!W$90/'Subscriber Mgt'!W$87)) -> 18128.48139 | Y171: =(Y91*(1-Inputs!$S$4)*('Subscriber Mgt'!X$90/'Subscriber Mgt'!X$87)) -> 18037.83898 | Z171: =(Z91*(1-Inputs!$S$4)*('Subscriber Mgt'!Y$90/'Subscriber Mgt'!Y$87)) -> 17947.64979 | AA171: =(AA91*(1-Inputs!$S$4)*('Subscriber Mgt'!Z$90/'Subscriber Mgt'!Z$87)) -> 17857.91154 | AB171: =(AB91*(1-Inputs!$S$4)*('Subscriber Mgt'!AA$90/'Subscriber Mgt'!AA$87)) -> 17768.62198 | AC171: =(AC91*(1-Inputs!$S$4)*('Subscriber Mgt'!AB$90/'Subscriber Mgt'!AB$87)) -> 17679.77887 | AD171: =(AD91*(1-Inputs!$S$4)*('Subscriber Mgt'!AC$90/'Subscriber Mgt'!AC$87)) -> 17591.37998
B172: February | C172: =(C92-C125) -> 26455.42734 | D172: kWh's per mo. | F172: =(F92*(1-Inputs!$S$4)*('Subscriber Mgt'!E$90/'Subscriber Mgt'!E$87)) -> 13358.99873 | G172: =(G92*(1-Inputs!$S$4)*('Subscriber Mgt'!F$90/'Subscriber Mgt'!F$87)) -> 26191.53446 | H172: =(H92*(1-Inputs!$S$4)*('Subscriber Mgt'!G$90/'Subscriber Mgt'!G$87)) -> 26060.57678 | I172: =(I92*(1-Inputs!$S$4)*('Subscriber Mgt'!H$90/'Subscriber Mgt'!H$87)) -> 25930.2739 | J172: =(J92*(1-Inputs!$S$4)*('Subscriber Mgt'!I$90/'Subscriber Mgt'!I$87)) -> 25800.62253 | K172: =(K92*(1-Inputs!$S$4)*('Subscriber Mgt'!J$90/'Subscriber Mgt'!J$87)) -> 25671.61942 | L172: =(L92*(1-Inputs!$S$4)*('Subscriber Mgt'!K$90/'Subscriber Mgt'!K$87)) -> 25543.26132 | M172: =(M92*(1-Inputs!$S$4)*('Subscriber Mgt'!L$90/'Subscriber Mgt'!L$87)) -> 25415.54501 | N172: =(N92*(1-Inputs!$S$4)*('Subscriber Mgt'!M$90/'Subscriber Mgt'!M$87)) -> 25288.46729 | O172: =(O92*(1-Inputs!$S$4)*('Subscriber Mgt'!N$90/'Subscriber Mgt'!N$87)) -> 25162.02495 | P172: =(P92*(1-Inputs!$S$4)*('Subscriber Mgt'!O$90/'Subscriber Mgt'!O$87)) -> 25036.21483 | Q172: =(Q92*(1-Inputs!$S$4)*('Subscriber Mgt'!P$90/'Subscriber Mgt'!P$87)) -> 24911.03375 | R172: =(R92*(1-Inputs!$S$4)*('Subscriber Mgt'!Q$90/'Subscriber Mgt'!Q$87)) -> 24786.47858 | S172: =(S92*(1-Inputs!$S$4)*('Subscriber Mgt'!R$90/'Subscriber Mgt'!R$87)) -> 24662.54619 | T172: =(T92*(1-Inputs!$S$4)*('Subscriber Mgt'!S$90/'Subscriber Mgt'!S$87)) -> 24539.23346 | U172: =(U92*(1-Inputs!$S$4)*('Subscriber Mgt'!T$90/'Subscriber Mgt'!T$87)) -> 24416.53729 | V172: =(V92*(1-Inputs!$S$4)*('Subscriber Mgt'!U$90/'Subscriber Mgt'!U$87)) -> 24294.45461 | W172: =(W92*(1-Inputs!$S$4)*('Subscriber Mgt'!V$90/'Subscriber Mgt'!V$87)) -> 24172.98233 | X172: =(X92*(1-Inputs!$S$4)*('Subscriber Mgt'!W$90/'Subscriber Mgt'!W$87)) -> 24052.11742 | Y172: =(Y92*(1-Inputs!$S$4)*('Subscriber Mgt'!X$90/'Subscriber Mgt'!X$87)) -> 23931.85684 | Z172: =(Z92*(1-Inputs!$S$4)*('Subscriber Mgt'!Y$90/'Subscriber Mgt'!Y$87)) -> 23812.19755 | AA172: =(AA92*(1-Inputs!$S$4)*('Subscriber Mgt'!Z$90/'Subscriber Mgt'!Z$87)) -> 23693.13656 | AB172: =(AB92*(1-Inputs!$S$4)*('Subscriber Mgt'!AA$90/'Subscriber Mgt'!AA$87)) -> 23574.67088 | AC172: =(AC92*(1-Inputs!$S$4)*('Subscriber Mgt'!AB$90/'Subscriber Mgt'!AB$87)) -> 23456.79753 | AD172: =(AD92*(1-Inputs!$S$4)*('Subscriber Mgt'!AC$90/'Subscriber Mgt'!AC$87)) -> 23339.51354
B173: March | C173: 47360.1375 | D173: kWh's per mo. | F173: =(F93*(1-Inputs!$S$4)*('Subscriber Mgt'!E$90/'Subscriber Mgt'!E$87)) -> 23915.09343 | G173: =(G93*(1-Inputs!$S$4)*('Subscriber Mgt'!F$90/'Subscriber Mgt'!F$87)) -> 46887.72013 | H173: =(H93*(1-Inputs!$S$4)*('Subscriber Mgt'!G$90/'Subscriber Mgt'!G$87)) -> 46653.28153 | I173: =(I93*(1-Inputs!$S$4)*('Subscriber Mgt'!H$90/'Subscriber Mgt'!H$87)) -> 46420.01512 | J173: =(J93*(1-Inputs!$S$4)*('Subscriber Mgt'!I$90/'Subscriber Mgt'!I$87)) -> 46187.91504 | K173: =(K93*(1-Inputs!$S$4)*('Subscriber Mgt'!J$90/'Subscriber Mgt'!J$87)) -> 45956.97547 | L173: =(L93*(1-Inputs!$S$4)*('Subscriber Mgt'!K$90/'Subscriber Mgt'!K$87)) -> 45727.19059 | M173: =(M93*(1-Inputs!$S$4)*('Subscriber Mgt'!L$90/'Subscriber Mgt'!L$87)) -> 45498.55464 | N173: =(N93*(1-Inputs!$S$4)*('Subscriber Mgt'!M$90/'Subscriber Mgt'!M$87)) -> 45271.06187 | O173: =(O93*(1-Inputs!$S$4)*('Subscriber Mgt'!N$90/'Subscriber Mgt'!N$87)) -> 45044.70656 | P173: =(P93*(1-Inputs!$S$4)*('Subscriber Mgt'!O$90/'Subscriber Mgt'!O$87)) -> 44819.48302 | Q173: =(Q93*(1-Inputs!$S$4)*('Subscriber Mgt'!P$90/'Subscriber Mgt'!P$87)) -> 44595.38561 | R173: =(R93*(1-Inputs!$S$4)*('Subscriber Mgt'!Q$90/'Subscriber Mgt'!Q$87)) -> 44372.40868 | S173: =(S93*(1-Inputs!$S$4)*('Subscriber Mgt'!R$90/'Subscriber Mgt'!R$87)) -> 44150.54664 | T173: =(T93*(1-Inputs!$S$4)*('Subscriber Mgt'!S$90/'Subscriber Mgt'!S$87)) -> 43929.7939 | U173: =(U93*(1-Inputs!$S$4)*('Subscriber Mgt'!T$90/'Subscriber Mgt'!T$87)) -> 43710.14493 | V173: =(V93*(1-Inputs!$S$4)*('Subscriber Mgt'!U$90/'Subscriber Mgt'!U$87)) -> 43491.59421 | W173: =(W93*(1-Inputs!$S$4)*('Subscriber Mgt'!V$90/'Subscriber Mgt'!V$87)) -> 43274.13624 | X173: =(X93*(1-Inputs!$S$4)*('Subscriber Mgt'!W$90/'Subscriber Mgt'!W$87)) -> 43057.76556 | Y173: =(Y93*(1-Inputs!$S$4)*('Subscriber Mgt'!X$90/'Subscriber Mgt'!X$87)) -> 42842.47673 | Z173: =(Z93*(1-Inputs!$S$4)*('Subscriber Mgt'!Y$90/'Subscriber Mgt'!Y$87)) -> 42628.26435 | AA173: =(AA93*(1-Inputs!$S$4)*('Subscriber Mgt'!Z$90/'Subscriber Mgt'!Z$87)) -> 42415.12302 | AB173: =(AB93*(1-Inputs!$S$4)*('Subscriber Mgt'!AA$90/'Subscriber Mgt'!AA$87)) -> 42203.04741 | AC173: =(AC93*(1-Inputs!$S$4)*('Subscriber Mgt'!AB$90/'Subscriber Mgt'!AB$87)) -> 41992.03217 | AD173: =(AD93*(1-Inputs!$S$4)*('Subscriber Mgt'!AC$90/'Subscriber Mgt'!AC$87)) -> 41782.07201
B174: April | C174: 60197.83594 | D174: kWh's per mo. | F174: =(F94*(1-Inputs!$S$4)*('Subscriber Mgt'!E$90/'Subscriber Mgt'!E$87)) -> 30397.64973 | G174: =(G94*(1-Inputs!$S$4)*('Subscriber Mgt'!F$90/'Subscriber Mgt'!F$87)) -> 59597.36252 | H174: =(H94*(1-Inputs!$S$4)*('Subscriber Mgt'!G$90/'Subscriber Mgt'!G$87)) -> 59299.37571 | I174: =(I94*(1-Inputs!$S$4)*('Subscriber Mgt'!H$90/'Subscriber Mgt'!H$87)) -> 59002.87883 | J174: =(J94*(1-Inputs!$S$4)*('Subscriber Mgt'!I$90/'Subscriber Mgt'!I$87)) -> 58707.86444 | K174: =(K94*(1-Inputs!$S$4)*('Subscriber Mgt'!J$90/'Subscriber Mgt'!J$87)) -> 58414.32512 | L174: =(L94*(1-Inputs!$S$4)*('Subscriber Mgt'!K$90/'Subscriber Mgt'!K$87)) -> 58122.25349 | M174: =(M94*(1-Inputs!$S$4)*('Subscriber Mgt'!L$90/'Subscriber Mgt'!L$87)) -> 57831.64222 | N174: =(N94*(1-Inputs!$S$4)*('Subscriber Mgt'!M$90/'Subscriber Mgt'!M$87)) -> 57542.48401 | O174: =(O94*(1-Inputs!$S$4)*('Subscriber Mgt'!N$90/'Subscriber Mgt'!N$87)) -> 57254.77159 | P174: =(P94*(1-Inputs!$S$4)*('Subscriber Mgt'!O$90/'Subscriber Mgt'!O$87)) -> 56968.49773 | Q174: =(Q94*(1-Inputs!$S$4)*('Subscriber Mgt'!P$90/'Subscriber Mgt'!P$87)) -> 56683.65525 | R174: =(R94*(1-Inputs!$S$4)*('Subscriber Mgt'!Q$90/'Subscriber Mgt'!Q$87)) -> 56400.23697 | S174: =(S94*(1-Inputs!$S$4)*('Subscriber Mgt'!R$90/'Subscriber Mgt'!R$87)) -> 56118.23578 | T174: =(T94*(1-Inputs!$S$4)*('Subscriber Mgt'!S$90/'Subscriber Mgt'!S$87)) -> 55837.64461 | U174: =(U94*(1-Inputs!$S$4)*('Subscriber Mgt'!T$90/'Subscriber Mgt'!T$87)) -> 55558.45638 | V174: =(V94*(1-Inputs!$S$4)*('Subscriber Mgt'!U$90/'Subscriber Mgt'!U$87)) -> 55280.6641 | W174: =(W94*(1-Inputs!$S$4)*('Subscriber Mgt'!V$90/'Subscriber Mgt'!V$87)) -> 55004.26078 | X174: =(X94*(1-Inputs!$S$4)*('Subscriber Mgt'!W$90/'Subscriber Mgt'!W$87)) -> 54729.23948 | Y174: =(Y94*(1-Inputs!$S$4)*('Subscriber Mgt'!X$90/'Subscriber Mgt'!X$87)) -> 54455.59328 | Z174: =(Z94*(1-Inputs!$S$4)*('Subscriber Mgt'!Y$90/'Subscriber Mgt'!Y$87)) -> 54183.31531 | AA174: =(AA94*(1-Inputs!$S$4)*('Subscriber Mgt'!Z$90/'Subscriber Mgt'!Z$87)) -> 53912.39874 | AB174: =(AB94*(1-Inputs!$S$4)*('Subscriber Mgt'!AA$90/'Subscriber Mgt'!AA$87)) -> 53642.83674 | AC174: =(AC94*(1-Inputs!$S$4)*('Subscriber Mgt'!AB$90/'Subscriber Mgt'!AB$87)) -> 53374.62256 | AD174: =(AD94*(1-Inputs!$S$4)*('Subscriber Mgt'!AC$90/'Subscriber Mgt'!AC$87)) -> 53107.74945
B175: May | C175: 82257.8625 | D175: kWh's per mo. | F175: =(F95*(1-Inputs!$S$4)*('Subscriber Mgt'!E$90/'Subscriber Mgt'!E$87)) -> 41537.13589 | G175: =(G95*(1-Inputs!$S$4)*('Subscriber Mgt'!F$90/'Subscriber Mgt'!F$87)) -> 81437.34032 | H175: =(H95*(1-Inputs!$S$4)*('Subscriber Mgt'!G$90/'Subscriber Mgt'!G$87)) -> 81030.15362 | I175: =(I95*(1-Inputs!$S$4)*('Subscriber Mgt'!H$90/'Subscriber Mgt'!H$87)) -> 80625.00285 | J175: =(J95*(1-Inputs!$S$4)*('Subscriber Mgt'!I$90/'Subscriber Mgt'!I$87)) -> 80221.87784 | K175: =(K95*(1-Inputs!$S$4)*('Subscriber Mgt'!J$90/'Subscriber Mgt'!J$87)) -> 79820.76845 | L175: =(L95*(1-Inputs!$S$4)*('Subscriber Mgt'!K$90/'Subscriber Mgt'!K$87)) -> 79421.66461 | M175: =(M95*(1-Inputs!$S$4)*('Subscriber Mgt'!L$90/'Subscriber Mgt'!L$87)) -> 79024.55628 | N175: =(N95*(1-Inputs!$S$4)*('Subscriber Mgt'!M$90/'Subscriber Mgt'!M$87)) -> 78629.4335 | O175: =(O95*(1-Inputs!$S$4)*('Subscriber Mgt'!N$90/'Subscriber Mgt'!N$87)) -> 78236.28633 | P175: =(P95*(1-Inputs!$S$4)*('Subscriber Mgt'!O$90/'Subscriber Mgt'!O$87)) -> 77845.1049 | Q175: =(Q95*(1-Inputs!$S$4)*('Subscriber Mgt'!P$90/'Subscriber Mgt'!P$87)) -> 77455.87938 | R175: =(R95*(1-Inputs!$S$4)*('Subscriber Mgt'!Q$90/'Subscriber Mgt'!Q$87)) -> 77068.59998 | S175: =(S95*(1-Inputs!$S$4)*('Subscriber Mgt'!R$90/'Subscriber Mgt'!R$87)) -> 76683.25698 | T175: =(T95*(1-Inputs!$S$4)*('Subscriber Mgt'!S$90/'Subscriber Mgt'!S$87)) -> 76299.8407 | U175: =(U95*(1-Inputs!$S$4)*('Subscriber Mgt'!T$90/'Subscriber Mgt'!T$87)) -> 75918.34149 | V175: =(V95*(1-Inputs!$S$4)*('Subscriber Mgt'!U$90/'Subscriber Mgt'!U$87)) -> 75538.74979 | W175: =(W95*(1-Inputs!$S$4)*('Subscriber Mgt'!V$90/'Subscriber Mgt'!V$87)) -> 75161.05604 | X175: =(X95*(1-Inputs!$S$4)*('Subscriber Mgt'!W$90/'Subscriber Mgt'!W$87)) -> 74785.25076 | Y175: =(Y95*(1-Inputs!$S$4)*('Subscriber Mgt'!X$90/'Subscriber Mgt'!X$87)) -> 74411.3245 | Z175: =(Z95*(1-Inputs!$S$4)*('Subscriber Mgt'!Y$90/'Subscriber Mgt'!Y$87)) -> 74039.26788 | AA175: =(AA95*(1-Inputs!$S$4)*('Subscriber Mgt'!Z$90/'Subscriber Mgt'!Z$87)) -> 73669.07154 | AB175: =(AB95*(1-Inputs!$S$4)*('Subscriber Mgt'!AA$90/'Subscriber Mgt'!AA$87)) -> 73300.72618 | AC175: =(AC95*(1-Inputs!$S$4)*('Subscriber Mgt'!AB$90/'Subscriber Mgt'!AB$87)) -> 72934.22255 | AD175: =(AD95*(1-Inputs!$S$4)*('Subscriber Mgt'!AC$90/'Subscriber Mgt'!AC$87)) -> 72569.55144
B176: June | C176: 83324.1375 | D176: kWh's per mo. | F176: =(F96*(1-Inputs!$S$4)*('Subscriber Mgt'!E$90/'Subscriber Mgt'!E$87)) -> 42075.56478 | G176: =(G96*(1-Inputs!$S$4)*('Subscriber Mgt'!F$90/'Subscriber Mgt'!F$87)) -> 82492.97923 | H176: =(H96*(1-Inputs!$S$4)*('Subscriber Mgt'!G$90/'Subscriber Mgt'!G$87)) -> 82080.51433 | I176: =(I96*(1-Inputs!$S$4)*('Subscriber Mgt'!H$90/'Subscriber Mgt'!H$87)) -> 81670.11176 | J176: =(J96*(1-Inputs!$S$4)*('Subscriber Mgt'!I$90/'Subscriber Mgt'!I$87)) -> 81261.7612 | K176: =(K96*(1-Inputs!$S$4)*('Subscriber Mgt'!J$90/'Subscriber Mgt'!J$87)) -> 80855.4524 | L176: =(L96*(1-Inputs!$S$4)*('Subscriber Mgt'!K$90/'Subscriber Mgt'!K$87)) -> 80451.17513 | M176: =(M96*(1-Inputs!$S$4)*('Subscriber Mgt'!L$90/'Subscriber Mgt'!L$87)) -> 80048.91926 | N176: =(N96*(1-Inputs!$S$4)*('Subscriber Mgt'!M$90/'Subscriber Mgt'!M$87)) -> 79648.67466 | O176: =(O96*(1-Inputs!$S$4)*('Subscriber Mgt'!N$90/'Subscriber Mgt'!N$87)) -> 79250.43129 | P176: =(P96*(1-Inputs!$S$4)*('Subscriber Mgt'!O$90/'Subscriber Mgt'!O$87)) -> 78854.17913 | Q176: =(Q96*(1-Inputs!$S$4)*('Subscriber Mgt'!P$90/'Subscriber Mgt'!P$87)) -> 78459.90824 | R176: =(R96*(1-Inputs!$S$4)*('Subscriber Mgt'!Q$90/'Subscriber Mgt'!Q$87)) -> 78067.6087 | S176: =(S96*(1-Inputs!$S$4)*('Subscriber Mgt'!R$90/'Subscriber Mgt'!R$87)) -> 77677.27065 | T176: =(T96*(1-Inputs!$S$4)*('Subscriber Mgt'!S$90/'Subscriber Mgt'!S$87)) -> 77288.8843 | U176: =(U96*(1-Inputs!$S$4)*('Subscriber Mgt'!T$90/'Subscriber Mgt'!T$87)) -> 76902.43988 | V176: =(V96*(1-Inputs!$S$4)*('Subscriber Mgt'!U$90/'Subscriber Mgt'!U$87)) -> 76517.92768 | W176: =(W96*(1-Inputs!$S$4)*('Subscriber Mgt'!V$90/'Subscriber Mgt'!V$87)) -> 76135.33804 | X176: =(X96*(1-Inputs!$S$4)*('Subscriber Mgt'!W$90/'Subscriber Mgt'!W$87)) -> 75754.66135 | Y176: =(Y96*(1-Inputs!$S$4)*('Subscriber Mgt'!X$90/'Subscriber Mgt'!X$87)) -> 75375.88804 | Z176: =(Z96*(1-Inputs!$S$4)*('Subscriber Mgt'!Y$90/'Subscriber Mgt'!Y$87)) -> 74999.0086 | AA176: =(AA96*(1-Inputs!$S$4)*('Subscriber Mgt'!Z$90/'Subscriber Mgt'!Z$87)) -> 74624.01356 | AB176: =(AB96*(1-Inputs!$S$4)*('Subscriber Mgt'!AA$90/'Subscriber Mgt'!AA$87)) -> 74250.89349 | AC176: =(AC96*(1-Inputs!$S$4)*('Subscriber Mgt'!AB$90/'Subscriber Mgt'!AB$87)) -> 73879.63902 | AD176: =(AD96*(1-Inputs!$S$4)*('Subscriber Mgt'!AC$90/'Subscriber Mgt'!AC$87)) -> 73510.24083
B177: July | C177: 91812 | D177: kWh's per mo. | F177: =(F97*(1-Inputs!$S$4)*('Subscriber Mgt'!E$90/'Subscriber Mgt'!E$87)) -> 46361.61705 | G177: =(G97*(1-Inputs!$S$4)*('Subscriber Mgt'!F$90/'Subscriber Mgt'!F$87)) -> 90896.1753 | H177: =(H97*(1-Inputs!$S$4)*('Subscriber Mgt'!G$90/'Subscriber Mgt'!G$87)) -> 90441.69442 | I177: =(I97*(1-Inputs!$S$4)*('Subscriber Mgt'!H$90/'Subscriber Mgt'!H$87)) -> 89989.48595 | J177: =(J97*(1-Inputs!$S$4)*('Subscriber Mgt'!I$90/'Subscriber Mgt'!I$87)) -> 89539.53852 | K177: =(K97*(1-Inputs!$S$4)*('Subscriber Mgt'!J$90/'Subscriber Mgt'!J$87)) -> 89091.84083 | L177: =(L97*(1-Inputs!$S$4)*('Subscriber Mgt'!K$90/'Subscriber Mgt'!K$87)) -> 88646.38162 | M177: =(M97*(1-Inputs!$S$4)*('Subscriber Mgt'!L$90/'Subscriber Mgt'!L$87)) -> 88203.14972 | N177: =(N97*(1-Inputs!$S$4)*('Subscriber Mgt'!M$90/'Subscriber Mgt'!M$87)) -> 87762.13397 | O177: =(O97*(1-Inputs!$S$4)*('Subscriber Mgt'!N$90/'Subscriber Mgt'!N$87)) -> 87323.3233 | P177: =(P97*(1-Inputs!$S$4)*('Subscriber Mgt'!O$90/'Subscriber Mgt'!O$87)) -> 86886.70668 | Q177: =(Q97*(1-Inputs!$S$4)*('Subscriber Mgt'!P$90/'Subscriber Mgt'!P$87)) -> 86452.27315 | R177: =(R97*(1-Inputs!$S$4)*('Subscriber Mgt'!Q$90/'Subscriber Mgt'!Q$87)) -> 86020.01178 | S177: =(S97*(1-Inputs!$S$4)*('Subscriber Mgt'!R$90/'Subscriber Mgt'!R$87)) -> 85589.91172 | T177: =(T97*(1-Inputs!$S$4)*('Subscriber Mgt'!S$90/'Subscriber Mgt'!S$87)) -> 85161.96217 | U177: =(U97*(1-Inputs!$S$4)*('Subscriber Mgt'!T$90/'Subscriber Mgt'!T$87)) -> 84736.15235 | V177: =(V97*(1-Inputs!$S$4)*('Subscriber Mgt'!U$90/'Subscriber Mgt'!U$87)) -> 84312.47159 | W177: =(W97*(1-Inputs!$S$4)*('Subscriber Mgt'!V$90/'Subscriber Mgt'!V$87)) -> 83890.90923 | X177: =(X97*(1-Inputs!$S$4)*('Subscriber Mgt'!W$90/'Subscriber Mgt'!W$87)) -> 83471.45469 | Y177: =(Y97*(1-Inputs!$S$4)*('Subscriber Mgt'!X$90/'Subscriber Mgt'!X$87)) -> 83054.09741 | Z177: =(Z97*(1-Inputs!$S$4)*('Subscriber Mgt'!Y$90/'Subscriber Mgt'!Y$87)) -> 82638.82693 | AA177: =(AA97*(1-Inputs!$S$4)*('Subscriber Mgt'!Z$90/'Subscriber Mgt'!Z$87)) -> 82225.63279 | AB177: =(AB97*(1-Inputs!$S$4)*('Subscriber Mgt'!AA$90/'Subscriber Mgt'!AA$87)) -> 81814.50463 | AC177: =(AC97*(1-Inputs!$S$4)*('Subscriber Mgt'!AB$90/'Subscriber Mgt'!AB$87)) -> 81405.43211 | AD177: =(AD97*(1-Inputs!$S$4)*('Subscriber Mgt'!AC$90/'Subscriber Mgt'!AC$87)) -> 80998.40495
B178: August | C178: 74449.54688 | D178: kWh's per mo. | F178: =(F98*(1-Inputs!$S$4)*('Subscriber Mgt'!E$90/'Subscriber Mgt'!E$87)) -> 37594.22931 | G178: =(G98*(1-Inputs!$S$4)*('Subscriber Mgt'!F$90/'Subscriber Mgt'!F$87)) -> 73706.91264 | H178: =(H98*(1-Inputs!$S$4)*('Subscriber Mgt'!G$90/'Subscriber Mgt'!G$87)) -> 73338.37808 | I178: =(I98*(1-Inputs!$S$4)*('Subscriber Mgt'!H$90/'Subscriber Mgt'!H$87)) -> 72971.68619 | J178: =(J98*(1-Inputs!$S$4)*('Subscriber Mgt'!I$90/'Subscriber Mgt'!I$87)) -> 72606.82776 | K178: =(K98*(1-Inputs!$S$4)*('Subscriber Mgt'!J$90/'Subscriber Mgt'!J$87)) -> 72243.79362 | L178: =(L98*(1-Inputs!$S$4)*('Subscriber Mgt'!K$90/'Subscriber Mgt'!K$87)) -> 71882.57465 | M178: =(M98*(1-Inputs!$S$4)*('Subscriber Mgt'!L$90/'Subscriber Mgt'!L$87)) -> 71523.16178 | N178: =(N98*(1-Inputs!$S$4)*('Subscriber Mgt'!M$90/'Subscriber Mgt'!M$87)) -> 71165.54597 | O178: =(O98*(1-Inputs!$S$4)*('Subscriber Mgt'!N$90/'Subscriber Mgt'!N$87)) -> 70809.71824 | P178: =(P98*(1-Inputs!$S$4)*('Subscriber Mgt'!O$90/'Subscriber Mgt'!O$87)) -> 70455.66965 | Q178: =(Q98*(1-Inputs!$S$4)*('Subscriber Mgt'!P$90/'Subscriber Mgt'!P$87)) -> 70103.3913 | R178: =(R98*(1-Inputs!$S$4)*('Subscriber Mgt'!Q$90/'Subscriber Mgt'!Q$87)) -> 69752.87435 | S178: =(S98*(1-Inputs!$S$4)*('Subscriber Mgt'!R$90/'Subscriber Mgt'!R$87)) -> 69404.10997 | T178: =(T98*(1-Inputs!$S$4)*('Subscriber Mgt'!S$90/'Subscriber Mgt'!S$87)) -> 69057.08942 | U178: =(U98*(1-Inputs!$S$4)*('Subscriber Mgt'!T$90/'Subscriber Mgt'!T$87)) -> 68711.80398 | V178: =(V98*(1-Inputs!$S$4)*('Subscriber Mgt'!U$90/'Subscriber Mgt'!U$87)) -> 68368.24496 | W178: =(W98*(1-Inputs!$S$4)*('Subscriber Mgt'!V$90/'Subscriber Mgt'!V$87)) -> 68026.40373 | X178: =(X98*(1-Inputs!$S$4)*('Subscriber Mgt'!W$90/'Subscriber Mgt'!W$87)) -> 67686.27171 | Y178: =(Y98*(1-Inputs!$S$4)*('Subscriber Mgt'!X$90/'Subscriber Mgt'!X$87)) -> 67347.84035 | Z178: =(Z98*(1-Inputs!$S$4)*('Subscriber Mgt'!Y$90/'Subscriber Mgt'!Y$87)) -> 67011.10115 | AA178: =(AA98*(1-Inputs!$S$4)*('Subscriber Mgt'!Z$90/'Subscriber Mgt'!Z$87)) -> 66676.04565 | AB178: =(AB98*(1-Inputs!$S$4)*('Subscriber Mgt'!AA$90/'Subscriber Mgt'!AA$87)) -> 66342.66542 | AC178: =(AC98*(1-Inputs!$S$4)*('Subscriber Mgt'!AB$90/'Subscriber Mgt'!AB$87)) -> 66010.95209 | AD178: =(AD98*(1-Inputs!$S$4)*('Subscriber Mgt'!AC$90/'Subscriber Mgt'!AC$87)) -> 65680.89733
B179: September | C179: 55181.55 | D179: kWh's per mo. | F179: =(F99*(1-Inputs!$S$4)*('Subscriber Mgt'!E$90/'Subscriber Mgt'!E$87)) -> 27864.61344 | G179: =(G99*(1-Inputs!$S$4)*('Subscriber Mgt'!F$90/'Subscriber Mgt'!F$87)) -> 54631.11404 | H179: =(H99*(1-Inputs!$S$4)*('Subscriber Mgt'!G$90/'Subscriber Mgt'!G$87)) -> 54357.95847 | I179: =(I99*(1-Inputs!$S$4)*('Subscriber Mgt'!H$90/'Subscriber Mgt'!H$87)) -> 54086.16868 | J179: =(J99*(1-Inputs!$S$4)*('Subscriber Mgt'!I$90/'Subscriber Mgt'!I$87)) -> 53815.73783 | K179: =(K99*(1-Inputs!$S$4)*('Subscriber Mgt'!J$90/'Subscriber Mgt'!J$87)) -> 53546.65914 | L179: =(L99*(1-Inputs!$S$4)*('Subscriber Mgt'!K$90/'Subscriber Mgt'!K$87)) -> 53278.92585 | M179: =(M99*(1-Inputs!$S$4)*('Subscriber Mgt'!L$90/'Subscriber Mgt'!L$87)) -> 53012.53122 | N179: =(N99*(1-Inputs!$S$4)*('Subscriber Mgt'!M$90/'Subscriber Mgt'!M$87)) -> 52747.46856 | O179: =(O99*(1-Inputs!$S$4)*('Subscriber Mgt'!N$90/'Subscriber Mgt'!N$87)) -> 52483.73122 | P179: =(P99*(1-Inputs!$S$4)*('Subscriber Mgt'!O$90/'Subscriber Mgt'!O$87)) -> 52221.31256 | Q179: =(Q99*(1-Inputs!$S$4)*('Subscriber Mgt'!P$90/'Subscriber Mgt'!P$87)) -> 51960.206 | R179: =(R99*(1-Inputs!$S$4)*('Subscriber Mgt'!Q$90/'Subscriber Mgt'!Q$87)) -> 51700.40497 | S179: =(S99*(1-Inputs!$S$4)*('Subscriber Mgt'!R$90/'Subscriber Mgt'!R$87)) -> 51441.90295 | T179: =(T99*(1-Inputs!$S$4)*('Subscriber Mgt'!S$90/'Subscriber Mgt'!S$87)) -> 51184.69343 | U179: =(U99*(1-Inputs!$S$4)*('Subscriber Mgt'!T$90/'Subscriber Mgt'!T$87)) -> 50928.76996 | V179: =(V99*(1-Inputs!$S$4)*('Subscriber Mgt'!U$90/'Subscriber Mgt'!U$87)) -> 50674.12611 | W179: =(W99*(1-Inputs!$S$4)*('Subscriber Mgt'!V$90/'Subscriber Mgt'!V$87)) -> 50420.75548 | X179: =(X99*(1-Inputs!$S$4)*('Subscriber Mgt'!W$90/'Subscriber Mgt'!W$87)) -> 50168.65171 | Y179: =(Y99*(1-Inputs!$S$4)*('Subscriber Mgt'!X$90/'Subscriber Mgt'!X$87)) -> 49917.80845 | Z179: =(Z99*(1-Inputs!$S$4)*('Subscriber Mgt'!Y$90/'Subscriber Mgt'!Y$87)) -> 49668.21941 | AA179: =(AA99*(1-Inputs!$S$4)*('Subscriber Mgt'!Z$90/'Subscriber Mgt'!Z$87)) -> 49419.87831 | AB179: =(AB99*(1-Inputs!$S$4)*('Subscriber Mgt'!AA$90/'Subscriber Mgt'!AA$87)) -> 49172.77892 | AC179: =(AC99*(1-Inputs!$S$4)*('Subscriber Mgt'!AB$90/'Subscriber Mgt'!AB$87)) -> 48926.91502 | AD179: =(AD99*(1-Inputs!$S$4)*('Subscriber Mgt'!AC$90/'Subscriber Mgt'!AC$87)) -> 48682.28045
B180: October | C180: 37984.22109 | D180: kWh's per mo. | F180: =(F100*(1-Inputs!$S$4)*('Subscriber Mgt'!E$90/'Subscriber Mgt'!E$87)) -> 19180.60724 | G180: =(G100*(1-Inputs!$S$4)*('Subscriber Mgt'!F$90/'Subscriber Mgt'!F$87)) -> 37605.32849 | H180: =(H100*(1-Inputs!$S$4)*('Subscriber Mgt'!G$90/'Subscriber Mgt'!G$87)) -> 37417.30185 | I180: =(I100*(1-Inputs!$S$4)*('Subscriber Mgt'!H$90/'Subscriber Mgt'!H$87)) -> 37230.21534 | J180: =(J100*(1-Inputs!$S$4)*('Subscriber Mgt'!I$90/'Subscriber Mgt'!I$87)) -> 37044.06426 | K180: =(K100*(1-Inputs!$S$4)*('Subscriber Mgt'!J$90/'Subscriber Mgt'!J$87)) -> 36858.84394 | L180: =(L100*(1-Inputs!$S$4)*('Subscriber Mgt'!K$90/'Subscriber Mgt'!K$87)) -> 36674.54972 | M180: =(M100*(1-Inputs!$S$4)*('Subscriber Mgt'!L$90/'Subscriber Mgt'!L$87)) -> 36491.17697 | N180: =(N100*(1-Inputs!$S$4)*('Subscriber Mgt'!M$90/'Subscriber Mgt'!M$87)) -> 36308.72109 | O180: =(O100*(1-Inputs!$S$4)*('Subscriber Mgt'!N$90/'Subscriber Mgt'!N$87)) -> 36127.17748 | P180: =(P100*(1-Inputs!$S$4)*('Subscriber Mgt'!O$90/'Subscriber Mgt'!O$87)) -> 35946.54159 | Q180: =(Q100*(1-Inputs!$S$4)*('Subscriber Mgt'!P$90/'Subscriber Mgt'!P$87)) -> 35766.80888 | R180: =(R100*(1-Inputs!$S$4)*('Subscriber Mgt'!Q$90/'Subscriber Mgt'!Q$87)) -> 35587.97484 | S180: =(S100*(1-Inputs!$S$4)*('Subscriber Mgt'!R$90/'Subscriber Mgt'!R$87)) -> 35410.03497 | T180: =(T100*(1-Inputs!$S$4)*('Subscriber Mgt'!S$90/'Subscriber Mgt'!S$87)) -> 35232.98479 | U180: =(U100*(1-Inputs!$S$4)*('Subscriber Mgt'!T$90/'Subscriber Mgt'!T$87)) -> 35056.81987 | V180: =(V100*(1-Inputs!$S$4)*('Subscriber Mgt'!U$90/'Subscriber Mgt'!U$87)) -> 34881.53577 | W180: =(W100*(1-Inputs!$S$4)*('Subscriber Mgt'!V$90/'Subscriber Mgt'!V$87)) -> 34707.12809 | X180: =(X100*(1-Inputs!$S$4)*('Subscriber Mgt'!W$90/'Subscriber Mgt'!W$87)) -> 34533.59245 | Y180: =(Y100*(1-Inputs!$S$4)*('Subscriber Mgt'!X$90/'Subscriber Mgt'!X$87)) -> 34360.92449 | Z180: =(Z100*(1-Inputs!$S$4)*('Subscriber Mgt'!Y$90/'Subscriber Mgt'!Y$87)) -> 34189.11986 | AA180: =(AA100*(1-Inputs!$S$4)*('Subscriber Mgt'!Z$90/'Subscriber Mgt'!Z$87)) -> 34018.17426 | AB180: =(AB100*(1-Inputs!$S$4)*('Subscriber Mgt'!AA$90/'Subscriber Mgt'!AA$87)) -> 33848.08339 | AC180: =(AC100*(1-Inputs!$S$4)*('Subscriber Mgt'!AB$90/'Subscriber Mgt'!AB$87)) -> 33678.84298 | AD180: =(AD100*(1-Inputs!$S$4)*('Subscriber Mgt'!AC$90/'Subscriber Mgt'!AC$87)) -> 33510.44876
B181: November | C181: 19963.00781 | D181: kWh's per mo. | F181: =(F101*(1-Inputs!$S$4)*('Subscriber Mgt'!E$90/'Subscriber Mgt'!E$87)) -> 10080.57033 | G181: =(G101*(1-Inputs!$S$4)*('Subscriber Mgt'!F$90/'Subscriber Mgt'!F$87)) -> 19763.87681 | H181: =(H101*(1-Inputs!$S$4)*('Subscriber Mgt'!G$90/'Subscriber Mgt'!G$87)) -> 19665.05743 | I181: =(I101*(1-Inputs!$S$4)*('Subscriber Mgt'!H$90/'Subscriber Mgt'!H$87)) -> 19566.73214 | J181: =(J101*(1-Inputs!$S$4)*('Subscriber Mgt'!I$90/'Subscriber Mgt'!I$87)) -> 19468.89848 | K181: =(K101*(1-Inputs!$S$4)*('Subscriber Mgt'!J$90/'Subscriber Mgt'!J$87)) -> 19371.55399 | L181: =(L101*(1-Inputs!$S$4)*('Subscriber Mgt'!K$90/'Subscriber Mgt'!K$87)) -> 19274.69622 | M181: =(M101*(1-Inputs!$S$4)*('Subscriber Mgt'!L$90/'Subscriber Mgt'!L$87)) -> 19178.32273 | N181: =(N101*(1-Inputs!$S$4)*('Subscriber Mgt'!M$90/'Subscriber Mgt'!M$87)) -> 19082.43112 | O181: =(O101*(1-Inputs!$S$4)*('Subscriber Mgt'!N$90/'Subscriber Mgt'!N$87)) -> 18987.01897 | P181: =(P101*(1-Inputs!$S$4)*('Subscriber Mgt'!O$90/'Subscriber Mgt'!O$87)) -> 18892.08387 | Q181: =(Q101*(1-Inputs!$S$4)*('Subscriber Mgt'!P$90/'Subscriber Mgt'!P$87)) -> 18797.62345 | R181: =(R101*(1-Inputs!$S$4)*('Subscriber Mgt'!Q$90/'Subscriber Mgt'!Q$87)) -> 18703.63533 | S181: =(S101*(1-Inputs!$S$4)*('Subscriber Mgt'!R$90/'Subscriber Mgt'!R$87)) -> 18610.11716 | T181: =(T101*(1-Inputs!$S$4)*('Subscriber Mgt'!S$90/'Subscriber Mgt'!S$87)) -> 18517.06657 | U181: =(U101*(1-Inputs!$S$4)*('Subscriber Mgt'!T$90/'Subscriber Mgt'!T$87)) -> 18424.48124 | V181: =(V101*(1-Inputs!$S$4)*('Subscriber Mgt'!U$90/'Subscriber Mgt'!U$87)) -> 18332.35883 | W181: =(W101*(1-Inputs!$S$4)*('Subscriber Mgt'!V$90/'Subscriber Mgt'!V$87)) -> 18240.69704 | X181: =(X101*(1-Inputs!$S$4)*('Subscriber Mgt'!W$90/'Subscriber Mgt'!W$87)) -> 18149.49355 | Y181: =(Y101*(1-Inputs!$S$4)*('Subscriber Mgt'!X$90/'Subscriber Mgt'!X$87)) -> 18058.74608 | Z181: =(Z101*(1-Inputs!$S$4)*('Subscriber Mgt'!Y$90/'Subscriber Mgt'!Y$87)) -> 17968.45235 | AA181: =(AA101*(1-Inputs!$S$4)*('Subscriber Mgt'!Z$90/'Subscriber Mgt'!Z$87)) -> 17878.61009 | AB181: =(AB101*(1-Inputs!$S$4)*('Subscriber Mgt'!AA$90/'Subscriber Mgt'!AA$87)) -> 17789.21704 | AC181: =(AC101*(1-Inputs!$S$4)*('Subscriber Mgt'!AB$90/'Subscriber Mgt'!AB$87)) -> 17700.27096 | AD181: =(AD101*(1-Inputs!$S$4)*('Subscriber Mgt'!AC$90/'Subscriber Mgt'!AC$87)) -> 17611.7696
B182: December | C182: 14319.93281 | D182: kWh's per mo. | F182: =(F102*(1-Inputs!$S$4)*('Subscriber Mgt'!E$90/'Subscriber Mgt'!E$87)) -> 7231.029073 | G182: =(G102*(1-Inputs!$S$4)*('Subscriber Mgt'!F$90/'Subscriber Mgt'!F$87)) -> 14177.09148 | H182: =(H102*(1-Inputs!$S$4)*('Subscriber Mgt'!G$90/'Subscriber Mgt'!G$87)) -> 14106.20603 | I182: =(I102*(1-Inputs!$S$4)*('Subscriber Mgt'!H$90/'Subscriber Mgt'!H$87)) -> 14035.675 | J182: =(J102*(1-Inputs!$S$4)*('Subscriber Mgt'!I$90/'Subscriber Mgt'!I$87)) -> 13965.49662 | K182: =(K102*(1-Inputs!$S$4)*('Subscriber Mgt'!J$90/'Subscriber Mgt'!J$87)) -> 13895.66914 | L182: =(L102*(1-Inputs!$S$4)*('Subscriber Mgt'!K$90/'Subscriber Mgt'!K$87)) -> 13826.19079 | M182: =(M102*(1-Inputs!$S$4)*('Subscriber Mgt'!L$90/'Subscriber Mgt'!L$87)) -> 13757.05984 | N182: =(N102*(1-Inputs!$S$4)*('Subscriber Mgt'!M$90/'Subscriber Mgt'!M$87)) -> 13688.27454 | O182: =(O102*(1-Inputs!$S$4)*('Subscriber Mgt'!N$90/'Subscriber Mgt'!N$87)) -> 13619.83317 | P182: =(P102*(1-Inputs!$S$4)*('Subscriber Mgt'!O$90/'Subscriber Mgt'!O$87)) -> 13551.734 | Q182: =(Q102*(1-Inputs!$S$4)*('Subscriber Mgt'!P$90/'Subscriber Mgt'!P$87)) -> 13483.97533 | R182: =(R102*(1-Inputs!$S$4)*('Subscriber Mgt'!Q$90/'Subscriber Mgt'!Q$87)) -> 13416.55545 | S182: =(S102*(1-Inputs!$S$4)*('Subscriber Mgt'!R$90/'Subscriber Mgt'!R$87)) -> 13349.47268 | T182: =(T102*(1-Inputs!$S$4)*('Subscriber Mgt'!S$90/'Subscriber Mgt'!S$87)) -> 13282.72531 | U182: =(U102*(1-Inputs!$S$4)*('Subscriber Mgt'!T$90/'Subscriber Mgt'!T$87)) -> 13216.31169 | V182: =(V102*(1-Inputs!$S$4)*('Subscriber Mgt'!U$90/'Subscriber Mgt'!U$87)) -> 13150.23013 | W182: =(W102*(1-Inputs!$S$4)*('Subscriber Mgt'!V$90/'Subscriber Mgt'!V$87)) -> 13084.47898 | X182: =(X102*(1-Inputs!$S$4)*('Subscriber Mgt'!W$90/'Subscriber Mgt'!W$87)) -> 13019.05658 | Y182: =(Y102*(1-Inputs!$S$4)*('Subscriber Mgt'!X$90/'Subscriber Mgt'!X$87)) -> 12953.9613 | Z182: =(Z102*(1-Inputs!$S$4)*('Subscriber Mgt'!Y$90/'Subscriber Mgt'!Y$87)) -> 12889.19149 | AA182: =(AA102*(1-Inputs!$S$4)*('Subscriber Mgt'!Z$90/'Subscriber Mgt'!Z$87)) -> 12824.74554 | AB182: =(AB102*(1-Inputs!$S$4)*('Subscriber Mgt'!AA$90/'Subscriber Mgt'!AA$87)) -> 12760.62181 | AC182: =(AC102*(1-Inputs!$S$4)*('Subscriber Mgt'!AB$90/'Subscriber Mgt'!AB$87)) -> 12696.8187 | AD182: =(AD102*(1-Inputs!$S$4)*('Subscriber Mgt'!AC$90/'Subscriber Mgt'!AC$87)) -> 12633.3346
B183: Annual | C183: =SUM(C171:C182) -> 613245.5555 | D183: kWh's per yr. | F183: =SUM(F171:F182) -> 309666.0088 | G183: =SUM(G171:G182) -> 607128.4311 | H183: 604092.7889 | I183: 601072.325 | J183: 598066.9633 | K183: 595076.6285 | L183: 592101.2454 | M183: 589140.7391 | N183: 586195.0354 | O183: 583264.0603 | P183: 580347.74 | Q183: 577446.0013 | R183: 574558.7713 | S183: 571685.9774 | T183: 568827.5475 | U183: 565983.4098 | V183: 563153.4927 | W183: 560337.7253 | X183: 557536.0366 | Y183: 554748.3565 | Z183: 551974.6147 | AA183: 549214.7416 | AB183: 546468.6679 | AC183: 543736.3246 | AD183: =SUM(AD171:AD182) -> 541017.6429 | AE183: =SUM(E183:AD183) -> 14072841.28
B185: Subscriber Revenue Estimate
B186: Month | C186: Total Generation (kWh)
B187: January | C187: =C171 -> 19939.89609 | D187: $ per mo. | F187: =(F156)*F171 -> 600.2312813 | G187: =(G156)*G171 -> 1209.523394 | H187: =(H156)*H171 -> 1236.932403 | I187: 1264.962529 | J187: 1293.627845 | K187: 1322.942745 | L187: 1352.921951 | M187: 1383.580515 | N187: 1414.933833 | O187: 1446.997649 | P187: 1479.788062 | Q187: 1513.32154 | R187: 1547.614919 | S187: 1582.685421 | T187: 1618.550655 | U187: 1655.228631 | V187: 1692.737767 | W187: 1731.096898 | X187: 1770.325285 | Y187: 1810.442626 | Z187: 1851.469066 | AA187: 1893.425207 | AB187: 1936.332116 | AC187: 1980.211338 | AD187: 2025.084907
B188: February | C188: =C172 -> 26455.42734 | D188: $ per mo. | F188: =(F157)*F172 -> 796.3619759 | G188: 1604.745487 | H188: 1641.110624 | I188: 1678.299832 | J188: 1716.331785 | K188: 1755.225579 | L188: 1795.000746 | M188: 1835.677258 | N188: 1877.27554 | O188: 1919.816482 | P188: 1963.321443 | Q188: 2007.81227 | R188: 2053.311304 | S188: 2099.841391 | T188: 2147.425897 | U188: 2196.088715 | V188: 2245.854282 | W188: 2296.747586 | X188: 2348.794183 | Y188: 2402.020208 | Z188: 2456.452388 | AA188: 2512.118055 | AB188: 2569.045162 | AC188: 2627.262295 | AD188: 2686.798686
B189: March | C189: 47360.1375 | D189: $ per mo. | F189: 1425.636116 | G189: 2872.793016 | H189: 2937.893379 | I189: 3004.468981 | J189: 3072.553252 | K189: 3142.180381 | L189: 3213.385331 | M189: 3286.203856 | N189: 3360.672522 | O189: 3436.828722 | P189: 3514.710697 | Q189: 3594.357556 | R189: 3675.809293 | S189: 3759.106807 | T189: 3844.291927 | U189: 3931.407426 | V189: 4020.49705 | W189: 4111.605533 | X189: 4204.778626 | Y189: 4300.063115 | Z189: 4397.506845 | AA189: 4497.158748 | AB189: 4599.068862 | AC189: 4703.288362 | AD189: 4809.869579
B190: April | C190: 60197.83594 | D190: $ per mo. | F190: 1812.076855 | G190: 3651.508036 | H190: 3734.25486 | I190: 3818.876809 | J190: 3905.416377 | K190: 3993.917017 | L190: 4084.423171 | M190: 4176.980284 | N190: 4271.634834 | O190: 4368.434351 | P190: 4467.427442 | Q190: 4568.663815 | R190: 4672.194306 | S190: 4778.070901 | T190: 4886.346766 | U190: 4997.07627 | V190: 5110.315015 | W190: 5226.119864 | X190: 5344.548966 | Y190: 5465.66179 | Z190: 5589.519152 | AA190: 5716.183246 | AB190: 5845.717674 | AC190: 5978.187482 | AD190: 6113.659189
B191: May | C191: 82257.8625 | D191: $ per mo. | F191: 2476.12836 | G191: 4989.63528 | H191: 5102.705405 | I191: 5218.337812 | J191: 5336.590565 | K191: 5457.523044 | L191: 5581.195974 | M191: 5707.671456 | N191: 5837.012998 | O191: 5969.28555 | P191: 6104.55553 | Q191: 6242.890863 | R191: 6384.361013 | S191: 6529.037017 | T191: 6676.991525 | U191: 6828.29883 | V191: 6983.03491 | W191: 7141.277464 | X191: 7303.105953 | Y191: 7468.601637 | Z191: 7637.847618 | AA191: 7810.928883 | AB191: 7987.932343 | AC191: 8168.946878 | AD191: 8354.063383
B192: June | C192: 83324.1375 | D192: $ per mo. | F192: 2508.225398 | G192: 5054.313879 | H192: 5168.849686 | I192: 5285.980989 | J192: 5405.766604 | K192: 5528.266681 | L192: 5653.542732 | M192: 5781.657664 | N192: 5912.675809 | O192: 6046.662955 | P192: 6183.686384 | Q192: 6323.814901 | R192: 6467.118871 | S192: 6613.670252 | T192: 6763.542633 | U192: 6916.811273 | V192: 7073.553133 | W192: 7233.846921 | X192: 7397.773126 | Y192: 7565.414063 | Z192: 7736.853911 | AA192: 7912.178757 | AB192: 8091.47664 | AC192: 8274.837592 | AD192: 8462.353687
B193: July | C193: 91812 | D193: $ per mo. | F193: 2763.72726 | G193: 5569.174549 | H193: 5695.377614 | I193: 5824.440566 | J193: 5956.428213 | K193: 6091.406833 | L193: 6229.444203 | M193: 6370.609638 | N193: 6514.974023 | O193: 6662.60985 | P193: 6813.591252 | Q193: 6967.994043 | R193: 7125.895756 | S193: 7287.37568 | T193: 7452.5149 | U193: 7621.39634 | V193: 7794.104803 | W193: 7970.727011 | X193: 8151.351656 | Y193: 8336.069436 | Z193: 8524.973106 | AA193: 8718.157521 | AB193: 8915.719689 | AC193: 9117.758813 | AD193: 9324.376345
B194: August | C194: 74449.54688 | D194: $ per mo. | F194: 2241.082236 | G194: 4515.994877 | H194: 4618.331837 | I194: 4722.987855 | J194: 4830.015482 | K194: 4939.468463 | L194: 5051.401758 | M194: 5165.871573 | N194: 5282.935389 | O194: 5402.651988 | P194: 5525.081485 | Q194: 5650.285356 | R194: 5778.326473 | S194: 5909.269129 | T194: 6043.179077 | U194: 6180.123558 | V194: 6320.171338 | W194: 6463.39274 | X194: 6609.859683 | Y194: 6759.645713 | Z194: 6912.826045 | AA194: 7069.477596 | AB194: 7229.679028 | AC194: 7393.510784 | AD194: 7561.055132
B195: September | C195: 55181.55 | D195: $ per mo. | F195: 1661.076482 | G195: 3347.227855 | H195: 3423.079386 | I195: 3500.649788 | J195: 3579.978012 | K195: 3661.103894 | L195: 3744.068169 | M195: 3828.912498 | N195: 3915.679484 | O195: 4004.412697 | P195: 4095.156693 | Q195: 4187.957039 | R195: 4282.860334 | S195: 4379.914232 | T195: 4479.167468 | U195: 4580.669882 | V195: 4684.472442 | W195: 4790.627272 | X195: 4899.187677 | Y195: 5010.208169 | Z195: 5123.744496 | AA195: 5239.85367 | AB195: 5358.593994 | AC195: 5480.025093 | AD195: 5604.207941
B196: October | C196: 37984.22109 | D196: $ per mo. | F196: 1143.402031 | G196: 2304.064364 | H196: 2356.276767 | I196: 2409.672354 | J196: 2464.27794 | K196: 2520.120942 | L196: 2577.229403 | M196: 2635.631998 | N196: 2695.358055 | O196: 2756.437564 | P196: 2818.901195 | Q196: 2882.780315 | R196: 2948.107 | S196: 3014.914053 | T196: 3083.23502 | U196: 3153.104209 | V196: 3224.556703 | W196: 3297.628383 | X196: 3372.35594 | Y196: 3448.776898 | Z196: 3526.929631 | AA196: 3606.853383 | AB196: 3688.588288 | AC196: 3772.175387 | AD196: 3857.656653
B197: November | C197: 19963.00781 | D197: $ per mo. | F197: 600.9269909 | G197: 1210.925315 | H197: 1238.366094 | I197: 1266.428708 | J197: 1295.127249 | K197: 1324.476127 | L197: 1354.490081 | M197: 1385.184181 | N197: 1416.573839 | O197: 1448.674819 | P197: 1481.503239 | Q197: 1515.075584 | R197: 1549.408712 | S197: 1584.519863 | T197: 1620.426667 | U197: 1657.147156 | V197: 1694.699768 | W197: 1733.103359 | X197: 1772.377214 | Y197: 1812.541054 | Z197: 1853.615047 | AA197: 1895.619818 | AB197: 1938.576458 | AC197: 1982.50654 | AD197: 2027.43212
B198: December | C198: 14319.93281 | D198: $ per mo. | F198: 431.0589975 | G198: 868.6250748 | H198: 888.3089876 | I198: 908.4389576 | J198: 929.0250928 | K198: =(K167)*K182 -> 950.0777304 | L198: 971.6074418 | M198: 993.6250381 | N198: 1016.141575 | O198: 1039.168359 | P198: 1062.716953 | Q198: 1086.799182 | R198: 1111.427139 | S198: 1136.613189 | T198: 1162.369981 | U198: 1188.710447 | V198: 1215.647814 | W198: 1243.195609 | X198: 1271.367665 | Y198: 1300.178128 | Z198: 1329.641464 | AA198: 1359.772469 | AB198: 1390.586273 | AC198: 1422.098349 | AD198: 1454.324519
B199: Annual | C199: =SUM(C187:C198) -> 613245.5555 | D199: $ per yr. | F199: =SUM(F187:F198) -> 18459.93398 | G199: =SUM(G187:G198) -> 37198.53113 | H199: 38041.48704 | I199: 38903.54518 | J199: 39785.13842 | K199: 40686.70944 | L199: 41608.71096 | M199: 42551.60596 | N199: 43515.8679 | O199: 44501.98098 | P199: 45510.44038 | Q199: 46541.75247 | R199: 47596.43512 | S199: 48675.01793 | T199: 49778.04252 | U199: 50906.06274 | V199: 52059.64502 | W199: 53239.36864 | X199: 54445.82597 | Y199: 55679.62284 | Z199: 56941.37877 | AA199: 58231.72735 | AB199: 59551.31653 | AC199: 60900.80891 | AD199: 62280.88214
B202: Unsubcribed Energy Generation
B203: Month | C203: Total Generation (kWh)
B204: January | D204: $ per mo. | F204: =IF(F$105<Inputs!$S$22,(F91-F124-F171),0) -> 9704.830512 | G204: =IF(G$105<Inputs!$S$22,(G91-G124-G171),0) -> 0 | H204: =IF(H$105<Inputs!$S$22,(H91-H124-H171),0) -> 0 | I204: =IF(I$105<Inputs!$S$22,(I91-I124-I171),0) -> 0 | J204: =IF(J$105<Inputs!$S$22,(J91-J124-J171),0) -> 0 | K204: =IF(K$105<Inputs!$S$22,(K91-K124-K171),0) -> 0 | L204: =IF(L$105<Inputs!$S$22,(L91-L124-L171),0) -> 0 | M204: =IF(M$105<Inputs!$S$22,(M91-M124-M171),0) -> 0 | N204: =IF(N$105<Inputs!$S$22,(N91-N124-N171),0) -> 0 | O204: =IF(O$105<Inputs!$S$22,(O91-O124-O171),0) -> 0 | P204: =IF(P$105<Inputs!$S$22,(P91-P124-P171),0) -> 0 | Q204: =IF(Q$105<Inputs!$S$22,(Q91-Q124-Q171),0) -> 0 | R204: =IF(R$105<Inputs!$S$22,(R91-R124-R171),0) -> 0 | S204: =IF(S$105<Inputs!$S$22,(S91-S124-S171),0) -> 0 | T204: =IF(T$105<Inputs!$S$22,(T91-T124-T171),0) -> 0 | U204: =IF(U$105<Inputs!$S$22,(U91-U124-U171),0) -> 0 | V204: =IF(V$105<Inputs!$S$22,(V91-V124-V171),0) -> 0 | W204: =IF(W$105<Inputs!$S$22,(W91-W124-W171),0) -> 0 | X204: =IF(X$105<Inputs!$S$22,(X91-X124-X171),0) -> 0 | Y204: =IF(Y$105<Inputs!$S$22,(Y91-Y124-Y171),0) -> 0 | Z204: =IF(Z$105<Inputs!$S$22,(Z91-Z124-Z171),0) -> 0 | AA204: =IF(AA$105<Inputs!$S$22,(AA91-AA124-AA171),0) -> 0 | AB204: =IF(AB$105<Inputs!$S$22,(AB91-AB124-AB171),0) -> 0 | AC204: =IF(AC$105<Inputs!$S$22,(AC91-AC124-AC171),0) -> 0 | AD204: =IF(AD$105<Inputs!$S$22,(AD91-AD124-AD171),0) -> 0
B205: February | D205: $ per mo. | F205: =IF(F$105<Inputs!$S$22,(F92-F125-F172),0) -> 12875.96672 | G205: =IF(G$105<Inputs!$S$22,(G92-G125-G172),0) -> 0 | H205: =IF(H$105<Inputs!$S$22,(H92-H125-H172),0) -> 0 | I205: =IF(I$105<Inputs!$S$22,(I92-I125-I172),0) -> 0 | J205: =IF(J$105<Inputs!$S$22,(J92-J125-J172),0) -> 0 | K205: =IF(K$105<Inputs!$S$22,(K92-K125-K172),0) -> 0 | L205: =IF(L$105<Inputs!$S$22,(L92-L125-L172),0) -> 0 | M205: =IF(M$105<Inputs!$S$22,(M92-M125-M172),0) -> 0 | N205: =IF(N$105<Inputs!$S$22,(N92-N125-N172),0) -> 0 | O205: =IF(O$105<Inputs!$S$22,(O92-O125-O172),0) -> 0 | P205: =IF(P$105<Inputs!$S$22,(P92-P125-P172),0) -> 0 | Q205: =IF(Q$105<Inputs!$S$22,(Q92-Q125-Q172),0) -> 0 | R205: =IF(R$105<Inputs!$S$22,(R92-R125-R172),0) -> 0 | S205: =IF(S$105<Inputs!$S$22,(S92-S125-S172),0) -> 0 | T205: =IF(T$105<Inputs!$S$22,(T92-T125-T172),0) -> 0 | U205: =IF(U$105<Inputs!$S$22,(U92-U125-U172),0) -> 0 | V205: =IF(V$105<Inputs!$S$22,(V92-V125-V172),0) -> 0 | W205: =IF(W$105<Inputs!$S$22,(W92-W125-W172),0) -> 0 | X205: =IF(X$105<Inputs!$S$22,(X92-X125-X172),0) -> 0 | Y205: =IF(Y$105<Inputs!$S$22,(Y92-Y125-Y172),0) -> 0 | Z205: =IF(Z$105<Inputs!$S$22,(Z92-Z125-Z172),0) -> 0 | AA205: =IF(AA$105<Inputs!$S$22,(AA92-AA125-AA172),0) -> 0 | AB205: =IF(AB$105<Inputs!$S$22,(AB92-AB125-AB172),0) -> 0 | AC205: =IF(AC$105<Inputs!$S$22,(AC92-AC125-AC172),0) -> 0 | AD205: =IF(AD$105<Inputs!$S$22,(AD92-AD125-AD172),0) -> 0
B206: March | D206: $ per mo. | F206: =IF(F$105<Inputs!$S$22,(F93-F126-F173),0) -> 23050.37626 | G206: =IF(G$105<Inputs!$S$22,(G93-G126-G173),0) -> 0 | H206: =IF(H$105<Inputs!$S$22,(H93-H126-H173),0) -> 0 | I206: =IF(I$105<Inputs!$S$22,(I93-I126-I173),0) -> 0 | J206: =IF(J$105<Inputs!$S$22,(J93-J126-J173),0) -> 0 | K206: =IF(K$105<Inputs!$S$22,(K93-K126-K173),0) -> 0 | L206: =IF(L$105<Inputs!$S$22,(L93-L126-L173),0) -> 0 | M206: =IF(M$105<Inputs!$S$22,(M93-M126-M173),0) -> 0 | N206: =IF(N$105<Inputs!$S$22,(N93-N126-N173),0) -> 0 | O206: =IF(O$105<Inputs!$S$22,(O93-O126-O173),0) -> 0 | P206: =IF(P$105<Inputs!$S$22,(P93-P126-P173),0) -> 0 | Q206: =IF(Q$105<Inputs!$S$22,(Q93-Q126-Q173),0) -> 0 | R206: =IF(R$105<Inputs!$S$22,(R93-R126-R173),0) -> 0 | S206: =IF(S$105<Inputs!$S$22,(S93-S126-S173),0) -> 0 | T206: =IF(T$105<Inputs!$S$22,(T93-T126-T173),0) -> 0 | U206: =IF(U$105<Inputs!$S$22,(U93-U126-U173),0) -> 0 | V206: =IF(V$105<Inputs!$S$22,(V93-V126-V173),0) -> 0 | W206: =IF(W$105<Inputs!$S$22,(W93-W126-W173),0) -> 0 | X206: =IF(X$105<Inputs!$S$22,(X93-X126-X173),0) -> 0 | Y206: =IF(Y$105<Inputs!$S$22,(Y93-Y126-Y173),0) -> 0 | Z206: =IF(Z$105<Inputs!$S$22,(Z93-Z126-Z173),0) -> 0 | AA206: =IF(AA$105<Inputs!$S$22,(AA93-AA126-AA173),0) -> 0 | AB206: =IF(AB$105<Inputs!$S$22,(AB93-AB126-AB173),0) -> 0 | AC206: =IF(AC$105<Inputs!$S$22,(AC93-AC126-AC173),0) -> 0 | AD206: =IF(AD$105<Inputs!$S$22,(AD93-AD126-AD173),0) -> 0
B207: April | D207: $ per mo. | F207: =IF(F$105<Inputs!$S$22,(F94-F127-F174),0) -> 29298.53758 | G207: =IF(G$105<Inputs!$S$22,(G94-G127-G174),0) -> 0 | H207: =IF(H$105<Inputs!$S$22,(H94-H127-H174),0) -> 0 | I207: =IF(I$105<Inputs!$S$22,(I94-I127-I174),0) -> 0 | J207: =IF(J$105<Inputs!$S$22,(J94-J127-J174),0) -> 0 | K207: =IF(K$105<Inputs!$S$22,(K94-K127-K174),0) -> 0 | L207: =IF(L$105<Inputs!$S$22,(L94-L127-L174),0) -> 0 | M207: =IF(M$105<Inputs!$S$22,(M94-M127-M174),0) -> 0 | N207: =IF(N$105<Inputs!$S$22,(N94-N127-N174),0) -> 0 | O207: =IF(O$105<Inputs!$S$22,(O94-O127-O174),0) -> 0 | P207: =IF(P$105<Inputs!$S$22,(P94-P127-P174),0) -> 0 | Q207: =IF(Q$105<Inputs!$S$22,(Q94-Q127-Q174),0) -> 0 | R207: =IF(R$105<Inputs!$S$22,(R94-R127-R174),0) -> 0 | S207: =IF(S$105<Inputs!$S$22,(S94-S127-S174),0) -> 0 | T207: =IF(T$105<Inputs!$S$22,(T94-T127-T174),0) -> 0 | U207: =IF(U$105<Inputs!$S$22,(U94-U127-U174),0) -> 0 | V207: =IF(V$105<Inputs!$S$22,(V94-V127-V174),0) -> 0 | W207: =IF(W$105<Inputs!$S$22,(W94-W127-W174),0) -> 0 | X207: =IF(X$105<Inputs!$S$22,(X94-X127-X174),0) -> 0 | Y207: =IF(Y$105<Inputs!$S$22,(Y94-Y127-Y174),0) -> 0 | Z207: =IF(Z$105<Inputs!$S$22,(Z94-Z127-Z174),0) -> 0 | AA207: =IF(AA$105<Inputs!$S$22,(AA94-AA127-AA174),0) -> 0 | AB207: =IF(AB$105<Inputs!$S$22,(AB94-AB127-AB174),0) -> 0 | AC207: =IF(AC$105<Inputs!$S$22,(AC94-AC127-AC174),0) -> 0 | AD207: =IF(AD$105<Inputs!$S$22,(AD94-AD127-AD174),0) -> 0
B208: May | D208: $ per mo. | F208: =IF(F$105<Inputs!$S$22,(F95-F128-F175),0) -> 40035.24442 | G208: =IF(G$105<Inputs!$S$22,(G95-G128-G175),0) -> 0 | H208: =IF(H$105<Inputs!$S$22,(H95-H128-H175),0) -> 0 | I208: =IF(I$105<Inputs!$S$22,(I95-I128-I175),0) -> 0 | J208: =IF(J$105<Inputs!$S$22,(J95-J128-J175),0) -> 0 | K208: =IF(K$105<Inputs!$S$22,(K95-K128-K175),0) -> 0 | L208: =IF(L$105<Inputs!$S$22,(L95-L128-L175),0) -> 0 | M208: =IF(M$105<Inputs!$S$22,(M95-M128-M175),0) -> 0 | N208: =IF(N$105<Inputs!$S$22,(N95-N128-N175),0) -> 0 | O208: =IF(O$105<Inputs!$S$22,(O95-O128-O175),0) -> 0 | P208: =IF(P$105<Inputs!$S$22,(P95-P128-P175),0) -> 0 | Q208: =IF(Q$105<Inputs!$S$22,(Q95-Q128-Q175),0) -> 0 | R208: =IF(R$105<Inputs!$S$22,(R95-R128-R175),0) -> 0 | S208: =IF(S$105<Inputs!$S$22,(S95-S128-S175),0) -> 0 | T208: =IF(T$105<Inputs!$S$22,(T95-T128-T175),0) -> 0 | U208: =IF(U$105<Inputs!$S$22,(U95-U128-U175),0) -> 0 | V208: =IF(V$105<Inputs!$S$22,(V95-V128-V175),0) -> 0 | W208: =IF(W$105<Inputs!$S$22,(W95-W128-W175),0) -> 0 | X208: =IF(X$105<Inputs!$S$22,(X95-X128-X175),0) -> 0 | Y208: =IF(Y$105<Inputs!$S$22,(Y95-Y128-Y175),0) -> 0 | Z208: =IF(Z$105<Inputs!$S$22,(Z95-Z128-Z175),0) -> 0 | AA208: =IF(AA$105<Inputs!$S$22,(AA95-AA128-AA175),0) -> 0 | AB208: =IF(AB$105<Inputs!$S$22,(AB95-AB128-AB175),0) -> 0 | AC208: =IF(AC$105<Inputs!$S$22,(AC95-AC128-AC175),0) -> 0 | AD208: =IF(AD$105<Inputs!$S$22,(AD95-AD128-AD175),0) -> 0
B209: June | D209: $ per mo. | F209: =IF(F$105<Inputs!$S$22,(F96-F129-F176),0) -> 40554.20491 | G209: =IF(G$105<Inputs!$S$22,(G96-G129-G176),0) -> 0 | H209: =IF(H$105<Inputs!$S$22,(H96-H129-H176),0) -> 0 | I209: =IF(I$105<Inputs!$S$22,(I96-I129-I176),0) -> 0 | J209: =IF(J$105<Inputs!$S$22,(J96-J129-J176),0) -> 0 | K209: =IF(K$105<Inputs!$S$22,(K96-K129-K176),0) -> 0 | L209: =IF(L$105<Inputs!$S$22,(L96-L129-L176),0) -> 0 | M209: =IF(M$105<Inputs!$S$22,(M96-M129-M176),0) -> 0 | N209: =IF(N$105<Inputs!$S$22,(N96-N129-N176),0) -> 0 | O209: =IF(O$105<Inputs!$S$22,(O96-O129-O176),0) -> 0 | P209: =IF(P$105<Inputs!$S$22,(P96-P129-P176),0) -> 0 | Q209: =IF(Q$105<Inputs!$S$22,(Q96-Q129-Q176),0) -> 0 | R209: =IF(R$105<Inputs!$S$22,(R96-R129-R176),0) -> 0 | S209: =IF(S$105<Inputs!$S$22,(S96-S129-S176),0) -> 0 | T209: =IF(T$105<Inputs!$S$22,(T96-T129-T176),0) -> 0 | U209: =IF(U$105<Inputs!$S$22,(U96-U129-U176),0) -> 0 | V209: =IF(V$105<Inputs!$S$22,(V96-V129-V176),0) -> 0 | W209: =IF(W$105<Inputs!$S$22,(W96-W129-W176),0) -> 0 | X209: =IF(X$105<Inputs!$S$22,(X96-X129-X176),0) -> 0 | Y209: =IF(Y$105<Inputs!$S$22,(Y96-Y129-Y176),0) -> 0 | Z209: =IF(Z$105<Inputs!$S$22,(Z96-Z129-Z176),0) -> 0 | AA209: =IF(AA$105<Inputs!$S$22,(AA96-AA129-AA176),0) -> 0 | AB209: =IF(AB$105<Inputs!$S$22,(AB96-AB129-AB176),0) -> 0 | AC209: =IF(AC$105<Inputs!$S$22,(AC96-AC129-AC176),0) -> 0 | AD209: =IF(AD$105<Inputs!$S$22,(AD96-AD129-AD176),0) -> 0
B210: July | D210: $ per mo. | F210: =IF(F$105<Inputs!$S$22,(F97-F130-F177),0) -> 44685.28295 | G210: =IF(G$105<Inputs!$S$22,(G97-G130-G177),0) -> 0 | H210: =IF(H$105<Inputs!$S$22,(H97-H130-H177),0) -> 0 | I210: =IF(I$105<Inputs!$S$22,(I97-I130-I177),0) -> 0 | J210: =IF(J$105<Inputs!$S$22,(J97-J130-J177),0) -> 0 | K210: =IF(K$105<Inputs!$S$22,(K97-K130-K177),0) -> 0 | L210: =IF(L$105<Inputs!$S$22,(L97-L130-L177),0) -> 0 | M210: =IF(M$105<Inputs!$S$22,(M97-M130-M177),0) -> 0 | N210: =IF(N$105<Inputs!$S$22,(N97-N130-N177),0) -> 0 | O210: =IF(O$105<Inputs!$S$22,(O97-O130-O177),0) -> 0 | P210: =IF(P$105<Inputs!$S$22,(P97-P130-P177),0) -> 0 | Q210: =IF(Q$105<Inputs!$S$22,(Q97-Q130-Q177),0) -> 0 | R210: =IF(R$105<Inputs!$S$22,(R97-R130-R177),0) -> 0 | S210: =IF(S$105<Inputs!$S$22,(S97-S130-S177),0) -> 0 | T210: =IF(T$105<Inputs!$S$22,(T97-T130-T177),0) -> 0 | U210: =IF(U$105<Inputs!$S$22,(U97-U130-U177),0) -> 0 | V210: =IF(V$105<Inputs!$S$22,(V97-V130-V177),0) -> 0 | W210: =IF(W$105<Inputs!$S$22,(W97-W130-W177),0) -> 0 | X210: =IF(X$105<Inputs!$S$22,(X97-X130-X177),0) -> 0 | Y210: =IF(Y$105<Inputs!$S$22,(Y97-Y130-Y177),0) -> 0 | Z210: =IF(Z$105<Inputs!$S$22,(Z97-Z130-Z177),0) -> 0 | AA210: =IF(AA$105<Inputs!$S$22,(AA97-AA130-AA177),0) -> 0 | AB210: =IF(AB$105<Inputs!$S$22,(AB97-AB130-AB177),0) -> 0 | AC210: =IF(AC$105<Inputs!$S$22,(AC97-AC130-AC177),0) -> 0 | AD210: =IF(AD$105<Inputs!$S$22,(AD97-AD130-AD177),0) -> 0
B211: August | D211: $ per mo. | F211: =IF(F$105<Inputs!$S$22,(F98-F131-F178),0) -> 36234.90467 | G211: =IF(G$105<Inputs!$S$22,(G98-G131-G178),0) -> 0 | H211: =IF(H$105<Inputs!$S$22,(H98-H131-H178),0) -> 0 | I211: =IF(I$105<Inputs!$S$22,(I98-I131-I178),0) -> 0 | J211: =IF(J$105<Inputs!$S$22,(J98-J131-J178),0) -> 0 | K211: =IF(K$105<Inputs!$S$22,(K98-K131-K178),0) -> 0 | L211: =IF(L$105<Inputs!$S$22,(L98-L131-L178),0) -> 0 | M211: =IF(M$105<Inputs!$S$22,(M98-M131-M178),0) -> 0 | N211: =IF(N$105<Inputs!$S$22,(N98-N131-N178),0) -> 0 | O211: =IF(O$105<Inputs!$S$22,(O98-O131-O178),0) -> 0 | P211: =IF(P$105<Inputs!$S$22,(P98-P131-P178),0) -> 0 | Q211: =IF(Q$105<Inputs!$S$22,(Q98-Q131-Q178),0) -> 0 | R211: =IF(R$105<Inputs!$S$22,(R98-R131-R178),0) -> 0 | S211: =IF(S$105<Inputs!$S$22,(S98-S131-S178),0) -> 0 | T211: =IF(T$105<Inputs!$S$22,(T98-T131-T178),0) -> 0 | U211: =IF(U$105<Inputs!$S$22,(U98-U131-U178),0) -> 0 | V211: =IF(V$105<Inputs!$S$22,(V98-V131-V178),0) -> 0 | W211: =IF(W$105<Inputs!$S$22,(W98-W131-W178),0) -> 0 | X211: =IF(X$105<Inputs!$S$22,(X98-X131-X178),0) -> 0 | Y211: =IF(Y$105<Inputs!$S$22,(Y98-Y131-Y178),0) -> 0 | Z211: =IF(Z$105<Inputs!$S$22,(Z98-Z131-Z178),0) -> 0 | AA211: =IF(AA$105<Inputs!$S$22,(AA98-AA131-AA178),0) -> 0 | AB211: =IF(AB$105<Inputs!$S$22,(AB98-AB131-AB178),0) -> 0 | AC211: =IF(AC$105<Inputs!$S$22,(AC98-AC131-AC178),0) -> 0 | AD211: =IF(AD$105<Inputs!$S$22,(AD98-AD131-AD178),0) -> 0
B212: September | D212: $ per mo. | F212: =IF(F$105<Inputs!$S$22,(F99-F132-F179),0) -> 26857.09031 | G212: =IF(G$105<Inputs!$S$22,(G99-G132-G179),0) -> 0 | H212: =IF(H$105<Inputs!$S$22,(H99-H132-H179),0) -> 0 | I212: =IF(I$105<Inputs!$S$22,(I99-I132-I179),0) -> 0 | J212: =IF(J$105<Inputs!$S$22,(J99-J132-J179),0) -> 0 | K212: =IF(K$105<Inputs!$S$22,(K99-K132-K179),0) -> 0 | L212: =IF(L$105<Inputs!$S$22,(L99-L132-L179),0) -> 0 | M212: =IF(M$105<Inputs!$S$22,(M99-M132-M179),0) -> 0 | N212: =IF(N$105<Inputs!$S$22,(N99-N132-N179),0) -> 0 | O212: =IF(O$105<Inputs!$S$22,(O99-O132-O179),0) -> 0 | P212: =IF(P$105<Inputs!$S$22,(P99-P132-P179),0) -> 0 | Q212: =IF(Q$105<Inputs!$S$22,(Q99-Q132-Q179),0) -> 0 | R212: =IF(R$105<Inputs!$S$22,(R99-R132-R179),0) -> 0 | S212: =IF(S$105<Inputs!$S$22,(S99-S132-S179),0) -> 0 | T212: =IF(T$105<Inputs!$S$22,(T99-T132-T179),0) -> 0 | U212: =IF(U$105<Inputs!$S$22,(U99-U132-U179),0) -> 0 | V212: =IF(V$105<Inputs!$S$22,(V99-V132-V179),0) -> 0 | W212: =IF(W$105<Inputs!$S$22,(W99-W132-W179),0) -> 0 | X212: =IF(X$105<Inputs!$S$22,(X99-X132-X179),0) -> 0 | Y212: =IF(Y$105<Inputs!$S$22,(Y99-Y132-Y179),0) -> 0 | Z212: =IF(Z$105<Inputs!$S$22,(Z99-Z132-Z179),0) -> 0 | AA212: =IF(AA$105<Inputs!$S$22,(AA99-AA132-AA179),0) -> 0 | AB212: =IF(AB$105<Inputs!$S$22,(AB99-AB132-AB179),0) -> 0 | AC212: =IF(AC$105<Inputs!$S$22,(AC99-AC132-AC179),0) -> 0 | AD212: =IF(AD$105<Inputs!$S$22,(AD99-AD132-AD179),0) -> 0
B213: October | D213: $ per mo. | F213: =IF(F$105<Inputs!$S$22,(F100-F133-F180),0) -> 18487.07867 | G213: =IF(G$105<Inputs!$S$22,(G100-G133-G180),0) -> 0 | H213: =IF(H$105<Inputs!$S$22,(H100-H133-H180),0) -> 0 | I213: =IF(I$105<Inputs!$S$22,(I100-I133-I180),0) -> 0 | J213: =IF(J$105<Inputs!$S$22,(J100-J133-J180),0) -> 0 | K213: =IF(K$105<Inputs!$S$22,(K100-K133-K180),0) -> 0 | L213: =IF(L$105<Inputs!$S$22,(L100-L133-L180),0) -> 0 | M213: =IF(M$105<Inputs!$S$22,(M100-M133-M180),0) -> 0 | N213: =IF(N$105<Inputs!$S$22,(N100-N133-N180),0) -> 0 | O213: =IF(O$105<Inputs!$S$22,(O100-O133-O180),0) -> 0 | P213: =IF(P$105<Inputs!$S$22,(P100-P133-P180),0) -> 0 | Q213: =IF(Q$105<Inputs!$S$22,(Q100-Q133-Q180),0) -> 0 | R213: =IF(R$105<Inputs!$S$22,(R100-R133-R180),0) -> 0 | S213: =IF(S$105<Inputs!$S$22,(S100-S133-S180),0) -> 0 | T213: =IF(T$105<Inputs!$S$22,(T100-T133-T180),0) -> 0 | U213: =IF(U$105<Inputs!$S$22,(U100-U133-U180),0) -> 0 | V213: =IF(V$105<Inputs!$S$22,(V100-V133-V180),0) -> 0 | W213: =IF(W$105<Inputs!$S$22,(W100-W133-W180),0) -> 0 | X213: =IF(X$105<Inputs!$S$22,(X100-X133-X180),0) -> 0 | Y213: =IF(Y$105<Inputs!$S$22,(Y100-Y133-Y180),0) -> 0 | Z213: =IF(Z$105<Inputs!$S$22,(Z100-Z133-Z180),0) -> 0 | AA213: =IF(AA$105<Inputs!$S$22,(AA100-AA133-AA180),0) -> 0 | AB213: =IF(AB$105<Inputs!$S$22,(AB100-AB133-AB180),0) -> 0 | AC213: =IF(AC$105<Inputs!$S$22,(AC100-AC133-AC180),0) -> 0 | AD213: =IF(AD$105<Inputs!$S$22,(AD100-AD133-AD180),0) -> 0
B214: November | D214: $ per mo. | F214: =IF(F$105<Inputs!$S$22,(F101-F134-F181),0) -> 9716.079082 | G214: =IF(G$105<Inputs!$S$22,(G101-G134-G181),0) -> 0 | H214: =IF(H$105<Inputs!$S$22,(H101-H134-H181),0) -> 0 | I214: =IF(I$105<Inputs!$S$22,(I101-I134-I181),0) -> 0 | J214: =IF(J$105<Inputs!$S$22,(J101-J134-J181),0) -> 0 | K214: =IF(K$105<Inputs!$S$22,(K101-K134-K181),0) -> 0 | L214: =IF(L$105<Inputs!$S$22,(L101-L134-L181),0) -> 0 | M214: =IF(M$105<Inputs!$S$22,(M101-M134-M181),0) -> 0 | N214: =IF(N$105<Inputs!$S$22,(N101-N134-N181),0) -> 0 | O214: =IF(O$105<Inputs!$S$22,(O101-O134-O181),0) -> 0 | P214: =IF(P$105<Inputs!$S$22,(P101-P134-P181),0) -> 0 | Q214: =IF(Q$105<Inputs!$S$22,(Q101-Q134-Q181),0) -> 0 | R214: =IF(R$105<Inputs!$S$22,(R101-R134-R181),0) -> 0 | S214: =IF(S$105<Inputs!$S$22,(S101-S134-S181),0) -> 0 | T214: =IF(T$105<Inputs!$S$22,(T101-T134-T181),0) -> 0 | U214: =IF(U$105<Inputs!$S$22,(U101-U134-U181),0) -> 0 | V214: =IF(V$105<Inputs!$S$22,(V101-V134-V181),0) -> 0 | W214: =IF(W$105<Inputs!$S$22,(W101-W134-W181),0) -> 0 | X214: =IF(X$105<Inputs!$S$22,(X101-X134-X181),0) -> 0 | Y214: =IF(Y$105<Inputs!$S$22,(Y101-Y134-Y181),0) -> 0 | Z214: =IF(Z$105<Inputs!$S$22,(Z101-Z134-Z181),0) -> 0 | AA214: =IF(AA$105<Inputs!$S$22,(AA101-AA134-AA181),0) -> 0 | AB214: =IF(AB$105<Inputs!$S$22,(AB101-AB134-AB181),0) -> 0 | AC214: =IF(AC$105<Inputs!$S$22,(AC101-AC134-AC181),0) -> 0 | AD214: =IF(AD$105<Inputs!$S$22,(AD101-AD134-AD181),0) -> 0
B215: December | D215: $ per mo. | F215: =IF(F$105<Inputs!$S$22,(F102-F135-F182),0) -> 6969.570966 | G215: =IF(G$105<Inputs!$S$22,(G102-G135-G182),0) -> 0 | H215: =IF(H$105<Inputs!$S$22,(H102-H135-H182),0) -> 0 | I215: =IF(I$105<Inputs!$S$22,(I102-I135-I182),0) -> 0 | J215: =IF(J$105<Inputs!$S$22,(J102-J135-J182),0) -> 0 | K215: =IF(K$105<Inputs!$S$22,(K102-K135-K182),0) -> 0 | L215: =IF(L$105<Inputs!$S$22,(L102-L135-L182),0) -> 0 | M215: =IF(M$105<Inputs!$S$22,(M102-M135-M182),0) -> 0 | N215: =IF(N$105<Inputs!$S$22,(N102-N135-N182),0) -> 0 | O215: =IF(O$105<Inputs!$S$22,(O102-O135-O182),0) -> 0 | P215: =IF(P$105<Inputs!$S$22,(P102-P135-P182),0) -> 0 | Q215: =IF(Q$105<Inputs!$S$22,(Q102-Q135-Q182),0) -> 0 | R215: =IF(R$105<Inputs!$S$22,(R102-R135-R182),0) -> 0 | S215: =IF(S$105<Inputs!$S$22,(S102-S135-S182),0) -> 0 | T215: =IF(T$105<Inputs!$S$22,(T102-T135-T182),0) -> 0 | U215: =IF(U$105<Inputs!$S$22,(U102-U135-U182),0) -> 0 | V215: =IF(V$105<Inputs!$S$22,(V102-V135-V182),0) -> 0 | W215: =IF(W$105<Inputs!$S$22,(W102-W135-W182),0) -> 0 | X215: =IF(X$105<Inputs!$S$22,(X102-X135-X182),0) -> 0 | Y215: =IF(Y$105<Inputs!$S$22,(Y102-Y135-Y182),0) -> 0 | Z215: =IF(Z$105<Inputs!$S$22,(Z102-Z135-Z182),0) -> 0 | AA215: =IF(AA$105<Inputs!$S$22,(AA102-AA135-AA182),0) -> 0 | AB215: =IF(AB$105<Inputs!$S$22,(AB102-AB135-AB182),0) -> 0 | AC215: =IF(AC$105<Inputs!$S$22,(AC102-AC135-AC182),0) -> 0 | AD215: =IF(AD$105<Inputs!$S$22,(AD102-AD135-AD182),0) -> 0
B216: Annual | D216: $ per yr. | F216: =SUM(F204:F215) -> 298469.167 | G216: =SUM(G204:G215) -> 0 | H216: 0 | I216: 0 | J216: 0 | K216: 0 | L216: 0 | M216: 0 | N216: 0 | O216: 0 | P216: 0 | Q216: 0 | R216: 0 | S216: 0 | T216: 0 | U216: 0 | V216: 0 | W216: 0 | X216: 0 | Y216: 0 | Z216: 0 | AA216: 0 | AB216: 0 | AC216: 0 | AD216: 0 | AE216: =SUM(E216:AD216) -> 298469.167
B219: Unsubcribed Energy Revenue
B220: Month | C220: Total Generation (kWh)
B221: January | D221: $ per mo. | F221: =F204*Inputs!$S$15 -> 291.1449154 | G221: =G204*Inputs!$S$15 -> 0 | H221: =H204*Inputs!$S$15 -> 0 | I221: =I204*Inputs!$S$15 -> 0 | J221: =J204*Inputs!$S$15 -> 0 | K221: =K204*Inputs!$S$15 -> 0 | L221: =L204*Inputs!$S$15 -> 0 | M221: =M204*Inputs!$S$15 -> 0 | N221: =N204*Inputs!$S$15 -> 0 | O221: =O204*Inputs!$S$15 -> 0 | P221: =P204*Inputs!$S$15 -> 0 | Q221: =Q204*Inputs!$S$15 -> 0 | R221: =R204*Inputs!$S$15 -> 0 | S221: =S204*Inputs!$S$15 -> 0 | T221: =T204*Inputs!$S$15 -> 0 | U221: =U204*Inputs!$S$15 -> 0 | V221: =V204*Inputs!$S$15 -> 0 | W221: =W204*Inputs!$S$15 -> 0 | X221: =X204*Inputs!$S$15 -> 0 | Y221: =Y204*Inputs!$S$15 -> 0 | Z221: =Z204*Inputs!$S$15 -> 0 | AA221: =AA204*Inputs!$S$15 -> 0 | AB221: =AB204*Inputs!$S$15 -> 0 | AC221: =AC204*Inputs!$S$15 -> 0 | AD221: =AD204*Inputs!$S$15 -> 0
B222: February | D222: $ per mo. | F222: =F205*Inputs!$S$15 -> 386.2790016 | G222: =G205*Inputs!$S$15 -> 0 | H222: =H205*Inputs!$S$15 -> 0 | I222: =I205*Inputs!$S$15 -> 0 | J222: =J205*Inputs!$S$15 -> 0 | K222: =K205*Inputs!$S$15 -> 0 | L222: =L205*Inputs!$S$15 -> 0 | M222: =M205*Inputs!$S$15 -> 0 | N222: =N205*Inputs!$S$15 -> 0 | O222: =O205*Inputs!$S$15 -> 0 | P222: =P205*Inputs!$S$15 -> 0 | Q222: =Q205*Inputs!$S$15 -> 0 | R222: =R205*Inputs!$S$15 -> 0 | S222: =S205*Inputs!$S$15 -> 0 | T222: =T205*Inputs!$S$15 -> 0 | U222: =U205*Inputs!$S$15 -> 0 | V222: =V205*Inputs!$S$15 -> 0 | W222: =W205*Inputs!$S$15 -> 0 | X222: =X205*Inputs!$S$15 -> 0 | Y222: =Y205*Inputs!$S$15 -> 0 | Z222: =Z205*Inputs!$S$15 -> 0 | AA222: =AA205*Inputs!$S$15 -> 0 | AB222: =AB205*Inputs!$S$15 -> 0 | AC222: =AC205*Inputs!$S$15 -> 0 | AD222: =AD205*Inputs!$S$15 -> 0
B223: March | D223: $ per mo. | F223: =F206*Inputs!$S$15 -> 691.5112877 | G223: =G206*Inputs!$S$15 -> 0 | H223: =H206*Inputs!$S$15 -> 0 | I223: =I206*Inputs!$S$15 -> 0 | J223: =J206*Inputs!$S$15 -> 0 | K223: =K206*Inputs!$S$15 -> 0 | L223: =L206*Inputs!$S$15 -> 0 | M223: =M206*Inputs!$S$15 -> 0 | N223: =N206*Inputs!$S$15 -> 0 | O223: =O206*Inputs!$S$15 -> 0 | P223: =P206*Inputs!$S$15 -> 0 | Q223: =Q206*Inputs!$S$15 -> 0 | R223: =R206*Inputs!$S$15 -> 0 | S223: =S206*Inputs!$S$15 -> 0 | T223: =T206*Inputs!$S$15 -> 0 | U223: =U206*Inputs!$S$15 -> 0 | V223: =V206*Inputs!$S$15 -> 0 | W223: =W206*Inputs!$S$15 -> 0 | X223: =X206*Inputs!$S$15 -> 0 | Y223: =Y206*Inputs!$S$15 -> 0 | Z223: =Z206*Inputs!$S$15 -> 0 | AA223: =AA206*Inputs!$S$15 -> 0 | AB223: =AB206*Inputs!$S$15 -> 0 | AC223: =AC206*Inputs!$S$15 -> 0 | AD223: =AD206*Inputs!$S$15 -> 0
B224: April | D224: $ per mo. | F224: =F207*Inputs!$S$15 -> 878.9561273 | G224: =G207*Inputs!$S$15 -> 0 | H224: =H207*Inputs!$S$15 -> 0 | I224: =I207*Inputs!$S$15 -> 0 | J224: =J207*Inputs!$S$15 -> 0 | K224: =K207*Inputs!$S$15 -> 0 | L224: =L207*Inputs!$S$15 -> 0 | M224: =M207*Inputs!$S$15 -> 0 | N224: =N207*Inputs!$S$15 -> 0 | O224: =O207*Inputs!$S$15 -> 0 | P224: =P207*Inputs!$S$15 -> 0 | Q224: =Q207*Inputs!$S$15 -> 0 | R224: =R207*Inputs!$S$15 -> 0 | S224: =S207*Inputs!$S$15 -> 0 | T224: =T207*Inputs!$S$15 -> 0 | U224: =U207*Inputs!$S$15 -> 0 | V224: =V207*Inputs!$S$15 -> 0 | W224: =W207*Inputs!$S$15 -> 0 | X224: =X207*Inputs!$S$15 -> 0 | Y224: =Y207*Inputs!$S$15 -> 0 | Z224: =Z207*Inputs!$S$15 -> 0 | AA224: =AA207*Inputs!$S$15 -> 0 | AB224: =AB207*Inputs!$S$15 -> 0 | AC224: =AC207*Inputs!$S$15 -> 0 | AD224: =AD207*Inputs!$S$15 -> 0
B225: May | D225: $ per mo. | F225: =F208*Inputs!$S$15 -> 1201.057333 | G225: =G208*Inputs!$S$15 -> 0 | H225: =H208*Inputs!$S$15 -> 0 | I225: =I208*Inputs!$S$15 -> 0 | J225: =J208*Inputs!$S$15 -> 0 | K225: =K208*Inputs!$S$15 -> 0 | L225: =L208*Inputs!$S$15 -> 0 | M225: =M208*Inputs!$S$15 -> 0 | N225: =N208*Inputs!$S$15 -> 0 | O225: =O208*Inputs!$S$15 -> 0 | P225: =P208*Inputs!$S$15 -> 0 | Q225: =Q208*Inputs!$S$15 -> 0 | R225: =R208*Inputs!$S$15 -> 0 | S225: =S208*Inputs!$S$15 -> 0 | T225: =T208*Inputs!$S$15 -> 0 | U225: =U208*Inputs!$S$15 -> 0 | V225: =V208*Inputs!$S$15 -> 0 | W225: =W208*Inputs!$S$15 -> 0 | X225: =X208*Inputs!$S$15 -> 0 | Y225: =Y208*Inputs!$S$15 -> 0 | Z225: =Z208*Inputs!$S$15 -> 0 | AA225: =AA208*Inputs!$S$15 -> 0 | AB225: =AB208*Inputs!$S$15 -> 0 | AC225: =AC208*Inputs!$S$15 -> 0 | AD225: =AD208*Inputs!$S$15 -> 0
B226: June | D226: $ per mo. | F226: =F209*Inputs!$S$15 -> 1216.626147 | G226: =G209*Inputs!$S$15 -> 0 | H226: =H209*Inputs!$S$15 -> 0 | I226: =I209*Inputs!$S$15 -> 0 | J226: =J209*Inputs!$S$15 -> 0 | K226: =K209*Inputs!$S$15 -> 0 | L226: =L209*Inputs!$S$15 -> 0 | M226: =M209*Inputs!$S$15 -> 0 | N226: =N209*Inputs!$S$15 -> 0 | O226: =O209*Inputs!$S$15 -> 0 | P226: =P209*Inputs!$S$15 -> 0 | Q226: =Q209*Inputs!$S$15 -> 0 | R226: =R209*Inputs!$S$15 -> 0 | S226: =S209*Inputs!$S$15 -> 0 | T226: =T209*Inputs!$S$15 -> 0 | U226: =U209*Inputs!$S$15 -> 0 | V226: =V209*Inputs!$S$15 -> 0 | W226: =W209*Inputs!$S$15 -> 0 | X226: =X209*Inputs!$S$15 -> 0 | Y226: =Y209*Inputs!$S$15 -> 0 | Z226: =Z209*Inputs!$S$15 -> 0 | AA226: =AA209*Inputs!$S$15 -> 0 | AB226: =AB209*Inputs!$S$15 -> 0 | AC226: =AC209*Inputs!$S$15 -> 0 | AD226: =AD209*Inputs!$S$15 -> 0
B227: July | D227: $ per mo. | F227: =F210*Inputs!$S$15 -> 1340.558489 | G227: =G210*Inputs!$S$15 -> 0 | H227: =H210*Inputs!$S$15 -> 0 | I227: =I210*Inputs!$S$15 -> 0 | J227: =J210*Inputs!$S$15 -> 0 | K227: =K210*Inputs!$S$15 -> 0 | L227: =L210*Inputs!$S$15 -> 0 | M227: =M210*Inputs!$S$15 -> 0 | N227: =N210*Inputs!$S$15 -> 0 | O227: =O210*Inputs!$S$15 -> 0 | P227: =P210*Inputs!$S$15 -> 0 | Q227: =Q210*Inputs!$S$15 -> 0 | R227: =R210*Inputs!$S$15 -> 0 | S227: =S210*Inputs!$S$15 -> 0 | T227: =T210*Inputs!$S$15 -> 0 | U227: =U210*Inputs!$S$15 -> 0 | V227: =V210*Inputs!$S$15 -> 0 | W227: =W210*Inputs!$S$15 -> 0 | X227: =X210*Inputs!$S$15 -> 0 | Y227: =Y210*Inputs!$S$15 -> 0 | Z227: =Z210*Inputs!$S$15 -> 0 | AA227: =AA210*Inputs!$S$15 -> 0 | AB227: =AB210*Inputs!$S$15 -> 0 | AC227: =AC210*Inputs!$S$15 -> 0 | AD227: =AD210*Inputs!$S$15 -> 0
B228: August | D228: $ per mo. | F228: =F211*Inputs!$S$15 -> 1087.04714 | G228: =G211*Inputs!$S$15 -> 0 | H228: =H211*Inputs!$S$15 -> 0 | I228: =I211*Inputs!$S$15 -> 0 | J228: =J211*Inputs!$S$15 -> 0 | K228: =K211*Inputs!$S$15 -> 0 | L228: =L211*Inputs!$S$15 -> 0 | M228: =M211*Inputs!$S$15 -> 0 | N228: =N211*Inputs!$S$15 -> 0 | O228: =O211*Inputs!$S$15 -> 0 | P228: =P211*Inputs!$S$15 -> 0 | Q228: =Q211*Inputs!$S$15 -> 0 | R228: =R211*Inputs!$S$15 -> 0 | S228: =S211*Inputs!$S$15 -> 0 | T228: =T211*Inputs!$S$15 -> 0 | U228: =U211*Inputs!$S$15 -> 0 | V228: =V211*Inputs!$S$15 -> 0 | W228: =W211*Inputs!$S$15 -> 0 | X228: =X211*Inputs!$S$15 -> 0 | Y228: =Y211*Inputs!$S$15 -> 0 | Z228: =Z211*Inputs!$S$15 -> 0 | AA228: =AA211*Inputs!$S$15 -> 0 | AB228: =AB211*Inputs!$S$15 -> 0 | AC228: =AC211*Inputs!$S$15 -> 0 | AD228: =AD211*Inputs!$S$15 -> 0
... 10 more rows

Sheet System Ownership-Host Onsite
B1: Community Solar: System Ownership with Land Lease
B2: Host site owns and operates a community solar project installed on a thier property with external subscribers
B4: Summary Financial Metrics
B6: Key Performace Indicator
B7: 25-Year Costs: | C7: $ | D7: =AF32+AF39+AF48 -> -3428414.453
B8: 25-Year Revenues: | C8: $ | D8: =AF55+AF65+AF73 -> 2465665.869
B9: 25-Year Net Benefits: | C9: $ | D9: =D7+D8 -> -962748.5839
B10: 25-Year Net Present Value (NPV): | C10: $ | D10: =E76+NPV(Inputs!L5,F76:AD76) -> -1095420.452
B11: Return on Investment (ROI): | C11: % | D11: =(D8+D7)/(-D7) -> -0.2808145272
B12: Internal Rate of Return (IRR) | C12: $ | D12: =IRR(E81:AD81) -> -0.1025340095
B13: Upfront Costs | C13: $ | D13: =E32+E48 -> -2017920
B14: Average Annual Revenue | C14: $ | D14: =AVERAGE(E76:AD76) -> -37028.79169
B15: Payback Period: | C15: years | D15: =E78 -> 25
B18: Business Case
B20: Year | E20: 0 | F20: 1 | G20: 2 | H20: 3 | I20: 4 | J20: 5 | K20: 6 | L20: 7 | M20: 8 | N20: 9 | O20: 10 | P20: 11 | Q20: 12 | R20: 13 | S20: 14 | T20: 15 | U20: 16 | V20: 17 | W20: 18 | X20: 19 | Y20: 20 | Z20: 21 | AA20: 22 | AB20: 23 | AC20: 24 | AD20: 25
B22: INSTALLATION COSTS
B23: Generation Equipment | C23: $ | D23: 0.4758194185 | E23: =-((Inputs!$E$4*Inputs!$E$8)*1000)*$D23 -> -904056.8951 | AF23: =SUM(E23:AE23) -> -904056.8951
B24: Balance of Plant | C24: $ | D24: 0.2362044723 | E24: =-((Inputs!$E$4*Inputs!$E$8)*1000)*$D24 -> -448788.4974 | AF24: -448788.4974
B25: Interconnection | C25: $ | D25: 0.06010307624 | E25: =-((Inputs!$E$4*Inputs!$E$8)*1000)*$D25 -> -114195.8449 | AF25: -114195.8449
B26: Development Costs & Fee | C26: $ | D26: 0.227873033 | E26: =-((Inputs!$E$4*Inputs!$E$8)*1000)*$D26 -> -432958.7626 | AF26: -432958.7626
B27: Site Preparation cost | C27: $/Installed watt | D27: 0.06 | E27: =-(Inputs!E4*1000)*D27 -> -60000 | AF27: -60000
B28: Site Purchase Cost | C28: $ | D28: 0 | E28: =D28 -> 0 | AF28: 0
B29: Removal Cost | C29: $ | D29: 0 | E29: =D29 -> 0 | AF29: 0
B30: Site lease cost (based on per acre $=>) | C30: $/Acre/Yr | D30: 0 | AF30: 0
B31: Annual lease cost increase | D31: 0.01
B32: Total Installation Costs | E32: =SUM(E23:E30) -> -1960000 | AF32: =SUM(AF23:AF30) -> -1960000
B34: CAPITAL COSTS
B35: Construction loan | C35: $ | E35: =-E32*Inputs!K24 -> 0 | AF35: =SUM(E35:AE35) -> 0
B36: Construction loan payments | C36: $ | F36: =-IF(F20=0,0,IF(F20<=Inputs!$K$26,-PMT(Inputs!$K$25/12,Inputs!$K$26*12,Inputs!$K$24*($E$35))*12,0)) -> 0 | G36: =-IF(G20=0,0,IF(G20<=Inputs!$K$26,-PMT(Inputs!$K$25/12,Inputs!$K$26*12,Inputs!$K$24*($E$35))*12,0)) -> 0 | H36: =-IF(H20=0,0,IF(H20<=Inputs!$K$26,-PMT(Inputs!$K$25/12,Inputs!$K$26*12,Inputs!$K$24*($E$35))*12,0)) -> 0 | I36: =-IF(I20=0,0,IF(I20<=Inputs!$K$26,-PMT(Inputs!$K$25/12,Inputs!$K$26*12,Inputs!$K$24*($E$35))*12,0)) -> 0 | J36: =-IF(J20=0,0,IF(J20<=Inputs!$K$26,-PMT(Inputs!$K$25/12,Inputs!$K$26*12,Inputs!$K$24*($E$35))*12,0)) -> 0 | K36: =-IF(K20=0,0,IF(K20<=Inputs!$K$26,-PMT(Inputs!$K$25/12,Inputs!$K$26*12,Inputs!$K$24*($E$35))*12,0)) -> 0 | L36: =-IF(L20=0,0,IF(L20<=Inputs!$K$26,-PMT(Inputs!$K$25/12,Inputs!$K$26*12,Inputs!$K$24*($E$35))*12,0)) -> 0 | M36: =-IF(M20=0,0,IF(M20<=Inputs!$K$26,-PMT(Inputs!$K$25/12,Inputs!$K$26*12,Inputs!$K$24*($E$35))*12,0)) -> 0 | N36: =-IF(N20=0,0,IF(N20<=Inputs!$K$26,-PMT(Inputs!$K$25/12,Inputs!$K$26*12,Inputs!$K$24*($E$35))*12,0)) -> 0 | O36: =-IF(O20=0,0,IF(O20<=Inputs!$K$26,-PMT(Inputs!$K$25/12,Inputs!$K$26*12,Inputs!$K$24*($E$35))*12,0)) -> 0 | P36: =-IF(P20=0,0,IF(P20<=Inputs!$K$26,-PMT(Inputs!$K$25/12,Inputs!$K$26*12,Inputs!$K$24*($E$35))*12,0)) -> 0 | Q36: =-IF(Q20=0,0,IF(Q20<=Inputs!$K$26,-PMT(Inputs!$K$25/12,Inputs!$K$26*12,Inputs!$K$24*($E$35))*12,0)) -> 0 | R36: =-IF(R20=0,0,IF(R20<=Inputs!$K$26,-PMT(Inputs!$K$25/12,Inputs!$K$26*12,Inputs!$K$24*($E$35))*12,0)) -> 0 | S36: =-IF(S20=0,0,IF(S20<=Inputs!$K$26,-PMT(Inputs!$K$25/12,Inputs!$K$26*12,Inputs!$K$24*($E$35))*12,0)) -> 0 | T36: =-IF(T20=0,0,IF(T20<=Inputs!$K$26,-PMT(Inputs!$K$25/12,Inputs!$K$26*12,Inputs!$K$24*($E$35))*12,0)) -> 0 | U36: =-IF(U20=0,0,IF(U20<=Inputs!$K$26,-PMT(Inputs!$K$25/12,Inputs!$K$26*12,Inputs!$K$24*($E$35))*12,0)) -> 0 | V36: =-IF(V20=0,0,IF(V20<=Inputs!$K$26,-PMT(Inputs!$K$25/12,Inputs!$K$26*12,Inputs!$K$24*($E$35))*12,0)) -> 0 | W36: =-IF(W20=0,0,IF(W20<=Inputs!$K$26,-PMT(Inputs!$K$25/12,Inputs!$K$26*12,Inputs!$K$24*($E$35))*12,0)) -> 0 | X36: =-IF(X20=0,0,IF(X20<=Inputs!$K$26,-PMT(Inputs!$K$25/12,Inputs!$K$26*12,Inputs!$K$24*($E$35))*12,0)) -> 0 | Y36: =-IF(Y20=0,0,IF(Y20<=Inputs!$K$26,-PMT(Inputs!$K$25/12,Inputs!$K$26*12,Inputs!$K$24*($E$35))*12,0)) -> 0 | Z36: =-IF(Z20=0,0,IF(Z20<=Inputs!$K$26,-PMT(Inputs!$K$25/12,Inputs!$K$26*12,Inputs!$K$24*($E$35))*12,0)) -> 0 | AA36: =-IF(AA20=0,0,IF(AA20<=Inputs!$K$26,-PMT(Inputs!$K$25/12,Inputs!$K$26*12,Inputs!$K$24*($E$35))*12,0)) -> 0 | AB36: =-IF(AB20=0,0,IF(AB20<=Inputs!$K$26,-PMT(Inputs!$K$25/12,Inputs!$K$26*12,Inputs!$K$24*($E$35))*12,0)) -> 0 | AC36: =-IF(AC20=0,0,IF(AC20<=Inputs!$K$26,-PMT(Inputs!$K$25/12,Inputs!$K$26*12,Inputs!$K$24*($E$35))*12,0)) -> 0 | AD36: =-IF(AD20=0,0,IF(AD20<=Inputs!$K$26,-PMT(Inputs!$K$25/12,Inputs!$K$26*12,Inputs!$K$24*($E$35))*12,0)) -> 0 | AF36: =SUM(E36:AE36) -> 0
B37: Operating loan | C37: $ | F37: =-E32*Inputs!K28 -> 0 | AF37: 0
B38: Operating loan payments | C38: $ | F38: =IF(F20=0,0,IF(F20<=Inputs!$K$30,-PMT(Inputs!$K$29/12,Inputs!$K$30*12,Inputs!$K$28*($E$32))*12,0)) -> 0 | G38: =IF(G20=0,0,IF(G20<=Inputs!$K$30,-PMT(Inputs!$K$29/12,Inputs!$K$30*12,Inputs!$K$28*($E$32))*12,0)) -> 0 | H38: =IF(H20=0,0,IF(H20<=Inputs!$K$30,-PMT(Inputs!$K$29/12,Inputs!$K$30*12,Inputs!$K$28*($E$32))*12,0)) -> 0 | I38: =IF(I20=0,0,IF(I20<=Inputs!$K$30,-PMT(Inputs!$K$29/12,Inputs!$K$30*12,Inputs!$K$28*($E$32))*12,0)) -> 0 | J38: =IF(J20=0,0,IF(J20<=Inputs!$K$30,-PMT(Inputs!$K$29/12,Inputs!$K$30*12,Inputs!$K$28*($E$32))*12,0)) -> 0 | K38: =IF(K20=0,0,IF(K20<=Inputs!$K$30,-PMT(Inputs!$K$29/12,Inputs!$K$30*12,Inputs!$K$28*($E$32))*12,0)) -> 0 | L38: =IF(L20=0,0,IF(L20<=Inputs!$K$30,-PMT(Inputs!$K$29/12,Inputs!$K$30*12,Inputs!$K$28*($E$32))*12,0)) -> 0 | M38: =IF(M20=0,0,IF(M20<=Inputs!$K$30,-PMT(Inputs!$K$29/12,Inputs!$K$30*12,Inputs!$K$28*($E$32))*12,0)) -> 0 | N38: =IF(N20=0,0,IF(N20<=Inputs!$K$30,-PMT(Inputs!$K$29/12,Inputs!$K$30*12,Inputs!$K$28*($E$32))*12,0)) -> 0 | O38: =IF(O20=0,0,IF(O20<=Inputs!$K$30,-PMT(Inputs!$K$29/12,Inputs!$K$30*12,Inputs!$K$28*($E$32))*12,0)) -> 0 | P38: =IF(P20=0,0,IF(P20<=Inputs!$K$30,-PMT(Inputs!$K$29/12,Inputs!$K$30*12,Inputs!$K$28*($E$32))*12,0)) -> 0 | Q38: =IF(Q20=0,0,IF(Q20<=Inputs!$K$30,-PMT(Inputs!$K$29/12,Inputs!$K$30*12,Inputs!$K$28*($E$32))*12,0)) -> 0 | R38: =IF(R20=0,0,IF(R20<=Inputs!$K$30,-PMT(Inputs!$K$29/12,Inputs!$K$30*12,Inputs!$K$28*($E$32))*12,0)) -> 0 | S38: =IF(S20=0,0,IF(S20<=Inputs!$K$30,-PMT(Inputs!$K$29/12,Inputs!$K$30*12,Inputs!$K$28*($E$32))*12,0)) -> 0 | T38: =IF(T20=0,0,IF(T20<=Inputs!$K$30,-PMT(Inputs!$K$29/12,Inputs!$K$30*12,Inputs!$K$28*($E$32))*12,0)) -> 0 | U38: =IF(U20=0,0,IF(U20<=Inputs!$K$30,-PMT(Inputs!$K$29/12,Inputs!$K$30*12,Inputs!$K$28*($E$32))*12,0)) -> 0 | V38: =IF(V20=0,0,IF(V20<=Inputs!$K$30,-PMT(Inputs!$K$29/12,Inputs!$K$30*12,Inputs!$K$28*($E$32))*12,0)) -> 0 | W38: =IF(W20=0,0,IF(W20<=Inputs!$K$30,-PMT(Inputs!$K$29/12,Inputs!$K$30*12,Inputs!$K$28*($E$32))*12,0)) -> 0 | X38: =IF(X20=0,0,IF(X20<=Inputs!$K$30,-PMT(Inputs!$K$29/12,Inputs!$K$30*12,Inputs!$K$28*($E$32))*12,0)) -> 0 | Y38: =IF(Y20=0,0,IF(Y20<=Inputs!$K$30,-PMT(Inputs!$K$29/12,Inputs!$K$30*12,Inputs!$K$28*($E$32))*12,0)) -> 0 | Z38: =IF(Z20=0,0,IF(Z20<=Inputs!$K$30,-PMT(Inputs!$K$29/12,Inputs!$K$30*12,Inputs!$K$28*($E$32))*12,0)) -> 0 | AA38: =IF(AA20=0,0,IF(AA20<=Inputs!$K$30,-PMT(Inputs!$K$29/12,Inputs!$K$30*12,Inputs!$K$28*($E$32))*12,0)) -> 0 | AB38: =IF(AB20=0,0,IF(AB20<=Inputs!$K$30,-PMT(Inputs!$K$29/12,Inputs!$K$30*12,Inputs!$K$28*($E$32))*12,0)) -> 0 | AC38: =IF(AC20=0,0,IF(AC20<=Inputs!$K$30,-PMT(Inputs!$K$29/12,Inputs!$K$30*12,Inputs!$K$28*($E$32))*12,0)) -> 0 | AD38: =IF(AD20=0,0,IF(AD20<=Inputs!$K$30,-PMT(Inputs!$K$29/12,Inputs!$K$30*12,Inputs!$K$28*($E$32))*12,0)) -> 0 | AF38: 0
B39: Total Cost of Capital | E39: =SUM(E35:E38) -> 0 | F39: =SUM(F35:F38) -> 0 | G39: 0 | H39: 0 | I39: 0 | J39: 0 | K39: 0 | L39: 0 | M39: 0 | N39: 0 | O39: 0 | P39: 0 | Q39: 0 | R39: 0 | S39: 0 | T39: 0 | U39: 0 | V39: 0 | W39: 0 | X39: 0 | Y39: 0 | Z39: 0 | AA39: 0 | AB39: 0 | AC39: 0 | AD39: 0 | AF39: 0
B41: OPERATING EXPENSES | D41: $/kW/Yr
B42: Fixed O&M Expense | C42: $ | D42: 10.4 | F42: =-D42*Inputs!E4 -> -10400 | G42: =F42*1.02 -> -10608 | H42: =G42*1.02 -> -10820.16 | I42: -11036.5632 | J42: -11257.29446 | K42: -11482.44035 | L42: -11712.08916 | M42: -11946.33094 | N42: -12185.25756 | O42: -12428.96271 | P42: -12677.54197 | Q42: -12931.09281 | R42: -13189.71466 | S42: -13453.50896 | T42: -13722.57914 | U42: -13997.03072 | V42: -14276.97133 | W42: -14562.51076 | X42: -14853.76097 | Y42: -15150.83619 | Z42: 0 | AA42: 0 | AB42: 0 | AC42: 0 | AD42: 0 | AF42: =SUM(E42:AE42) -> -252692.6459
B43: Insurance | C43: $ | D43: 3.4 | F43: =-D43*Inputs!E4 -> -3400 | G43: =F43*1.02 -> -3468 | H43: -3537.36 | I43: -3608.1072 | J43: -3680.269344 | K43: -3753.874731 | L43: -3828.952225 | M43: -3905.53127 | N43: -3983.641895 | O43: -4063.314733 | P43: -4144.581028 | Q43: -4227.472649 | R43: -4312.022102 | S43: -4398.262544 | T43: -4486.227794 | U43: -4575.95235 | V43: -4667.471397 | W43: -4760.820825 | X43: -4856.037242 | Y43: -4953.157987 | Z43: -5052.221146 | AA43: -5153.265569 | AB43: -5256.330881 | AC43: -5361.457498 | AD43: -5468.686648 | AF43: -108903.0191
B44: Project Administration | C44: $ | D44: 5.2 | F44: =-D44*Inputs!E4 -> -5200 | G44: -5304 | H44: -5410.08 | I44: -5518.2816 | J44: -5628.647232 | K44: -5741.220177 | L44: -5856.04458 | M44: -5973.165472 | N44: -6092.628781 | O44: -6214.481357 | P44: -6338.770984 | Q44: -6465.546404 | R44: -6594.857332 | S44: -6726.754478 | T44: -6861.289568 | U44: -6998.515359 | V44: -7138.485666 | W44: -7281.25538 | X44: -7426.880487 | Y44: -7575.418097 | Z44: -7726.926459 | AA44: -7881.464988 | AB44: -8039.094288 | AC44: -8199.876174 | AD44: -8363.873697 | AF44: -166557.5586
B45: Land lease | C45: $ | D45: $ per year | E45: =-((Inputs!E4*175)/43560)*D30 -> 0 | F45: =E45*(1+D31) -> 0 | G45: =F45*(1+E31) -> 0 | H45: 0 | I45: 0 | J45: 0 | K45: 0 | L45: 0 | M45: 0 | N45: 0 | O45: 0 | P45: 0 | Q45: 0 | R45: 0 | S45: 0 | T45: 0 | U45: 0 | V45: 0 | W45: 0 | X45: 0 | Y45: 0 | Z45: 0 | AA45: 0 | AB45: 0 | AC45: 0 | AD45: 0
B46: Subscriber Acquisition | C46: $ | D46: Annual | E46: =-'Subscriber Mgt'!I72 -> -57920 | F46: =-('Subscriber Mgt'!E78+'Subscriber Mgt'!E79) -> -13131.5625 | G46: =-('Subscriber Mgt'!F78+'Subscriber Mgt'!F79) -> -18000.9375 | H46: =-('Subscriber Mgt'!G78+'Subscriber Mgt'!G79) -> -12487.44891 | I46: =-('Subscriber Mgt'!H78+'Subscriber Mgt'!H79) -> -12915.27237 | J46: =-('Subscriber Mgt'!I78+'Subscriber Mgt'!I79) -> -13299.28054 | K46: =-('Subscriber Mgt'!J78+'Subscriber Mgt'!J79) -> -13694.80896 | L46: =-('Subscriber Mgt'!K78+'Subscriber Mgt'!K79) -> -14102.20323 | M46: =-('Subscriber Mgt'!L78+'Subscriber Mgt'!L79) -> -14521.81933 | N46: =-('Subscriber Mgt'!M78+'Subscriber Mgt'!M79) -> -14954.02391 | O46: =-('Subscriber Mgt'!N78+'Subscriber Mgt'!N79) -> -15399.19462 | P46: =-('Subscriber Mgt'!O78+'Subscriber Mgt'!O79) -> -15857.72046 | Q46: =-('Subscriber Mgt'!P78+'Subscriber Mgt'!P79) -> -16330.00208 | R46: =-('Subscriber Mgt'!Q78+'Subscriber Mgt'!Q79) -> -16816.45214 | S46: =-('Subscriber Mgt'!R78+'Subscriber Mgt'!R79) -> -17317.4957 | T46: =-('Subscriber Mgt'!S78+'Subscriber Mgt'!S79) -> -17833.57057 | U46: =-('Subscriber Mgt'!T78+'Subscriber Mgt'!T79) -> -18365.12769 | V46: =-('Subscriber Mgt'!U78+'Subscriber Mgt'!U79) -> -18912.63152 | W46: =-('Subscriber Mgt'!V78+'Subscriber Mgt'!V79) -> -19476.56047 | X46: =-('Subscriber Mgt'!W78+'Subscriber Mgt'!W79) -> -20057.40728 | Y46: =-('Subscriber Mgt'!X78+'Subscriber Mgt'!X79) -> -20655.6795 | Z46: =-('Subscriber Mgt'!Y78+'Subscriber Mgt'!Y79) -> -21271.89988 | AA46: =-('Subscriber Mgt'!Z78+'Subscriber Mgt'!Z79) -> -21906.60688 | AB46: =-('Subscriber Mgt'!AA78+'Subscriber Mgt'!AA79) -> -22560.35509 | AC46: =-('Subscriber Mgt'!AB78+'Subscriber Mgt'!AB79) -> -23233.71574 | AD46: =-('Subscriber Mgt'!AC78+'Subscriber Mgt'!AC79) -> -23927.27721 | AF46: -494949.0541
B47: Ongoing Transactional and Billing Costs | C47: $ | D47: Annual | F47: =-('Subscriber Mgt'!E80+'Subscriber Mgt'!E81+'Subscriber Mgt'!E82) -> -14955.5625 | G47: =-('Subscriber Mgt'!F80+'Subscriber Mgt'!F81+'Subscriber Mgt'!F82) -> -14745.09375 | H47: =-('Subscriber Mgt'!G80+'Subscriber Mgt'!G81+'Subscriber Mgt'!G82) -> -12806.61291 | I47: =-('Subscriber Mgt'!H80+'Subscriber Mgt'!H81+'Subscriber Mgt'!H82) -> -13190.8113 | J47: =-('Subscriber Mgt'!I80+'Subscriber Mgt'!I81+'Subscriber Mgt'!I82) -> -13586.53563 | K47: =-('Subscriber Mgt'!J80+'Subscriber Mgt'!J81+'Subscriber Mgt'!J82) -> -13994.1317 | L47: =-('Subscriber Mgt'!K80+'Subscriber Mgt'!K81+'Subscriber Mgt'!K82) -> -14413.95565 | M47: =-('Subscriber Mgt'!L80+'Subscriber Mgt'!L81+'Subscriber Mgt'!L82) -> -14846.37432 | N47: =-('Subscriber Mgt'!M80+'Subscriber Mgt'!M81+'Subscriber Mgt'!M82) -> -15291.76555 | O47: =-('Subscriber Mgt'!N80+'Subscriber Mgt'!N81+'Subscriber Mgt'!N82) -> -15750.51852 | P47: =-('Subscriber Mgt'!O80+'Subscriber Mgt'!O81+'Subscriber Mgt'!O82) -> -16223.03408 | Q47: =-('Subscriber Mgt'!P80+'Subscriber Mgt'!P81+'Subscriber Mgt'!P82) -> -16709.7251 | R47: =-('Subscriber Mgt'!Q80+'Subscriber Mgt'!Q81+'Subscriber Mgt'!Q82) -> -17211.01685 | S47: =-('Subscriber Mgt'!R80+'Subscriber Mgt'!R81+'Subscriber Mgt'!R82) -> -17727.34736 | T47: =-('Subscriber Mgt'!S80+'Subscriber Mgt'!S81+'Subscriber Mgt'!S82) -> -18259.16778 | U47: =-('Subscriber Mgt'!T80+'Subscriber Mgt'!T81+'Subscriber Mgt'!T82) -> -18806.94281 | V47: =-('Subscriber Mgt'!U80+'Subscriber Mgt'!U81+'Subscriber Mgt'!U82) -> -19371.1511 | W47: =-('Subscriber Mgt'!V80+'Subscriber Mgt'!V81+'Subscriber Mgt'!V82) -> -19952.28563 | X47: =-('Subscriber Mgt'!W80+'Subscriber Mgt'!W81+'Subscriber Mgt'!W82) -> -20550.8542 | Y47: =-('Subscriber Mgt'!X80+'Subscriber Mgt'!X81+'Subscriber Mgt'!X82) -> -21167.37982 | Z47: =-('Subscriber Mgt'!Y80+'Subscriber Mgt'!Y81+'Subscriber Mgt'!Y82) -> -21802.40122 | AA47: =-('Subscriber Mgt'!Z80+'Subscriber Mgt'!Z81+'Subscriber Mgt'!Z82) -> -22456.47325 | AB47: =-('Subscriber Mgt'!AA80+'Subscriber Mgt'!AA81+'Subscriber Mgt'!AA82) -> -23130.16745 | AC47: =-('Subscriber Mgt'!AB80+'Subscriber Mgt'!AB81+'Subscriber Mgt'!AB82) -> -23824.07248 | AD47: =-('Subscriber Mgt'!AC80+'Subscriber Mgt'!AC81+'Subscriber Mgt'!AC82) -> -24538.79465 | AF47: -445312.1756
B48: Total Operating Expenses | E48: =SUM(E42:E47) -> -57920 | F48: -47087.125 | G48: -52126.03125 | H48: -45061.66181 | I48: -46269.03567 | J48: -47452.02722 | K48: -48666.47593 | L48: -49913.24485 | M48: -51193.22134 | N48: -52507.3177 | O48: -53856.47195 | P48: -55241.64852 | Q48: -56663.83903 | R48: -58124.06309 | S48: -59623.36904 | T48: -61162.83485 | U48: -62743.56893 | V48: -64366.71101 | W48: -66033.43306 | X48: -67744.94018 | Y48: -69502.4716 | Z48: -55853.44871 | AA48: -57397.81069 | AB48: -58985.94771 | AC48: -60619.12189 | AD48: -62298.63221 | AF48: =SUM(AF42:AF47) -> -1468414.453
B50: OPERATING RESERVES | D50: $/kW/Yr
B51: Annual reserve contribution | C51: $ | D51: 10.4 | F51: =-F42 -> 10400 | G51: =-G42 -> 10608 | H51: 10820.16 | I51: 11036.5632 | J51: 11257.29446 | K51: 11482.44035 | L51: 11712.08916 | M51: 11946.33094 | N51: 12185.25756 | O51: 12428.96271 | P51: 12677.54197 | Q51: 12931.09281 | R51: 13189.71466 | S51: 13453.50896 | T51: 13722.57914 | U51: 13997.03072 | V51: 14276.97133 | W51: 14562.51076 | X51: 14853.76097 | Y51: 15150.83619 | Z51: 0 | AA51: 0 | AB51: 0 | AC51: 0 | AD51: 0
B52: Cumulative reserves | C52: $ | D52: 10.4 | F52: =F51+F53 -> 10400 | G52: =F52+F54+G51+G53 -> 21216 | H52: =G52+G54+H51+H53 -> 32460.48 | I52: 43929.8496 | J52: 55628.60659 | K52: 67561.33872 | L52: 79732.7255 | M52: 92147.54001 | N52: 104810.6508 | O52: 12916.37302 | P52: 26091.07349 | Q52: 39529.26798 | R52: 53236.22635 | S52: 67217.3239 | T52: 81478.04339 | U52: 96023.97728 | V52: 110860.8298 | W52: 125994.4195 | X52: 141430.6809 | Y52: 15744.98663 | Z52: 16351.02008 | AA52: 16969.1742 | AB52: 17599.6914 | AC52: 18242.81894 | AD52: 18898.80903
B53: Inverter replacement | C53: $ | D53: 3.4 | F53: 0 | G53: =F53*1.02 -> 0 | H53: 0 | I53: 0 | J53: 0 | K53: 0 | L53: 0 | M53: 0 | N53: 0 | O53: =-N52 -> -104810.6508 | P53: 0 | Q53: =P53*1.02 -> 0 | R53: 0 | S53: 0 | T53: 0 | U53: 0 | V53: 0 | W53: 0 | X53: 0 | Y53: =-X52 -> -141430.6809 | Z53: 0 | AA53: 0 | AB53: 0 | AC53: 0 | AD53: 0
B54: Reserve interest | C54: $ | D54: 5.2 | F54: =F52*0.02 -> 208 | G54: =G52*0.02 -> 424.32 | H54: 432.8064 | I54: 441.462528 | J54: 450.2917786 | K54: 459.2976141 | L54: 468.4835664 | M54: 477.8532377 | N54: 487.4103025 | O54: 497.1585085 | P54: 507.1016787 | Q54: 517.2437123 | R54: 527.5885865 | S54: 538.1403583 | T54: 548.9031654 | U54: 559.8812287 | V54: 571.0788533 | W54: 582.5004304 | X54: 594.150439 | Y54: 606.0334478 | Z54: 618.1541167 | AA54: 630.5171991 | AB54: 643.127543 | AC54: 655.9900939 | AD54: 669.1098958
B55: Reserve interest revenue | F55: =F54 -> 208 | G55: =G54 -> 424.32 | H55: 432.8064 | I55: 441.462528 | J55: 450.2917786 | K55: 459.2976141 | L55: 468.4835664 | M55: 477.8532377 | N55: 487.4103025 | O55: 497.1585085 | P55: 507.1016787 | Q55: 517.2437123 | R55: 527.5885865 | S55: 538.1403583 | T55: 548.9031654 | U55: 559.8812287 | V55: 571.0788533 | W55: 582.5004304 | X55: 594.150439 | Y55: 606.0334478 | Z55: 618.1541167 | AA55: 630.5171991 | AB55: 643.127543 | AC55: =AC52+AC54 -> 18898.80903 | AD55: =SUM(AD52:AD54) -> 19567.91893 | AF55: =SUM(E55:AE55) -> 50258.23266
B57: INCENTIVES PAYMENTS
B58: Federal ITC | C58: =IF(Inputs!K13="Yes",Inputs!L13,0) -> 0.26 | D58: Year 1 | F58: =-(E23+E24+E25+E26+E27)*C58 -> 509600 | AF58: =SUM(E58:AE58) -> 509600
B59: Federal MACRS Cash Equivalent | C59: =IF(Inputs!$K$14="Yes",Inputs!L14,0) -> 0.35 | F59: =IF(F20=1,(-$E$32+$E$25-($F$58/2))*0.2*$C$59)+IF(F20=2,(-$E$32+$E$25-($F$58/2))*0.32*$C$59)+IF(F20=3,(-$E$32+$E$25-($F$58/2))*0.192*$C$59)+IF(F20=4,(-$E$32+$E$25-($F$58/2))*0.1152*$C$59)+IF(F20=5,(-$E$32+$E$25-($F$58/2))*0.1152*$C$59)+IF(F20=6,(-$E$32+$E$25-($F$58/2))*0.0576*$C$59,0) -> 111370.2909 | G59: 178192.4654 | H59: 106915.4792 | I59: 64149.28754 | J59: 64149.28754 | K59: 32074.64377 | AF59: 556851.4543
B60: SRECs | C60: $ over payout term | D60: =Inputs!L10 -> 0 | F60: =IF(F20<=Inputs!$L$10,((Inputs!$L$8*$AE$103)/1000)/Inputs!$L$10,0) -> 0 | G60: =IF(G20<=Inputs!$L$10,((Inputs!$L$8*$AE$103)/1000)/Inputs!$L$10,0) -> 0 | H60: =IF(H20<=Inputs!$L$10,((Inputs!$L$8*$AE$103)/1000)/Inputs!$L$10,0) -> 0 | I60: =IF(I20<=Inputs!$L$10,((Inputs!$L$8*$AE$103)/1000)/Inputs!$L$10,0) -> 0 | J60: =IF(J20<=Inputs!$L$10,((Inputs!$L$8*$AE$103)/1000)/Inputs!$L$10,0) -> 0 | K60: =IF(K20<=Inputs!$L$10,((Inputs!$L$8*$AE$103)/1000)/Inputs!$L$10,0) -> 0 | L60: =IF(L20<=Inputs!$L$10,((Inputs!$L$8*$AE$103)/1000)/Inputs!$L$10,0) -> 0 | M60: =IF(M20<=Inputs!$L$10,((Inputs!$L$8*$AE$103)/1000)/Inputs!$L$10,0) -> 0 | N60: =IF(N20<=Inputs!$L$10,((Inputs!$L$8*$AE$103)/1000)/Inputs!$L$10,0) -> 0 | O60: =IF(O20<=Inputs!$L$10,((Inputs!$L$8*$AE$103)/1000)/Inputs!$L$10,0) -> 0 | P60: =IF(P20<=Inputs!$L$10,((Inputs!$L$8*$AE$103)/1000)/Inputs!$L$10,0) -> 0 | Q60: =IF(Q20<=Inputs!$L$10,((Inputs!$L$8*$AE$103)/1000)/Inputs!$L$10,0) -> 0 | R60: =IF(R20<=Inputs!$L$10,((Inputs!$L$8*$AE$103)/1000)/Inputs!$L$10,0) -> 0 | S60: =IF(S20<=Inputs!$L$10,((Inputs!$L$8*$AE$103)/1000)/Inputs!$L$10,0) -> 0 | T60: =IF(T20<=Inputs!$L$10,((Inputs!$L$8*$AE$103)/1000)/Inputs!$L$10,0) -> 0 | U60: =IF(U20<=Inputs!$L$10,((Inputs!$L$8*$AE$103)/1000)/Inputs!$L$10,0) -> 0 | V60: =IF(V20<=Inputs!$L$10,((Inputs!$L$8*$AE$103)/1000)/Inputs!$L$10,0) -> 0 | W60: =IF(W20<=Inputs!$L$10,((Inputs!$L$8*$AE$103)/1000)/Inputs!$L$10,0) -> 0 | X60: =IF(X20<=Inputs!$L$10,((Inputs!$L$8*$AE$103)/1000)/Inputs!$L$10,0) -> 0 | Y60: =IF(Y20<=Inputs!$L$10,((Inputs!$L$8*$AE$103)/1000)/Inputs!$L$10,0) -> 0 | Z60: =IF(Z20<=Inputs!$L$10,((Inputs!$L$8*$AE$103)/1000)/Inputs!$L$10,0) -> 0 | AA60: =IF(AA20<=Inputs!$L$10,((Inputs!$L$8*$AE$103)/1000)/Inputs!$L$10,0) -> 0 | AB60: =IF(AB20<=Inputs!$L$10,((Inputs!$L$8*$AE$103)/1000)/Inputs!$L$10,0) -> 0 | AC60: =IF(AC20<=Inputs!$L$10,((Inputs!$L$8*$AE$103)/1000)/Inputs!$L$10,0) -> 0 | AD60: =IF(AD20<=Inputs!$L$10,((Inputs!$L$8*$AE$103)/1000)/Inputs!$L$10,0) -> 0 | AF60: 0
B61: =Inputs!J17 -> [NAME] | C61: =Inputs!L17 -> 0 | D61: =Inputs!K17 -> (please select) | F61: =IF(D61="$ per installed watt",(C61*Inputs!$E$4*1000),C61) -> 0 | AF61: 0
B62: =Inputs!J18 -> [NAME] | C62: =Inputs!L18 -> 0 | D62: =Inputs!K18 -> (please select) | F62: =IF(D62="$ per installed watt",(C62*Inputs!$E$4*1000),C62) -> 0 | AF62: 0
B63: =Inputs!J19 -> [NAME] | C63: =Inputs!L19 -> 0 | D63: =Inputs!K19 -> (please select) | F63: =IF(D63="$ per installed watt",(C63*Inputs!$E$4*1000),C63) -> 0 | AF63: 0
B64: =Inputs!J20 -> [NAME] | C64: =Inputs!L20 -> 0 | D64: =Inputs!K20 -> (please select) | F64: =IF(D64="$ per installed watt",(C64*Inputs!$E$4*1000),C64) -> 0 | AF64: 0
B65: Total Incentive Payments | F65: =SUM(F58:F64) -> 620970.2909 | G65: 178192.4654 | H65: 106915.4792 | I65: 64149.28754 | J65: 64149.28754 | K65: 32074.64377 | L65: 0 | M65: 0 | N65: 0 | O65: 0 | P65: 0 | Q65: 0 | R65: 0 | S65: 0 | T65: 0 | U65: 0 | V65: 0 | W65: 0 | X65: 0 | Y65: 0 | Z65: 0 | AA65: 0 | AB65: 0 | AC65: 0 | AD65: 0 | AF65: =SUM(AF58:AF64) -> 1066451.454
B67: REVENUES
B68: Anchor Payments | C68: $ | D68: Annual | F68: =F152*(1-Inputs!$S$7) -> 11765.48393 | G68: =G152*(1-Inputs!$S$7) -> 12032.10156 | H68: =H152*(1-Inputs!$S$7) -> 12304.76101 | I68: =I152*(1-Inputs!$S$7) -> 12583.5992 | J68: =J152*(1-Inputs!$S$7) -> 12868.75614 | K68: =K152*(1-Inputs!$S$7) -> 13160.37503 | L68: =L152*(1-Inputs!$S$7) -> 13458.60229 | M68: =M152*(1-Inputs!$S$7) -> 13763.58767 | N68: =N152*(1-Inputs!$S$7) -> 14075.48433 | O68: =O152*(1-Inputs!$S$7) -> 14394.44888 | P68: =P152*(1-Inputs!$S$7) -> 14720.64149 | Q68: =Q152*(1-Inputs!$S$7) -> 15054.22595 | R68: =R152*(1-Inputs!$S$7) -> 15395.36976 | S68: =S152*(1-Inputs!$S$7) -> 15744.24423 | T68: =T152*(1-Inputs!$S$7) -> 16101.02455 | U68: =U152*(1-Inputs!$S$7) -> 16465.88987 | V68: =V152*(1-Inputs!$S$7) -> 16839.0234 | W68: =W152*(1-Inputs!$S$7) -> 17220.61251 | X68: =X152*(1-Inputs!$S$7) -> 17610.84881 | Y68: =Y152*(1-Inputs!$S$7) -> 18009.92826 | Z68: =Z152*(1-Inputs!$S$7) -> 18418.05124 | AA68: =AA152*(1-Inputs!$S$7) -> 18835.4227 | AB68: =AB152*(1-Inputs!$S$7) -> 19262.25221 | AC68: =AC152*(1-Inputs!$S$7) -> 19698.75411 | AD68: =AD152*(1-Inputs!$S$7) -> 20145.14758 | AF68: =SUM(E68:AE68) -> 389928.6367
B69: Host Net Metering | F69: 0 | G69: 0 | H69: 0 | I69: 0 | J69: 0 | K69: 0 | L69: 0 | M69: 0 | N69: 0 | O69: 0 | P69: 0 | Q69: 0 | R69: 0 | S69: 0 | T69: 0 | U69: 0 | V69: 0 | W69: 0 | X69: 0 | Y69: 0 | Z69: 0 | AA69: 0 | AB69: 0 | AC69: 0 | AD69: 0 | AF69: 0
B70: Subscriber Payments | F70: =F199*(1-Inputs!$S$12) -> 14767.94719 | G70: =G199*(1-Inputs!$S$12) -> 29758.8249 | H70: =H199*(1-Inputs!$S$12) -> 30433.18963 | I70: =I199*(1-Inputs!$S$12) -> 31122.83614 | J70: =J199*(1-Inputs!$S$12) -> 31828.11073 | K70: =K199*(1-Inputs!$S$12) -> 32549.36755 | L70: =L199*(1-Inputs!$S$12) -> 33286.96877 | M70: =M199*(1-Inputs!$S$12) -> 34041.28477 | N70: =N199*(1-Inputs!$S$12) -> 34812.69432 | O70: =O199*(1-Inputs!$S$12) -> 35601.58479 | P70: =P199*(1-Inputs!$S$12) -> 36408.3523 | Q70: =Q199*(1-Inputs!$S$12) -> 37233.40197 | R70: =R199*(1-Inputs!$S$12) -> 38077.14809 | S70: =S199*(1-Inputs!$S$12) -> 38940.01435 | T70: =T199*(1-Inputs!$S$12) -> 39822.43401 | U70: =U199*(1-Inputs!$S$12) -> 40724.85019 | V70: =V199*(1-Inputs!$S$12) -> 41647.71602 | W70: =W199*(1-Inputs!$S$12) -> 42591.49491 | X70: =X199*(1-Inputs!$S$12) -> 43556.66078 | Y70: =Y199*(1-Inputs!$S$12) -> 44543.69827 | Z70: =Z199*(1-Inputs!$S$12) -> 45553.10302 | AA70: =AA199*(1-Inputs!$S$12) -> 46585.38188 | AB70: =AB199*(1-Inputs!$S$12) -> 47641.05322 | AC70: =AC199*(1-Inputs!$S$12) -> 48720.64713 | AD70: =AD199*(1-Inputs!$S$12) -> 49824.70571 | AF70: 950073.4707
B71: Unsubscribed energy payments | F71: =F233 -> 8954.075011 | G71: =G233 -> 0 | H71: 0 | I71: 0 | J71: 0 | K71: 0 | L71: 0 | M71: 0 | N71: 0 | O71: 0 | P71: 0 | Q71: 0 | R71: 0 | S71: 0 | T71: 0 | U71: 0 | V71: 0 | W71: 0 | X71: 0 | Y71: 0 | Z71: 0 | AA71: 0 | AB71: 0 | AC71: 0 | AD71: 0 | AF71: 8954.075011
B72: Site Lease Revenue | C72: $ | D72: Fixed Annual | F72: =$E$30 -> 0 | G72: =$E$30 -> 0 | H72: 0 | I72: 0 | J72: 0 | K72: 0 | L72: 0 | M72: 0 | N72: 0 | O72: 0 | P72: 0 | Q72: 0 | R72: 0 | S72: 0 | T72: 0 | U72: 0 | V72: 0 | W72: 0 | X72: 0 | Y72: 0 | Z72: 0 | AA72: 0 | AB72: 0 | AC72: 0 | AD72: 0 | AF72: 0
B73: Total Revenue | F73: =SUM(F68:F72) -> 35487.50613 | G73: =SUM(G68:G72) -> 41790.92646 | H73: 42737.95065 | I73: 43706.43535 | J73: 44696.86688 | K73: 45709.74258 | L73: 46745.57105 | M73: 47804.87244 | N73: 48888.17865 | O73: 49996.03367 | P73: 51128.99379 | Q73: 52287.62792 | R73: 53472.51785 | S73: 54684.25858 | T73: 55923.45857 | U73: 57190.74006 | V73: 58486.73942 | W73: 59812.10742 | X73: 61167.50959 | Y73: 62553.62652 | Z73: 63971.15425 | AA73: 65420.80458 | AB73: 66903.30543 | AC73: 68419.40124 | AD73: 69969.85329 | AF73: =SUM(AF68:AF72) -> 1348956.182
B75: CASHFLOW
B76: Net Benefits (Costs) | C76: $ | E76: =E32+E39+E48 -> -2017920 | F76: =F39+F48+F55+F65+F73 -> 609578.672 | G76: =G39+G48+G55+G65+G73 -> 168281.6806 | H76: 105024.5745 | I76: 62028.14974 | J76: 61844.41897 | K76: 29577.20803 | L76: -2699.19023 | M76: -2910.495658 | N76: -3131.728743 | O76: -3363.279769 | P76: -3605.55305 | Q76: -3858.967404 | R76: -4123.956646 | S76: -4400.970098 | T76: -4690.473119 | U76: -4992.947642 | V76: -5308.89274 | W76: -5638.825208 | X76: -5983.280155 | Y76: -6342.81163 | Z76: 8735.859663 | AA76: 8653.511087 | AB76: 8560.485268 | AC76: 26699.08838 | AD76: 27239.14001 | AF76: =SUM(E76:AE76) -> -962748.5839
B77: Cumulative Cashflow | C77: $ | E77: =D76+E76 -> -2017920 | F77: =E77+F76 -> -1408341.328 | G77: =F77+G76 -> -1240059.647 | H77: -1135035.073 | I77: -1073006.923 | J77: -1011162.504 | K77: -981585.2962 | L77: -984284.4865 | M77: -987194.9821 | N77: -990326.7109 | O77: -993689.9906 | P77: -997295.5437 | Q77: -1001154.511 | R77: -1005278.468 | S77: -1009679.438 | T77: -1014369.911 | U77: -1019362.859 | V77: -1024671.751 | W77: -1030310.577 | X77: -1036293.857 | Y77: -1042636.668 | Z77: -1033900.809 | AA77: -1025247.298 | AB77: -1016686.812 | AC77: -989987.7239 | AD77: -962748.5839 | AF77: =AD77 -> -962748.5839
B78: Payback Calculation | D78: Years | E78: =SUM(F78:AD78) -> 25 | F78: =IF(F77<0,1,IF(AND(F77>0,E77<0),(-E77/(F77-E77)),0)) -> 1 | G78: 1 | H78: 1 | I78: 1 | J78: 1 | K78: 1 | L78: 1 | M78: 1 | N78: 1 | O78: 1 | P78: 1 | Q78: 1 | R78: 1 | S78: 1 | T78: 1 | U78: 1 | V78: 1 | W78: 1 | X78: 1 | Y78: 1 | Z78: 1 | AA78: 1 | AB78: 1 | AC78: 1 | AD78: 1
B80: Internal Rate of Return
B81: Internal Net Benefits (Costs) | C81: $ | E81: =E32+E48+E55 -> -2017920 | F81: =F48+F55+F65+F73 -> 609578.672 | G81: =G48+G55+G65+G73 -> 168281.6806 | H81: 105024.5745 | I81: 62028.14974 | J81: 61844.41897 | K81: 29577.20803 | L81: -2699.19023 | M81: -2910.495658 | N81: -3131.728743 | O81: -3363.279769 | P81: -3605.55305 | Q81: -3858.967404 | R81: -4123.956646 | S81: -4400.970098 | T81: -4690.473119 | U81: -4992.947642 | V81: -5308.89274 | W81: -5638.825208 | X81: -5983.280155 | Y81: -6342.81163 | Z81: 8735.859663 | AA81: 8653.511087 | AB81: 8560.485268 | AC81: 26699.08838 | AD81: 27239.14001 | AF81: =SUM(E81:AE81) -> -962748.5839
B82: Internal Cumulative Cashflow | C82: $ | E82: =D81+E81 -> -2017920 | F82: =E82+F81 -> -1408341.328 | G82: =F82+G81 -> -1240059.647 | H82: =G82+H81 -> -1135035.073 | I82: -1073006.923 | J82: -1011162.504 | K82: -981585.2962 | L82: -984284.4865 | M82: -987194.9821 | N82: -990326.7109 | O82: -993689.9906 | P82: -997295.5437 | Q82: -1001154.511 | R82: -1005278.468 | S82: -1009679.438 | T82: -1014369.911 | U82: -1019362.859 | V82: -1024671.751 | W82: -1030310.577 | X82: -1036293.857 | Y82: -1042636.668 | Z82: -1033900.809 | AA82: -1025247.298 | AB82: -1016686.812 | AC82: -989987.7239 | AD82: -962748.5839 | AF82: =AD82 -> -962748.5839
B83: Payback Calculation | D83: Years | E83: =SUM(F83:AD83) -> 25 | F83: =IF(F82<0,1,IF(AND(F82>0,E82<0),(-E82/(F82-E82)),0)) -> 1 | G83: 1 | H83: 1 | I83: 1 | J83: 1 | K83: 1 | L83: 1 | M83: 1 | N83: 1 | O83: 1 | P83: 1 | Q83: 1 | R83: 1 | S83: 1 | T83: 1 | U83: 1 | V83: 1 | W83: 1 | X83: 1 | Y83: 1 | Z83: 1 | AA83: 1 | AB83: 1 | AC83: 1 | AD83: 1
B87: Power Generation and Value of Power
B89: Power Generated
B90: Month | C90: Total Generation (kWh) | E90: =D186 -> 0 | F90: Anchor Subscription
B91: January | C91: =IF(Inputs!$E$22="PV Watts",Inputs!$E$4*Inputs!E44,Inputs!D26) -> 33233.16016 | D91: kWh's per mo. | F91: =($C91*(1-Inputs!$E$18)) -> 33066.99436 | G91: =(F91*(1-Inputs!$E$18)) -> 32901.65938 | H91: =(G91*(1-Inputs!$E$18)) -> 32737.15109 | I91: =(H91*(1-Inputs!$E$18)) -> 32573.46533 | J91: =(I91*(1-Inputs!$E$18)) -> 32410.598 | K91: =(J91*(1-Inputs!$E$18)) -> 32248.54501 | L91: =(K91*(1-Inputs!$E$18)) -> 32087.30229 | M91: =(L91*(1-Inputs!$E$18)) -> 31926.86578 | N91: =(M91*(1-Inputs!$E$18)) -> 31767.23145 | O91: =(N91*(1-Inputs!$E$18)) -> 31608.39529 | P91: =(O91*(1-Inputs!$E$18)) -> 31450.35332 | Q91: =(P91*(1-Inputs!$E$18)) -> 31293.10155 | R91: =(Q91*(1-Inputs!$E$18)) -> 31136.63604 | S91: =(R91*(1-Inputs!$E$18)) -> 30980.95286 | T91: =(S91*(1-Inputs!$E$18)) -> 30826.0481 | U91: =(T91*(1-Inputs!$E$18)) -> 30671.91786 | V91: =(U91*(1-Inputs!$E$18)) -> 30518.55827 | W91: =(V91*(1-Inputs!$E$18)) -> 30365.96548 | X91: =(W91*(1-Inputs!$E$18)) -> 30214.13565 | Y91: =(X91*(1-Inputs!$E$18)) -> 30063.06497 | Z91: =(Y91*(1-Inputs!$E$18)) -> 29912.74965 | AA91: =(Z91*(1-Inputs!$E$18)) -> 29763.1859 | AB91: =(AA91*(1-Inputs!$E$18)) -> 29614.36997 | AC91: =(AB91*(1-Inputs!$E$18)) -> 29466.29812 | AD91: =(AC91*(1-Inputs!$E$18)) -> 29318.96663
B92: February | C92: =IF(Inputs!$E$22="PV Watts",Inputs!$E$4*Inputs!E45,Inputs!D27) -> 44092.37891 | D92: kWh's per mo. | F92: =($C92*(1-Inputs!$E$18)) -> 43871.91701 | G92: =(F92*(1-Inputs!$E$18)) -> 43652.55743 | H92: =(G92*(1-Inputs!$E$18)) -> 43434.29464 | I92: =(H92*(1-Inputs!$E$18)) -> 43217.12317 | J92: =(I92*(1-Inputs!$E$18)) -> 43001.03755 | K92: =(J92*(1-Inputs!$E$18)) -> 42786.03236 | L92: =(K92*(1-Inputs!$E$18)) -> 42572.1022 | M92: =(L92*(1-Inputs!$E$18)) -> 42359.24169 | N92: =(M92*(1-Inputs!$E$18)) -> 42147.44548 | O92: =(N92*(1-Inputs!$E$18)) -> 41936.70825 | P92: =(O92*(1-Inputs!$E$18)) -> 41727.02471 | Q92: =(P92*(1-Inputs!$E$18)) -> 41518.38959 | R92: =(Q92*(1-Inputs!$E$18)) -> 41310.79764 | S92: =(R92*(1-Inputs!$E$18)) -> 41104.24365 | T92: =(S92*(1-Inputs!$E$18)) -> 40898.72243 | U92: =(T92*(1-Inputs!$E$18)) -> 40694.22882 | V92: =(U92*(1-Inputs!$E$18)) -> 40490.75768 | W92: =(V92*(1-Inputs!$E$18)) -> 40288.30389 | X92: =(W92*(1-Inputs!$E$18)) -> 40086.86237 | Y92: =(X92*(1-Inputs!$E$18)) -> 39886.42806 | Z92: =(Y92*(1-Inputs!$E$18)) -> 39686.99592 | AA92: =(Z92*(1-Inputs!$E$18)) -> 39488.56094 | AB92: =(AA92*(1-Inputs!$E$18)) -> 39291.11813 | AC92: =(AB92*(1-Inputs!$E$18)) -> 39094.66254 | AD92: =(AC92*(1-Inputs!$E$18)) -> 38899.18923
B93: March | C93: =IF(Inputs!$E$22="PV Watts",Inputs!$E$4*Inputs!E46,Inputs!D28) -> 78933.5625 | D93: kWh's per mo. | F93: =($C93*(1-Inputs!$E$18)) -> 78538.89469 | G93: =(F93*(1-Inputs!$E$18)) -> 78146.20021 | H93: =(G93*(1-Inputs!$E$18)) -> 77755.46921 | I93: =(H93*(1-Inputs!$E$18)) -> 77366.69187 | J93: =(I93*(1-Inputs!$E$18)) -> 76979.85841 | K93: =(J93*(1-Inputs!$E$18)) -> 76594.95912 | L93: =(K93*(1-Inputs!$E$18)) -> 76211.98432 | M93: =(L93*(1-Inputs!$E$18)) -> 75830.9244 | N93: =(M93*(1-Inputs!$E$18)) -> 75451.76978 | O93: =(N93*(1-Inputs!$E$18)) -> 75074.51093 | P93: =(O93*(1-Inputs!$E$18)) -> 74699.13837 | Q93: =(P93*(1-Inputs!$E$18)) -> 74325.64268 | R93: =(Q93*(1-Inputs!$E$18)) -> 73954.01447 | S93: =(R93*(1-Inputs!$E$18)) -> 73584.2444 | T93: =(S93*(1-Inputs!$E$18)) -> 73216.32317 | U93: =(T93*(1-Inputs!$E$18)) -> 72850.24156 | V93: =(U93*(1-Inputs!$E$18)) -> 72485.99035 | W93: =(V93*(1-Inputs!$E$18)) -> 72123.5604 | X93: =(W93*(1-Inputs!$E$18)) -> 71762.9426 | Y93: =(X93*(1-Inputs!$E$18)) -> 71404.12788 | Z93: =(Y93*(1-Inputs!$E$18)) -> 71047.10724 | AA93: =(Z93*(1-Inputs!$E$18)) -> 70691.87171 | AB93: =(AA93*(1-Inputs!$E$18)) -> 70338.41235 | AC93: =(AB93*(1-Inputs!$E$18)) -> 69986.72029 | AD93: =(AC93*(1-Inputs!$E$18)) -> 69636.78669
B94: April | C94: =IF(Inputs!$E$22="PV Watts",Inputs!$E$4*Inputs!E47,Inputs!D29) -> 100329.7266 | D94: kWh's per mo. | F94: =($C94*(1-Inputs!$E$18)) -> 99828.07793 | G94: =(F94*(1-Inputs!$E$18)) -> 99328.93754 | H94: =(G94*(1-Inputs!$E$18)) -> 98832.29285 | I94: =(H94*(1-Inputs!$E$18)) -> 98338.13139 | J94: =(I94*(1-Inputs!$E$18)) -> 97846.44073 | K94: =(J94*(1-Inputs!$E$18)) -> 97357.20853 | L94: =(K94*(1-Inputs!$E$18)) -> 96870.42248 | M94: =(L94*(1-Inputs!$E$18)) -> 96386.07037 | N94: =(M94*(1-Inputs!$E$18)) -> 95904.14002 | O94: =(N94*(1-Inputs!$E$18)) -> 95424.61932 | P94: =(O94*(1-Inputs!$E$18)) -> 94947.49622 | Q94: =(P94*(1-Inputs!$E$18)) -> 94472.75874 | R94: =(Q94*(1-Inputs!$E$18)) -> 94000.39495 | S94: =(R94*(1-Inputs!$E$18)) -> 93530.39297 | T94: =(S94*(1-Inputs!$E$18)) -> 93062.74101 | U94: =(T94*(1-Inputs!$E$18)) -> 92597.4273 | V94: =(U94*(1-Inputs!$E$18)) -> 92134.44017 | W94: =(V94*(1-Inputs!$E$18)) -> 91673.76797 | X94: =(W94*(1-Inputs!$E$18)) -> 91215.39913 | Y94: =(X94*(1-Inputs!$E$18)) -> 90759.32213 | Z94: =(Y94*(1-Inputs!$E$18)) -> 90305.52552 | AA94: =(Z94*(1-Inputs!$E$18)) -> 89853.99789 | AB94: =(AA94*(1-Inputs!$E$18)) -> 89404.7279 | AC94: =(AB94*(1-Inputs!$E$18)) -> 88957.70426 | AD94: =(AC94*(1-Inputs!$E$18)) -> 88512.91574
B95: May | C95: =IF(Inputs!$E$22="PV Watts",Inputs!$E$4*Inputs!E48,Inputs!D30) -> 137096.4375 | D95: kWh's per mo. | F95: =($C95*(1-Inputs!$E$18)) -> 136410.9553 | G95: =(F95*(1-Inputs!$E$18)) -> 135728.9005 | H95: =(G95*(1-Inputs!$E$18)) -> 135050.256 | I95: =(H95*(1-Inputs!$E$18)) -> 134375.0048 | J95: =(I95*(1-Inputs!$E$18)) -> 133703.1297 | K95: =(J95*(1-Inputs!$E$18)) -> 133034.6141 | L95: =(K95*(1-Inputs!$E$18)) -> 132369.441 | M95: =(L95*(1-Inputs!$E$18)) -> 131707.5938 | N95: =(M95*(1-Inputs!$E$18)) -> 131049.0558 | O95: =(N95*(1-Inputs!$E$18)) -> 130393.8106 | P95: =(O95*(1-Inputs!$E$18)) -> 129741.8415 | Q95: =(P95*(1-Inputs!$E$18)) -> 129093.1323 | R95: =(Q95*(1-Inputs!$E$18)) -> 128447.6666 | S95: =(R95*(1-Inputs!$E$18)) -> 127805.4283 | T95: =(S95*(1-Inputs!$E$18)) -> 127166.4012 | U95: =(T95*(1-Inputs!$E$18)) -> 126530.5692 | V95: =(U95*(1-Inputs!$E$18)) -> 125897.9163 | W95: =(V95*(1-Inputs!$E$18)) -> 125268.4267 | X95: =(W95*(1-Inputs!$E$18)) -> 124642.0846 | Y95: =(X95*(1-Inputs!$E$18)) -> 124018.8742 | Z95: =(Y95*(1-Inputs!$E$18)) -> 123398.7798 | AA95: =(Z95*(1-Inputs!$E$18)) -> 122781.7859 | AB95: =(AA95*(1-Inputs!$E$18)) -> 122167.877 | AC95: =(AB95*(1-Inputs!$E$18)) -> 121557.0376 | AD95: =(AC95*(1-Inputs!$E$18)) -> 120949.2524
B96: June | C96: =IF(Inputs!$E$22="PV Watts",Inputs!$E$4*Inputs!E49,Inputs!D31) -> 138873.5625 | D96: kWh's per mo. | F96: =($C96*(1-Inputs!$E$18)) -> 138179.1947 | G96: =(F96*(1-Inputs!$E$18)) -> 137488.2987 | H96: =(G96*(1-Inputs!$E$18)) -> 136800.8572 | I96: =(H96*(1-Inputs!$E$18)) -> 136116.8529 | J96: =(I96*(1-Inputs!$E$18)) -> 135436.2687 | K96: =(J96*(1-Inputs!$E$18)) -> 134759.0873 | L96: =(K96*(1-Inputs!$E$18)) -> 134085.2919 | M96: =(L96*(1-Inputs!$E$18)) -> 133414.8654 | N96: =(M96*(1-Inputs!$E$18)) -> 132747.7911 | O96: =(N96*(1-Inputs!$E$18)) -> 132084.0521 | P96: =(O96*(1-Inputs!$E$18)) -> 131423.6319 | Q96: =(P96*(1-Inputs!$E$18)) -> 130766.5137 | R96: =(Q96*(1-Inputs!$E$18)) -> 130112.6812 | S96: =(R96*(1-Inputs!$E$18)) -> 129462.1178 | T96: =(S96*(1-Inputs!$E$18)) -> 128814.8072 | U96: =(T96*(1-Inputs!$E$18)) -> 128170.7331 | V96: =(U96*(1-Inputs!$E$18)) -> 127529.8795 | W96: =(V96*(1-Inputs!$E$18)) -> 126892.2301 | X96: =(W96*(1-Inputs!$E$18)) -> 126257.7689 | Y96: =(X96*(1-Inputs!$E$18)) -> 125626.4801 | Z96: =(Y96*(1-Inputs!$E$18)) -> 124998.3477 | AA96: =(Z96*(1-Inputs!$E$18)) -> 124373.3559 | AB96: =(AA96*(1-Inputs!$E$18)) -> 123751.4892 | AC96: =(AB96*(1-Inputs!$E$18)) -> 123132.7317 | AD96: =(AC96*(1-Inputs!$E$18)) -> 122517.068
B97: July | C97: =IF(Inputs!$E$22="PV Watts",Inputs!$E$4*Inputs!E50,Inputs!D32) -> 153020 | D97: kWh's per mo. | F97: =($C97*(1-Inputs!$E$18)) -> 152254.9 | G97: =(F97*(1-Inputs!$E$18)) -> 151493.6255 | H97: =(G97*(1-Inputs!$E$18)) -> 150736.1574 | I97: =(H97*(1-Inputs!$E$18)) -> 149982.4766 | J97: =(I97*(1-Inputs!$E$18)) -> 149232.5642 | K97: =(J97*(1-Inputs!$E$18)) -> 148486.4014 | L97: =(K97*(1-Inputs!$E$18)) -> 147743.9694 | M97: =(L97*(1-Inputs!$E$18)) -> 147005.2495 | N97: =(M97*(1-Inputs!$E$18)) -> 146270.2233 | O97: =(N97*(1-Inputs!$E$18)) -> 145538.8722 | P97: =(O97*(1-Inputs!$E$18)) -> 144811.1778 | Q97: =(P97*(1-Inputs!$E$18)) -> 144087.1219 | R97: =(Q97*(1-Inputs!$E$18)) -> 143366.6863 | S97: =(R97*(1-Inputs!$E$18)) -> 142649.8529 | T97: =(S97*(1-Inputs!$E$18)) -> 141936.6036 | U97: =(T97*(1-Inputs!$E$18)) -> 141226.9206 | V97: =(U97*(1-Inputs!$E$18)) -> 140520.786 | W97: =(V97*(1-Inputs!$E$18)) -> 139818.1821 | X97: =(W97*(1-Inputs!$E$18)) -> 139119.0911 | Y97: =(X97*(1-Inputs!$E$18)) -> 138423.4957 | Z97: =(Y97*(1-Inputs!$E$18)) -> 137731.3782 | AA97: =(Z97*(1-Inputs!$E$18)) -> 137042.7213 | AB97: =(AA97*(1-Inputs!$E$18)) -> 136357.5077 | AC97: =(AB97*(1-Inputs!$E$18)) -> 135675.7202 | AD97: =(AC97*(1-Inputs!$E$18)) -> 134997.3416
B98: August | C98: =IF(Inputs!$E$22="PV Watts",Inputs!$E$4*Inputs!E51,Inputs!D33) -> 124082.5781 | D98: kWh's per mo. | F98: =($C98*(1-Inputs!$E$18)) -> 123462.1652 | G98: =(F98*(1-Inputs!$E$18)) -> 122844.8544 | H98: =(G98*(1-Inputs!$E$18)) -> 122230.6301 | I98: =(H98*(1-Inputs!$E$18)) -> 121619.477 | J98: =(I98*(1-Inputs!$E$18)) -> 121011.3796 | K98: =(J98*(1-Inputs!$E$18)) -> 120406.3227 | L98: =(K98*(1-Inputs!$E$18)) -> 119804.2911 | M98: =(L98*(1-Inputs!$E$18)) -> 119205.2696 | N98: =(M98*(1-Inputs!$E$18)) -> 118609.2433 | O98: =(N98*(1-Inputs!$E$18)) -> 118016.1971 | P98: =(O98*(1-Inputs!$E$18)) -> 117426.1161 | Q98: =(P98*(1-Inputs!$E$18)) -> 116838.9855 | R98: =(Q98*(1-Inputs!$E$18)) -> 116254.7906 | S98: =(R98*(1-Inputs!$E$18)) -> 115673.5166 | T98: =(S98*(1-Inputs!$E$18)) -> 115095.149 | U98: =(T98*(1-Inputs!$E$18)) -> 114519.6733 | V98: =(U98*(1-Inputs!$E$18)) -> 113947.0749 | W98: =(V98*(1-Inputs!$E$18)) -> 113377.3396 | X98: =(W98*(1-Inputs!$E$18)) -> 112810.4529 | Y98: =(X98*(1-Inputs!$E$18)) -> 112246.4006 | Z98: =(Y98*(1-Inputs!$E$18)) -> 111685.1686 | AA98: =(Z98*(1-Inputs!$E$18)) -> 111126.7427 | AB98: =(AA98*(1-Inputs!$E$18)) -> 110571.109 | AC98: =(AB98*(1-Inputs!$E$18)) -> 110018.2535 | AD98: =(AC98*(1-Inputs!$E$18)) -> 109468.1622
B99: September | C99: =IF(Inputs!$E$22="PV Watts",Inputs!$E$4*Inputs!E52,Inputs!D34) -> 91969.25 | D99: kWh's per mo. | F99: =($C99*(1-Inputs!$E$18)) -> 91509.40375 | G99: =(F99*(1-Inputs!$E$18)) -> 91051.85673 | H99: =(G99*(1-Inputs!$E$18)) -> 90596.59745 | I99: =(H99*(1-Inputs!$E$18)) -> 90143.61446 | J99: =(I99*(1-Inputs!$E$18)) -> 89692.89639 | K99: =(J99*(1-Inputs!$E$18)) -> 89244.43191 | L99: =(K99*(1-Inputs!$E$18)) -> 88798.20975 | M99: =(L99*(1-Inputs!$E$18)) -> 88354.2187 | N99: =(M99*(1-Inputs!$E$18)) -> 87912.4476 | O99: =(N99*(1-Inputs!$E$18)) -> 87472.88537 | P99: =(O99*(1-Inputs!$E$18)) -> 87035.52094 | Q99: =(P99*(1-Inputs!$E$18)) -> 86600.34333 | R99: =(Q99*(1-Inputs!$E$18)) -> 86167.34162 | S99: =(R99*(1-Inputs!$E$18)) -> 85736.50491 | T99: =(S99*(1-Inputs!$E$18)) -> 85307.82239 | U99: =(T99*(1-Inputs!$E$18)) -> 84881.28327 | V99: =(U99*(1-Inputs!$E$18)) -> 84456.87686 | W99: =(V99*(1-Inputs!$E$18)) -> 84034.59247 | X99: =(W99*(1-Inputs!$E$18)) -> 83614.41951 | Y99: =(X99*(1-Inputs!$E$18)) -> 83196.34741 | Z99: =(Y99*(1-Inputs!$E$18)) -> 82780.36568 | AA99: =(Z99*(1-Inputs!$E$18)) -> 82366.46385 | AB99: =(AA99*(1-Inputs!$E$18)) -> 81954.63153 | AC99: =(AB99*(1-Inputs!$E$18)) -> 81544.85837 | AD99: =(AC99*(1-Inputs!$E$18)) -> 81137.13408
B100: October | C100: =IF(Inputs!$E$22="PV Watts",Inputs!$E$4*Inputs!E53,Inputs!D35) -> 63307.03516 | D100: kWh's per mo. | F100: =($C100*(1-Inputs!$E$18)) -> 62990.49998 | G100: =(F100*(1-Inputs!$E$18)) -> 62675.54748 | H100: =(G100*(1-Inputs!$E$18)) -> 62362.16974 | I100: =(H100*(1-Inputs!$E$18)) -> 62050.35889 | J100: =(I100*(1-Inputs!$E$18)) -> 61740.1071 | K100: =(J100*(1-Inputs!$E$18)) -> 61431.40656 | L100: =(K100*(1-Inputs!$E$18)) -> 61124.24953 | M100: =(L100*(1-Inputs!$E$18)) -> 60818.62828 | N100: =(M100*(1-Inputs!$E$18)) -> 60514.53514 | O100: =(N100*(1-Inputs!$E$18)) -> 60211.96247 | P100: =(O100*(1-Inputs!$E$18)) -> 59910.90265 | Q100: =(P100*(1-Inputs!$E$18)) -> 59611.34814 | R100: =(Q100*(1-Inputs!$E$18)) -> 59313.2914 | S100: =(R100*(1-Inputs!$E$18)) -> 59016.72494 | T100: =(S100*(1-Inputs!$E$18)) -> 58721.64132 | U100: =(T100*(1-Inputs!$E$18)) -> 58428.03311 | V100: =(U100*(1-Inputs!$E$18)) -> 58135.89295 | W100: =(V100*(1-Inputs!$E$18)) -> 57845.21348 | X100: =(W100*(1-Inputs!$E$18)) -> 57555.98741 | Y100: =(X100*(1-Inputs!$E$18)) -> 57268.20748 | Z100: =(Y100*(1-Inputs!$E$18)) -> 56981.86644 | AA100: =(Z100*(1-Inputs!$E$18)) -> 56696.95711 | AB100: =(AA100*(1-Inputs!$E$18)) -> 56413.47232 | AC100: =(AB100*(1-Inputs!$E$18)) -> 56131.40496 | AD100: =(AC100*(1-Inputs!$E$18)) -> 55850.74794
B101: November | C101: =IF(Inputs!$E$22="PV Watts",Inputs!$E$4*Inputs!E54,Inputs!D36) -> 33271.67969 | D101: kWh's per mo. | F101: =($C101*(1-Inputs!$E$18)) -> 33105.32129 | G101: =(F101*(1-Inputs!$E$18)) -> 32939.79468 | H101: =(G101*(1-Inputs!$E$18)) -> 32775.09571 | I101: =(H101*(1-Inputs!$E$18)) -> 32611.22023 | J101: =(I101*(1-Inputs!$E$18)) -> 32448.16413 | K101: =(J101*(1-Inputs!$E$18)) -> 32285.92331 | L101: =(K101*(1-Inputs!$E$18)) -> 32124.49369 | M101: =(L101*(1-Inputs!$E$18)) -> 31963.87122 | N101: =(M101*(1-Inputs!$E$18)) -> 31804.05187 | O101: =(N101*(1-Inputs!$E$18)) -> 31645.03161 | P101: =(O101*(1-Inputs!$E$18)) -> 31486.80645 | Q101: =(P101*(1-Inputs!$E$18)) -> 31329.37242 | R101: =(Q101*(1-Inputs!$E$18)) -> 31172.72556 | S101: =(R101*(1-Inputs!$E$18)) -> 31016.86193 | T101: =(S101*(1-Inputs!$E$18)) -> 30861.77762 | U101: =(T101*(1-Inputs!$E$18)) -> 30707.46873 | V101: =(U101*(1-Inputs!$E$18)) -> 30553.93139 | W101: =(V101*(1-Inputs!$E$18)) -> 30401.16173 | X101: =(W101*(1-Inputs!$E$18)) -> 30249.15592 | Y101: =(X101*(1-Inputs!$E$18)) -> 30097.91014 | Z101: =(Y101*(1-Inputs!$E$18)) -> 29947.42059 | AA101: =(Z101*(1-Inputs!$E$18)) -> 29797.68349 | AB101: =(AA101*(1-Inputs!$E$18)) -> 29648.69507 | AC101: =(AB101*(1-Inputs!$E$18)) -> 29500.4516 | AD101: =(AC101*(1-Inputs!$E$18)) -> 29352.94934
B102: December | C102: =IF(Inputs!$E$22="PV Watts",Inputs!$E$4*Inputs!E55,Inputs!D37) -> 23866.55469 | D102: kWh's per mo. | F102: =($C102*(1-Inputs!$E$18)) -> 23747.22191 | G102: =(F102*(1-Inputs!$E$18)) -> 23628.4858 | H102: =(G102*(1-Inputs!$E$18)) -> 23510.34338 | I102: =(H102*(1-Inputs!$E$18)) -> 23392.79166 | J102: =(I102*(1-Inputs!$E$18)) -> 23275.8277 | K102: =(J102*(1-Inputs!$E$18)) -> 23159.44856 | L102: =(K102*(1-Inputs!$E$18)) -> 23043.65132 | M102: =(L102*(1-Inputs!$E$18)) -> 22928.43306 | N102: =(M102*(1-Inputs!$E$18)) -> 22813.7909 | O102: =(N102*(1-Inputs!$E$18)) -> 22699.72194 | P102: =(O102*(1-Inputs!$E$18)) -> 22586.22333 | Q102: =(P102*(1-Inputs!$E$18)) -> 22473.29222 | R102: =(Q102*(1-Inputs!$E$18)) -> 22360.92576 | S102: =(R102*(1-Inputs!$E$18)) -> 22249.12113 | T102: =(S102*(1-Inputs!$E$18)) -> 22137.87552 | U102: =(T102*(1-Inputs!$E$18)) -> 22027.18614 | V102: =(U102*(1-Inputs!$E$18)) -> 21917.05021 | W102: =(V102*(1-Inputs!$E$18)) -> 21807.46496 | X102: =(W102*(1-Inputs!$E$18)) -> 21698.42764 | Y102: =(X102*(1-Inputs!$E$18)) -> 21589.9355 | Z102: =(Y102*(1-Inputs!$E$18)) -> 21481.98582 | AA102: =(Z102*(1-Inputs!$E$18)) -> 21374.57589 | AB102: =(AA102*(1-Inputs!$E$18)) -> 21267.70301 | AC102: =(AB102*(1-Inputs!$E$18)) -> 21161.3645 | AD102: =(AC102*(1-Inputs!$E$18)) -> 21055.55767
B103: Annual | C103: =SUM(C91:C102) -> 1022075.926 | D103: kWh's per yr. | F103: =SUM(F91:F102) -> 1016965.546 | G103: =SUM(G91:G102) -> 1011880.718 | H103: 1006821.315 | I103: 1001787.208 | J103: 996778.2722 | K103: 991794.3809 | L103: 986835.4089 | M103: 981901.2319 | N103: 976991.7257 | O103: 972106.7671 | P103: 967246.2333 | Q103: 962410.0021 | R103: 957597.9521 | S103: 952809.9623 | T103: 948045.9125 | U103: 943305.683 | V103: 938589.1546 | W103: 933896.2088 | X103: 929226.7277 | Y103: 924580.5941 | Z103: 919957.6911 | AA103: 915357.9027 | AB103: 910781.1132 | AC103: 906227.2076 | AD103: =SUM(AD91:AD102) -> 901696.0716 | AE103: =SUM(E103:AD103) -> 23955590.99
B105: Year | E105: 0 | F105: 1 | G105: 2 | H105: 3 | I105: 4 | J105: 5 | K105: 6 | L105: 7 | M105: 8 | N105: 9 | O105: 10 | P105: 11 | Q105: 12 | R105: 13 | S105: 14 | T105: 15 | U105: 16 | V105: 17 | W105: 18 | X105: 19 | Y105: 20 | Z105: 21 | AA105: 22 | AB105: 23 | AC105: 24 | AD105: 25
B107: Anchor Rate Schedule:
B108: Month | C108: Rate ($/kWh)
B109: January | C109: =Inputs!$S$6 -> 0.035 | D109: $/kWh | F109: =C109*(1+Inputs!$L$4) -> 0.035973 | G109: =F109*(1+Inputs!$L$4) -> 0.0369730494 | H109: =G109*(1+Inputs!$L$4) -> 0.03800090017 | I109: =H109*(1+Inputs!$L$4) -> 0.0390573252 | J109: =I109*(1+Inputs!$L$4) -> 0.04014311884 | K109: =J109*(1+Inputs!$L$4) -> 0.04125909754 | L109: =K109*(1+Inputs!$L$4) -> 0.04240610045 | M109: =L109*(1+Inputs!$L$4) -> 0.04358499005 | N109: =M109*(1+Inputs!$L$4) -> 0.04479665277 | O109: =N109*(1+Inputs!$L$4) -> 0.04604199972 | P109: =O109*(1+Inputs!$L$4) -> 0.04732196731 | Q109: =P109*(1+Inputs!$L$4) -> 0.048637518 | R109: =Q109*(1+Inputs!$L$4) -> 0.049989641 | S109: =R109*(1+Inputs!$L$4) -> 0.05137935302 | T109: =S109*(1+Inputs!$L$4) -> 0.05280769903 | U109: =T109*(1+Inputs!$L$4) -> 0.05427575307 | V109: =U109*(1+Inputs!$L$4) -> 0.055784619 | W109: =V109*(1+Inputs!$L$4) -> 0.05733543141 | X109: =W109*(1+Inputs!$L$4) -> 0.0589293564 | Y109: =X109*(1+Inputs!$L$4) -> 0.06056759251 | Z109: =Y109*(1+Inputs!$L$4) -> 0.06225137158 | AA109: =Z109*(1+Inputs!$L$4) -> 0.06398195971 | AB109: =AA109*(1+Inputs!$L$4) -> 0.06576065819 | AC109: =AB109*(1+Inputs!$L$4) -> 0.06758880449 | AD109: =AC109*(1+Inputs!$L$4) -> 0.06946777326
B110: February | C110: =Inputs!$S$6 -> 0.035 | D110: $/kWh | F110: =C110*(1+Inputs!$L$4) -> 0.035973 | G110: =F110*(1+Inputs!$L$4) -> 0.0369730494 | H110: =G110*(1+Inputs!$L$4) -> 0.03800090017 | I110: =H110*(1+Inputs!$L$4) -> 0.0390573252 | J110: =I110*(1+Inputs!$L$4) -> 0.04014311884 | K110: =J110*(1+Inputs!$L$4) -> 0.04125909754 | L110: =K110*(1+Inputs!$L$4) -> 0.04240610045 | M110: =L110*(1+Inputs!$L$4) -> 0.04358499005 | N110: =M110*(1+Inputs!$L$4) -> 0.04479665277 | O110: =N110*(1+Inputs!$L$4) -> 0.04604199972 | P110: =O110*(1+Inputs!$L$4) -> 0.04732196731 | Q110: =P110*(1+Inputs!$L$4) -> 0.048637518 | R110: =Q110*(1+Inputs!$L$4) -> 0.049989641 | S110: =R110*(1+Inputs!$L$4) -> 0.05137935302 | T110: =S110*(1+Inputs!$L$4) -> 0.05280769903 | U110: =T110*(1+Inputs!$L$4) -> 0.05427575307 | V110: =U110*(1+Inputs!$L$4) -> 0.055784619 | W110: =V110*(1+Inputs!$L$4) -> 0.05733543141 | X110: =W110*(1+Inputs!$L$4) -> 0.0589293564 | Y110: =X110*(1+Inputs!$L$4) -> 0.06056759251 | Z110: =Y110*(1+Inputs!$L$4) -> 0.06225137158 | AA110: =Z110*(1+Inputs!$L$4) -> 0.06398195971 | AB110: =AA110*(1+Inputs!$L$4) -> 0.06576065819 | AC110: =AB110*(1+Inputs!$L$4) -> 0.06758880449 | AD110: =AC110*(1+Inputs!$L$4) -> 0.06946777326
B111: March | C111: =Inputs!$S$6 -> 0.035 | D111: $/kWh | F111: =C111*(1+Inputs!$L$4) -> 0.035973 | G111: =F111*(1+Inputs!$L$4) -> 0.0369730494 | H111: =G111*(1+Inputs!$L$4) -> 0.03800090017 | I111: =H111*(1+Inputs!$L$4) -> 0.0390573252 | J111: =I111*(1+Inputs!$L$4) -> 0.04014311884 | K111: =J111*(1+Inputs!$L$4) -> 0.04125909754 | L111: =K111*(1+Inputs!$L$4) -> 0.04240610045 | M111: =L111*(1+Inputs!$L$4) -> 0.04358499005 | N111: =M111*(1+Inputs!$L$4) -> 0.04479665277 | O111: =N111*(1+Inputs!$L$4) -> 0.04604199972 | P111: =O111*(1+Inputs!$L$4) -> 0.04732196731 | Q111: =P111*(1+Inputs!$L$4) -> 0.048637518 | R111: =Q111*(1+Inputs!$L$4) -> 0.049989641 | S111: =R111*(1+Inputs!$L$4) -> 0.05137935302 | T111: =S111*(1+Inputs!$L$4) -> 0.05280769903 | U111: =T111*(1+Inputs!$L$4) -> 0.05427575307 | V111: =U111*(1+Inputs!$L$4) -> 0.055784619 | W111: =V111*(1+Inputs!$L$4) -> 0.05733543141 | X111: =W111*(1+Inputs!$L$4) -> 0.0589293564 | Y111: =X111*(1+Inputs!$L$4) -> 0.06056759251 | Z111: =Y111*(1+Inputs!$L$4) -> 0.06225137158 | AA111: =Z111*(1+Inputs!$L$4) -> 0.06398195971 | AB111: =AA111*(1+Inputs!$L$4) -> 0.06576065819 | AC111: =AB111*(1+Inputs!$L$4) -> 0.06758880449 | AD111: =AC111*(1+Inputs!$L$4) -> 0.06946777326
B112: April | C112: =Inputs!$S$6 -> 0.035 | D112: $/kWh | F112: =C112*(1+Inputs!$L$4) -> 0.035973 | G112: =F112*(1+Inputs!$L$4) -> 0.0369730494 | H112: =G112*(1+Inputs!$L$4) -> 0.03800090017 | I112: =H112*(1+Inputs!$L$4) -> 0.0390573252 | J112: =I112*(1+Inputs!$L$4) -> 0.04014311884 | K112: =J112*(1+Inputs!$L$4) -> 0.04125909754 | L112: =K112*(1+Inputs!$L$4) -> 0.04240610045 | M112: =L112*(1+Inputs!$L$4) -> 0.04358499005 | N112: =M112*(1+Inputs!$L$4) -> 0.04479665277 | O112: =N112*(1+Inputs!$L$4) -> 0.04604199972 | P112: =O112*(1+Inputs!$L$4) -> 0.04732196731 | Q112: =P112*(1+Inputs!$L$4) -> 0.048637518 | R112: =Q112*(1+Inputs!$L$4) -> 0.049989641 | S112: =R112*(1+Inputs!$L$4) -> 0.05137935302 | T112: =S112*(1+Inputs!$L$4) -> 0.05280769903 | U112: =T112*(1+Inputs!$L$4) -> 0.05427575307 | V112: =U112*(1+Inputs!$L$4) -> 0.055784619 | W112: =V112*(1+Inputs!$L$4) -> 0.05733543141 | X112: =W112*(1+Inputs!$L$4) -> 0.0589293564 | Y112: =X112*(1+Inputs!$L$4) -> 0.06056759251 | Z112: =Y112*(1+Inputs!$L$4) -> 0.06225137158 | AA112: =Z112*(1+Inputs!$L$4) -> 0.06398195971 | AB112: =AA112*(1+Inputs!$L$4) -> 0.06576065819 | AC112: =AB112*(1+Inputs!$L$4) -> 0.06758880449 | AD112: =AC112*(1+Inputs!$L$4) -> 0.06946777326
B113: May | C113: =Inputs!$S$6 -> 0.035 | D113: $/kWh | F113: =C113*(1+Inputs!$L$4) -> 0.035973 | G113: =F113*(1+Inputs!$L$4) -> 0.0369730494 | H113: =G113*(1+Inputs!$L$4) -> 0.03800090017 | I113: =H113*(1+Inputs!$L$4) -> 0.0390573252 | J113: =I113*(1+Inputs!$L$4) -> 0.04014311884 | K113: =J113*(1+Inputs!$L$4) -> 0.04125909754 | L113: =K113*(1+Inputs!$L$4) -> 0.04240610045 | M113: =L113*(1+Inputs!$L$4) -> 0.04358499005 | N113: =M113*(1+Inputs!$L$4) -> 0.04479665277 | O113: =N113*(1+Inputs!$L$4) -> 0.04604199972 | P113: =O113*(1+Inputs!$L$4) -> 0.04732196731 | Q113: =P113*(1+Inputs!$L$4) -> 0.048637518 | R113: =Q113*(1+Inputs!$L$4) -> 0.049989641 | S113: =R113*(1+Inputs!$L$4) -> 0.05137935302 | T113: =S113*(1+Inputs!$L$4) -> 0.05280769903 | U113: =T113*(1+Inputs!$L$4) -> 0.05427575307 | V113: =U113*(1+Inputs!$L$4) -> 0.055784619 | W113: =V113*(1+Inputs!$L$4) -> 0.05733543141 | X113: =W113*(1+Inputs!$L$4) -> 0.0589293564 | Y113: =X113*(1+Inputs!$L$4) -> 0.06056759251 | Z113: =Y113*(1+Inputs!$L$4) -> 0.06225137158 | AA113: =Z113*(1+Inputs!$L$4) -> 0.06398195971 | AB113: =AA113*(1+Inputs!$L$4) -> 0.06576065819 | AC113: =AB113*(1+Inputs!$L$4) -> 0.06758880449 | AD113: =AC113*(1+Inputs!$L$4) -> 0.06946777326
B114: June | C114: =Inputs!$S$6 -> 0.035 | D114: $/kWh | F114: =C114*(1+Inputs!$L$4) -> 0.035973 | G114: =F114*(1+Inputs!$L$4) -> 0.0369730494 | H114: =G114*(1+Inputs!$L$4) -> 0.03800090017 | I114: =H114*(1+Inputs!$L$4) -> 0.0390573252 | J114: =I114*(1+Inputs!$L$4) -> 0.04014311884 | K114: =J114*(1+Inputs!$L$4) -> 0.04125909754 | L114: =K114*(1+Inputs!$L$4) -> 0.04240610045 | M114: =L114*(1+Inputs!$L$4) -> 0.04358499005 | N114: =M114*(1+Inputs!$L$4) -> 0.04479665277 | O114: =N114*(1+Inputs!$L$4) -> 0.04604199972 | P114: =O114*(1+Inputs!$L$4) -> 0.04732196731 | Q114: =P114*(1+Inputs!$L$4) -> 0.048637518 | R114: =Q114*(1+Inputs!$L$4) -> 0.049989641 | S114: =R114*(1+Inputs!$L$4) -> 0.05137935302 | T114: =S114*(1+Inputs!$L$4) -> 0.05280769903 | U114: =T114*(1+Inputs!$L$4) -> 0.05427575307 | V114: =U114*(1+Inputs!$L$4) -> 0.055784619 | W114: =V114*(1+Inputs!$L$4) -> 0.05733543141 | X114: =W114*(1+Inputs!$L$4) -> 0.0589293564 | Y114: =X114*(1+Inputs!$L$4) -> 0.06056759251 | Z114: =Y114*(1+Inputs!$L$4) -> 0.06225137158 | AA114: =Z114*(1+Inputs!$L$4) -> 0.06398195971 | AB114: =AA114*(1+Inputs!$L$4) -> 0.06576065819 | AC114: =AB114*(1+Inputs!$L$4) -> 0.06758880449 | AD114: =AC114*(1+Inputs!$L$4) -> 0.06946777326
B115: July | C115: =Inputs!$S$6 -> 0.035 | D115: $/kWh | F115: =C115*(1+Inputs!$L$4) -> 0.035973 | G115: =F115*(1+Inputs!$L$4) -> 0.0369730494 | H115: =G115*(1+Inputs!$L$4) -> 0.03800090017 | I115: =H115*(1+Inputs!$L$4) -> 0.0390573252 | J115: =I115*(1+Inputs!$L$4) -> 0.04014311884 | K115: =J115*(1+Inputs!$L$4) -> 0.04125909754 | L115: =K115*(1+Inputs!$L$4) -> 0.04240610045 | M115: =L115*(1+Inputs!$L$4) -> 0.04358499005 | N115: =M115*(1+Inputs!$L$4) -> 0.04479665277 | O115: =N115*(1+Inputs!$L$4) -> 0.04604199972 | P115: =O115*(1+Inputs!$L$4) -> 0.04732196731 | Q115: =P115*(1+Inputs!$L$4) -> 0.048637518 | R115: =Q115*(1+Inputs!$L$4) -> 0.049989641 | S115: =R115*(1+Inputs!$L$4) -> 0.05137935302 | T115: =S115*(1+Inputs!$L$4) -> 0.05280769903 | U115: =T115*(1+Inputs!$L$4) -> 0.05427575307 | V115: =U115*(1+Inputs!$L$4) -> 0.055784619 | W115: =V115*(1+Inputs!$L$4) -> 0.05733543141 | X115: =W115*(1+Inputs!$L$4) -> 0.0589293564 | Y115: =X115*(1+Inputs!$L$4) -> 0.06056759251 | Z115: =Y115*(1+Inputs!$L$4) -> 0.06225137158 | AA115: =Z115*(1+Inputs!$L$4) -> 0.06398195971 | AB115: =AA115*(1+Inputs!$L$4) -> 0.06576065819 | AC115: =AB115*(1+Inputs!$L$4) -> 0.06758880449 | AD115: =AC115*(1+Inputs!$L$4) -> 0.06946777326
B116: August | C116: =Inputs!$S$6 -> 0.035 | D116: $/kWh | F116: =C116*(1+Inputs!$L$4) -> 0.035973 | G116: =F116*(1+Inputs!$L$4) -> 0.0369730494 | H116: =G116*(1+Inputs!$L$4) -> 0.03800090017 | I116: =H116*(1+Inputs!$L$4) -> 0.0390573252 | J116: =I116*(1+Inputs!$L$4) -> 0.04014311884 | K116: =J116*(1+Inputs!$L$4) -> 0.04125909754 | L116: =K116*(1+Inputs!$L$4) -> 0.04240610045 | M116: =L116*(1+Inputs!$L$4) -> 0.04358499005 | N116: =M116*(1+Inputs!$L$4) -> 0.04479665277 | O116: =N116*(1+Inputs!$L$4) -> 0.04604199972 | P116: =O116*(1+Inputs!$L$4) -> 0.04732196731 | Q116: =P116*(1+Inputs!$L$4) -> 0.048637518 | R116: =Q116*(1+Inputs!$L$4) -> 0.049989641 | S116: =R116*(1+Inputs!$L$4) -> 0.05137935302 | T116: =S116*(1+Inputs!$L$4) -> 0.05280769903 | U116: =T116*(1+Inputs!$L$4) -> 0.05427575307 | V116: =U116*(1+Inputs!$L$4) -> 0.055784619 | W116: =V116*(1+Inputs!$L$4) -> 0.05733543141 | X116: =W116*(1+Inputs!$L$4) -> 0.0589293564 | Y116: =X116*(1+Inputs!$L$4) -> 0.06056759251 | Z116: =Y116*(1+Inputs!$L$4) -> 0.06225137158 | AA116: =Z116*(1+Inputs!$L$4) -> 0.06398195971 | AB116: =AA116*(1+Inputs!$L$4) -> 0.06576065819 | AC116: =AB116*(1+Inputs!$L$4) -> 0.06758880449 | AD116: =AC116*(1+Inputs!$L$4) -> 0.06946777326
B117: September | C117: =Inputs!$S$6 -> 0.035 | D117: $/kWh | F117: =C117*(1+Inputs!$L$4) -> 0.035973 | G117: =F117*(1+Inputs!$L$4) -> 0.0369730494 | H117: =G117*(1+Inputs!$L$4) -> 0.03800090017 | I117: =H117*(1+Inputs!$L$4) -> 0.0390573252 | J117: =I117*(1+Inputs!$L$4) -> 0.04014311884 | K117: =J117*(1+Inputs!$L$4) -> 0.04125909754 | L117: =K117*(1+Inputs!$L$4) -> 0.04240610045 | M117: =L117*(1+Inputs!$L$4) -> 0.04358499005 | N117: =M117*(1+Inputs!$L$4) -> 0.04479665277 | O117: =N117*(1+Inputs!$L$4) -> 0.04604199972 | P117: =O117*(1+Inputs!$L$4) -> 0.04732196731 | Q117: =P117*(1+Inputs!$L$4) -> 0.048637518 | R117: =Q117*(1+Inputs!$L$4) -> 0.049989641 | S117: =R117*(1+Inputs!$L$4) -> 0.05137935302 | T117: =S117*(1+Inputs!$L$4) -> 0.05280769903 | U117: =T117*(1+Inputs!$L$4) -> 0.05427575307 | V117: =U117*(1+Inputs!$L$4) -> 0.055784619 | W117: =V117*(1+Inputs!$L$4) -> 0.05733543141 | X117: =W117*(1+Inputs!$L$4) -> 0.0589293564 | Y117: =X117*(1+Inputs!$L$4) -> 0.06056759251 | Z117: =Y117*(1+Inputs!$L$4) -> 0.06225137158 | AA117: =Z117*(1+Inputs!$L$4) -> 0.06398195971 | AB117: =AA117*(1+Inputs!$L$4) -> 0.06576065819 | AC117: =AB117*(1+Inputs!$L$4) -> 0.06758880449 | AD117: =AC117*(1+Inputs!$L$4) -> 0.06946777326
B118: October | C118: =Inputs!$S$6 -> 0.035 | D118: $/kWh | F118: =C118*(1+Inputs!$L$4) -> 0.035973 | G118: =F118*(1+Inputs!$L$4) -> 0.0369730494 | H118: =G118*(1+Inputs!$L$4) -> 0.03800090017 | I118: =H118*(1+Inputs!$L$4) -> 0.0390573252 | J118: =I118*(1+Inputs!$L$4) -> 0.04014311884 | K118: =J118*(1+Inputs!$L$4) -> 0.04125909754 | L118: =K118*(1+Inputs!$L$4) -> 0.04240610045 | M118: =L118*(1+Inputs!$L$4) -> 0.04358499005 | N118: =M118*(1+Inputs!$L$4) -> 0.04479665277 | O118: =N118*(1+Inputs!$L$4) -> 0.04604199972 | P118: =O118*(1+Inputs!$L$4) -> 0.04732196731 | Q118: =P118*(1+Inputs!$L$4) -> 0.048637518 | R118: =Q118*(1+Inputs!$L$4) -> 0.049989641 | S118: =R118*(1+Inputs!$L$4) -> 0.05137935302 | T118: =S118*(1+Inputs!$L$4) -> 0.05280769903 | U118: =T118*(1+Inputs!$L$4) -> 0.05427575307 | V118: =U118*(1+Inputs!$L$4) -> 0.055784619 | W118: =V118*(1+Inputs!$L$4) -> 0.05733543141 | X118: =W118*(1+Inputs!$L$4) -> 0.0589293564 | Y118: =X118*(1+Inputs!$L$4) -> 0.06056759251 | Z118: =Y118*(1+Inputs!$L$4) -> 0.06225137158 | AA118: =Z118*(1+Inputs!$L$4) -> 0.06398195971 | AB118: =AA118*(1+Inputs!$L$4) -> 0.06576065819 | AC118: =AB118*(1+Inputs!$L$4) -> 0.06758880449 | AD118: =AC118*(1+Inputs!$L$4) -> 0.06946777326
B119: November | C119: =Inputs!$S$6 -> 0.035 | D119: $/kWh | F119: =C119*(1+Inputs!$L$4) -> 0.035973 | G119: =F119*(1+Inputs!$L$4) -> 0.0369730494 | H119: =G119*(1+Inputs!$L$4) -> 0.03800090017 | I119: =H119*(1+Inputs!$L$4) -> 0.0390573252 | J119: =I119*(1+Inputs!$L$4) -> 0.04014311884 | K119: =J119*(1+Inputs!$L$4) -> 0.04125909754 | L119: =K119*(1+Inputs!$L$4) -> 0.04240610045 | M119: =L119*(1+Inputs!$L$4) -> 0.04358499005 | N119: =M119*(1+Inputs!$L$4) -> 0.04479665277 | O119: =N119*(1+Inputs!$L$4) -> 0.04604199972 | P119: =O119*(1+Inputs!$L$4) -> 0.04732196731 | Q119: =P119*(1+Inputs!$L$4) -> 0.048637518 | R119: =Q119*(1+Inputs!$L$4) -> 0.049989641 | S119: =R119*(1+Inputs!$L$4) -> 0.05137935302 | T119: =S119*(1+Inputs!$L$4) -> 0.05280769903 | U119: =T119*(1+Inputs!$L$4) -> 0.05427575307 | V119: =U119*(1+Inputs!$L$4) -> 0.055784619 | W119: =V119*(1+Inputs!$L$4) -> 0.05733543141 | X119: =W119*(1+Inputs!$L$4) -> 0.0589293564 | Y119: =X119*(1+Inputs!$L$4) -> 0.06056759251 | Z119: =Y119*(1+Inputs!$L$4) -> 0.06225137158 | AA119: =Z119*(1+Inputs!$L$4) -> 0.06398195971 | AB119: =AA119*(1+Inputs!$L$4) -> 0.06576065819 | AC119: =AB119*(1+Inputs!$L$4) -> 0.06758880449 | AD119: =AC119*(1+Inputs!$L$4) -> 0.06946777326
B120: December | C120: =Inputs!$S$6 -> 0.035 | D120: $/kWh | F120: =C120*(1+Inputs!$L$4) -> 0.035973 | G120: =F120*(1+Inputs!$L$4) -> 0.0369730494 | H120: =G120*(1+Inputs!$L$4) -> 0.03800090017 | I120: =H120*(1+Inputs!$L$4) -> 0.0390573252 | J120: =I120*(1+Inputs!$L$4) -> 0.04014311884 | K120: =J120*(1+Inputs!$L$4) -> 0.04125909754 | L120: =K120*(1+Inputs!$L$4) -> 0.04240610045 | M120: =L120*(1+Inputs!$L$4) -> 0.04358499005 | N120: =M120*(1+Inputs!$L$4) -> 0.04479665277 | O120: =N120*(1+Inputs!$L$4) -> 0.04604199972 | P120: =O120*(1+Inputs!$L$4) -> 0.04732196731 | Q120: =P120*(1+Inputs!$L$4) -> 0.048637518 | R120: =Q120*(1+Inputs!$L$4) -> 0.049989641 | S120: =R120*(1+Inputs!$L$4) -> 0.05137935302 | T120: =S120*(1+Inputs!$L$4) -> 0.05280769903 | U120: =T120*(1+Inputs!$L$4) -> 0.05427575307 | V120: =U120*(1+Inputs!$L$4) -> 0.055784619 | W120: =V120*(1+Inputs!$L$4) -> 0.05733543141 | X120: =W120*(1+Inputs!$L$4) -> 0.0589293564 | Y120: =X120*(1+Inputs!$L$4) -> 0.06056759251 | Z120: =Y120*(1+Inputs!$L$4) -> 0.06225137158 | AA120: =Z120*(1+Inputs!$L$4) -> 0.06398195971 | AB120: =AA120*(1+Inputs!$L$4) -> 0.06576065819 | AC120: =AB120*(1+Inputs!$L$4) -> 0.06758880449 | AD120: =AC120*(1+Inputs!$L$4) -> 0.06946777326
B122: Anchor Generation Estimate
B123: Month | C123: Total Generation (kWh) | E123: =Inputs!S4 -> 0.4 | F123: Anchor Subscription
B124: January | C124: =C91*Inputs!$S$4 -> 13293.26406 | D124: kWh's per mo. | F124: =C124 -> 13293.26406 | G124: =F124-(F124*Inputs!$E$18) -> 13226.79774 | H124: =G124-(G124*Inputs!$E$18) -> 13160.66375 | I124: =H124-(H124*Inputs!$E$18) -> 13094.86043 | J124: =I124-(I124*Inputs!$E$18) -> 13029.38613 | K124: =J124-(J124*Inputs!$E$18) -> 12964.2392 | L124: =K124-(K124*Inputs!$E$18) -> 12899.41801 | M124: =L124-(L124*Inputs!$E$18) -> 12834.92092 | N124: =M124-(M124*Inputs!$E$18) -> 12770.74631 | O124: =N124-(N124*Inputs!$E$18) -> 12706.89258 | P124: =O124-(O124*Inputs!$E$18) -> 12643.35812 | Q124: =P124-(P124*Inputs!$E$18) -> 12580.14133 | R124: =Q124-(Q124*Inputs!$E$18) -> 12517.24062 | S124: =R124-(R124*Inputs!$E$18) -> 12454.65442 | T124: =S124-(S124*Inputs!$E$18) -> 12392.38114 | U124: =T124-(T124*Inputs!$E$18) -> 12330.41924 | V124: =U124-(U124*Inputs!$E$18) -> 12268.76714 | W124: =V124-(V124*Inputs!$E$18) -> 12207.42331 | X124: =W124-(W124*Inputs!$E$18) -> 12146.38619 | Y124: =X124-(X124*Inputs!$E$18) -> 12085.65426 | Z124: =Y124-(Y124*Inputs!$E$18) -> 12025.22599 | AA124: =Z124-(Z124*Inputs!$E$18) -> 11965.09986 | AB124: =AA124-(AA124*Inputs!$E$18) -> 11905.27436 | AC124: =AB124-(AB124*Inputs!$E$18) -> 11845.74799 | AD124: =AC124-(AC124*Inputs!$E$18) -> 11786.51925
B125: February | C125: =C92*Inputs!$S$4 -> 17636.95156 | D125: kWh's per mo. | F125: =C125 -> 17636.95156 | G125: =F125-(F125*Inputs!$E$18) -> 17548.7668 | H125: =G125-(G125*Inputs!$E$18) -> 17461.02297 | I125: =H125-(H125*Inputs!$E$18) -> 17373.71786 | J125: =I125-(I125*Inputs!$E$18) -> 17286.84927 | K125: =J125-(J125*Inputs!$E$18) -> 17200.41502 | L125: =K125-(K125*Inputs!$E$18) -> 17114.41295 | M125: =L125-(L125*Inputs!$E$18) -> 17028.84088 | N125: =M125-(M125*Inputs!$E$18) -> 16943.69668 | O125: =N125-(N125*Inputs!$E$18) -> 16858.97819 | P125: =O125-(O125*Inputs!$E$18) -> 16774.6833 | Q125: =P125-(P125*Inputs!$E$18) -> 16690.80989 | R125: =Q125-(Q125*Inputs!$E$18) -> 16607.35584 | S125: =R125-(R125*Inputs!$E$18) -> 16524.31906 | T125: =S125-(S125*Inputs!$E$18) -> 16441.69746 | U125: =T125-(T125*Inputs!$E$18) -> 16359.48897 | V125: =U125-(U125*Inputs!$E$18) -> 16277.69153 | W125: =V125-(V125*Inputs!$E$18) -> 16196.30307 | X125: =W125-(W125*Inputs!$E$18) -> 16115.32156 | Y125: =X125-(X125*Inputs!$E$18) -> 16034.74495 | Z125: =Y125-(Y125*Inputs!$E$18) -> 15954.57122 | AA125: =Z125-(Z125*Inputs!$E$18) -> 15874.79837 | AB125: =AA125-(AA125*Inputs!$E$18) -> 15795.42438 | AC125: =AB125-(AB125*Inputs!$E$18) -> 15716.44725 | AD125: =AC125-(AC125*Inputs!$E$18) -> 15637.86502
B126: March | C126: =C93*Inputs!$S$4 -> 31573.425 | D126: kWh's per mo. | F126: 31573.425 | G126: =F126-(F126*Inputs!$E$18) -> 31415.55788 | H126: =G126-(G126*Inputs!$E$18) -> 31258.48009 | I126: =H126-(H126*Inputs!$E$18) -> 31102.18769 | J126: =I126-(I126*Inputs!$E$18) -> 30946.67675 | K126: =J126-(J126*Inputs!$E$18) -> 30791.94336 | L126: =K126-(K126*Inputs!$E$18) -> 30637.98365 | M126: =L126-(L126*Inputs!$E$18) -> 30484.79373 | N126: =M126-(M126*Inputs!$E$18) -> 30332.36976 | O126: =N126-(N126*Inputs!$E$18) -> 30180.70791 | P126: =O126-(O126*Inputs!$E$18) -> 30029.80437 | Q126: =P126-(P126*Inputs!$E$18) -> 29879.65535 | R126: =Q126-(Q126*Inputs!$E$18) -> 29730.25707 | S126: =R126-(R126*Inputs!$E$18) -> 29581.60579 | T126: =S126-(S126*Inputs!$E$18) -> 29433.69776 | U126: =T126-(T126*Inputs!$E$18) -> 29286.52927 | V126: =U126-(U126*Inputs!$E$18) -> 29140.09662 | W126: =V126-(V126*Inputs!$E$18) -> 28994.39614 | X126: =W126-(W126*Inputs!$E$18) -> 28849.42416 | Y126: =X126-(X126*Inputs!$E$18) -> 28705.17704 | Z126: =Y126-(Y126*Inputs!$E$18) -> 28561.65115 | AA126: =Z126-(Z126*Inputs!$E$18) -> 28418.8429 | AB126: =AA126-(AA126*Inputs!$E$18) -> 28276.74868 | AC126: =AB126-(AB126*Inputs!$E$18) -> 28135.36494 | AD126: =AC126-(AC126*Inputs!$E$18) -> 27994.68811
B127: April | C127: =C94*Inputs!$S$4 -> 40131.89062 | D127: kWh's per mo. | F127: 40131.89062 | G127: =F127-(F127*Inputs!$E$18) -> 39931.23117 | H127: =G127-(G127*Inputs!$E$18) -> 39731.57502 | I127: =H127-(H127*Inputs!$E$18) -> 39532.91714 | J127: =I127-(I127*Inputs!$E$18) -> 39335.25256 | K127: =J127-(J127*Inputs!$E$18) -> 39138.57629 | L127: =K127-(K127*Inputs!$E$18) -> 38942.88341 | M127: =L127-(L127*Inputs!$E$18) -> 38748.16899 | N127: =M127-(M127*Inputs!$E$18) -> 38554.42815 | O127: =N127-(N127*Inputs!$E$18) -> 38361.65601 | P127: =O127-(O127*Inputs!$E$18) -> 38169.84773 | Q127: =P127-(P127*Inputs!$E$18) -> 37978.99849 | R127: =Q127-(Q127*Inputs!$E$18) -> 37789.1035 | S127: =R127-(R127*Inputs!$E$18) -> 37600.15798 | T127: =S127-(S127*Inputs!$E$18) -> 37412.15719 | U127: =T127-(T127*Inputs!$E$18) -> 37225.0964 | V127: =U127-(U127*Inputs!$E$18) -> 37038.97092 | W127: =V127-(V127*Inputs!$E$18) -> 36853.77607 | X127: =W127-(W127*Inputs!$E$18) -> 36669.50719 | Y127: =X127-(X127*Inputs!$E$18) -> 36486.15965 | Z127: =Y127-(Y127*Inputs!$E$18) -> 36303.72885 | AA127: =Z127-(Z127*Inputs!$E$18) -> 36122.21021 | AB127: =AA127-(AA127*Inputs!$E$18) -> 35941.59916 | AC127: =AB127-(AB127*Inputs!$E$18) -> 35761.89116 | AD127: =AC127-(AC127*Inputs!$E$18) -> 35583.08171
B128: May | C128: =C95*Inputs!$S$4 -> 54838.575 | D128: kWh's per mo. | F128: 54838.575 | G128: =F128-(F128*Inputs!$E$18) -> 54564.38213 | H128: =G128-(G128*Inputs!$E$18) -> 54291.56021 | I128: =H128-(H128*Inputs!$E$18) -> 54020.10241 | J128: =I128-(I128*Inputs!$E$18) -> 53750.0019 | K128: =J128-(J128*Inputs!$E$18) -> 53481.25189 | L128: =K128-(K128*Inputs!$E$18) -> 53213.84563 | M128: =L128-(L128*Inputs!$E$18) -> 52947.7764 | N128: =M128-(M128*Inputs!$E$18) -> 52683.03752 | O128: =N128-(N128*Inputs!$E$18) -> 52419.62233 | P128: =O128-(O128*Inputs!$E$18) -> 52157.52422 | Q128: =P128-(P128*Inputs!$E$18) -> 51896.7366 | R128: =Q128-(Q128*Inputs!$E$18) -> 51637.25292 | S128: =R128-(R128*Inputs!$E$18) -> 51379.06665 | T128: =S128-(S128*Inputs!$E$18) -> 51122.17132 | U128: =T128-(T128*Inputs!$E$18) -> 50866.56046 | V128: =U128-(U128*Inputs!$E$18) -> 50612.22766 | W128: =V128-(V128*Inputs!$E$18) -> 50359.16652 | X128: =W128-(W128*Inputs!$E$18) -> 50107.37069 | Y128: =X128-(X128*Inputs!$E$18) -> 49856.83384 | Z128: =Y128-(Y128*Inputs!$E$18) -> 49607.54967 | AA128: =Z128-(Z128*Inputs!$E$18) -> 49359.51192 | AB128: =AA128-(AA128*Inputs!$E$18) -> 49112.71436 | AC128: =AB128-(AB128*Inputs!$E$18) -> 48867.15079 | AD128: =AC128-(AC128*Inputs!$E$18) -> 48622.81503
B129: June | C129: =C96*Inputs!$S$4 -> 55549.425 | D129: kWh's per mo. | F129: 55549.425 | G129: =F129-(F129*Inputs!$E$18) -> 55271.67788 | H129: =G129-(G129*Inputs!$E$18) -> 54995.31949 | I129: =H129-(H129*Inputs!$E$18) -> 54720.34289 | J129: =I129-(I129*Inputs!$E$18) -> 54446.74117 | K129: =J129-(J129*Inputs!$E$18) -> 54174.50747 | L129: =K129-(K129*Inputs!$E$18) -> 53903.63493 | M129: =L129-(L129*Inputs!$E$18) -> 53634.11676 | N129: =M129-(M129*Inputs!$E$18) -> 53365.94617 | O129: =N129-(N129*Inputs!$E$18) -> 53099.11644 | P129: =O129-(O129*Inputs!$E$18) -> 52833.62086 | Q129: =P129-(P129*Inputs!$E$18) -> 52569.45275 | R129: =Q129-(Q129*Inputs!$E$18) -> 52306.60549 | S129: =R129-(R129*Inputs!$E$18) -> 52045.07246 | T129: =S129-(S129*Inputs!$E$18) -> 51784.8471 | U129: =T129-(T129*Inputs!$E$18) -> 51525.92287 | V129: =U129-(U129*Inputs!$E$18) -> 51268.29325 | W129: =V129-(V129*Inputs!$E$18) -> 51011.95179 | X129: =W129-(W129*Inputs!$E$18) -> 50756.89203 | Y129: =X129-(X129*Inputs!$E$18) -> 50503.10757 | Z129: =Y129-(Y129*Inputs!$E$18) -> 50250.59203 | AA129: =Z129-(Z129*Inputs!$E$18) -> 49999.33907 | AB129: =AA129-(AA129*Inputs!$E$18) -> 49749.34237 | AC129: =AB129-(AB129*Inputs!$E$18) -> 49500.59566 | AD129: =AC129-(AC129*Inputs!$E$18) -> 49253.09268
B130: July | C130: =C97*Inputs!$S$4 -> 61208 | D130: kWh's per mo. | F130: 61208 | G130: =F130-(F130*Inputs!$E$18) -> 60901.96 | H130: =G130-(G130*Inputs!$E$18) -> 60597.4502 | I130: =H130-(H130*Inputs!$E$18) -> 60294.46295 | J130: =I130-(I130*Inputs!$E$18) -> 59992.99063 | K130: =J130-(J130*Inputs!$E$18) -> 59693.02568 | L130: =K130-(K130*Inputs!$E$18) -> 59394.56055 | M130: =L130-(L130*Inputs!$E$18) -> 59097.58775 | N130: =M130-(M130*Inputs!$E$18) -> 58802.09981 | O130: =N130-(N130*Inputs!$E$18) -> 58508.08931 | P130: =O130-(O130*Inputs!$E$18) -> 58215.54887 | Q130: =P130-(P130*Inputs!$E$18) -> 57924.47112 | R130: =Q130-(Q130*Inputs!$E$18) -> 57634.84877 | S130: =R130-(R130*Inputs!$E$18) -> 57346.67452 | T130: =S130-(S130*Inputs!$E$18) -> 57059.94115 | U130: =T130-(T130*Inputs!$E$18) -> 56774.64144 | V130: =U130-(U130*Inputs!$E$18) -> 56490.76824 | W130: =V130-(V130*Inputs!$E$18) -> 56208.3144 | X130: =W130-(W130*Inputs!$E$18) -> 55927.27282 | Y130: =X130-(X130*Inputs!$E$18) -> 55647.63646 | Z130: =Y130-(Y130*Inputs!$E$18) -> 55369.39828 | AA130: =Z130-(Z130*Inputs!$E$18) -> 55092.55129 | AB130: =AA130-(AA130*Inputs!$E$18) -> 54817.08853 | AC130: =AB130-(AB130*Inputs!$E$18) -> 54543.00309 | AD130: =AC130-(AC130*Inputs!$E$18) -> 54270.28807
B131: August | C131: =C98*Inputs!$S$4 -> 49633.03125 | D131: kWh's per mo. | F131: 49633.03125 | G131: =F131-(F131*Inputs!$E$18) -> 49384.86609 | H131: =G131-(G131*Inputs!$E$18) -> 49137.94176 | I131: =H131-(H131*Inputs!$E$18) -> 48892.25205 | J131: =I131-(I131*Inputs!$E$18) -> 48647.79079 | K131: =J131-(J131*Inputs!$E$18) -> 48404.55184 | L131: =K131-(K131*Inputs!$E$18) -> 48162.52908 | M131: =L131-(L131*Inputs!$E$18) -> 47921.71644 | N131: =M131-(M131*Inputs!$E$18) -> 47682.10785 | O131: =N131-(N131*Inputs!$E$18) -> 47443.69731 | P131: =O131-(O131*Inputs!$E$18) -> 47206.47883 | Q131: =P131-(P131*Inputs!$E$18) -> 46970.44643 | R131: =Q131-(Q131*Inputs!$E$18) -> 46735.5942 | S131: =R131-(R131*Inputs!$E$18) -> 46501.91623 | T131: =S131-(S131*Inputs!$E$18) -> 46269.40665 | U131: =T131-(T131*Inputs!$E$18) -> 46038.05962 | V131: =U131-(U131*Inputs!$E$18) -> 45807.86932 | W131: =V131-(V131*Inputs!$E$18) -> 45578.82997 | X131: =W131-(W131*Inputs!$E$18) -> 45350.93582 | Y131: =X131-(X131*Inputs!$E$18) -> 45124.18114 | Z131: =Y131-(Y131*Inputs!$E$18) -> 44898.56024 | AA131: =Z131-(Z131*Inputs!$E$18) -> 44674.06744 | AB131: =AA131-(AA131*Inputs!$E$18) -> 44450.6971 | AC131: =AB131-(AB131*Inputs!$E$18) -> 44228.44361 | AD131: =AC131-(AC131*Inputs!$E$18) -> 44007.30139
B132: September | C132: =C99*Inputs!$S$4 -> 36787.7 | D132: kWh's per mo. | F132: 36787.7 | G132: =F132-(F132*Inputs!$E$18) -> 36603.7615 | H132: =G132-(G132*Inputs!$E$18) -> 36420.74269 | I132: =H132-(H132*Inputs!$E$18) -> 36238.63898 | J132: =I132-(I132*Inputs!$E$18) -> 36057.44578 | K132: =J132-(J132*Inputs!$E$18) -> 35877.15856 | L132: =K132-(K132*Inputs!$E$18) -> 35697.77276 | M132: =L132-(L132*Inputs!$E$18) -> 35519.2839 | N132: =M132-(M132*Inputs!$E$18) -> 35341.68748 | O132: =N132-(N132*Inputs!$E$18) -> 35164.97904 | P132: =O132-(O132*Inputs!$E$18) -> 34989.15415 | Q132: =P132-(P132*Inputs!$E$18) -> 34814.20838 | R132: =Q132-(Q132*Inputs!$E$18) -> 34640.13733 | S132: =R132-(R132*Inputs!$E$18) -> 34466.93665 | T132: =S132-(S132*Inputs!$E$18) -> 34294.60196 | U132: =T132-(T132*Inputs!$E$18) -> 34123.12895 | V132: =U132-(U132*Inputs!$E$18) -> 33952.51331 | W132: =V132-(V132*Inputs!$E$18) -> 33782.75074 | X132: =W132-(W132*Inputs!$E$18) -> 33613.83699 | Y132: =X132-(X132*Inputs!$E$18) -> 33445.7678 | Z132: =Y132-(Y132*Inputs!$E$18) -> 33278.53897 | AA132: =Z132-(Z132*Inputs!$E$18) -> 33112.14627 | AB132: =AA132-(AA132*Inputs!$E$18) -> 32946.58554 | AC132: =AB132-(AB132*Inputs!$E$18) -> 32781.85261 | AD132: =AC132-(AC132*Inputs!$E$18) -> 32617.94335
B133: October | C133: =C100*Inputs!$S$4 -> 25322.81406 | D133: kWh's per mo. | F133: 25322.81406 | G133: =F133-(F133*Inputs!$E$18) -> 25196.19999 | H133: =G133-(G133*Inputs!$E$18) -> 25070.21899 | I133: =H133-(H133*Inputs!$E$18) -> 24944.8679 | J133: =I133-(I133*Inputs!$E$18) -> 24820.14356 | K133: =J133-(J133*Inputs!$E$18) -> 24696.04284 | L133: =K133-(K133*Inputs!$E$18) -> 24572.56263 | M133: =L133-(L133*Inputs!$E$18) -> 24449.69981 | N133: =M133-(M133*Inputs!$E$18) -> 24327.45131 | O133: =N133-(N133*Inputs!$E$18) -> 24205.81406 | P133: =O133-(O133*Inputs!$E$18) -> 24084.78499 | Q133: =P133-(P133*Inputs!$E$18) -> 23964.36106 | R133: =Q133-(Q133*Inputs!$E$18) -> 23844.53926 | S133: =R133-(R133*Inputs!$E$18) -> 23725.31656 | T133: =S133-(S133*Inputs!$E$18) -> 23606.68998 | U133: =T133-(T133*Inputs!$E$18) -> 23488.65653 | V133: =U133-(U133*Inputs!$E$18) -> 23371.21324 | W133: =V133-(V133*Inputs!$E$18) -> 23254.35718 | X133: =W133-(W133*Inputs!$E$18) -> 23138.08539 | Y133: =X133-(X133*Inputs!$E$18) -> 23022.39497 | Z133: =Y133-(Y133*Inputs!$E$18) -> 22907.28299 | AA133: =Z133-(Z133*Inputs!$E$18) -> 22792.74658 | AB133: =AA133-(AA133*Inputs!$E$18) -> 22678.78284 | AC133: =AB133-(AB133*Inputs!$E$18) -> 22565.38893 | AD133: =AC133-(AC133*Inputs!$E$18) -> 22452.56198
B134: November | C134: =C101*Inputs!$S$4 -> 13308.67188 | D134: kWh's per mo. | F134: 13308.67188 | G134: =F134-(F134*Inputs!$E$18) -> 13242.12852 | H134: =G134-(G134*Inputs!$E$18) -> 13175.91787 | I134: =H134-(H134*Inputs!$E$18) -> 13110.03828 | J134: =I134-(I134*Inputs!$E$18) -> 13044.48809 | K134: =J134-(J134*Inputs!$E$18) -> 12979.26565 | L134: =K134-(K134*Inputs!$E$18) -> 12914.36932 | M134: =L134-(L134*Inputs!$E$18) -> 12849.79748 | N134: =M134-(M134*Inputs!$E$18) -> 12785.54849 | O134: =N134-(N134*Inputs!$E$18) -> 12721.62075 | P134: =O134-(O134*Inputs!$E$18) -> 12658.01264 | Q134: =P134-(P134*Inputs!$E$18) -> 12594.72258 | R134: =Q134-(Q134*Inputs!$E$18) -> 12531.74897 | S134: =R134-(R134*Inputs!$E$18) -> 12469.09022 | T134: =S134-(S134*Inputs!$E$18) -> 12406.74477 | U134: =T134-(T134*Inputs!$E$18) -> 12344.71105 | V134: =U134-(U134*Inputs!$E$18) -> 12282.98749 | W134: =V134-(V134*Inputs!$E$18) -> 12221.57255 | X134: =W134-(W134*Inputs!$E$18) -> 12160.46469 | Y134: =X134-(X134*Inputs!$E$18) -> 12099.66237 | Z134: =Y134-(Y134*Inputs!$E$18) -> 12039.16406 | AA134: =Z134-(Z134*Inputs!$E$18) -> 11978.96824 | AB134: =AA134-(AA134*Inputs!$E$18) -> 11919.0734 | AC134: =AB134-(AB134*Inputs!$E$18) -> 11859.47803 | AD134: =AC134-(AC134*Inputs!$E$18) -> 11800.18064
